Workbook

Sheet Input
B7: Consent No. | D7: =IF(Consent_Number="","Please enter consent number","") -> Please enter consent number
B9: Location | D9: =IF(Location="","Please enter location","") -> Please enter location
B11: Consent Lodged Date | C11: 2018-07-01 | D11: =IF(Consent_Lodged_Date="","Please enter date",IF(Consent_Lodged_Date<'Policy Inputs'!$CA$12,"Date cannot be before 2/04/2007","")) -> 
B13: Consent Granted Date | C13: 2018-07-01 | D13: =IF(Consent_Granted_Date="","Please enter date",IF(Consent_Granted_Date<'Policy Inputs'!$BZ$14,"Date cannot be before 1/07/2007","")) -> 
B15: Policy Year | C15: =Policy_Year_Calculation -> 2018/19
B17: Policy for Credits | D17: =IF(Credits_PolicyYear_Input="","Please enter policy year","") -> Please enter policy year
B19: GST Rate | C19: 0.15 | D19: =IF(GST="","Please enter GST rate","") -> 
B21: Greenfields or Brownfields | D21: =IF(Field_Type="","Please enter Greenfields or Brownfields","") -> Please enter Greenfields or Brownfields
B22: * See The Reserve Land Contribution section of the DCFC Policy that defines Greenfield/Brownfield. This tool uses the Urban land values to calculate the Reserve Land contribution.
B23: Urban or Township | C23: =IF(Field_Type='Policy Inputs'!$CB$41,VLOOKUP(Location,'Calculation Links'!$AN$5:$AO$21,2,FALSE),"") ->  | D23: =IFERROR(IF(Consent_Number="","",IF(VLOOKUP(Policy_Year_Input,ResLand_Input,4,0)="input","",IF(Field_Type="Brownfields","Entry not required",IF(AND(Field_Type="Greenfields",Urban_Town="")=TRUE,"Please enter Urban or Township",IF(OR(Urban_Town="Urban",Urban_Town="Township")=TRUE,"",""))))),"") -> 
B25: Number of Land Uses | D25: =IF(Number_Land_Uses="","Enter No. of Land Uses","") -> Enter No. of Land Uses
A27: Pre Development/Subdivision Demand (Credits) | C27: 1st Land Use: | E27: 2nd Land Use: | G27: 3rd Land Use: | I27: 4th Land Use:
B29: Existing Land Use:
B30: =IF(OR(Land_Use_Category_1="mixed use accommodation",Land_Use_Category_2="mixed use accommodation",Land_Use_Category_3="mixed use accommodation",Land_Use_Category_4="mixed use accommodation")=TRUE,"Please ensure credits are treated correctly for a conversion to Mixed Use Accommodation.","") ->  | C30: =IF(C29="","Please enter existing land use","") -> Please enter existing land use | E30: =IF(E29="","Please enter existing land use","") -> Please enter existing land use | G30: =IF(G29="","Please enter existing land use","") -> Please enter existing land use | I30: =IF(I29="","Please enter existing land use","") -> Please enter existing land use
B31: Existing No. of Residential Units:
C32: =IF(AND(OR(C29="Residential",C29="Country Dwelling",C29="Primary Industry",C29="Mixed Use Accommodation",C29="Mixed Use Commercial",C29="Retirement Units"),C31=""),"Please enter number of residential units","") ->  | E32: =IF(AND(OR(E29="Residential",E29="Country Dwelling",E29="Primary Industry",E29="Mixed Use Accommodation",E29="Mixed Use Commercial"),E31=""),"Please enter number of residential units","") ->  | G32: =IF(AND(OR(G29="Residential",G29="Country Dwelling",G29="Primary Industry",G29="Mixed Use Accommodation",G29="Mixed Use Commercial"),G31=""),"Please enter number of residential units","") ->  | I32: =IF(AND(OR(I29="Residential",I29="Country Dwelling",I29="Primary Industry",I29="Mixed Use Accommodation",I29="Mixed Use Commercial"),I31=""),"Please enter number of residential units","") -> 
B33: Existing GFA:
B34: Existing Site Area:
C35: =IF(OR(C29="Residential",C29="Country Dwelling",C29="Retirement Units"),"",IF(C29="Primary Industry",IF(C34=0,"Please enter site area in square metres",""),IF(SUM(C33:C34)=0,"Please enter GFA (if known) or site area",""))) -> Please enter GFA (if known) or site area | E35: =IF(OR(E29="Residential",E29="Country Dwelling"),"",IF(E29="Primary Industry",IF(E34=0,"Please enter site area in square metres",""),IF(SUM(E33:E34)=0,"Please enter GFA (if known) or site area",""))) -> Please enter GFA (if known) or site area | G35: =IF(OR(G29="Residential",G29="Country Dwelling"),"",IF(G29="Primary Industry",IF(G34=0,"Please enter site area in square metres",""),IF(SUM(G33:G34)=0,"Please enter GFA (if known) or site area",""))) -> Please enter GFA (if known) or site area | I35: =IF(OR(I29="Residential",I29="Country Dwelling"),"",IF(I29="Primary Industry",IF(I34=0,"Please enter site area in square metres",""),IF(SUM(I33:I34)=0,"Please enter GFA (if known) or site area",""))) -> Please enter GFA (if known) or site area
E36: =IF(E29="Primary Industry",IF(E34=0,"Please enter Site Area in square metres",""),"") ->  | G36: =IF(G29="Primary Industry",IF(G34=0,"Please enter Site Area in square metres",""),"") ->  | I36: =IF(I29="Primary Industry",IF(I34=0,"Please enter Site Area in square metres",""),"") -> 
B37: Existing Impervious Surface Area:
C38: =IF(OR(C29="Residential",C29="Country Dwelling",C29="Primary Industry",C29="Retirement Units"),"",IF(SUM(C37,C34)=0,"Please enter ISA (if known) or site area","")) -> Please enter ISA (if known) or site area | E38: =IF(OR(E29="Residential",E29="Country Dwelling",E29="Primary Industry"),"",IF(SUM(E37,E34)=0,"Please enter ISA (if known) or site area","")) -> Please enter ISA (if known) or site area | G38: =IF(OR(G29="Residential",G29="Country Dwelling",G29="Primary Industry"),"",IF(SUM(G37,G34)=0,"Please enter ISA (if known) or site area","")) -> Please enter ISA (if known) or site area | I38: =IF(OR(I29="Residential",I29="Country Dwelling",I29="Primary Industry"),"",IF(SUM(I37,I34)=0,"Please enter ISA (if known) or site area","")) -> Please enter ISA (if known) or site area
B39: Water Supply Credits Override:
A41: Post Development/Subdivision Demand | C41: 1st Land Use: | E41: 2nd Land Use: | G41: 3rd Land Use: | I41: 4th Land Use:
B42: The figures entered here should only be the new components added by a development or subdivision. For example: * if an existing residential lot is being subdivided into two lots, the 'Proposed Number of Residential Units' would just be 1 (i.e. the additional lot), * if a Residential Flat is being added to an existing dwelling, the dwelling can be excluded from these calculations.
B43: Subdivision or Development: | D43: =IF(Subdivision_Development="","Enter Subdivision or Development","") -> Enter Subdivision or Development
B46: Proposed Land Use: | D46: =IF(C46="","Please enter land use",IF(C46="mixed use accommodation","A Reserve Land contribution is not required for a conversion to Mixed Use Accommodation","")) -> Please enter land use
E47: =IF(E46="","Please enter Land Use",IF(E46="mixed use accommodation","A Reserve Land contribution is not required for a conversion to Mixed Use Accommodation","")) -> Please enter Land Use | G47: =IF(G46="","Please enter Land Use",IF(G46="mixed use accommodation","A Reserve Land contribution is not required for a conversion to Mixed Use Accommodation","")) -> Please enter Land Use | I47: =IF(I46="","Please enter Land Use",IF(I46="mixed use accommodation","A Reserve Land contribution is not required for a conversion to Mixed Use Accommodation","")) -> Please enter Land Use
B49: Proposed No. of Residential Units: | D49: =IF(Land_Use_Category_1="","",IF(AND(OR(Land_Use_Category_1="Residential",Land_Use_Category_1="Country Dwelling",Land_Use_Category_1="Retirement units"),No_Res_Units_LU1=""),"Please enter proposed number of residential units",IF(OR(Land_Use_Category_1="Residential Flat",Land_Use_Category_1="Multi Unit Residential"),"Entry not required",""))) -> 
E50: =IF(AND(OR(E46="Residential",E46="Country Dwelling",E46="Primary Industry",E46="Mixed Use Accommodation",E46="Mixed Use Commercial"),E49=""),"Please enter number of residential units","") ->  | G50: =IF(AND(OR(G46="Residential",G46="Country Dwelling",G46="Primary Industry",G46="Mixed Use Accommodation",G46="Mixed Use Commercial"),G49=""),"Please enter number of residential units","") ->  | I50: =IF(AND(OR(I46="Residential",I46="Country Dwelling",I46="Primary Industry",I46="Mixed Use Accommodation",I46="Mixed Use Commercial"),I49=""),"Please enter number of residential units","") -> 
B52: Is a Water Supply Contribution Required? | C52: Required
B53: Is a Wastewater Contribution Required? | C53: Required
B54: Is a Stormwater Contribution Required? | C54: Required
B55: Is a Reserve Improvements Contribution Required? | C55: Required
B56: Is a Community Facilities Contribution Required? | C56: Required
B57: Is a Reserve Land Contribution Required? | C57: Required
B58: Is a Roading Contribution Required? | C58: Required
B60: Is an Eastern Access Road Contribution Required? | D60: =IF(Location="Queenstown","Entry may be required-see EAR_Map",IF(Location="Frankton FLats","Entry may be required-see EAR_Map","Entry not required")) -> Entry not required
E61: =IF(OR(E52="",E53="",E54="",E55="",E56="",E57="",E58="",E60="")=TRUE,"Are any of these contributions required?","") -> Are any of these contributions required? | G61: =IF(OR(G52="",G53="",G54="",G55="",G56="",G57="",G58="",G60="")=TRUE,"Are any of these contributions required?","") -> Are any of these contributions required? | I61: =IF(OR(I52="",I53="",I54="",I55="",I56="",I57="",I58="",I60="")=TRUE,"Are any of these contributions required?","") -> Are any of these contributions required?
B63: Proposed GFA: | D63: =IF(OR(C46="",C46="Residential",C46="Country Dwelling",C46="Primary Industry",C46="Retirement Units"),"",IF(SUM(C63)=0,"Please enter GFA ","")) -> 
E64: =IF(OR(E46="Residential",E46="Country Dwelling",E46="Primary Industry"),"",IF(SUM(E63)=0,"Please enter GFA (if known)","")) -> Please enter GFA (if known) | G64: =IF(OR(G46="Residential",G46="Country Dwelling",G46="Primary Industry"),"",IF(SUM(G63)=0,"Please enter GFA (if known)","")) -> Please enter GFA (if known) | I64: =IF(OR(I46="Residential",I46="Country Dwelling",I46="Primary Industry"),"",IF(SUM(I63)=0,"Please enter GFA (if known)","")) -> Please enter GFA (if known)
B66: Proposed Site Area:
C67: =IF(OR(C46="Residential",C46="Country Dwelling",C46="Retirement Units"),"",IF(AND(C46="Primary Industry",LU1_SiteArea="")=TRUE,"Please enter site area in square metres",IF(AND(C63="",LU1_SiteArea="")=TRUE,"Enter site area if GFA is unknown",""))) -> Enter site area if GFA is unknown | E67: =IF(OR(E46="Residential",E46="Country Dwelling"),"",IF(AND(E46="Primary Industry",LU2_SiteArea="")=TRUE,"Please enter site area in square metres",IF(AND(E63="",LU2_SiteArea="")=TRUE,"Enter site area if GFA is unknown",""))) -> Enter site area if GFA is unknown | G67: =IF(OR(G46="Residential",G46="Country Dwelling"),"",IF(AND(G46="Primary Industry",LU3_SiteArea="")=TRUE,"Please enter site area in square metres",IF(AND(G63="",LU3_SiteArea="")=TRUE,"Enter site area if GFA is unknown",""))) -> Enter site area if GFA is unknown | I67: =IF(OR(I46="Residential",I46="Country Dwelling"),"",IF(AND(I46="Primary Industry",LU4_SiteArea="")=TRUE,"Please enter site area in square metres",IF(AND(I63="",LU4_SiteArea="")=TRUE,"Enter site area if GFA is unknown",""))) -> Enter site area if GFA is unknown
B69: Assumed GFA (75% of Estimated) | C69: =IF(LU1_GFA<>"","",IF(Land_Use_Category_1="Primary Industry","",IF(LU1_SiteArea="","",IF(ISERROR(Headworks!G153)=TRUE,"",Headworks!G153)))) ->  | E69: =IF(LU2_GFA<>"","",IF(Land_Use_Category_2="Primary Industry","",IF(LU2_SiteArea="","",IF(ISERROR(Headworks!G184)=TRUE,"",Headworks!G184)))) ->  | G69: =IF(LU3_GFA<>"","",IF(Land_Use_Category_3="Primary Industry","",IF(LU3_SiteArea="","",IF(ISERROR(Headworks!G215)=TRUE,"",Headworks!G215)))) ->  | I69: =IF(LU4_GFA<>"","",IF(Land_Use_Category_4="Primary Industry","",IF(LU4_SiteArea="","",IF(ISERROR(Headworks!G246)=TRUE,"",Headworks!G246)))) -> 
B71: Proposed Impervious Surface Area: | D71: =IF(OR(C46="",C46="Residential",C46="Country Dwelling",C46="Primary Industry"),"",IF(SUM(C71)=0,"Please enter ISA","")) -> 
E72: =IF(OR(E46="Residential",E46="Country Dwelling",E46="Primary Industry"),"",IF(SUM(E71)=0,"Please enter ISA (if known)","")) -> Please enter ISA (if known) | G72: =IF(OR(G46="Residential",G46="Country Dwelling",G46="Primary Industry"),"",IF(SUM(G71)=0,"Please enter ISA (if known)","")) -> Please enter ISA (if known) | I72: =IF(OR(I46="Residential",I46="Country Dwelling",I46="Primary Industry"),"",IF(SUM(I71)=0,"Please enter ISA (if known)","")) -> Please enter ISA (if known)
B74: Total Land Value:
C75: =IF(Policy_Year_Input="0/1","",IF(VLOOKUP(Policy_Year_Input,ResLand_Input,4,0)="set","",IF(C74="","Please enter land value",""))) ->  | E75: =IF(Policy_Year_Input="0/1","",IF(VLOOKUP(Policy_Year_Input,ResLand_Input,4,0)="set","",IF(E74="","Please enter land value",""))) ->  | G75: =IF(Policy_Year_Input="0/1","",IF(VLOOKUP(Policy_Year_Input,ResLand_Input,4,0)="set","",IF(G74="","Please enter land value",""))) ->  | I75: =IF(Policy_Year_Input="0/1","",IF(VLOOKUP(Policy_Year_Input,ResLand_Input,4,0)="set","",IF(I74="","Please enter land value",""))) -> 
B76: Total Buildable/Site Area: | C76: 1
C77: =IF(Field_Type="Brownfields","",IF(C76="","Please enter buildable or site area","")) ->  | E77: =IF(Field_Type="Brownfields","",IF(E76="","Please enter buildable or site area","")) -> Please enter buildable or site area | G77: =IF(Field_Type="Brownfields","",IF(G76="","Please enter buildable or site area","")) -> Please enter buildable or site area | I77: =IF(Field_Type="Brownfields","",IF(I76="","Please enter buildable or site area","")) -> Please enter buildable or site area
B79: GST in Land Value: | C79: 0.15
C80: Once all details are entered in, go to the Summary page for the results. | E80: =IF(Policy_Year_Input="0/1","",IF(VLOOKUP(Policy_Year_Input,ResLand_Input,4,0)="set","",IF(E79="","Please enter GST % in land value",""))) ->  | G80: =IF(Policy_Year_Input="0/1","",IF(VLOOKUP(Policy_Year_Input,ResLand_Input,4,0)="set","",IF(G79="","Please enter GST % in land value",""))) ->  | I80: =IF(Policy_Year_Input="0/1","",IF(VLOOKUP(Policy_Year_Input,ResLand_Input,4,0)="set","",IF(I79="","Please enter GST % in land value",""))) -> 

Sheet Summary
B1: Development Contributions - Summary
B3: For Consent No. | C3: =Consent_Number -> 0
L4: =IF(ROUND(SUM(L6:M14),0)=0,"OK","check") -> OK
B5: Activity | C5: Demand Post Development (DE) | D5: Credits for Existing Demand (DE) | E5: Additional Demand (DE) | F5: Development Contribution per DE ($) | G5: Development Contribution (Excl GST) | H5: GST | I5: Development Contribution (Incl GST)
B6: Water Supply Contribution: | C6: =+Headworks!B272 -> 0 | D6: =+Headworks!B271 -> 0 | E6: =Headworks!B273 -> 0 | F6: =+Headworks!B274 -> 0 | G6: =+Headworks!B275 -> 0 | H6: =+Headworks!C275 -> 0 | I6: =+Headworks!D275 -> 0 | K6: =IFERROR(IF(E6<=0,0,E6*F6),IF(AND(C6="Not Required",E6="",F6=""),0)) -> 0 | L6: =IF(ROUND(K6-G6,0)=0,0,1) -> 0 | M6: =IF(E6=0,0,IF(C6-D6=E6,0,1)) -> 0
B7: Wastewater Contribution: | C7: =+Headworks!B279 -> 0 | D7: =+Headworks!B278 -> 0 | E7: =Headworks!B280 -> 0 | F7: =+Headworks!B281 -> 0 | G7: =+Headworks!B282 -> 0 | H7: =+Headworks!C282 -> 0 | I7: =+Headworks!D282 -> 0 | K7: 0 | L7: =IF(ROUND(K7-G7,0)=0,0,1) -> 0 | M7: =IF(E7=0,0,IF(C7-D7=E7,0,1)) -> 0
B8: Stormwater Contribution: | C8: =+Headworks!B286 -> 0 | D8: =+Headworks!B285 -> 0 | E8: =Headworks!B287 -> 0 | F8: =+Headworks!B288 -> 0 | G8: =+Headworks!B289 -> 0 | H8: =+Headworks!C289 -> 0 | I8: =+Headworks!D289 -> 0 | K8: 0 | L8: 0 | M8: 0
B9: Reserve Improvements Contribution: | C9: =+Reserves!B235 -> 0 | D9: =+Reserves!B234 -> 0 | E9: =+Reserves!B236 -> 0 | F9: =+Reserves!B237 -> 0 | G9: =+Reserves!B238 -> 0 | H9: =+Reserves!C238 -> 0 | I9: =+Reserves!D238 -> 0 | K9: 0 | L9: 0 | M9: 0
B10: Community Facilities Contribution: | C10: =+Reserves!B242 -> 0 | D10: =+Reserves!B241 -> 0 | E10: =+Reserves!B243 -> 0 | F10: =+Reserves!B244 -> 0 | G10: =+Reserves!B245 -> 0 | H10: =+Reserves!C245 -> 0 | I10: =+Reserves!D245 -> 0 | K10: 0 | L10: 0 | M10: 0
B11: Reserve Land Contribution: | C11: =+Reserves!B249 -> 0 | D11: =+Reserves!B248 -> 0 | E11: =+Reserves!B250 -> 0 | F11: =IF(E11=0,0,IF(Reserves!B120=0,0,G11/E11)) -> 0 | G11: =+Reserves!B253 -> 0 | H11: =+Reserves!C253 -> 0 | I11: =G11+H11 -> 0 | K11: 0 | L11: 0 | M11: 0
B12: Roading Contribution: | C12: =+Roading!B106 -> 0 | D12: =+Roading!B105 -> 0 | E12: =Roading!B107 -> 0 | F12: =+Roading!B108 -> 0 | G12: =Roading!B109 -> 0 | H12: =+Roading!C109 -> 0 | I12: =+Roading!D109 -> 0 | K12: =IFERROR(IF(E12<=0,0,E12*F12),IF(AND(C12="Not Required",E12="",F12=""),0)) -> 0 | L12: =IF(ROUND(K12-G12,0)=0,0,1) -> 0 | M12: =IF(E12=0,0,IF(C12-D12=E12,0,1)) -> 0
B13: Roading - EAR Contribution: | C13: =+EAR!B105 -> 0 | D13: =+EAR!B104 -> 0 | E13: =EAR!B106 -> 0 | F13: =+EAR!B107 -> 0 | G13: =EAR!B108 -> 0 | H13: =+EAR!C108 -> 0 | I13: =+EAR!D108 -> 0 | K13: 0 | L13: 0 | M13: 0
B14: Total Contribution: | G14: =SUM(G6:G13) -> 0 | H14: =SUM(H6:H13) -> 0 | I14: =SUM(I6:I13) -> 0
C16: Notes
C17: A credit may apply if the development is on a vacant residential lot that was created prior to 2004, or if a development contribution has already been paid at the time of subdivision. Each vacant residential lot that meets the criteria receives a credit of 1 dwelling equivalent (DE). This credit is subtracted from the above additional demand (DE).

Sheet EAR_Map

Sheet Populate DCN (hidden)
A1: Field | B1: Value | C1: * Make sure Document to Populate is Closed first
A4: demand_For | B4: =D7&E7&F7&G7&H7&I7&J7 ->  | D4: =IF(ws_Ttl_ex>0,"Water Supply","") ->  | E4: =IF(ww_Ttl_ex>0,"Wastewater","") ->  | F4: =IF(sw_Ttl_ex>0,"Stormwater","") ->  | G4: =IF(resImp_Ttl_ex>0,"Reserve Improvements","") ->  | H4: =IF(comFac_Ttl_ex>0,"Community Facilities","") ->  | I4: =IF(resLand_Ttl_ex>0,"Reserve Land","") ->  | J4: =IF(trprt_Ttl_ex>0,"Roading","") -> 
D5: =IF(D4="","",D4&", ") -> 
A6: policyYear | B6: =Policy_Year_Input -> 2018/19 | D6: =IF(D4="","","and "&D4) -> 
D7: =IF(AND(E4="",F4="",G4="",H4="",I4="",J4=""),D4,D5) ->  | E7: =IF(AND(F4="",G4="",H4="",I4="",J4=""),E6,E5) ->  | F7: =IF(AND(G4="",H4="",I4="",J4=""),F6,F5) ->  | G7: =IF(AND(,H4="",I4="",J4=""),G6,G5) ->  | H7: =IF(AND(I4="",J4=""),H6,H5) ->  | I7: =IF(AND(J4=""),I6,I5) ->  | J7: =IF(J4="","",J6) -> 
A8: ws_CA | B8: =IF(WS_DE="Not Required","Not Required",Location&" - "&Land_Use_Category_1&IF(--Number_Land_Uses<2,"",", "&Land_Use_Category_2)&IF(--Number_Land_Uses<3,"",", "&Land_Use_Category_3)&IF(--Number_Land_Uses<4,"",", "&Land_Use_Category_4)) -> -
A9: ws_DE_Cont | B9: =IF(B8="Not Required","",ROUND(ws_DE_Cont,2)) -> 0
A10: ws_DE_Units | B10: =IF(B8="Not Required","","("&ROUND(WS_DE,2)&") - ("&ROUND(WS_CR,2)&") credit = "&ROUND(WS_DE-WS_CR,2)) -> (0) - (0) credit = 0
A11: ws_Ttl_ex | B11: =IF(B8="Not Required","",ROUND(ws_Ttl_ex,2)) -> 0
A12: ws_Ttl_inc | B12: =IF(B8="Not Required","",ROUND(B11*1.15,2)) -> 0
A14: ww_CA | B14: =IF(WW_DE="Not Required","Not Required",Location&" - "&Land_Use_Category_1&IF(--Number_Land_Uses<2,"",", "&Land_Use_Category_2)&IF(--Number_Land_Uses<3,"",", "&Land_Use_Category_3)&IF(--Number_Land_Uses<4,"",", "&Land_Use_Category_4)) -> -
A15: ww_DE_Cont | B15: =IF(B14="Not Required","",ROUND(ww_DE_Cont,2)) -> 0
A16: ww_DE_Units | B16: =IF(B14="Not Required","","("&ROUND(WW_DE,2)&") - ("&ROUND(WW_CR,2)&") credit = "&ROUND(WW_DE-WW_CR,2)) -> (0) - (0) credit = 0
A17: ww_Ttl_ex | B17: =IF(B14="Not Required","",ROUND(ww_Ttl_ex,2)) -> 0
A18: ww_Ttl_inc | B18: =IF(B14="Not Required","",ROUND(B17*1.15,2)) -> 0
A20: sw_CA | B20: =IF(SW_DE="Not Required","Not Required",Location&" - "&Land_Use_Category_1&IF(--Number_Land_Uses<2,"",", "&Land_Use_Category_2)&IF(--Number_Land_Uses<3,"",", "&Land_Use_Category_3)&IF(--Number_Land_Uses<4,"",", "&Land_Use_Category_4)) -> -
A21: sw_DE_Cont | B21: =IF(B20="Not Required","",ROUND(sw_DE_Cont,2)) -> 0
A22: sw_DE_Units | B22: =IF(B20="Not Required","","("&ROUND(SW_DE,2)&") - ("&ROUND(SW_CR,2)&") credit = "&ROUND(SW_DE-SW_CR,2)) -> (0) - (0) credit = 0
A23: sw_Ttl_ex | B23: =IF(B20="Not Required","",ROUND(sw_Ttl_ex,2)) -> 0
A24: sw_Ttl_inc | B24: =IF(B20="Not Required","",ROUND(B23*1.15,2)) -> 0
A26: resImp_CA | B26: =IF(RI_DE="Not Required","Not Required","Reserve Improvements - "&Location&" - "&Land_Use_Category_1&IF(--Number_Land_Uses<2,"",", "&Land_Use_Category_2)&IF(--Number_Land_Uses<3,"",", "&Land_Use_Category_3)&IF(--Number_Land_Uses<4,"",", "&Land_Use_Category_4)) -> Reserve Improvements - -
A27: resImp_DE_Cont | B27: =IF(B26="Not Required","",ROUND(resImp_DC_Cont,2)) -> 0
A28: resImp_DE_Units | B28: =IF(B26="Not Required","","("&ROUND(RI_DE,2)&") - ("&ROUND(RI_CR,2)&") credit = "&ROUND(RI_DE-RI_CR,2)) -> (0) - (0) credit = 0
A29: resImp_Ttl_ex | B29: =IF(B26="Not Required","",ROUND(resImp_Ttl_ex,2)) -> 0
A30: resImp_Ttl_inc | B30: =IF(B26="Not Required","",ROUND(B29*1.15,2)) -> 0
A32: comFac_CA | B32: =IF(CF_DE="Not Required","Not Required","Community Facilities - "&Location&" - "&Land_Use_Category_1&IF(--Number_Land_Uses<2,"",", "&Land_Use_Category_2)&IF(--Number_Land_Uses<3,"",", "&Land_Use_Category_3)&IF(--Number_Land_Uses<4,"",", "&Land_Use_Category_4)) -> Community Facilities - -
A33: comFac_DE_Cont | B33: =IF(B32="Not Required","",ROUND(comFac_DE_Cont,2)) -> 0
A34: comFac_DE_Units | B34: =IF(B32="Not Required","","("&ROUND(CF_DE,2)&") - ("&ROUND(CF_CR,2)&") credit = "&ROUND(CF_DE-CF_CR,2)) -> (0) - (0) credit = 0
A35: comFac_Ttl_ex | B35: =IF(B32="Not Required","",ROUND(comFac_Ttl_ex,2)) -> 0
A36: comFac_Ttl_inc | B36: =IF(B32="Not Required","",ROUND(B35*1.15,2)) -> 0
A38: resLand_CA | B38: =IF(RL_DE="Not Required","Not Required","Reserve Land - "&Location&" - "&Land_Use_Category_1&IF(--Number_Land_Uses<2,"",", "&Land_Use_Category_2)&IF(--Number_Land_Uses<3,"",", "&Land_Use_Category_3)&IF(--Number_Land_Uses<4,"",", "&Land_Use_Category_4)) -> Reserve Land - -
A39: resLand_DE_Cont | B39: =IF(B38="Not Required","","Refer below*") -> Refer below*
A40: resLand_DE_Units | B40: =IF(B38="Not Required","","("&ROUND(RL_DE,2)&") - ("&ROUND(RL_CR,2)&") credit = "&ROUND(RL_DE-RL_CR,2)) -> (0) - (0) credit = 0
A41: resLand_Ttl_ex | B41: =IF(B38="Not Required","",ROUND(resLand_Ttl_ex,2)) -> 0
A42: resLand_Ttl_inc | B42: =IF(B38="Not Required","",ROUND(B41*1.15,2)) -> 0
A44: trprt_CA | B44: =IF(R_DE="Not Required","Not Required",Location&" - "&Land_Use_Category_1&IF(--Number_Land_Uses<2,"",", "&Land_Use_Category_2)&IF(--Number_Land_Uses<3,"",", "&Land_Use_Category_3)&IF(--Number_Land_Uses<4,"",", "&Land_Use_Category_4)) -> -
A45: trprt_DE_Cont | B45: =IF(B44="Not Required","",ROUND(trprt_DE_Cont,2)) -> 0
A46: trprt_DE_Units | B46: =IF(B44="Not Required","","("&ROUND(R_DE,2)&") - ("&ROUND(R_CR,2)&") credit = "&ROUND(R_DE-R_CR,2)) -> (0) - (0) credit = 0
A47: trprt_Ttl_ex | B47: =IF(B44="Not Required","",ROUND(trprt_Ttl_ex,2)) -> 0
A48: trprt_Ttl_inc | B48: =IF(B44="Not Required","",ROUND(B47*1.15,2)) -> 0
A50: EAR_CA | B50: =IF(EAR_DE="Not Required","Not Required",Location&" - "&Land_Use_Category_1&IF(--Number_Land_Uses<2,"",", "&Land_Use_Category_2)&IF(--Number_Land_Uses<3,"",", "&Land_Use_Category_3)&IF(--Number_Land_Uses<4,"",", "&Land_Use_Category_4)) -> -
A51: EAR_DE_Cont | B51: =IF(B50="Not Required","",ROUND(EAR_DE_Cont,2)) -> 0
A52: EAR_DE_Units | B52: =IF(B50="Not Required","","("&ROUND(EAR_DE,2)&") - ("&ROUND(EAR_CR,2)&") credit = "&ROUND(EAR_DE-EAR_CR,2)) -> (0) - (0) credit = 0
A53: EAR_Ttl_ex | B53: =IF(B50="Not Required","",ROUND(EAR_Ttl_ex,2)) -> 0
A54: EAR_Ttl_inc | B54: =IF(B50="Not Required","",ROUND(B53*1.15,2)) -> 0
A56: TOTAL_CONT | B56: =ROUND(SUM(B12,B18,B24,B30,B36,B42,B48,B54),2) -> 0

Sheet Headworks (hidden)
A1: Pre Development/Subdivision Demand (Credits) - WS, WW & SW
A2: For Consent No. | B2: =IF(Consent_Number="","",Consent_Number) ->  | F2: No. of Land Uses | G2: =Number_Land_Uses -> 0
A4: Location: | B4: =IF(Location="","",Location) ->  | D4: =IF($B$4="","",VLOOKUP(B4,Ward,9,0)) -> 
A6: =IF($G$2="1","Land Use Category:","1st Land Use Category:") -> 1st Land Use Category: | B6: =IF(Land_Use_Category_1_Credits="","",Land_Use_Category_1_Credits) ->  | F6: No. of Residential Units: | G6: =IF(No_Res_Units_LU1_Credits="","",No_Res_Units_LU1_Credits) -> 
A7: 2nd Land Use Category: | B7: =IF(Land_Use_Category_2_Credits="","",Land_Use_Category_2_Credits) ->  | F7: No. of Residential Units: | G7: =IF(No_Res_Units_LU2_Credits="","",No_Res_Units_LU2_Credits) -> 
A8: 3rd Land Use Category: | B8: =IF(Land_Use_Category_3_Credits="","",Land_Use_Category_3_Credits) ->  | F8: No. of Residential Units: | G8: =IF(No_Res_Units_LU3_Credits="","",No_Res_Units_LU3_Credits) -> 
A9: 4th Land Use Category: | B9: =IF(Land_Use_Category_4_Credits="","",Land_Use_Category_4_Credits) ->  | F9: No. of Residential Units: | G9: =IF(No_Res_Units_LU4_Credits="","",No_Res_Units_LU4_Credits) -> 
A11: =IF($G$2="1","","1a ")&"Water Supply Contribution - "&$B$6&" Land Use" -> 1a Water Supply Contribution - Land Use | F11: SITE INFORMATION
A12: Differential Type | B12: =VLOOKUP($B$6,Credits_LUD_Type,2,FALSE) -> 
A13: Gross Floor Area (GFA): | B13: =IF(G13="",G17,G13) ->  | C13: m² | F13: Gross Floor Area | G13: =IF(LU1_GFA_Credits="","",LU1_GFA_Credits) ->  | H13: m² (known)
A14: Dwelling Equivalents per 100m² GFA: | B14: =VLOOKUP($B$6,Credits_Land_Use_Differentials,2,FALSE) ->  | F14: Site Area | G14: =IF(LU1_SiteArea_Credits="","",LU1_SiteArea_Credits) -> 
A15: GFA DE's: | B15: =B13/100*B14 ->  | F15: Building Coverage | G15: =VLOOKUP($B$6,Credits_GFA_Estimates,2,FALSE) -> 
A16: No. Units: | B16: =$G$6 ->  | F16: No. of Floors | G16: =VLOOKUP($B$6,Credits_GFA_Estimates,3,FALSE) -> 
A17: Dwelling Equivalents per Unit: | B17: =B14 ->  | F17: Gross Floor Area | G17: =IF(G15=0,Credits_Res_GFA,G14*G15*G16) ->  | H17: m² (estimated)
A18: Unit DE's: | B18: =B16*B17 -> 
A19: Network Factor Dwelling Equivalents: | B19: =IF(AND(B13=0,B16=0),0,VLOOKUP($B$6,Credits_Land_Use_Differentials,3,FALSE)) ->  | F19: Primary Industry GFA Equivalent
A20: Dwelling Equivalents: | B20: =IF(B6="",0,IF(LU1_WS_Credit_OR<>"",LU1_WS_Credit_OR,IF(B12="Unit",B18+B19,B15+B19))) -> 0
A22: =IF($G$2="1","","1b ")&"Wastewater Contribution - "&$B$6&" Land Use" -> 1b Wastewater Contribution - Land Use
A23: Differential Type | B23: =VLOOKUP($B$6,Credits_LUD_Type,4,FALSE) -> 
A24: Gross Floor Area (GFA): | B24: =B13 ->  | C24: m²
A25: Dwelling Equivalents per 100m² GFA: | B25: =VLOOKUP($B$6,Credits_Land_Use_Differentials,4,FALSE) -> 
A26: GFA DE's: | B26: =B24/100*B25 -> 
A27: No. Units: | B27: =$G$6 -> 
A28: Dwelling Equivalents per Unit: | B28: =B25 -> 
A29: Unit DE's: | B29: =B27*B28 -> 
A30: Dwelling Equivalents: | B30: =IF(B6="",0,IF(B23="Unit",B29,B26)) -> 0
F31: SITE INFORMATION
A32: =IF($G$2="1","","1c ")&"Stormwater Contribution - "&$B$6&" Land Use" -> 1c Stormwater Contribution - Land Use | F32: Impervious Surface Area | G32: =IF(LU1_ISA_Credits="","",LU1_ISA_Credits) ->  | H32: m² (known)
A33: Differential Type | B33: =VLOOKUP($B$6,Credits_LUD_Type,5,FALSE) ->  | F33: Site Area | G33: =IF(LU1_SiteArea_Credits="","",LU1_SiteArea_Credits) -> 
A34: Impervious Surface Area (ISA): | B34: =IF(G32="",G35,G32) ->  | C34: m² | F34: Building Coverage | G34: =VLOOKUP($B$6,Credits_Building_Coverages,2,FALSE) -> 
A35: Dwelling Equivalents per 100m² ISA: | B35: =VLOOKUP($B$6,Credits_Land_Use_Differentials,5,FALSE) ->  | F35: Impervious Surface Area | G35: =IF(G34=0,269,G33*G34) ->  | H35: m² (estimated)
A36: GFA DE's: | B36: =B34/100*B35 -> 
A37: No. Units: | B37: =$G$6 -> 
A38: Dwelling Equivalents per Unit: | B38: =B35 -> 
A39: Unit DE's: | B39: =B37*B38 -> 
A40: Dwelling Equivalents: | B40: =IF(B6="",0,IF(B33="Unit",B39,B36)) -> 0
A42: ="2a Water Supply Contribution - "&$B$7&" Land Use" -> 2a Water Supply Contribution - Land Use | F42: SITE INFORMATION
A43: Differential Type | B43: =VLOOKUP($B$7,Credits_LUD_Type,2,FALSE) ->  | F43: Gross Floor Area | G43: =IF(LU2_GFA_Credits="","",LU2_GFA_Credits) ->  | H43: m² (known)
A44: Gross Floor Area (GFA): | B44: =IF(G43="",G47,G43) ->  | C44: m² | F44: Site Area | G44: =IF(LU2_SiteArea_Credits="","",LU2_SiteArea_Credits) -> 
A45: Dwelling Equivalents per 100m² GFA: | B45: =VLOOKUP($B$7,Credits_Land_Use_Differentials,2,FALSE) ->  | F45: Building Coverage | G45: =VLOOKUP($B$7,Credits_GFA_Estimates,2,FALSE) -> 
A46: GFA DE's: | B46: =B44/100*B45 ->  | F46: No. of Floors | G46: =VLOOKUP($B$7,Credits_GFA_Estimates,3,FALSE) -> 
A47: No. Units: | B47: =$G$7 ->  | F47: Gross Floor Area | G47: =IF(G45=0,Credits_Res_GFA,G44*G45*G46) ->  | H47: m² (estimated)
A48: Dwelling Equivalents per Unit: | B48: =B45 -> 
A49: Unit DE's: | B49: =B47*B48 -> 
A50: Network Factor Dwelling Equivalents:
A51: Dwelling Equivalents: | B51: =IF(B7="",0,IF(LU2_WS_Credit_OR<>"",LU2_WS_Credit_OR,IF(B43="Unit",B49+B50,B46+B50))) -> 0
A53: ="2b Wastewater Contribution - "&$B$7&" Land Use" -> 2b Wastewater Contribution - Land Use
A54: Differential Type | B54: =VLOOKUP($B$7,Credits_LUD_Type,4,FALSE) -> 
A55: Gross Floor Area (GFA): | B55: =B44 ->  | C55: m²
A56: Dwelling Equivalents per 100m² GFA: | B56: =VLOOKUP($B$7,Credits_Land_Use_Differentials,4,FALSE) -> 
A57: GFA DE's: | B57: =B55/100*B56 -> 
A58: No. Units: | B58: =$G$7 -> 
A59: Dwelling Equivalents per Unit: | B59: =B56 -> 
A60: Unit DE's:
A61: Dwelling Equivalents: | B61: =IF(B7="",0,IF(B54="Unit",B60,B57)) -> 0
F62: SITE INFORMATION
A63: ="2c Stormwater Contribution - "&$B$7&" Land Use" -> 2c Stormwater Contribution - Land Use | F63: Impervious Surface Area | G63: =IF(LU2_ISA_Credits="","",LU2_ISA_Credits) ->  | H63: m² (known)
A64: Differential Type | B64: =VLOOKUP($B$7,Credits_LUD_Type,5,FALSE) ->  | F64: Site Area | G64: =IF(LU2_SiteArea_Credits="","",LU2_SiteArea_Credits) -> 
A65: Gross Floor Area (GFA): | B65: =IF(G63="",G66,G63) ->  | C65: m² | F65: Building Coverage | G65: =VLOOKUP($B$7,Credits_Building_Coverages,2,FALSE) -> 
A66: Dwelling Equivalents per 100m² GFA: | B66: =VLOOKUP($B$7,Credits_Land_Use_Differentials,5,FALSE) ->  | F66: Impervious Surface Area | G66: =IF(G65=0,269,G64*G65) ->  | H66: m² (estimated)
A67: GFA DE's: | B67: =B65/100*B66 -> 
A68: No. Units: | B68: =$G$7 -> 
A69: Dwelling Equivalents per Unit: | B69: =B66 -> 
A70: Unit DE's:
A71: Dwelling Equivalents: | B71: =IF(B7="",0,IF(B64="Unit",B70,B67)) -> 0
A73: ="3a Water Supply Contribution - "&$B$8&" Land Use" -> 3a Water Supply Contribution - Land Use | F73: SITE INFORMATION
A74: Differential Type | B74: =VLOOKUP($B$8,Credits_LUD_Type,2,FALSE) ->  | F74: Gross Floor Area | G74: =IF(LU3_GFA_Credits="","",LU3_GFA_Credits) ->  | H74: m² (known)
A75: Gross Floor Area (GFA): | B75: =IF(G74="",G78,G74) ->  | C75: m² | F75: Site Area | G75: =IF(LU3_SiteArea_Credits="","",LU3_SiteArea_Credits) -> 
A76: Dwelling Equivalents per 100m² GFA: | B76: =VLOOKUP($B$8,Credits_Land_Use_Differentials,2,FALSE) ->  | F76: Building Coverage | G76: =VLOOKUP($B$8,Credits_GFA_Estimates,2,FALSE) -> 
A77: GFA DE's: | B77: =B75/100*B76 ->  | F77: No. of Floors | G77: =VLOOKUP($B$8,Credits_GFA_Estimates,3,FALSE) -> 
A78: No. Units: | B78: =$G$8 ->  | F78: Gross Floor Area | G78: =IF(G76=0,Credits_Res_GFA,G75*G76*G77) ->  | H78: m² (estimated)
A79: Dwelling Equivalents per Unit: | B79: =B76 -> 
A80: Unit DE's: | B80: =B78*B79 -> 
A81: Network Factor Dwelling Equivalents:
A82: Dwelling Equivalents: | B82: =IF(B8="",0,IF(LU3_WS_Credit_OR<>"",LU3_WS_Credit_OR,IF(B74="Unit",B80+B81,B77+B81))) -> 0
A84: ="3b Wastewater Contribution - "&$B$8&" Land Use" -> 3b Wastewater Contribution - Land Use
A85: Differential Type | B85: =VLOOKUP($B$8,Credits_LUD_Type,4,FALSE) -> 
A86: Gross Floor Area (GFA): | B86: =B75 ->  | C86: m²
A87: Dwelling Equivalents per 100m² GFA: | B87: =VLOOKUP($B$8,Credits_Land_Use_Differentials,4,FALSE) -> 
A88: GFA DE's: | B88: =B86/100*B87 -> 
A89: No. Units: | B89: =$G$8 -> 
A90: Dwelling Equivalents per Unit: | B90: =B87 -> 
A91: Unit DE's: | B91: =B89*B90 -> 
A92: Dwelling Equivalents: | B92: =IF(B8="",0,IF(B85="Unit",B91,B88)) -> 0
F93: SITE INFORMATION
A94: ="3c Stormwater Contribution - "&$B$8&" Land Use" -> 3c Stormwater Contribution - Land Use | F94: Impervious Surface Area | G94: =IF(LU3_ISA_Credits="","",LU3_ISA_Credits) ->  | H94: m² (known)
A95: Differential Type | B95: =VLOOKUP($B$8,Credits_LUD_Type,5,FALSE) ->  | F95: Site Area | G95: =IF(LU3_SiteArea_Credits="","",LU3_SiteArea_Credits) -> 
A96: Gross Floor Area (GFA): | B96: =IF(G94="",G97,G94) ->  | C96: m² | F96: Building Coverage | G96: =VLOOKUP($B$8,Credits_Building_Coverages,2,FALSE) -> 
A97: Dwelling Equivalents per 100m² GFA: | B97: =VLOOKUP($B$8,Credits_Land_Use_Differentials,5,FALSE) ->  | F97: Impervious Surface Area | G97: =IF(G96=0,269,G95*G96) ->  | H97: m² (estimated)
A98: GFA DE's: | B98: =B96/100*B97 -> 
A99: No. Units: | B99: =$G$8 -> 
A100: Dwelling Equivalents per Unit: | B100: =B97 -> 
A101: Unit DE's: | B101: =B99*B100 -> 
A102: Dwelling Equivalents: | B102: =IF(B8="",0,IF(B95="Unit",B101,B98)) -> 0
A104: ="4a Water Supply Contribution - "&$B$9&" Land Use" -> 4a Water Supply Contribution - Land Use | F104: SITE INFORMATION
A105: Differential Type | B105: =VLOOKUP($B$9,Credits_LUD_Type,2,FALSE) ->  | F105: Gross Floor Area | G105: =IF(LU4_GFA_Credits="","",LU4_GFA_Credits) ->  | H105: m² (known)
A106: Gross Floor Area (GFA): | B106: =IF(G105="",G109,G105) ->  | C106: m² | F106: Site Area | G106: =IF(LU4_SiteArea_Credits="","",LU4_SiteArea_Credits) -> 
A107: Dwelling Equivalents per 100m² GFA: | B107: =VLOOKUP($B$9,Credits_Land_Use_Differentials,2,FALSE) ->  | F107: Building Coverage | G107: =VLOOKUP($B$9,Credits_GFA_Estimates,2,FALSE) -> 
A108: GFA DE's: | B108: =B106/100*B107 ->  | F108: No. of Floors | G108: =VLOOKUP($B$9,Credits_GFA_Estimates,3,FALSE) -> 
A109: No. Units: | B109: =$G$9 ->  | F109: Gross Floor Area | G109: =IF(G107=0,Credits_Res_GFA,G106*G107*G108) ->  | H109: m² (estimated)
A110: Dwelling Equivalents per Unit: | B110: =B107 -> 
A111: Unit DE's: | B111: =B109*B110 -> 
A112: Network Factor Dwelling Equivalents:
A113: Dwelling Equivalents: | B113: =IF(B9="",0,IF(LU4_WS_Credit_OR<>"",LU4_WS_Credit_OR,IF(B105="Unit",B111+B112,B108+B112))) -> 0
A115: ="4b Wastewater Contribution - "&$B$9&" Land Use" -> 4b Wastewater Contribution - Land Use
A116: Differential Type | B116: =VLOOKUP($B$9,Credits_LUD_Type,4,FALSE) -> 
A117: Gross Floor Area (GFA): | B117: =B106 ->  | C117: m²
A118: Dwelling Equivalents per 100m² GFA: | B118: =VLOOKUP($B$9,Credits_Land_Use_Differentials,4,FALSE) -> 
A119: GFA DE's: | B119: =B117/100*B118 -> 
A120: No. Units: | B120: =$G$9 -> 
A121: Dwelling Equivalents per Unit: | B121: =B118 -> 
A122: Unit DE's: | B122: =B120*B121 -> 
A123: Dwelling Equivalents: | B123: =IF(B9="",0,IF(B116="Unit",B122,B119)) -> 0
F124: SITE INFORMATION
A125: ="4c Stormwater Contribution - "&$B$9&" Land Use" -> 4c Stormwater Contribution - Land Use | F125: Impervious Surface Area | G125: =IF(LU4_ISA_Credits="","",LU4_ISA_Credits) ->  | H125: m² (known)
A126: Differential Type | B126: =VLOOKUP($B$9,Credits_LUD_Type,5,FALSE) ->  | F126: Site Area | G126: =IF(LU4_SiteArea_Credits="","",LU4_SiteArea_Credits) -> 
A127: Gross Floor Area (GFA): | B127: =IF(G125="",G128,G125) ->  | C127: m² | F127: Building Coverage | G127: =VLOOKUP($B$9,Credits_Building_Coverages,2,FALSE) -> 
A128: Dwelling Equivalents per 100m² GFA: | B128: =VLOOKUP($B$9,Credits_Land_Use_Differentials,5,FALSE) ->  | F128: Impervious Surface Area | G128: =IF(G127=0,269,G126*G127) ->  | H128: m² (estimated)
A129: GFA DE's: | B129: =B127/100*B128 -> 
A130: No. Units: | B130: =$G$9 -> 
A131: Dwelling Equivalents per Unit: | B131: =B128 -> 
A132: Unit DE's: | B132: =B130*B131 -> 
A133: Dwelling Equivalents: | B133: =IF(B9="",0,IF(B126="Unit",B132,B129)) -> 0
A135: Post Development/Subdivision Demand - WS, WW & SW
A136: For Consent No. | B136: =B2 -> 
A138: Location: | B138: =$B$4 -> 
A140: =IF(D135="1","Land Use Category:","1st Land Use Category:") -> 1st Land Use Category: | B140: =IF(Land_Use_Category_1="","",Land_Use_Category_1) ->  | F140: No. of Residential Units: | G140: =IF(No_Res_Units_LU1="","",No_Res_Units_LU1) -> 
A141: 2nd Land Use Category: | B141: =IF(Land_Use_Category_2="","",Land_Use_Category_2) ->  | F141: No. of Residential Units: | G141: =IF(No_Res_Units_LU2="","",No_Res_Units_LU2) -> 
A142: 3rd Land Use Category: | B142: =IF(Land_Use_Category_3="","",Land_Use_Category_3) ->  | F142: No. of Residential Units: | G142: =IF(No_Res_Units_LU3="","",No_Res_Units_LU3) -> 
A143: 4th Land Use Category: | B143: =IF(Land_Use_Category_4="","",Land_Use_Category_4) ->  | F143: No. of Residential Units: | G143: =IF(No_Res_Units_LU4="","",No_Res_Units_LU4) -> 
A145: =IF(G2="1","","1a ")&"Water Supply Contribution - "&$B$140&" Land Use" -> 1a Water Supply Contribution - Land Use | D145: =Required_LU1_WS -> Required
A146: Differential Type | B146: =VLOOKUP($B$140,LUD_Type,2,FALSE) -> 
A147: Gross Floor Area (GFA): | B147: =IF(G148="",G153,G148) ->  | C147: m² | F147: SITE INFORMATION
A148: Dwelling Equivalents per 100m² GFA: | B148: =VLOOKUP($B$140,Land_Use_Differentials,2,FALSE) ->  | F148: Gross Floor Area | G148: =IF(LU1_GFA="","",LU1_GFA) ->  | H148: m² (known)
A149: GFA DE's: | B149: =B147/100*B148 ->  | F149: Site Area | G149: =IF(LU1_SiteArea="","",LU1_SiteArea) -> 
A150: No. Units: | B150: =$G$140 ->  | F150: Building Coverage | G150: =VLOOKUP($B$140,GFA_Estimates,2,FALSE) -> 
A151: Dwelling Equivalents per Unit: | B151: =B148 ->  | F151: No. of Floors | G151: =VLOOKUP($B$140,GFA_Estimates,3,FALSE) -> 
A152: Unit DE's: | B152: =B151*B150 ->  | F152: Gross Floor Area | G152: =IF(G150=0,Res_GFA,G149*G150*G151) ->  | H152: m² (estimated)
A153: Network Factor Dwelling Equivalents: | B153: =VLOOKUP($B$140,Land_Use_Differentials,3,FALSE) ->  | G153: =IF(G149>0,G152*0.75,G152) ->  | H153: 75% of m² (estimated)
A154: Dwelling Equivalents: | B154: =IF(B140="",0,IF(B146="Unit",B152+B153,B149+B153)) -> 0
A156: =IF(G2="1","","1b ")&"Wastewater Contribution - "&$B$140&" Land Use" -> 1b Wastewater Contribution - Land Use | D156: =Required_LU1_WW -> Required
A157: Differential Type | B157: =VLOOKUP($B$140,LUD_Type,4,FALSE) -> 
A158: Gross Floor Area (GFA): | B158: =B147 ->  | C158: m²
A159: Dwelling Equivalents per 100m² GFA: | B159: =VLOOKUP($B$140,Land_Use_Differentials,4,FALSE) -> 
A160: GFA DE's: | B160: =B158/100*B159 -> 
A161: No. Units: | B161: =B150 -> 
A162: Dwelling Equivalents per Unit: | B162: =B159 -> 
A163: Unit DE's: | B163: =B162*B161 -> 
A164: Dwelling Equivalents: | B164: =IF(B140="",0,IF(B157="Unit",B163,B160)) -> 0 | F164: SITE INFORMATION
F165: Impervious Surface Area | G165: =IF(LU1_ISA="","",LU1_ISA) ->  | H165: m² (known)
A166: =IF(G2="1","","1c ")&"Stormwater Contribution - "&$B$140&" Land Use" -> 1c Stormwater Contribution - Land Use | D166: =Required_LU1_SW -> Required | F166: Site Area | G166: =IF(LU1_SiteArea="","",LU1_SiteArea) -> 
A167: Differential Type | B167: =VLOOKUP($B$140,LUD_Type,5,FALSE) ->  | F167: Building Coverage | G167: =VLOOKUP($B$140,Building_Coverages,2,FALSE) -> 
A168: Gross Floor Area (GFA): | B168: =IF(G165="",G169,G165) ->  | C168: m² | F168: Impervious Surface Area | G168: =IF(G167=0,269,G166*G167) ->  | H168: m² (estimated)
A169: Dwelling Equivalents per 100m² GFA: | B169: =VLOOKUP($B$140,Land_Use_Differentials,5,FALSE) ->  | G169: =IF(G166>0,G168*0.75,G168) ->  | H169: 75% of m² (estimated)
A170: GFA DE's: | B170: =B168/100*B169 -> 
A171: No. Units: | B171: =B150 -> 
A172: Dwelling Equivalents per Unit: | B172: =B169 -> 
A173: Unit DE's: | B173: =B172*B171 -> 
A174: Dwelling Equivalents: | B174: =IF(B140="",0,IF(B167="Unit",B173,B170)) -> 0
A176: ="2a Water Supply Contribution - "&$B$141&" Land Use" -> 2a Water Supply Contribution - Land Use | D176: =Required_LU2_WS -> 0
A177: Differential Type | B177: =VLOOKUP($B$141,LUD_Type,2,FALSE) -> 
A178: Gross Floor Area (GFA): | B178: =IF(G179="",G184,G179) ->  | C178: m² | F178: SITE INFORMATION
A179: Dwelling Equivalents per 100m² GFA: | B179: =VLOOKUP($B$141,Land_Use_Differentials,2,FALSE) ->  | F179: Gross Floor Area | G179: =IF(LU2_GFA="","",LU2_GFA) ->  | H179: m² (known)
A180: GFA DE's: | B180: =B178/100*B179 ->  | F180: Site Area | G180: =IF(LU2_SiteArea="","",LU2_SiteArea) -> 
A181: No. Units: | B181: =$G$141 ->  | F181: Building Coverage | G181: =VLOOKUP($B$141,GFA_Estimates,2,FALSE) -> 
A182: Dwelling Equivalents per Unit: | B182: =B179 ->  | F182: No. of Floors | G182: =VLOOKUP($B$141,GFA_Estimates,3,FALSE) -> 
A183: Unit DE's: | B183: =B182*B181 ->  | F183: Gross Floor Area | G183: =IF(G181=0,Res_GFA,G180*G181*G182) ->  | H183: m² (estimated)
A184: Network Factor Dwelling Equivalents: | B184: =VLOOKUP($B$141,Land_Use_Differentials,3,FALSE) ->  | G184: =IF(G180>0,G183*0.75,G183) ->  | H184: 75% of m² (estimated)
A185: Dwelling Equivalents: | B185: =IF(B141="",0,IF(B177="Unit",B183+B184,B180+B184)) -> 0
A187: ="2b Wastewater Contribution - "&$B$141&" Land Use" -> 2b Wastewater Contribution - Land Use | D187: =Required_LU2_Ww -> 0
A188: Differential Type | B188: =VLOOKUP($B$141,LUD_Type,4,FALSE) -> 
A189: Gross Floor Area (GFA): | B189: =B178 ->  | C189: m²
A190: Dwelling Equivalents per 100m² GFA: | B190: =VLOOKUP($B$141,Land_Use_Differentials,4,FALSE) -> 
A191: GFA DE's: | B191: =B189/100*B190 -> 
A192: No. Units: | B192: =B181 -> 
A193: Dwelling Equivalents per Unit: | B193: =B190 -> 
A194: Unit DE's: | B194: =B193*B192 -> 
A195: Dwelling Equivalents: | B195: =IF(B141="",0,IF(B188="Unit",B194,B191)) -> 0 | F195: SITE INFORMATION
F196: Impervious Surface Area | G196: =IF(LU2_ISA="","",LU2_ISA) ->  | H196: m² (known)
A197: ="2c Stormwater Contribution - "&$B$141&" Land Use" -> 2c Stormwater Contribution - Land Use | D197: =Required_LU2_SW -> 0 | F197: Site Area | G197: =IF(LU2_SiteArea="","",LU2_SiteArea) -> 
A198: Differential Type | B198: =VLOOKUP($B$141,LUD_Type,5,FALSE) ->  | F198: Building Coverage | G198: =VLOOKUP($B$141,Building_Coverages,2,FALSE) -> 
A199: Gross Floor Area (GFA): | B199: =IF(G196="",G200,G196) ->  | C199: m² | F199: Impervious Surface Area | G199: =IF(G198=0,269,G197*G198) ->  | H199: m² (estimated)
A200: Dwelling Equivalents per 100m² GFA: | B200: =VLOOKUP($B$141,Land_Use_Differentials,5,FALSE) ->  | G200: =IF(G197>0,G199*0.75,G199) ->  | H200: 75% of m² (estimated)
A201: GFA DE's: | B201: =B199/100*B200 -> 
A202: No. Units: | B202: =B181 -> 
A203: Dwelling Equivalents per Unit: | B203: =B200 -> 
A204: Unit DE's: | B204: =B203*B202 -> 
A205: Dwelling Equivalents: | B205: =IF(B141="",0,IF(B198="Unit",B204,B201)) -> 0
A207: ="3a Water Supply Contribution - "&$B$142&" Land Use" -> 3a Water Supply Contribution - Land Use | D207: =Required_LU3_WS -> 0
A208: Differential Type | B208: =VLOOKUP($B$142,LUD_Type,2,FALSE) -> 
A209: Gross Floor Area (GFA): | B209: =IF(G210="",G215,G210) ->  | C209: m² | F209: SITE INFORMATION
A210: Dwelling Equivalents per 100m² GFA: | B210: =VLOOKUP($B$142,Land_Use_Differentials,2,FALSE) ->  | F210: Gross Floor Area | G210: =IF(LU3_GFA="","",LU3_GFA) ->  | H210: m² (known)
A211: GFA DE's: | B211: =B209/100*B210 ->  | F211: Site Area | G211: =IF(LU3_SiteArea="","",LU3_SiteArea) -> 
A212: No. Units: | B212: =$G$142 ->  | F212: Building Coverage | G212: =VLOOKUP($B$142,GFA_Estimates,2,FALSE) -> 
A213: Dwelling Equivalents per Unit: | B213: =B210 ->  | F213: No. of Floors | G213: =VLOOKUP($B$142,GFA_Estimates,3,FALSE) -> 
A214: Unit DE's: | B214: =B213*B212 ->  | F214: Gross Floor Area | G214: =IF(G212=0,Res_GFA,G211*G212*G213) ->  | H214: m² (estimated)
A215: Network Factor Dwelling Equivalents: | B215: =VLOOKUP($B$142,Land_Use_Differentials,3,FALSE) ->  | G215: =IF(G211>0,G214*0.75,G214) ->  | H215: 75% of m² (estimated)
A216: Dwelling Equivalents: | B216: =IF(B142="",0,IF(B208="Unit",B214+B215,B211+B215)) -> 0
A218: ="3b Wastewater Contribution - "&$B$142&" Land Use" -> 3b Wastewater Contribution - Land Use | D218: =Required_LU3_WW -> 0
A219: Differential Type | B219: =VLOOKUP($B$142,LUD_Type,4,FALSE) -> 
... 65 more rows

Sheet Reserves (hidden)
A1: Pre Development/Subdivision Demand (Credits) - Reserves
A2: For Consent No. | B2: =IF(Consent_Number="","",Consent_Number) ->  | F2: No. of Land Uses | G2: =Number_Land_Uses -> 0
A4: Location: | B4: =IF(Location="","",Location) ->  | D4: =IF($B$4="","",VLOOKUP(B4,Ward,9,0)) -> 
A6: =IF(F2="1","Land Use Category:","1st Land Use Category:") -> 1st Land Use Category: | B6: =IF(Land_Use_Category_1_Credits="","",Land_Use_Category_1_Credits) ->  | F6: No. of Residential Units: | G6: =IF(No_Res_Units_LU1_Credits="","",No_Res_Units_LU1_Credits) -> 
A7: 2nd Land Use Category: | B7: =IF(Land_Use_Category_2_Credits="","",Land_Use_Category_2_Credits) ->  | F7: No. of Residential Units: | G7: =IF(No_Res_Units_LU2_Credits="","",No_Res_Units_LU2_Credits) -> 
A8: 3rd Land Use Category: | B8: =IF(Land_Use_Category_3_Credits="","",Land_Use_Category_3_Credits) ->  | F8: No. of Residential Units: | G8: =IF(No_Res_Units_LU3_Credits="","",No_Res_Units_LU3_Credits) -> 
A9: 4th Land Use Category: | B9: =IF(Land_Use_Category_4_Credits="","",Land_Use_Category_4_Credits) ->  | F9: No. of Residential Units: | G9: =IF(No_Res_Units_LU4_Credits="","",No_Res_Units_LU4_Credits) -> 
A11: =IF(F2="1","","1a ")&"Reserve Improvements Contribution - "&$B$6&" Land Use" -> 1a Reserve Improvements Contribution - Land Use | F11: SITE INFORMATION
A12: Differential Type | B12: =IF(VLOOKUP(Credits_PolicyYear_Input,Policy_Year_LGAAmend,2,0)="Old","Community Facilities",IF(VLOOKUP($B$6,'Calculation Links'!$X$5:$AJ$22,13,0)="R","Community Facilities","Reserve Land")) ->  | F12: Gross Floor Area | G12: =IF(LU1_GFA_Credits="","",LU1_GFA_Credits) ->  | H12: m² (known)
A13: Dwelling Equivalents: | B13: =IF($B$6="",0,IF(B12="Community Facilities",B23,B33)) -> 0 | F13: Site Area | G13: =IF(LU1_SiteArea_Credits="","",LU1_SiteArea_Credits) -> 
F14: Building Coverage | G14: =VLOOKUP($B$6,Credits_GFA_Estimates,2,FALSE) -> 
A15: =IF(F2="1","","1b ")&"Community Facilities Contribution - "&$B$6&" Land Use" -> 1b Community Facilities Contribution - Land Use | F15: No. of Floors | G15: =VLOOKUP($B$6,Credits_GFA_Estimates,3,FALSE) -> 
A16: Differential Type | B16: =VLOOKUP($B$6,Credits_LUD_Type,IF($D$4="Wakatipu",6,7),FALSE) ->  | F16: Gross Floor Area | G16: =IF(G14=0,Credits_Res_GFA,G13*G14*G15) ->  | H16: m² (estimated)
A17: Gross Floor Area (GFA): | B17: =IF(G12="",G16,G12) ->  | C17: m²
A18: Dwelling Equivalents per 100m² GFA: | B18: =VLOOKUP($B$6,Credits_Land_Use_Differentials,IF($D$4="Wakatipu",6,7),FALSE) -> 
A19: GFA DE's: | B19: =B17/100*B18 -> 
A20: No. Units: | B20: =$G$6 -> 
A21: Dwelling Equivalents per Unit: | B21: =B18 -> 
A22: Unit DE's: | B22: =B20*B21 -> 
A23: Dwelling Equivalents: | B23: =IF($B$6="",0,IF(B16="Unit",B22,B19)) -> 0
A25: =IF(F7="1","","1c ")&"Reserve Land Contribution - "&$B$6&" Land Use" -> 1c Reserve Land Contribution - Land Use
A26: Differential Type | B26: =VLOOKUP($B$6,Credits_LUD_Type,IF($D$4="Wakatipu",8,9),FALSE) -> 
A27: Gross Floor Area (GFA): | B27: =B17 ->  | C27: m²
A28: Dwelling Equivalents per 100m² GFA: | B28: =VLOOKUP($B$6,Credits_Land_Use_Differentials,IF($D$4="Wakatipu",8,9),FALSE) -> 
A29: GFA DE's: | B29: =B27/100*B28 -> 
A30: No. Units: | B30: =G6 -> 
A31: Dwelling Equivalents per Unit: | B31: =B28 -> 
A32: Unit DE's: | B32: =B30*B31 -> 
A33: Total DE's | B33: =IF($B$6="",0,IF(B26="Unit",B32,B29)) -> 0
A34: Res Land Payable | B34: =VLOOKUP(Credits_PolicyYear_Input,PolicyYear_Field,3,0) -> 
A35: Dwelling Equivalents: | B35: =B33*B34 -> 
A37: =IF(F2="2","","2a ")&"Reserve Improvements Contribution - "&$B$7&" Land Use" -> 2a Reserve Improvements Contribution - Land Use | F37: SITE INFORMATION
A38: Differential Type | B38: =IF(VLOOKUP(Credits_PolicyYear_Input,Policy_Year_LGAAmend,2,0)="Old","Community Facilities",IF(VLOOKUP($B$7,'Calculation Links'!$X$5:$AJ$22,13,0)="R","Community Facilities","Reserve Land")) ->  | F38: Gross Floor Area | G38: =IF(LU2_GFA_Credits="","",LU2_GFA_Credits) ->  | H38: m² (known)
A39: Dwelling Equivalents: | B39: =IF($B$7="",0,IF(B38="Community Facilities",B49,B59)) -> 0 | F39: Site Area | G39: =IF(LU2_SiteArea_Credits="","",LU2_SiteArea_Credits) -> 
F40: Building Coverage | G40: =VLOOKUP($B$7,Credits_GFA_Estimates,2,FALSE) -> 
A41: =IF(F2="2","","2b ")&"Community Facilities Contribution - "&$B$7&" Land Use" -> 2b Community Facilities Contribution - Land Use | F41: No. of Floors | G41: =VLOOKUP($B$7,Credits_GFA_Estimates,3,FALSE) -> 
A42: Differential Type | B42: =VLOOKUP($B$7,Credits_LUD_Type,IF($D$4="Wakatipu",6,7),FALSE) ->  | F42: Gross Floor Area | G42: =IF(G40=0,Credits_Res_GFA,G39*G40*G41) ->  | H42: m² (estimated)
A43: Gross Floor Area (GFA): | B43: =IF(G38="",G42,G38) ->  | C43: m²
A44: Dwelling Equivalents per 100m² GFA: | B44: =VLOOKUP($B$7,Credits_Land_Use_Differentials,IF($D$4="Wakatipu",6,7),FALSE) -> 
A45: GFA DE's: | B45: =B43/100*B44 -> 
A46: No. Units: | B46: =$G$6 -> 
A47: Dwelling Equivalents per Unit: | B47: =B44 -> 
A48: Unit DE's: | B48: =B46*B47 -> 
A49: Dwelling Equivalents: | B49: =IF($B$7="",0,IF(B42="Unit",B48,B45)) -> 0
A51: =IF(F2="2","","2c ")&"Reserve Land Contribution - "&$B$7&" Land Use" -> 2c Reserve Land Contribution - Land Use
A52: Differential Type | B52: =VLOOKUP($B$7,Credits_LUD_Type,IF($D$4="Wakatipu",8,9),FALSE) -> 
A53: Gross Floor Area (GFA): | B53: =B43 ->  | C53: m²
A54: Dwelling Equivalents per 100m² GFA: | B54: =VLOOKUP($B$7,Credits_Land_Use_Differentials,IF($D$4="Wakatipu",8,9),FALSE) -> 
A55: GFA DE's: | B55: =B53/100*B54 -> 
A56: No. Units: | B56: =G7 -> 
A57: Dwelling Equivalents per Unit: | B57: =B54 -> 
A58: Unit DE's: | B58: =B56*B57 -> 
A59: Total DE's | B59: =IF($B$7="",0,IF(B52="Unit",B58,B55)) -> 0
A60: Res Land Payable | B60: =VLOOKUP(Credits_PolicyYear_Input,PolicyYear_Field,3,0) -> 
A61: Dwelling Equivalents: | B61: =B59*B60 -> 
A63: =IF(F2="3","","3a ")&"Reserve Improvements Contribution - "&$B$8&" Land Use" -> 3a Reserve Improvements Contribution - Land Use | F63: SITE INFORMATION
A64: Differential Type | B64: =IF(VLOOKUP(Credits_PolicyYear_Input,Policy_Year_LGAAmend,2,0)="Old","Community Facilities",IF(VLOOKUP($B$8,'Calculation Links'!$X$5:$AJ$22,13,0)="R","Community Facilities","Reserve Land")) ->  | F64: Gross Floor Area | G64: =IF(LU3_GFA_Credits="","",LU3_GFA_Credits) ->  | H64: m² (known)
A65: Dwelling Equivalents: | B65: =IF($B$8="",0,IF(B64="Community Facilities",B75,B85)) -> 0 | F65: Site Area | G65: =IF(LU3_SiteArea_Credits="","",LU3_SiteArea_Credits) -> 
F66: Building Coverage | G66: =VLOOKUP($B$8,Credits_GFA_Estimates,2,FALSE) -> 
A67: =IF(F2="3","","3b ")&"Community Facilities Contribution - "&$B$8&" Land Use" -> 3b Community Facilities Contribution - Land Use | F67: No. of Floors | G67: =VLOOKUP($B$8,Credits_GFA_Estimates,3,FALSE) -> 
A68: Differential Type | B68: =VLOOKUP($B$8,Credits_LUD_Type,IF($D$4="Wakatipu",6,7),FALSE) ->  | F68: Gross Floor Area | G68: =IF(G66=0,Credits_Res_GFA,G65*G66*G67) ->  | H68: m² (estimated)
A69: Gross Floor Area (GFA): | B69: =IF(G64="",G68,G64) ->  | C69: m²
A70: Dwelling Equivalents per 100m² GFA: | B70: =VLOOKUP($B$8,Credits_Land_Use_Differentials,IF($D$4="Wakatipu",6,7),FALSE) -> 
A71: GFA DE's: | B71: =B69/100*B70 -> 
A72: No. Units: | B72: =$G$6 -> 
A73: Dwelling Equivalents per Unit: | B73: =B70 -> 
A74: Unit DE's: | B74: =B72*B73 -> 
A75: Dwelling Equivalents: | B75: =IF($B$8="",0,IF(B68="Unit",B74,B71)) -> 0
A77: =IF(F2="3","","3c ")&"Reserve Land Contribution - "&$B$8&" Land Use" -> 3c Reserve Land Contribution - Land Use
A78: Differential Type | B78: =VLOOKUP($B$8,Credits_LUD_Type,IF($D$4="Wakatipu",8,9),FALSE) -> 
A79: Gross Floor Area (GFA): | B79: =B69 ->  | C79: m²
A80: Dwelling Equivalents per 100m² GFA: | B80: =VLOOKUP($B$8,Credits_Land_Use_Differentials,IF($D$4="Wakatipu",8,9),FALSE) -> 
A81: GFA DE's: | B81: =B79/100*B80 -> 
A82: No. Units: | B82: =G8 -> 
A83: Dwelling Equivalents per Unit: | B83: =B80 -> 
A84: Unit DE's: | B84: =B82*B83 -> 
A85: Total DE's | B85: =IF($B$8="",0,IF(B78="Unit",B84,B81)) -> 0
A86: Res Land Payable | B86: =VLOOKUP(Credits_PolicyYear_Input,PolicyYear_Field,3,0) -> 
A87: Dwelling Equivalents: | B87: =B85*B86 -> 
A89: =IF(F2="4","","4a ")&"Reserve Improvements Contribution - "&$B$9&" Land Use" -> 4a Reserve Improvements Contribution - Land Use | F89: SITE INFORMATION
A90: Differential Type | B90: =IF(VLOOKUP(Credits_PolicyYear_Input,Policy_Year_LGAAmend,2,0)="Old","Community Facilities",IF(VLOOKUP($B$9,'Calculation Links'!$X$5:$AJ$22,13,0)="R","Community Facilities","Reserve Land")) ->  | F90: Gross Floor Area | G90: =IF(LU4_GFA_Credits="","",LU4_GFA_Credits) ->  | H90: m² (known)
A91: Dwelling Equivalents: | B91: =IF($B$9="",0,IF(B90="Community Facilities",B101,B111)) -> 0 | F91: Site Area | G91: =IF(LU4_SiteArea_Credits="","",LU4_SiteArea_Credits) -> 
F92: Building Coverage | G92: =VLOOKUP($B$9,Credits_GFA_Estimates,2,FALSE) -> 
A93: =IF(F2="4","","4b ")&"Community Facilities Contribution - "&$B$9&" Land Use" -> 4b Community Facilities Contribution - Land Use | F93: No. of Floors | G93: =VLOOKUP($B$9,Credits_GFA_Estimates,3,FALSE) -> 
A94: Differential Type | B94: =VLOOKUP($B$9,Credits_LUD_Type,IF($D$4="Wakatipu",6,7),FALSE) ->  | F94: Gross Floor Area | G94: =IF(G92=0,Credits_Res_GFA,G91*G92*G93) ->  | H94: m² (estimated)
A95: Gross Floor Area (GFA): | B95: =IF(G90="",G94,G90) ->  | C95: m²
A96: Dwelling Equivalents per 100m² GFA: | B96: =VLOOKUP($B$9,Credits_Land_Use_Differentials,IF($D$4="Wakatipu",6,7),FALSE) -> 
A97: GFA DE's: | B97: =B95/100*B96 -> 
A98: No. Units: | B98: =$G$6 -> 
A99: Dwelling Equivalents per Unit: | B99: =B96 -> 
A100: Unit DE's: | B100: =B98*B99 -> 
A101: Dwelling Equivalents: | B101: =IF($B$9="",0,IF(B94="Unit",B100,B97)) -> 0
A103: =IF(F2="4","","4c ")&"Reserve Land Contribution - "&$B$9&" Land Use" -> 4c Reserve Land Contribution - Land Use
A104: Differential Type | B104: =VLOOKUP($B$9,Credits_LUD_Type,IF($D$4="Wakatipu",8,9),FALSE) -> 
A105: Gross Floor Area (GFA): | B105: =B95 ->  | C105: m²
A106: Dwelling Equivalents per 100m² GFA: | B106: =VLOOKUP($B$9,Credits_Land_Use_Differentials,IF($D$4="Wakatipu",8,9),FALSE) -> 
A107: GFA DE's: | B107: =B105/100*B106 -> 
A108: No. Units: | B108: =G9 -> 
A109: Dwelling Equivalents per Unit: | B109: =B106 -> 
A110: Unit DE's: | B110: =B108*B109 -> 
A111: Total DE's | B111: =IF($B$9="",0,IF(B104="Unit",B110,B107)) -> 0
A112: Res Land Payable | B112: =VLOOKUP(Credits_PolicyYear_Input,PolicyYear_Field,3,0) -> 
A113: Dwelling Equivalents: | B113: =B111*B112 -> 
A115: Post Development/Subdivision Demand - Reserves
A116: For Consent No. | B116: =Headworks!$B$2 -> 
A118: Location: | B118: =$B$4 ->  | D118: =$D$4 -> 
A120: Subdivision or Development: | B120: =Subdivision_Development -> 0
A123: =IF(D115="1","Land Use Category:","1st Land Use Category:") -> 1st Land Use Category: | B123: =IF(Land_Use_Category_1="","",Land_Use_Category_1) ->  | F123: No. of Residential Units: | G123: =IF(No_Res_Units_LU1="","",No_Res_Units_LU1) -> 
A124: 2nd Land Use Category: | B124: =IF(Land_Use_Category_2="","",Land_Use_Category_2) ->  | F124: No. of Residential Units: | G124: =IF(No_Res_Units_LU2="","",No_Res_Units_LU2) -> 
A125: 3rd Land Use Category: | B125: =IF(Land_Use_Category_3="","",Land_Use_Category_3) ->  | F125: No. of Residential Units: | G125: =IF(No_Res_Units_LU3="","",No_Res_Units_LU3) -> 
A126: 4th Land Use Category: | B126: =IF(Land_Use_Category_4="","",Land_Use_Category_4) ->  | F126: No. of Residential Units: | G126: =IF(No_Res_Units_LU4="","",No_Res_Units_LU4) -> 
A128: =IF(D115="1","","1a ")&"Reserve Improvements Contribution - "&$B$123&" Land Use" -> 1a Reserve Improvements Contribution - Land Use | F128: SITE INFORMATION
A129: Gross Floor Area (GFA): | B129: =IF(VLOOKUP(Policy_Year_Input,Policy_Year_LGAAmend,2,0)="Old","Community Facilities",IF(VLOOKUP($B$123,'Calculation Links'!$J$5:$V$22,13,0)="R","Community Facilities","Reserve Land")) ->  | D129: =Required_LU1_RI -> Required | F129: Gross Floor Area | G129: =IF(LU1_GFA="","",LU1_GFA) ->  | H129: m² (known)
A130: Dwelling Equivalents: | B130: =IF($B$123="",0,IF(B129="Community Facilities",B140,B150)) -> 0 | F130: Site Area | G130: =IF(LU1_SiteArea="","",LU1_SiteArea) -> 
F131: Building Coverage | G131: =VLOOKUP($B$123,GFA_Estimates,2,FALSE) -> 
A132: =IF(D115="1","","1b ")&"Community Facilities Contribution - "&$B$123&" Land Use" -> 1b Community Facilities Contribution - Land Use | F132: No. of Floors | G132: =VLOOKUP($B$123,GFA_Estimates,3,FALSE) -> 
A133: Differential Type | B133: =VLOOKUP($B$123,LUD_Type,IF($D$118="Wakatipu",6,7),FALSE) ->  | D133: =Required_LU1_CF -> Required | F133: Gross Floor Area | G133: =IF(G131=0,Res_GFA,G130*G131*G132) ->  | H133: m² (estimated)
A134: Gross Floor Area (GFA): | B134: =IF(G129="",G134,G129) ->  | C134: m² | G134: =IF(G130>0,G133*0.75,G133) ->  | H134: 75% of m² (estimated)
A135: Dwelling Equivalents per 100m² GFA: | B135: =VLOOKUP($B$123,Land_Use_Differentials,IF($D$118="Wakatipu",6,7),FALSE) -> 
A136: GFA DE's: | B136: =B134/100*B135 -> 
A137: No. Units: | B137: =G123 -> 
A138: Dwelling Equivalents per Unit: | B138: =B135 -> 
A139: Unit DE's: | B139: =B137*B138 ->  | F139: LAND VALUE
A140: Dwelling Equivalents: | B140: =IF($B$123="",0,IF(B133="Unit",B139,B136)) -> 0 | F140: Total Land Value | G140: =IF(VLOOKUP(Policy_Year_Input,ResLand_Input,4,0)="set",VLOOKUP($D$4,ResLandAvg,IF(Urban_Town="Township",2,IF(Urban_Town="Urban",3)),0)*LU1_Buildable_Area,IF(LU1_LandValue="","",LU1_LandValue)) ->  | H140: (Incl GST)
F141: GST in Land Value | G141: =IF(VLOOKUP(Policy_Year_Input,ResLand_Input,4,0)="set",0.15,IF(LU1_GST_LandValue="","",LU1_GST_LandValue)) -> 0.15
A142: =IF(F124="1","","1c ")&"Reserve Land Contribution - "&$B$123&" Land Use" -> 1c Reserve Land Contribution - Land Use | F142: Total Buildable or Site Area | G142: =IF(LU1_Buildable_Area="",0,LU1_Buildable_Area) -> 1 | H142: m²
A143: Differential Type | B143: =VLOOKUP($B$123,LUD_Type,IF($D$118="Wakatipu",8,9),FALSE) ->  | D143: =Required_LU1_RL -> Required | F143: Value per m² | G143: =IF(G140="","",G140/G142) ->  | H143: $/m²
A144: Gross Floor Area (GFA): | B144: =B134 ->  | C144: m² | F144: Capped Value per m² | G144: =IF(G143>1500,1500,G143) ->  | H144: $/m²
A145: Dwelling Equivalents per 100m² GFA: | B145: =VLOOKUP($B$123,Land_Use_Differentials,IF($D$4="Wakatipu",8,9),FALSE) ->  | F145: 7.5% Check | G145: =IF($B$120="Development","",0.075*G140/(1+G141)) -> 
A146: GFA DE's: | B146: =B144/100*B145 -> 
A147: No. Units: | B147: =B137 -> 
A148: Dwelling Equivalents per Unit: | B148: =B145 -> 
A149: Unit DE's: | B149: =B147*B148 -> 
A150: Total DE's | B150: =IF($B$123="",0,IF(B143="Unit",B149,B146)) -> 0
A151: Res Land Payable | B151: =VLOOKUP(Policy_Year_Input,PolicyYear_Field,3,0) -> FALSE
A152: Dwelling Equivalents: | B152: =IF(B123="Residential Flat",0,B150*B151) -> 0
A154: ="2a "&"Reserve Improvements Contribution - "&$B$124&" Land Use" -> 2a Reserve Improvements Contribution - Land Use | F154: SITE INFORMATION
A155: Gross Floor Area (GFA): | B155: =IF(VLOOKUP(Policy_Year_Input,Policy_Year_LGAAmend,2,0)="Old","Community Facilities",IF(VLOOKUP($B$124,'Calculation Links'!$J$5:$V$22,13,0)="R","Community Facilities","Reserve Land")) ->  | D155: =Required_LU2_RI -> 0 | F155: Gross Floor Area | G155: =IF(LU2_GFA="","",LU2_GFA) ->  | H155: m² (known)
A156: Dwelling Equivalents: | B156: =IF($B$124="",0,IF(B155="Community Facilities",B166,B176)) -> 0 | F156: Site Area | G156: =IF(LU2_SiteArea="","",LU2_SiteArea) -> 
F157: Building Coverage | G157: =VLOOKUP($B$124,GFA_Estimates,2,FALSE) -> 
A158: ="2b "&"Community Facilities Contribution - "&$B$124&" Land Use" -> 2b Community Facilities Contribution - Land Use | F158: No. of Floors | G158: =VLOOKUP($B$124,GFA_Estimates,3,FALSE) -> 
A159: Differential Type | B159: =VLOOKUP($B$124,LUD_Type,IF($D$118="Wakatipu",6,7),FALSE) ->  | D159: =Required_LU2_CF -> 0 | F159: Gross Floor Area | G159: =IF(G157=0,Res_GFA,G156*G157*G158) ->  | H159: m² (estimated)
A160: Gross Floor Area (GFA): | B160: =IF(G155="",G160,G155) ->  | C160: m² | G160: =IF(G156>0,G159*0.75,G159) ->  | H160: 75% of m² (estimated)
A161: Dwelling Equivalents per 100m² GFA: | B161: =VLOOKUP($B$124,Land_Use_Differentials,IF($D$118="Wakatipu",6,7),FALSE) -> 
A162: GFA DE's: | B162: =B160/100*B161 -> 
A163: No. Units: | B163: =G124 -> 
A164: Dwelling Equivalents per Unit: | B164: =B161 -> 
A165: Unit DE's: | B165: =B163*B164 ->  | F165: LAND VALUE
A166: Dwelling Equivalents: | B166: =IF($B$124="",0,IF(B159="Unit",B165,B162)) -> 0 | F166: Total Land Value | G166: =IF(VLOOKUP(Policy_Year_Input,ResLand_Input,4,0)="set",VLOOKUP($D$4,ResLandAvg,IF(Urban_Town="Township",2,IF(Urban_Town="Urban",3)),0)*LU2_Buildable_Area,IF(LU2_LandValue="","",LU2_LandValue)) ->  | H166: (Incl GST)
F167: GST in Land Value | G167: =IF(VLOOKUP(Policy_Year_Input,ResLand_Input,4,0)="set",0.15,IF(LU2_GST_LandValue="","",LU2_GST_LandValue)) -> 0.15
A168: ="2c "&"Reserve Land Contribution - "&$B$124&" Land Use" -> 2c Reserve Land Contribution - Land Use | F168: Total Buildable or Site Area | G168: =IF(LU2_Buildable_Area="",0,LU2_Buildable_Area) -> 0 | H168: m²
A169: Differential Type | B169: =VLOOKUP($B$124,LUD_Type,IF($D$118="Wakatipu",8,9),FALSE) ->  | D169: =Required_LU2_RL -> 0 | F169: Value per m² | G169: =IF(G166="","",G166/G168) ->  | H169: $/m²
A170: Gross Floor Area (GFA): | B170: =B160 ->  | C170: m² | F170: Capped Value per m² | G170: =IF(G169>1500,1500,G169) ->  | H170: $/m²
A171: Dwelling Equivalents per 100m² GFA: | B171: =VLOOKUP($B$124,Land_Use_Differentials,IF($D$4="Wakatipu",8,9),FALSE) ->  | F171: 7.5% Check | G171: =IF($B$120="Development","",0.075*G166/(1+G167)) -> 
A172: GFA DE's: | B172: =B170/100*B171 -> 
A173: No. Units: | B173: =B163 -> 
A174: Dwelling Equivalents per Unit: | B174: =B171 -> 
A175: Unit DE's: | B175: =B173*B174 -> 
A176: Total DE's | B176: =IF($B$124="",0,IF(B169="Unit",B175,B172)) -> 0
A177: Res Land Payable | B177: =VLOOKUP(Policy_Year_Input,PolicyYear_Field,3,0) -> FALSE
A178: Dwelling Equivalents: | B178: =B176*B177 -> 0
A180: ="3a "&"Reserve Improvements Contribution - "&$B$125&" Land Use" -> 3a Reserve Improvements Contribution - Land Use | F180: SITE INFORMATION
A181: Gross Floor Area (GFA): | B181: =IF(VLOOKUP(Policy_Year_Input,Policy_Year_LGAAmend,2,0)="Old","Community Facilities",IF(VLOOKUP($B$125,'Calculation Links'!$J$5:$V$22,13,0)="R","Community Facilities","Reserve Land")) ->  | D181: =Required_LU3_RI -> 0 | F181: Gross Floor Area | G181: =IF(LU3_GFA="","",LU3_GFA) ->  | H181: m² (known)
A182: Dwelling Equivalents: | B182: =IF($B$125="",0,IF(B181="Community Facilities",B192,B202)) -> 0 | F182: Site Area | G182: =IF(LU3_SiteArea="","",LU3_SiteArea) -> 
F183: Building Coverage | G183: =VLOOKUP($B$125,GFA_Estimates,2,FALSE) -> 
A184: ="3b "&"Community Facilities Contribution - "&$B$125&" Land Use" -> 3b Community Facilities Contribution - Land Use | F184: No. of Floors | G184: =VLOOKUP($B$125,GFA_Estimates,3,FALSE) -> 
A185: Differential Type | B185: =VLOOKUP($B$125,LUD_Type,IF($D$118="Wakatipu",6,7),FALSE) ->  | D185: =Required_LU3_CF -> 0 | F185: Gross Floor Area | G185: =IF(G183=0,Res_GFA,G182*G183*G184) ->  | H185: m² (estimated)
A186: Gross Floor Area (GFA): | B186: =IF(G181="",G186,G181) ->  | C186: m² | G186: =IF(G182>0,G185*0.75,G185) ->  | H186: 75% of m² (estimated)
A187: Dwelling Equivalents per 100m² GFA: | B187: =VLOOKUP($B$125,Land_Use_Differentials,IF($D$118="Wakatipu",6,7),FALSE) -> 
A188: GFA DE's: | B188: =B186/100*B187 -> 
A189: No. Units: | B189: =G125 -> 
A190: Dwelling Equivalents per Unit: | B190: =B187 -> 
A191: Unit DE's: | B191: =B189*B190 ->  | F191: LAND VALUE
A192: Dwelling Equivalents: | B192: =IF($B$125="",0,IF(B185="Unit",B191,B188)) -> 0 | F192: Total Land Value | G192: =IF(VLOOKUP(Policy_Year_Input,ResLand_Input,4,0)="set",VLOOKUP($D$4,ResLandAvg,IF(Urban_Town="Township",2,IF(Urban_Town="Urban",3)),0)*LU3_Buildable_Area,IF(LU3_LandValue="","",LU3_LandValue)) ->  | H192: (Incl GST)
F193: GST in Land Value | G193: =IF(VLOOKUP(Policy_Year_Input,ResLand_Input,4,0)="set",0.15,IF(LU3_GST_LandValue="","",LU3_GST_LandValue)) -> 0.15
A194: ="3c "&"Reserve Land Contribution - "&$B$125&" Land Use" -> 3c Reserve Land Contribution - Land Use | F194: Total Buildable or Site Area | G194: =IF(LU3_Buildable_Area="",0,LU3_Buildable_Area) -> 0 | H194: m²
A195: Differential Type | B195: =VLOOKUP($B$125,LUD_Type,IF($D$118="Wakatipu",8,9),FALSE) ->  | D195: =Required_LU3_RL -> 0 | F195: Value per m² | G195: =IF(G192="","",G192/G194) ->  | H195: $/m²
A196: Gross Floor Area (GFA): | B196: =B186 ->  | C196: m² | F196: Capped Value per m² | G196: =IF(G195>1500,1500,G195) ->  | H196: $/m²
A197: Dwelling Equivalents per 100m² GFA: | B197: =VLOOKUP($B$125,Land_Use_Differentials,IF($D$4="Wakatipu",8,9),FALSE) ->  | F197: 7.5% Check | G197: =IF($B$120="Development","",0.075*G192/(1+G193)) -> 
A198: GFA DE's: | B198: =B196/100*B197 -> 
A199: No. Units: | B199: =B189 -> 
A200: Dwelling Equivalents per Unit: | B200: =B197 -> 
A201: Unit DE's: | B201: =B199*B200 -> 
A202: Total DE's | B202: =IF($B$125="",0,IF(B195="Unit",B201,B198)) -> 0
A203: Res Land Payable | B203: =VLOOKUP(Policy_Year_Input,PolicyYear_Field,3,0) -> FALSE
A204: Dwelling Equivalents: | B204: =B202*B203 -> 0
A206: ="4a "&"Reserve Improvements Contribution - "&$B$126&" Land Use" -> 4a Reserve Improvements Contribution - Land Use | F206: SITE INFORMATION
A207: Gross Floor Area (GFA): | B207: =IF(VLOOKUP(Policy_Year_Input,Policy_Year_LGAAmend,2,0)="Old","Community Facilities",IF(VLOOKUP($B$126,'Calculation Links'!$J$5:$V$22,13,0)="R","Community Facilities","Reserve Land")) ->  | D207: =Required_LU4_RI -> 0 | F207: Gross Floor Area | G207: =IF(LU4_GFA="","",LU4_GFA) ->  | H207: m² (known)
A208: Dwelling Equivalents: | B208: =IF($B$126="",0,IF(B207="Community Facilities",B218,B228)) -> 0 | F208: Site Area | G208: =IF(LU4_SiteArea="","",LU4_SiteArea) -> 
F209: Building Coverage | G209: =VLOOKUP($B$126,GFA_Estimates,2,FALSE) -> 
A210: ="4b "&"Community Facilities Contribution - "&$B$126&" Land Use" -> 4b Community Facilities Contribution - Land Use | F210: No. of Floors | G210: =VLOOKUP($B$126,GFA_Estimates,3,FALSE) -> 
A211: Differential Type | B211: =VLOOKUP($B$126,LUD_Type,IF($D$118="Wakatipu",6,7),FALSE) ->  | D211: =Required_LU4_CF -> 0 | F211: Gross Floor Area | G211: =IF(G209=0,Res_GFA,G208*G209*G210) ->  | H211: m² (estimated)
A212: Gross Floor Area (GFA): | B212: =IF(G207="",G212,G207) ->  | C212: m² | G212: =IF(G208>0,G211*0.75,G211) ->  | H212: 75% of m² (estimated)
A213: Dwelling Equivalents per 100m² GFA: | B213: =VLOOKUP($B$126,Land_Use_Differentials,IF($D$118="Wakatipu",6,7),FALSE) -> 
A214: GFA DE's: | B214: =B212/100*B213 -> 
A215: No. Units: | B215: =G126 -> 
A216: Dwelling Equivalents per Unit: | B216: =B213 -> 
A217: Unit DE's: | B217: =B215*B216 ->  | F217: LAND VALUE
A218: Dwelling Equivalents: | B218: =IF($B$126="",0,IF(B211="Unit",B217,B214)) -> 0 | F218: Total Land Value | G218: =IF(VLOOKUP(Policy_Year_Input,ResLand_Input,4,0)="set",VLOOKUP($D$4,ResLandAvg,IF(Urban_Town="Township",2,IF(Urban_Town="Urban",3)),0)*LU4_Buildable_Area,IF(LU4_LandValue="","",LU4_LandValue)) ->  | H218: (Incl GST)
F219: GST in Land Value | G219: =IF(VLOOKUP(Policy_Year_Input,ResLand_Input,4,0)="set",0.15,IF(LU4_GST_LandValue="","",LU4_GST_LandValue)) -> 0.15
... 33 more rows

Sheet Roading (hidden)
A1: Pre Development/Subdivision Demand (Credits) - Roading
A2: For Consent No. | B2: =Headworks!$B$2 ->  | F2: No. of Land Uses | G2: =Number_Land_Uses -> 0
A4: Location: | B4: =IF(Location="","",Location) ->  | D4: =IF($B$4="","",VLOOKUP(B4,Ward,9,0)) -> 
A6: =IF(F2="1","Land Use Category:","1st Land Use Category:") -> 1st Land Use Category: | B6: =IF(Land_Use_Category_1_Credits="","",Land_Use_Category_1_Credits) ->  | F6: No. of Residential Units: | G6: =IF(No_Res_Units_LU1_Credits="","",No_Res_Units_LU1_Credits) -> 
A7: 2nd Land Use Category: | B7: =IF(Land_Use_Category_2_Credits="","",Land_Use_Category_2_Credits) ->  | F7: No. of Residential Units: | G7: =IF(No_Res_Units_LU2_Credits="","",No_Res_Units_LU2_Credits) -> 
A8: 3rd Land Use Category: | B8: =IF(Land_Use_Category_3_Credits="","",Land_Use_Category_3_Credits) ->  | F8: No. of Residential Units: | G8: =IF(No_Res_Units_LU3_Credits="","",No_Res_Units_LU3_Credits) -> 
A9: 4th Land Use Category: | B9: =IF(Land_Use_Category_4_Credits="","",Land_Use_Category_4_Credits) ->  | F9: No. of Residential Units: | G9: =IF(No_Res_Units_LU4_Credits="","",No_Res_Units_LU4_Credits) -> 
A11: =IF(F2="1","","1 ")&"Roading Contribution - "&$B$6&" Land Use" -> 1 Roading Contribution - Land Use | F11: SITE INFORMATION
A12: Differential Type | B12: =VLOOKUP($B$6,Credits_LUD_Type,IF($D$4="Wakatipu",10,11),FALSE) ->  | F12: Gross Floor Area | G12: =IF(LU1_GFA_Credits="","",LU1_GFA_Credits) ->  | H12: m² (known)
A13: Gross Floor Area (GFA): | B13: =IF(G12="",G16,G12) ->  | C13: m² | F13: Site Area | G13: =IF(LU1_SiteArea_Credits="","",LU1_SiteArea_Credits) ->  | H13: m² (known)
A14: Dwelling Equivalents per 100m² GFA: | B14: =VLOOKUP($B$6,Credits_Land_Use_Differentials,IF($D$4="Wakatipu",10,11),FALSE) ->  | F14: Building Coverage | G14: =VLOOKUP($B$6,GFA_Estimates,2,FALSE) -> 
A15: GFA DE's: | B15: =B13/100*B14 ->  | F15: No. of Floors | G15: =VLOOKUP($B$6,GFA_Estimates,3,FALSE) -> 
A16: No. Units: | B16: =IF(B6="Primary Industry",G18,G6) ->  | F16: Gross Floor Area | G16: =IF(G14=0,Credits_Res_GFA,G13*G14*G15) ->  | H16: m² (estimated)
A17: Dwelling Equivalents per Unit: | B17: =B14 ->  | F17: Primary Industry Site Area/DE | G17: =VLOOKUP($D$4,Credits_Roading_PI,2,FALSE) -> 
A18: Unit DE's: | B18: =B16*B17 ->  | F18: Primary Industry Unit Equivalents | G18: =G13/G17 ->  | H18: m² (known)
A19: Dwelling Equivalents: | B19: =IF($B$6="",0,IF(B12="Unit",B18,B15)) -> 0
A21: =IF(F2="2","","2 ")&"Roading Contribution - "&$B$7&" Land Use" -> 2 Roading Contribution - Land Use | F21: SITE INFORMATION
A22: Differential Type | B22: =VLOOKUP($B$7,Credits_LUD_Type,IF($D$4="Wakatipu",10,11),FALSE) ->  | F22: Gross Floor Area | G22: =IF(LU2_GFA_Credits="","",LU2_GFA_Credits) ->  | H22: m² (known)
A23: Gross Floor Area (GFA): | B23: =IF(G22="",G26,G22) ->  | C23: m² | F23: Site Area | G23: =IF(LU2_SiteArea_Credits="","",LU2_SiteArea_Credits) ->  | H23: m² (known)
A24: Dwelling Equivalents per 100m² GFA: | B24: =VLOOKUP($B$7,Credits_Land_Use_Differentials,IF($D$4="Wakatipu",10,11),FALSE) ->  | F24: Building Coverage | G24: =VLOOKUP($B$7,GFA_Estimates,2,FALSE) -> 
A25: GFA DE's: | B25: =B23/100*B24 ->  | F25: No. of Floors | G25: =VLOOKUP($B$7,GFA_Estimates,3,FALSE) -> 
A26: No. Units: | B26: =IF(B7="Primary Industry",G28,G7) ->  | F26: Gross Floor Area | G26: =IF(G24=0,Credits_Res_GFA,G23*G24*G25) ->  | H26: m² (estimated)
A27: Dwelling Equivalents per Unit: | B27: =B24 ->  | F27: Primary Industry Site Area/DE | G27: =VLOOKUP($D$4,Credits_Roading_PI,2,FALSE) -> 
A28: Unit DE's: | B28: =B26*B27 ->  | F28: Primary Industry GFA Equivalent | G28: =G23/G27 ->  | H28: m² (known)
A29: Dwelling Equivalents: | B29: =IF($B$7="",0,IF(B22="Unit",B28,B25)) -> 0
A31: =IF(F2="3","","3 ")&"Roading Contribution - "&$B$8&" Land Use" -> 3 Roading Contribution - Land Use | F31: SITE INFORMATION
A32: Differential Type | B32: =VLOOKUP($B$8,Credits_LUD_Type,IF($D$4="Wakatipu",10,11),FALSE) ->  | F32: Gross Floor Area | G32: =IF(LU3_GFA_Credits="","",LU3_GFA_Credits) ->  | H32: m² (known)
A33: Gross Floor Area (GFA): | B33: =IF(G32="",G36,G32) ->  | C33: m² | F33: Site Area | G33: =IF(LU3_SiteArea_Credits="","",LU3_SiteArea_Credits) ->  | H33: m² (known)
A34: Dwelling Equivalents per 100m² GFA: | B34: =VLOOKUP($B$8,Credits_Land_Use_Differentials,IF($D$4="Wakatipu",10,11),FALSE) ->  | F34: Building Coverage | G34: =VLOOKUP($B$8,GFA_Estimates,2,FALSE) -> 
A35: GFA DE's: | B35: =B33/100*B34 ->  | F35: No. of Floors | G35: =VLOOKUP($B$8,GFA_Estimates,3,FALSE) -> 
A36: No. Units: | B36: =IF(B8="Primary Industry",G38,G8) ->  | F36: Gross Floor Area | G36: =IF(G34=0,Credits_Res_GFA,G33*G34*G35) ->  | H36: m² (estimated)
A37: Dwelling Equivalents per Unit: | B37: =B34 ->  | F37: Primary Industry Site Area/DE | G37: =VLOOKUP($D$4,Credits_Roading_PI,2,FALSE) -> 
A38: Unit DE's: | B38: =B36*B37 ->  | F38: Primary Industry GFA Equivalent | G38: =G33/G37 ->  | H38: m² (known)
A39: Dwelling Equivalents: | B39: =IF($B$8="",0,IF(B32="Unit",B38,B35)) -> 0
A41: =IF(F2="4","","4 ")&"Roading Contribution - "&$B$9&" Land Use" -> 4 Roading Contribution - Land Use | F41: SITE INFORMATION
A42: Differential Type | B42: =VLOOKUP($B$9,Credits_LUD_Type,IF($D$4="Wakatipu",10,11),FALSE) ->  | F42: Gross Floor Area | G42: =IF(LU4_GFA_Credits="","",LU4_GFA_Credits) ->  | H42: m² (known)
A43: Gross Floor Area (GFA): | B43: =IF(G42="",G46,G42) ->  | C43: m² | F43: Site Area | G43: =IF(LU4_SiteArea_Credits="","",LU4_SiteArea_Credits) ->  | H43: m² (known)
A44: Dwelling Equivalents per 100m² GFA: | B44: =VLOOKUP($B$9,Credits_Land_Use_Differentials,IF($D$4="Wakatipu",10,11),FALSE) ->  | F44: Building Coverage | G44: =VLOOKUP($B$9,GFA_Estimates,2,FALSE) -> 
A45: GFA DE's: | B45: =B43/100*B44 ->  | F45: No. of Floors | G45: =VLOOKUP($B$9,GFA_Estimates,3,FALSE) -> 
A46: No. Units: | B46: =IF(B9="Primary Industry",G9,G48) ->  | F46: Gross Floor Area | G46: =IF(G44=0,Credits_Res_GFA,G43*G44*G45) ->  | H46: m² (estimated)
A47: Dwelling Equivalents per Unit: | B47: =B44 ->  | F47: Primary Industry Site Area/DE | G47: =VLOOKUP($D$4,Credits_Roading_PI,2,FALSE) -> 
A48: Unit DE's: | B48: =B46*B47 ->  | F48: Primary Industry GFA Equivalent | G48: =G43/G47 ->  | H48: m² (known)
A49: Dwelling Equivalents: | B49: =IF($B$9="",0,IF(B42="Unit",B48,B45)) -> 0
A52: Post Development/Subdivision Demand - Roading
A53: For Consent No. | B53: =Consent_Number -> 0
A55: Location: | B55: =B4 ->  | D55: =D4 -> 
A57: =IF(D52="1","Land Use Category:","1st Land Use Category:") -> 1st Land Use Category: | B57: =IF(Land_Use_Category_1="","",Land_Use_Category_1) ->  | F57: No. of Residential Units: | G57: =IF(No_Res_Units_LU1="","",No_Res_Units_LU1) -> 
A58: 2nd Land Use Category: | B58: =IF(Land_Use_Category_2="","",Land_Use_Category_2) ->  | F58: No. of Residential Units: | G58: =IF(No_Res_Units_LU2="","",No_Res_Units_LU2) -> 
A59: 3rd Land Use Category: | B59: =IF(Land_Use_Category_3="","",Land_Use_Category_3) ->  | F59: No. of Residential Units: | G59: =IF(No_Res_Units_LU3="","",No_Res_Units_LU3) -> 
A60: 4th Land Use Category: | B60: =IF(Land_Use_Category_4="","",Land_Use_Category_4) ->  | F60: No. of Residential Units: | G60: =IF(No_Res_Units_LU4="","",No_Res_Units_LU4) -> 
A62: =IF(D52="1","","1 ")&"Roading Contribution - "&$B$57&" Land Use" -> 1 Roading Contribution - Land Use | F62: SITE INFORMATION
A63: Differential Type | B63: =VLOOKUP($B$57,LUD_Type,IF($D$55="Wakatipu",10,11),FALSE) ->  | D63: =Required_LU1_Rdg -> Required | F63: Gross Floor Area | G63: =IF(LU1_GFA="","",LU1_GFA) ->  | H63: m² (known)
A64: Gross Floor Area (GFA): | B64: =IF(G63="",G67,G63) ->  | C64: m² | F64: Site Area | G64: =IF(LU1_SiteArea="","",LU1_SiteArea) ->  | H64: m² (known)
A65: Dwelling Equivalents per 100m² GFA: | B65: =VLOOKUP($B$57,Land_Use_Differentials,IF($D$55="Wakatipu",10,11),FALSE) ->  | F65: Building Coverage | G65: =VLOOKUP($B$57,GFA_Estimates,2,FALSE) -> 
A66: GFA DE's: | B66: =B64/100*B65 ->  | F66: No. of Floors | G66: =VLOOKUP($B$57,GFA_Estimates,3,FALSE) -> 
A67: No. Units: | B67: =IF(B57="Primary Industry",G70,G57) ->  | F67: Gross Floor Area | G67: =IF(G65=0,Res_GFA,G64*G65*G66) ->  | H67: m² (estimated)
A68: Dwelling Equivalents per Unit: | B68: =B65 ->  | G68: =IF(G64>0,G67*0.75,G67) ->  | H68: 75% of m² (estimated)
A69: Unit DE's: | B69: =B67*B68 ->  | F69: Primary Industry Site Area/DE | G69: =VLOOKUP($D$55,Roading_PI,2,FALSE) -> 
A70: Dwelling Equivalents: | B70: =IF($B$57="",0,IF(B63="Unit",B69,B66)) -> 0 | F70: Primary Industry GFA Equivalent | G70: =G64/G69 ->  | H70: m² (known)
A72: ="2 "&"Roading Contribution - "&$B$58&" Land Use" -> 2 Roading Contribution - Land Use | F72: SITE INFORMATION
A73: Differential Type | B73: =VLOOKUP($B$58,LUD_Type,IF($D$55="Wakatipu",10,11),FALSE) ->  | D73: =Required_LU2_Rdg -> 0 | F73: Gross Floor Area | G73: =IF(LU2_GFA="","",LU2_GFA) ->  | H73: m² (known)
A74: Gross Floor Area (GFA): | B74: =IF(G73="",G77,G73) ->  | C74: m² | F74: Site Area | G74: =IF(LU2_SiteArea="","",LU2_SiteArea) ->  | H74: m² (known)
A75: Dwelling Equivalents per 100m² GFA: | B75: =VLOOKUP($B$58,Land_Use_Differentials,IF($D$55="Wakatipu",10,11),FALSE) ->  | F75: Building Coverage | G75: =VLOOKUP($B$58,GFA_Estimates,2,FALSE) -> 
A76: GFA DE's: | B76: =B74/100*B75 ->  | F76: No. of Floors | G76: =VLOOKUP($B$58,GFA_Estimates,3,FALSE) -> 
A77: No. Units: | B77: =IF(B58="Primary Industry",G80,G58) ->  | F77: Gross Floor Area | G77: =IF(G75=0,Res_GFA,G74*G75*G76) ->  | H77: m² (estimated)
A78: Dwelling Equivalents per Unit: | B78: =B75 ->  | G78: =IF(G74>0,G77*0.75,G77) ->  | H78: 75% of m² (estimated)
A79: Unit DE's: | B79: =B77*B78 ->  | F79: Primary Industry Site Area/DE | G79: =VLOOKUP($D$55,Roading_PI,2,FALSE) -> 
A80: Dwelling Equivalents: | B80: =IF($B$58="",0,IF(B73="Unit",B79,B76)) -> 0 | F80: Primary Industry GFA Equivalent | G80: =G74/G79 ->  | H80: m² (known)
A82: ="3 "&"Roading Contribution - "&$B$59&" Land Use" -> 3 Roading Contribution - Land Use | F82: SITE INFORMATION
A83: Differential Type | B83: =VLOOKUP($B$59,LUD_Type,IF($D$55="Wakatipu",10,11),FALSE) ->  | D83: =Required_LU3_Rdg -> 0 | F83: Gross Floor Area | G83: =IF(LU3_GFA="","",LU3_GFA) ->  | H83: m² (known)
A84: Gross Floor Area (GFA): | B84: =IF(G83="",G87,G83) ->  | C84: m² | F84: Site Area | G84: =IF(LU3_SiteArea="","",LU3_SiteArea) ->  | H84: m² (known)
A85: Dwelling Equivalents per 100m² GFA: | B85: =VLOOKUP($B$59,Land_Use_Differentials,IF($D$55="Wakatipu",10,11),FALSE) ->  | F85: Building Coverage | G85: =VLOOKUP($B$59,GFA_Estimates,2,FALSE) -> 
A86: GFA DE's: | B86: =B84/100*B85 ->  | F86: No. of Floors | G86: =VLOOKUP($B$59,GFA_Estimates,3,FALSE) -> 
A87: No. Units: | B87: =IF(B59="Primary Industry",G90,G59) ->  | F87: Gross Floor Area | G87: =IF(G85=0,Res_GFA,G84*G85*G86) ->  | H87: m² (estimated)
A88: Dwelling Equivalents per Unit: | B88: =B85 ->  | G88: =IF(G84>0,G87*0.75,G87) ->  | H88: 75% of m² (estimated)
A89: Unit DE's: | B89: =B87*B88 ->  | F89: Primary Industry Site Area/DE | G89: =VLOOKUP($D$55,Roading_PI,2,FALSE) -> 
A90: Dwelling Equivalents: | B90: =IF($B$59="",0,IF(B83="Unit",B89,B86)) -> 0 | F90: Primary Industry GFA Equivalent | G90: =G84/G89 ->  | H90: m² (known)
A92: ="4 "&"Roading Contribution - "&$B$60&" Land Use" -> 4 Roading Contribution - Land Use | F92: SITE INFORMATION
A93: Differential Type | B93: =VLOOKUP($B$60,LUD_Type,IF($D$55="Wakatipu",10,11),FALSE) ->  | D93: =Required_LU4_Rdg -> 0 | F93: Gross Floor Area | G93: =IF(LU4_GFA="","",LU4_GFA) ->  | H93: m² (known)
A94: Gross Floor Area (GFA): | B94: =IF(G93="",G97,G93) ->  | C94: m² | F94: Site Area | G94: =IF(LU4_SiteArea="","",LU4_SiteArea) ->  | H94: m² (known)
A95: Dwelling Equivalents per 100m² GFA: | B95: =VLOOKUP($B$60,Land_Use_Differentials,IF($D$55="Wakatipu",10,11),FALSE) ->  | F95: Building Coverage | G95: =VLOOKUP($B$60,GFA_Estimates,2,FALSE) -> 
A96: GFA DE's: | B96: =B94/100*B95 ->  | F96: No. of Floors | G96: =VLOOKUP($B$60,GFA_Estimates,3,FALSE) -> 
A97: No. Units: | B97: =IF(B60="Primary Industry",G60,G100) ->  | F97: Gross Floor Area | G97: =IF(G95=0,Res_GFA,G94*G95*G96) ->  | H97: m² (estimated)
A98: Dwelling Equivalents per Unit: | B98: =B95 ->  | G98: =IF(G94>0,G97*0.75,G97) ->  | H98: 75% of m² (estimated)
A99: Unit DE's: | B99: =B97*B98 ->  | F99: Primary Industry Site Area/DE | G99: =VLOOKUP($D$55,Roading_PI,2,FALSE) -> 
A100: Dwelling Equivalents: | B100: =IF($B$60="",0,IF(B93="Unit",B99,B96)) -> 0 | F100: Primary Industry GFA Equivalent | G100: =G94/G99 ->  | H100: m² (known)
A103: Summary Outputs
A104: Total Roading Contribution
A105: Pre Demand: | B105: =ROUND(SUM(B19,B29,B39,B49),2) -> 0
A106: Post Demand: | B106: =ROUND(SUM(IF(D63="required",B70,0),IF(D73="required",B80,0),IF(D83="required",B90,0),IF(D93="required",B100,0)),2) -> 0
A107: Additional Demand (DEs): | B107: =ROUND(MAX(B106-B105,0),2) -> 0
A108: Standard Contribution: | B108: =IF($B$55="",0,VLOOKUP($B$55,Std_Contributions,7,FALSE)) -> 0 | C108: GST | D108: Incl GST
A109: Roading Contribution: | B109: =+B107*B108 -> 0 | C109: =B109*GST -> 0 | D109: =B109+C109 -> 0

Sheet EAR (hidden)
A1: Pre Development/Subdivision Demand (Credits) - Roading - EAR
A2: For Consent No. | B2: =Headworks!$B$2 ->  | F2: No. of Land Uses | G2: =Number_Land_Uses -> 0
A4: Location: | B4: =IF(Location="","",Location) ->  | D4: =IF($B$4="","",VLOOKUP(B4,Ward,9,0)) -> 
A6: =IF(F2="1","Land Use Category:","1st Land Use Category:") -> 1st Land Use Category: | B6: =IF(Land_Use_Category_1_Credits="","",Land_Use_Category_1_Credits) ->  | F6: No. of Residential Units: | G6: =IF(No_Res_Units_LU1_Credits="","",No_Res_Units_LU1_Credits) -> 
A7: 2nd Land Use Category: | B7: =IF(Land_Use_Category_2_Credits="","",Land_Use_Category_2_Credits) ->  | F7: No. of Residential Units: | G7: =IF(No_Res_Units_LU2_Credits="","",No_Res_Units_LU2_Credits) -> 
A8: 3rd Land Use Category: | B8: =IF(Land_Use_Category_3_Credits="","",Land_Use_Category_3_Credits) ->  | F8: No. of Residential Units: | G8: =IF(No_Res_Units_LU3_Credits="","",No_Res_Units_LU3_Credits) -> 
A9: 4th Land Use Category: | B9: =IF(Land_Use_Category_4_Credits="","",Land_Use_Category_4_Credits) ->  | F9: No. of Residential Units: | G9: =IF(No_Res_Units_LU4_Credits="","",No_Res_Units_LU4_Credits) -> 
A11: =IF($G$2="1","","1 ")&"Roading - EAR Contribution - "&$B$6&" Land Use" -> 1 Roading - EAR Contribution - Land Use | F11: SITE INFORMATION
A12: Differential Type | B12: =VLOOKUP($B$6,Credits_LUD_Type,12,FALSE) ->  | F12: Gross Floor Area | G12: =IF(LU1_GFA_Credits="","",LU1_GFA_Credits) ->  | H12: m² (known)
A13: Gross Floor Area (GFA): | B13: =IF(G12="",G16,G12) ->  | C13: m² | F13: Site Area | G13: =IF(LU1_SiteArea_Credits="","",LU1_SiteArea_Credits) ->  | H13: m² (known)
A14: Dwelling Equivalents per 100m² GFA: | B14: =VLOOKUP($B$6,Credits_Land_Use_Differentials,12,FALSE) ->  | F14: Building Coverage | G14: =VLOOKUP($B$6,GFA_Estimates,2,FALSE) -> 
A15: GFA DE's: | B15: =B13/100*B14 ->  | F15: No. of Floors | G15: =VLOOKUP($B$6,GFA_Estimates,3,FALSE) -> 
A16: No. Units: | B16: =IF(B6="Primary Industry",G18,G6) ->  | F16: Gross Floor Area | G16: =IF(G14=0,Credits_Res_GFA,G13*G14*G15) ->  | H16: m² (estimated)
A17: Dwelling Equivalents per Unit: | B17: =B14 ->  | F17: Primary Industry Site Area/DE | G17: =VLOOKUP($D$4,Credits_Roading_PI,2,FALSE) -> 
A18: Unit DE's: | B18: =B16*B17 ->  | F18: Primary Industry Unit Equivalents | G18: =G13/G17 ->  | H18: m² (known)
A19: Dwelling Equivalents: | B19: =IF($B$6="",0,IF(B12="Unit",B18,B15)) -> 0
A21: =IF($G$2="2","","2 ")&"Roading - EAR Contribution - "&$B$7&" Land Use" -> 2 Roading - EAR Contribution - Land Use | F21: SITE INFORMATION
A22: Differential Type | B22: =VLOOKUP($B$7,Credits_LUD_Type,12,FALSE) ->  | F22: Gross Floor Area | G22: =IF(LU2_GFA_Credits="","",LU2_GFA_Credits) ->  | H22: m² (known)
A23: Gross Floor Area (GFA): | B23: =IF(G22="",G26,G22) ->  | C23: m² | F23: Site Area | G23: =IF(LU2_SiteArea_Credits="","",LU2_SiteArea_Credits) ->  | H23: m² (known)
A24: Dwelling Equivalents per 100m² GFA: | B24: =VLOOKUP($B$7,Credits_Land_Use_Differentials,12,FALSE) ->  | F24: Building Coverage | G24: =VLOOKUP($B$7,GFA_Estimates,2,FALSE) -> 
A25: GFA DE's: | B25: =B23/100*B24 ->  | F25: No. of Floors | G25: =VLOOKUP($B$7,GFA_Estimates,3,FALSE) -> 
A26: No. Units: | B26: =IF(B7="Primary Industry",G28,G7) ->  | F26: Gross Floor Area | G26: =IF(G24=0,Credits_Res_GFA,G23*G24*G25) ->  | H26: m² (estimated)
A27: Dwelling Equivalents per Unit: | B27: =B24 ->  | F27: Primary Industry Site Area/DE | G27: =VLOOKUP($D$4,Credits_Roading_PI,2,FALSE) -> 
A28: Unit DE's: | B28: =B26*B27 ->  | F28: Primary Industry GFA Equivalent | G28: =G23/G27 ->  | H28: m² (known)
A29: Dwelling Equivalents: | B29: =IF($B$7="",0,IF(B22="Unit",B28,B25)) -> 0
A31: =IF($G$2="3","","3 ")&"Roading - EAR Contribution - "&$B$8&" Land Use" -> 3 Roading - EAR Contribution - Land Use | F31: SITE INFORMATION
A32: Differential Type | B32: =VLOOKUP($B$8,Credits_LUD_Type,12,FALSE) ->  | F32: Gross Floor Area | G32: =IF(LU3_GFA_Credits="","",LU3_GFA_Credits) ->  | H32: m² (known)
A33: Gross Floor Area (GFA): | B33: =IF(G32="",G36,G32) ->  | C33: m² | F33: Site Area | G33: =IF(LU3_SiteArea_Credits="","",LU3_SiteArea_Credits) ->  | H33: m² (known)
A34: Dwelling Equivalents per 100m² GFA: | B34: =VLOOKUP($B$8,Credits_Land_Use_Differentials,12,FALSE) ->  | F34: Building Coverage | G34: =VLOOKUP($B$8,GFA_Estimates,2,FALSE) -> 
A35: GFA DE's: | B35: =B33/100*B34 ->  | F35: No. of Floors | G35: =VLOOKUP($B$8,GFA_Estimates,3,FALSE) -> 
A36: No. Units: | B36: =IF(B8="Primary Industry",G38,G8) ->  | F36: Gross Floor Area | G36: =IF(G34=0,Credits_Res_GFA,G33*G34*G35) ->  | H36: m² (estimated)
A37: Dwelling Equivalents per Unit: | B37: =B34 ->  | F37: Primary Industry Site Area/DE | G37: =VLOOKUP($D$4,Credits_Roading_PI,2,FALSE) -> 
A38: Unit DE's: | B38: =B36*B37 ->  | F38: Primary Industry GFA Equivalent | G38: =G33/G37 ->  | H38: m² (known)
A39: Dwelling Equivalents: | B39: =IF($B$8="",0,IF(B32="Unit",B38,B35)) -> 0
A41: =IF($G$2="4","","4 ")&"Roading - EAR Contribution - "&$B$9&" Land Use" -> 4 Roading - EAR Contribution - Land Use | F41: SITE INFORMATION
A42: Differential Type | B42: =VLOOKUP($B$9,Credits_LUD_Type,12,FALSE) ->  | F42: Gross Floor Area | G42: =IF(LU4_GFA_Credits="","",LU4_GFA_Credits) ->  | H42: m² (known)
A43: Gross Floor Area (GFA): | B43: =IF(G42="",G46,G42) ->  | C43: m² | F43: Site Area | G43: =IF(LU4_SiteArea_Credits="","",LU4_SiteArea_Credits) ->  | H43: m² (known)
A44: Dwelling Equivalents per 100m² GFA: | B44: =VLOOKUP($B$9,Credits_Land_Use_Differentials,12,FALSE) ->  | F44: Building Coverage | G44: =VLOOKUP($B$9,GFA_Estimates,2,FALSE) -> 
A45: GFA DE's: | B45: =B43/100*B44 ->  | F45: No. of Floors | G45: =VLOOKUP($B$9,GFA_Estimates,3,FALSE) -> 
A46: No. Units: | B46: =IF(B9="Primary Industry",G9,G48) ->  | F46: Gross Floor Area | G46: =IF(G44=0,Credits_Res_GFA,G43*G44*G45) ->  | H46: m² (estimated)
A47: Dwelling Equivalents per Unit: | B47: =B44 ->  | F47: Primary Industry Site Area/DE | G47: =VLOOKUP($D$4,Credits_Roading_PI,2,FALSE) -> 
A48: Unit DE's: | B48: =B46*B47 ->  | F48: Primary Industry GFA Equivalent | G48: =G43/G47 ->  | H48: m² (known)
A49: Dwelling Equivalents: | B49: =IF($B$9="",0,IF(B42="Unit",B48,B45)) -> 0
A51: Post Development/Subdivision Demand - Roading - EAR
A52: For Consent No. | B52: =Consent_Number -> 0
A54: Location: | B54: =B4 ->  | D54: =D4 -> 
A56: =IF(D51="1","Land Use Category:","1st Land Use Category:") -> 1st Land Use Category: | B56: =IF(Land_Use_Category_1="","",Land_Use_Category_1) ->  | F56: No. of Residential Units: | G56: =IF(No_Res_Units_LU1="","",No_Res_Units_LU1) -> 
A57: 2nd Land Use Category: | B57: =IF(Land_Use_Category_2="","",Land_Use_Category_2) ->  | F57: No. of Residential Units: | G57: =IF(No_Res_Units_LU2="","",No_Res_Units_LU2) -> 
A58: 3rd Land Use Category: | B58: =IF(Land_Use_Category_3="","",Land_Use_Category_3) ->  | F58: No. of Residential Units: | G58: =IF(No_Res_Units_LU3="","",No_Res_Units_LU3) -> 
A59: 4th Land Use Category: | B59: =IF(Land_Use_Category_4="","",Land_Use_Category_4) ->  | F59: No. of Residential Units: | G59: =IF(No_Res_Units_LU4="","",No_Res_Units_LU4) -> 
A61: =IF($G$2="1","","1 ")&"Roading - EAR Contribution - "&$B$56&" Land Use" -> 1 Roading - EAR Contribution - Land Use | F61: SITE INFORMATION
A62: Differential Type | B62: =VLOOKUP($B$56,LUD_Type,12,FALSE) ->  | D62: =Required_LU1_EAR -> 0 | F62: Gross Floor Area | G62: =IF(LU1_GFA="","",LU1_GFA) ->  | H62: m² (known)
A63: Gross Floor Area (GFA): | B63: =IF(G62="",G66,G62) ->  | C63: m² | F63: Site Area | G63: =IF(LU1_SiteArea="","",LU1_SiteArea) ->  | H63: m² (known)
A64: Dwelling Equivalents per 100m² GFA: | B64: =VLOOKUP($B$56,Land_Use_Differentials,12,FALSE) ->  | F64: Building Coverage | G64: =VLOOKUP($B$57,GFA_Estimates,2,FALSE) -> 
A65: GFA DE's: | B65: =B63/100*B64 ->  | F65: No. of Floors | G65: =VLOOKUP($B$57,GFA_Estimates,3,FALSE) -> 
A66: No. Units: | B66: =IF(B56="Primary Industry",G69,G56) ->  | F66: Gross Floor Area | G66: =IF(G64=0,Res_GFA,G63*G64*G65) ->  | H66: m² (estimated)
A67: Dwelling Equivalents per Unit: | B67: =B64 ->  | G67: =IF(G63>0,G66*0.75,G66) ->  | H67: 75% of m² (estimated)
A68: Unit DE's: | B68: =B66*B67 ->  | F68: Primary Industry Site Area/DE | G68: =VLOOKUP($D$54,Roading_PI,2,FALSE) -> 
A69: Dwelling Equivalents: | B69: =IF($B$56="",0,IF(B62="Unit",B68,B65)) -> 0 | F69: Primary Industry GFA Equivalent | G69: =G63/G68 ->  | H69: m² (known)
A71: =IF($G$2="2","","2 ")&"Roading - EAR Contribution - "&$B$57&" Land Use" -> 2 Roading - EAR Contribution - Land Use | F71: SITE INFORMATION
A72: Differential Type | B72: =VLOOKUP($B$57,LUD_Type,12,FALSE) ->  | D72: =Required_LU2_EAR -> 0 | F72: Gross Floor Area | G72: =IF(LU2_GFA="","",LU2_GFA) ->  | H72: m² (known)
A73: Gross Floor Area (GFA): | B73: =IF(G72="",G76,G72) ->  | C73: m² | F73: Site Area | G73: =IF(LU2_SiteArea="","",LU2_SiteArea) ->  | H73: m² (known)
A74: Dwelling Equivalents per 100m² GFA: | B74: =VLOOKUP($B$57,Land_Use_Differentials,12,FALSE) ->  | F74: Building Coverage | G74: =VLOOKUP($B$58,GFA_Estimates,2,FALSE) -> 
A75: GFA DE's: | B75: =B73/100*B74 ->  | F75: No. of Floors | G75: =VLOOKUP($B$58,GFA_Estimates,3,FALSE) -> 
A76: No. Units: | B76: =IF(B57="Primary Industry",G79,G57) ->  | F76: Gross Floor Area | G76: =IF(G74=0,Res_GFA,G73*G74*G75) ->  | H76: m² (estimated)
A77: Dwelling Equivalents per Unit: | B77: =B74 ->  | G77: =IF(G73>0,G76*0.75,G76) ->  | H77: 75% of m² (estimated)
A78: Unit DE's: | B78: =B76*B77 ->  | F78: Primary Industry Site Area/DE | G78: =VLOOKUP($D$54,Roading_PI,2,FALSE) -> 
A79: Dwelling Equivalents: | B79: =IF($B$57="",0,IF(B72="Unit",B78,B75)) -> 0 | F79: Primary Industry GFA Equivalent | G79: =G73/G78 ->  | H79: m² (known)
A81: =IF($G$2="3","","3 ")&"Roading - EAR Contribution - "&$B$58&" Land Use" -> 3 Roading - EAR Contribution - Land Use | F81: SITE INFORMATION
A82: Differential Type | B82: =VLOOKUP($B$58,LUD_Type,12,FALSE) ->  | D82: =Required_LU3_EAR -> 0 | F82: Gross Floor Area | G82: =IF(LU3_GFA="","",LU3_GFA) ->  | H82: m² (known)
A83: Gross Floor Area (GFA): | B83: =IF(G82="",G86,G82) ->  | C83: m² | F83: Site Area | G83: =IF(LU3_SiteArea="","",LU3_SiteArea) ->  | H83: m² (known)
A84: Dwelling Equivalents per 100m² GFA: | B84: =VLOOKUP($B$58,Land_Use_Differentials,12,FALSE) ->  | F84: Building Coverage | G84: =VLOOKUP($B$59,GFA_Estimates,2,FALSE) -> 
A85: GFA DE's: | B85: =B83/100*B84 ->  | F85: No. of Floors | G85: =VLOOKUP($B$59,GFA_Estimates,3,FALSE) -> 
A86: No. Units: | B86: =IF(B58="Primary Industry",G89,G58) ->  | F86: Gross Floor Area | G86: =IF(G84=0,Res_GFA,G83*G84*G85) ->  | H86: m² (estimated)
A87: Dwelling Equivalents per Unit: | B87: =B84 ->  | G87: =IF(G83>0,G86*0.75,G86) ->  | H87: 75% of m² (estimated)
A88: Unit DE's: | B88: =B86*B87 ->  | F88: Primary Industry Site Area/DE | G88: =VLOOKUP($D$54,Roading_PI,2,FALSE) -> 
A89: Dwelling Equivalents: | B89: =IF($B$58="",0,IF(B82="Unit",B88,B85)) -> 0 | F89: Primary Industry GFA Equivalent | G89: =G83/G88 ->  | H89: m² (known)
A91: =IF($G$2="4","","4 ")&"Roading - EAR Contribution - "&$B$59&" Land Use" -> 4 Roading - EAR Contribution - Land Use | F91: SITE INFORMATION
A92: Differential Type | B92: =VLOOKUP($B$59,LUD_Type,12,FALSE) ->  | D92: =Required_LU4_EAR -> 0 | F92: Gross Floor Area | G92: =IF(LU4_GFA="","",LU4_GFA) ->  | H92: m² (known)
A93: Gross Floor Area (GFA): | B93: =IF(G92="",G96,G92) ->  | C93: m² | F93: Site Area | G93: =IF(LU4_SiteArea="","",LU4_SiteArea) ->  | H93: m² (known)
A94: Dwelling Equivalents per 100m² GFA: | B94: =VLOOKUP($B$59,Land_Use_Differentials,12,FALSE) ->  | F94: Building Coverage | G94: =VLOOKUP($B$60,GFA_Estimates,2,FALSE) -> 
A95: GFA DE's: | B95: =B93/100*B94 ->  | F95: No. of Floors | G95: =VLOOKUP($B$60,GFA_Estimates,3,FALSE) -> 
A96: No. Units: | B96: =IF(B59="Primary Industry",G59,G99) ->  | F96: Gross Floor Area | G96: =IF(G94=0,Res_GFA,G93*G94*G95) ->  | H96: m² (estimated)
A97: Dwelling Equivalents per Unit: | B97: =B94 ->  | G97: =IF(G93>0,G96*0.75,G96) ->  | H97: 75% of m² (estimated)
A98: Unit DE's: | B98: =B96*B97 ->  | F98: Primary Industry Site Area/DE | G98: =VLOOKUP($D$54,Roading_PI,2,FALSE) -> 
A99: Dwelling Equivalents: | B99: =IF($B$59="",0,IF(B92="Unit",B98,B95)) -> 0 | F99: Primary Industry GFA Equivalent | G99: =G93/G98 ->  | H99: m² (known)
G100: =IF(G93>0,G99*0.75,G99) ->  | H100: 75% of m² (estimated)
A102: Summary Outputs
A103: Total Roading - EAR Contribution
A104: Pre Demand: | B104: =ROUND(SUM(B19,B29,B39,B49),2) -> 0
A105: Post Demand: | B105: =ROUND(SUM(IF(D62="required",B69,0),IF(D72="required",B79,0),IF(D82="required",B89,0),IF(D92="required",B99,0)),2) -> 0
A106: Additional Demand (DEs): | B106: =ROUND(MAX(B105-B104,0),2) -> 0
A107: Standard Contribution: | B107: =IF($B$54="",0,VLOOKUP($B$54,Std_Contributions,8,FALSE)) -> 0 | C107: GST | D107: Incl GST
A108: Roading - EAR Contribution: | B108: =+B106*B107 -> 0 | C108: =B108*GST -> 0 | D108: =B108+C108 -> 0

Sheet Calculation Links (hidden)
A1: Standard Contributions | J1: Land Use Differentials | K1: Use for post development | U1: =+HLOOKUP(U$24,Differentials,2,FALSE) -> 12 | X1: Land Use Differentials | Y1: Use for pre development (credits)
K3: Water Supply | M3: Wastewater | N3: Stormwater | O3: Reserve Improvements & Community Facilities | Q3: Reserve Land | S3: Roading | U3: Roading - EAR | Y3: Water Supply | AA3: Wastewater | AB3: Stormwater | AC3: Reserve Improvements & Community Facilities | AE3: Reserve Land | AG3: Roading | AI3: Roading - EAR
B4: Water Supply | C4: Wastewater | D4: Stormwater | E4: Reserve Improvements | F4: Community Facilities | G4: Transportation | H4: Transportation - EAR | K4: Dwelling Equivalents per 100m² GFA | L4: Plus Network Factor Dwelling Equivalents | M4: Dwelling Equivalents per 100m² GFA | N4: Dwelling Equivalents per 100m² Impervious Surface Area | O4: Dwelling Equivalents per 100m² GFA for Wakatipu | P4: Dwelling Equivalents per 100m² GFA for Wanaka | Q4: Dwelling Equivalents per 100m² GFA for Wakatipu | R4: Dwelling Equivalents per 100m² GFA for Wanaka | S4: Dwelling Equivalents per 100m² GFA for Wakatipu | T4: Dwelling Equivalents per 100m² GFA for Wanaka | U4: Dwelling Equivalents per 100m² GFA for Wakatipu | Y4: Dwelling Equivalents per 100m² GFA | Z4: Plus Network Factor Dwelling Equivalents | AA4: Dwelling Equivalents per 100m² GFA | AB4: Dwelling Equivalents per 100m² Impervious Surface Area | AC4: Dwelling Equivalents per 100m² GFA for Wakatipu | AD4: Dwelling Equivalents per 100m² GFA for Wanaka | AE4: Dwelling Equivalents per 100m² GFA for Wakatipu | AF4: Dwelling Equivalents per 100m² GFA for Wanaka | AG4: Dwelling Equivalents per 100m² GFA for Wakatipu | AH4: Dwelling Equivalents per 100m² GFA for Wanaka | AI4: Dwelling Equivalents per 100m² GFA for Wakatipu
A5: Queenstown | B5: =VLOOKUP(Policy_Year_Input&'Calculation Links'!$A5,Standard_Contributions,HLOOKUP(B$4,Standard_Contributions,2,FALSE),FALSE) -> 3885 | C5: =VLOOKUP(Policy_Year_Input&'Calculation Links'!$A5,Standard_Contributions,HLOOKUP(C$4,Standard_Contributions,2,FALSE),FALSE) -> 4693 | D5: =VLOOKUP(Policy_Year_Input&'Calculation Links'!$A5,Standard_Contributions,HLOOKUP(D$4,Standard_Contributions,2,FALSE),FALSE) -> 1944 | E5: =VLOOKUP(Policy_Year_Input&'Calculation Links'!$A5,Standard_Contributions,HLOOKUP(E$4,Standard_Contributions,2,FALSE),FALSE) -> 762 | F5: =VLOOKUP(Policy_Year_Input&'Calculation Links'!$A5,Standard_Contributions,HLOOKUP(F$4,Standard_Contributions,2,FALSE),FALSE) -> 1327 | G5: =VLOOKUP(Policy_Year_Input&'Calculation Links'!$A5,Standard_Contributions,HLOOKUP(G$4,Standard_Contributions,2,FALSE),FALSE) -> 5018 | H5: =VLOOKUP(Policy_Year_Input&'Calculation Links'!$A5,Standard_Contributions,HLOOKUP(H$4,Standard_Contributions,2,FALSE),FALSE) -> 734 | I5: =+$D$50 -> Wakatipu | J5: Residential | K5: =VLOOKUP(Policy_Year_Input&'Calculation Links'!$J5,Differentials,HLOOKUP(K$24,Differentials,2,FALSE),FALSE) -> 1 | L5: =VLOOKUP(Policy_Year_Input&'Calculation Links'!$J5,Differentials,HLOOKUP(L$24,Differentials,2,FALSE),FALSE) -> 0 | M5: =VLOOKUP(Policy_Year_Input&'Calculation Links'!$J5,Differentials,HLOOKUP(M$24,Differentials,2,FALSE),FALSE) -> 1 | N5: =VLOOKUP(Policy_Year_Input&'Calculation Links'!$J5,Differentials,HLOOKUP(N$24,Differentials,2,FALSE),FALSE) -> 1 | O5: =VLOOKUP(Policy_Year_Input&'Calculation Links'!$J5,Differentials,HLOOKUP(O$24,Differentials,2,FALSE),FALSE) -> 1 | P5: =VLOOKUP(Policy_Year_Input&'Calculation Links'!$J5,Differentials,HLOOKUP(P$24,Differentials,2,FALSE),FALSE) -> 1 | Q5: =VLOOKUP(Policy_Year_Input&'Calculation Links'!$J5,Differentials,HLOOKUP(Q$24,Differentials,2,FALSE),FALSE) -> 1 | R5: =VLOOKUP(Policy_Year_Input&'Calculation Links'!$J5,Differentials,HLOOKUP(R$24,Differentials,2,FALSE),FALSE) -> 1 | S5: =VLOOKUP(Policy_Year_Input&'Calculation Links'!$J5,Differentials,HLOOKUP(S$24,Differentials,2,FALSE),FALSE) -> 1 | T5: =VLOOKUP(Policy_Year_Input&'Calculation Links'!$J5,Differentials,HLOOKUP(T$24,Differentials,2,FALSE),FALSE) -> 1 | U5: =VLOOKUP(Policy_Year_Input&'Calculation Links'!$J5,Differentials,HLOOKUP(U$24,Differentials,2,FALSE),FALSE) -> 1 | V5: =IF(Policy_Year_Input="2018/19","NR",W5) -> NR | W5: R | X5: Residential | Y5: =VLOOKUP(Credits_PolicyYear_Input&'Calculation Links'!$J5,Differentials,HLOOKUP(Y$24,Differentials,2,FALSE),FALSE) ->  | Z5: =VLOOKUP(Credits_PolicyYear_Input&'Calculation Links'!$J5,Differentials,HLOOKUP(Z$24,Differentials,2,FALSE),FALSE) ->  | AA5: =VLOOKUP(Credits_PolicyYear_Input&'Calculation Links'!$J5,Differentials,HLOOKUP(AA$24,Differentials,2,FALSE),FALSE) ->  | AB5: =VLOOKUP(Credits_PolicyYear_Input&'Calculation Links'!$J5,Differentials,HLOOKUP(AB$24,Differentials,2,FALSE),FALSE) ->  | AC5: =VLOOKUP(Credits_PolicyYear_Input&'Calculation Links'!$J5,Differentials,HLOOKUP(AC$24,Differentials,2,FALSE),FALSE) ->  | AD5: =VLOOKUP(Credits_PolicyYear_Input&'Calculation Links'!$J5,Differentials,HLOOKUP(AD$24,Differentials,2,FALSE),FALSE) ->  | AE5: =VLOOKUP(Credits_PolicyYear_Input&'Calculation Links'!$J5,Differentials,HLOOKUP(AE$24,Differentials,2,FALSE),FALSE) ->  | AF5: =VLOOKUP(Credits_PolicyYear_Input&'Calculation Links'!$J5,Differentials,HLOOKUP(AF$24,Differentials,2,FALSE),FALSE) ->  | AG5: =VLOOKUP(Credits_PolicyYear_Input&'Calculation Links'!$J5,Differentials,HLOOKUP(AG$24,Differentials,2,FALSE),FALSE) ->  | AH5: =VLOOKUP(Credits_PolicyYear_Input&'Calculation Links'!$J5,Differentials,HLOOKUP(AH$24,Differentials,2,FALSE),FALSE) ->  | AI5: =VLOOKUP(Credits_PolicyYear_Input&'Calculation Links'!$J5,Differentials,HLOOKUP(AI$24,Differentials,2,FALSE),FALSE) ->  | AJ5: =IF(Credits_PolicyYear_Input="2018/19","NR",AK5) -> R | AK5: R | AN5: Queenstown | AO5: Urban
A6: Frankton Flats | B6: =VLOOKUP(Policy_Year_Input&'Calculation Links'!$A6,Standard_Contributions,HLOOKUP(B$4,Standard_Contributions,2,FALSE),FALSE) -> 3885 | C6: =VLOOKUP(Policy_Year_Input&'Calculation Links'!$A6,Standard_Contributions,HLOOKUP(C$4,Standard_Contributions,2,FALSE),FALSE) -> 4693 | D6: =VLOOKUP(Policy_Year_Input&'Calculation Links'!$A6,Standard_Contributions,HLOOKUP(D$4,Standard_Contributions,2,FALSE),FALSE) -> 3296 | E6: =VLOOKUP(Policy_Year_Input&'Calculation Links'!$A6,Standard_Contributions,HLOOKUP(E$4,Standard_Contributions,2,FALSE),FALSE) -> 762 | F6: =VLOOKUP(Policy_Year_Input&'Calculation Links'!$A6,Standard_Contributions,HLOOKUP(F$4,Standard_Contributions,2,FALSE),FALSE) -> 1327 | G6: =VLOOKUP(Policy_Year_Input&'Calculation Links'!$A6,Standard_Contributions,HLOOKUP(G$4,Standard_Contributions,2,FALSE),FALSE) -> 5018 | H6: =VLOOKUP(Policy_Year_Input&'Calculation Links'!$A6,Standard_Contributions,HLOOKUP(H$4,Standard_Contributions,2,FALSE),FALSE) -> 734 | I6: Wakatipu | J6: Residential Flat | K6: =VLOOKUP(Policy_Year_Input&'Calculation Links'!$J6,Differentials,HLOOKUP(K$24,Differentials,2,FALSE),FALSE) -> 0.71 | L6: =VLOOKUP(Policy_Year_Input&'Calculation Links'!$J6,Differentials,HLOOKUP(L$24,Differentials,2,FALSE),FALSE) -> 0 | M6: =VLOOKUP(Policy_Year_Input&'Calculation Links'!$J6,Differentials,HLOOKUP(M$24,Differentials,2,FALSE),FALSE) -> 0.71 | N6: =VLOOKUP(Policy_Year_Input&'Calculation Links'!$J6,Differentials,HLOOKUP(N$24,Differentials,2,FALSE),FALSE) -> 0.38 | O6: =VLOOKUP(Policy_Year_Input&'Calculation Links'!$J6,Differentials,HLOOKUP(O$24,Differentials,2,FALSE),FALSE) -> 0.71 | P6: =VLOOKUP(Policy_Year_Input&'Calculation Links'!$J6,Differentials,HLOOKUP(P$24,Differentials,2,FALSE),FALSE) -> 0.71 | Q6: =VLOOKUP(Policy_Year_Input&'Calculation Links'!$J6,Differentials,HLOOKUP(Q$24,Differentials,2,FALSE),FALSE) -> 0.71 | R6: =VLOOKUP(Policy_Year_Input&'Calculation Links'!$J6,Differentials,HLOOKUP(R$24,Differentials,2,FALSE),FALSE) -> 0.71 | S6: =VLOOKUP(Policy_Year_Input&'Calculation Links'!$J6,Differentials,HLOOKUP(S$24,Differentials,2,FALSE),FALSE) -> 0.71 | T6: =VLOOKUP(Policy_Year_Input&'Calculation Links'!$J6,Differentials,HLOOKUP(T$24,Differentials,2,FALSE),FALSE) -> 0.71 | U6: =VLOOKUP(Policy_Year_Input&'Calculation Links'!$J6,Differentials,HLOOKUP(U$24,Differentials,2,FALSE),FALSE) -> 0.71 | V6: NR | W6: R | X6: Residential Flat | Y6: =VLOOKUP(Credits_PolicyYear_Input&'Calculation Links'!$J6,Differentials,HLOOKUP(Y$24,Differentials,2,FALSE),FALSE) ->  | Z6: =VLOOKUP(Credits_PolicyYear_Input&'Calculation Links'!$J6,Differentials,HLOOKUP(Z$24,Differentials,2,FALSE),FALSE) ->  | AA6: =VLOOKUP(Credits_PolicyYear_Input&'Calculation Links'!$J6,Differentials,HLOOKUP(AA$24,Differentials,2,FALSE),FALSE) ->  | AB6: =VLOOKUP(Credits_PolicyYear_Input&'Calculation Links'!$J6,Differentials,HLOOKUP(AB$24,Differentials,2,FALSE),FALSE) ->  | AC6: =VLOOKUP(Credits_PolicyYear_Input&'Calculation Links'!$J6,Differentials,HLOOKUP(AC$24,Differentials,2,FALSE),FALSE) ->  | AD6: =VLOOKUP(Credits_PolicyYear_Input&'Calculation Links'!$J6,Differentials,HLOOKUP(AD$24,Differentials,2,FALSE),FALSE) ->  | AE6: =VLOOKUP(Credits_PolicyYear_Input&'Calculation Links'!$J6,Differentials,HLOOKUP(AE$24,Differentials,2,FALSE),FALSE) ->  | AF6: =VLOOKUP(Credits_PolicyYear_Input&'Calculation Links'!$J6,Differentials,HLOOKUP(AF$24,Differentials,2,FALSE),FALSE) ->  | AG6: =VLOOKUP(Credits_PolicyYear_Input&'Calculation Links'!$J6,Differentials,HLOOKUP(AG$24,Differentials,2,FALSE),FALSE) ->  | AH6: =VLOOKUP(Credits_PolicyYear_Input&'Calculation Links'!$J6,Differentials,HLOOKUP(AH$24,Differentials,2,FALSE),FALSE) ->  | AI6: =VLOOKUP(Credits_PolicyYear_Input&'Calculation Links'!$J6,Differentials,HLOOKUP(AI$24,Differentials,2,FALSE),FALSE) ->  | AJ6: R | AK6: R | AN6: Frankton Flats | AO6: Urban
A7: Arrowtown | B7: =VLOOKUP(Policy_Year_Input&'Calculation Links'!$A7,Standard_Contributions,HLOOKUP(B$4,Standard_Contributions,2,FALSE),FALSE) -> 4874 | C7: =VLOOKUP(Policy_Year_Input&'Calculation Links'!$A7,Standard_Contributions,HLOOKUP(C$4,Standard_Contributions,2,FALSE),FALSE) -> 2928 | D7: =VLOOKUP(Policy_Year_Input&'Calculation Links'!$A7,Standard_Contributions,HLOOKUP(D$4,Standard_Contributions,2,FALSE),FALSE) -> 417 | E7: =VLOOKUP(Policy_Year_Input&'Calculation Links'!$A7,Standard_Contributions,HLOOKUP(E$4,Standard_Contributions,2,FALSE),FALSE) -> 762 | F7: =VLOOKUP(Policy_Year_Input&'Calculation Links'!$A7,Standard_Contributions,HLOOKUP(F$4,Standard_Contributions,2,FALSE),FALSE) -> 1327 | G7: =VLOOKUP(Policy_Year_Input&'Calculation Links'!$A7,Standard_Contributions,HLOOKUP(G$4,Standard_Contributions,2,FALSE),FALSE) -> 5018 | H7: =VLOOKUP(Policy_Year_Input&'Calculation Links'!$A7,Standard_Contributions,HLOOKUP(H$4,Standard_Contributions,2,FALSE),FALSE) -> 0 | I7: Wakatipu | J7: Multi Unit Residential | K7: =VLOOKUP(Policy_Year_Input&'Calculation Links'!$J7,Differentials,HLOOKUP(K$24,Differentials,2,FALSE),FALSE) -> 0.71 | L7: =VLOOKUP(Policy_Year_Input&'Calculation Links'!$J7,Differentials,HLOOKUP(L$24,Differentials,2,FALSE),FALSE) -> 0 | M7: =VLOOKUP(Policy_Year_Input&'Calculation Links'!$J7,Differentials,HLOOKUP(M$24,Differentials,2,FALSE),FALSE) -> 0.71 | N7: =VLOOKUP(Policy_Year_Input&'Calculation Links'!$J7,Differentials,HLOOKUP(N$24,Differentials,2,FALSE),FALSE) -> 0.38 | O7: =VLOOKUP(Policy_Year_Input&'Calculation Links'!$J7,Differentials,HLOOKUP(O$24,Differentials,2,FALSE),FALSE) -> 0.71 | P7: =VLOOKUP(Policy_Year_Input&'Calculation Links'!$J7,Differentials,HLOOKUP(P$24,Differentials,2,FALSE),FALSE) -> 0.71 | Q7: =VLOOKUP(Policy_Year_Input&'Calculation Links'!$J7,Differentials,HLOOKUP(Q$24,Differentials,2,FALSE),FALSE) -> 0.71 | R7: =VLOOKUP(Policy_Year_Input&'Calculation Links'!$J7,Differentials,HLOOKUP(R$24,Differentials,2,FALSE),FALSE) -> 0.71 | S7: =VLOOKUP(Policy_Year_Input&'Calculation Links'!$J7,Differentials,HLOOKUP(S$24,Differentials,2,FALSE),FALSE) -> 0.71 | T7: =VLOOKUP(Policy_Year_Input&'Calculation Links'!$J7,Differentials,HLOOKUP(T$24,Differentials,2,FALSE),FALSE) -> 0.71 | U7: =VLOOKUP(Policy_Year_Input&'Calculation Links'!$J7,Differentials,HLOOKUP(U$24,Differentials,2,FALSE),FALSE) -> 0.71 | V7: NR | W7: R | X7: Multi Unit Residential | Y7: =VLOOKUP(Credits_PolicyYear_Input&'Calculation Links'!$J7,Differentials,HLOOKUP(Y$24,Differentials,2,FALSE),FALSE) ->  | Z7: =VLOOKUP(Credits_PolicyYear_Input&'Calculation Links'!$J7,Differentials,HLOOKUP(Z$24,Differentials,2,FALSE),FALSE) ->  | AA7: =VLOOKUP(Credits_PolicyYear_Input&'Calculation Links'!$J7,Differentials,HLOOKUP(AA$24,Differentials,2,FALSE),FALSE) ->  | AB7: =VLOOKUP(Credits_PolicyYear_Input&'Calculation Links'!$J7,Differentials,HLOOKUP(AB$24,Differentials,2,FALSE),FALSE) ->  | AC7: =VLOOKUP(Credits_PolicyYear_Input&'Calculation Links'!$J7,Differentials,HLOOKUP(AC$24,Differentials,2,FALSE),FALSE) ->  | AD7: =VLOOKUP(Credits_PolicyYear_Input&'Calculation Links'!$J7,Differentials,HLOOKUP(AD$24,Differentials,2,FALSE),FALSE) ->  | AE7: =VLOOKUP(Credits_PolicyYear_Input&'Calculation Links'!$J7,Differentials,HLOOKUP(AE$24,Differentials,2,FALSE),FALSE) ->  | AF7: =VLOOKUP(Credits_PolicyYear_Input&'Calculation Links'!$J7,Differentials,HLOOKUP(AF$24,Differentials,2,FALSE),FALSE) ->  | AG7: =VLOOKUP(Credits_PolicyYear_Input&'Calculation Links'!$J7,Differentials,HLOOKUP(AG$24,Differentials,2,FALSE),FALSE) ->  | AH7: =VLOOKUP(Credits_PolicyYear_Input&'Calculation Links'!$J7,Differentials,HLOOKUP(AH$24,Differentials,2,FALSE),FALSE) ->  | AI7: =VLOOKUP(Credits_PolicyYear_Input&'Calculation Links'!$J7,Differentials,HLOOKUP(AI$24,Differentials,2,FALSE),FALSE) ->  | AJ7: R | AK7: R | AN7: Arrowtown | AO7: Urban
A8: Glenorchy | B8: =VLOOKUP(Policy_Year_Input&'Calculation Links'!$A8,Standard_Contributions,HLOOKUP(B$4,Standard_Contributions,2,FALSE),FALSE) -> 14141 | C8: =VLOOKUP(Policy_Year_Input&'Calculation Links'!$A8,Standard_Contributions,HLOOKUP(C$4,Standard_Contributions,2,FALSE),FALSE) -> 3677 | D8: =VLOOKUP(Policy_Year_Input&'Calculation Links'!$A8,Standard_Contributions,HLOOKUP(D$4,Standard_Contributions,2,FALSE),FALSE) -> 290 | E8: =VLOOKUP(Policy_Year_Input&'Calculation Links'!$A8,Standard_Contributions,HLOOKUP(E$4,Standard_Contributions,2,FALSE),FALSE) -> 762 | F8: =VLOOKUP(Policy_Year_Input&'Calculation Links'!$A8,Standard_Contributions,HLOOKUP(F$4,Standard_Contributions,2,FALSE),FALSE) -> 1327 | G8: =VLOOKUP(Policy_Year_Input&'Calculation Links'!$A8,Standard_Contributions,HLOOKUP(G$4,Standard_Contributions,2,FALSE),FALSE) -> 5018 | H8: =VLOOKUP(Policy_Year_Input&'Calculation Links'!$A8,Standard_Contributions,HLOOKUP(H$4,Standard_Contributions,2,FALSE),FALSE) -> 0 | I8: Wakatipu | J8: Retirement units | K8: =VLOOKUP(Policy_Year_Input&'Calculation Links'!$J8,Differentials,HLOOKUP(K$24,Differentials,2,FALSE),FALSE) -> 0.68 | L8: =VLOOKUP(Policy_Year_Input&'Calculation Links'!$J8,Differentials,HLOOKUP(L$24,Differentials,2,FALSE),FALSE) -> 0 | M8: =VLOOKUP(Policy_Year_Input&'Calculation Links'!$J8,Differentials,HLOOKUP(M$24,Differentials,2,FALSE),FALSE) -> 0.6 | N8: =VLOOKUP(Policy_Year_Input&'Calculation Links'!$J8,Differentials,HLOOKUP(N$24,Differentials,2,FALSE),FALSE) -> 0.38 | O8: =VLOOKUP(Policy_Year_Input&'Calculation Links'!$J8,Differentials,HLOOKUP(O$24,Differentials,2,FALSE),FALSE) -> 0.65 | P8: =VLOOKUP(Policy_Year_Input&'Calculation Links'!$J8,Differentials,HLOOKUP(P$24,Differentials,2,FALSE),FALSE) -> 0.65 | Q8: =VLOOKUP(Policy_Year_Input&'Calculation Links'!$J8,Differentials,HLOOKUP(Q$24,Differentials,2,FALSE),FALSE) -> 0.41 | R8: =VLOOKUP(Policy_Year_Input&'Calculation Links'!$J8,Differentials,HLOOKUP(R$24,Differentials,2,FALSE),FALSE) -> 0.41 | S8: =VLOOKUP(Policy_Year_Input&'Calculation Links'!$J8,Differentials,HLOOKUP(S$24,Differentials,2,FALSE),FALSE) -> 0.35 | T8: =VLOOKUP(Policy_Year_Input&'Calculation Links'!$J8,Differentials,HLOOKUP(T$24,Differentials,2,FALSE),FALSE) -> 0.35 | U8: =VLOOKUP(Policy_Year_Input&'Calculation Links'!$J8,Differentials,HLOOKUP(U$24,Differentials,2,FALSE),FALSE) -> 0.35 | V8: NR | W8: R | X8: Retirement units | Y8: =VLOOKUP(Credits_PolicyYear_Input&'Calculation Links'!$J8,Differentials,HLOOKUP(Y$24,Differentials,2,FALSE),FALSE) ->  | Z8: =VLOOKUP(Credits_PolicyYear_Input&'Calculation Links'!$J8,Differentials,HLOOKUP(Z$24,Differentials,2,FALSE),FALSE) ->  | AA8: =VLOOKUP(Credits_PolicyYear_Input&'Calculation Links'!$J8,Differentials,HLOOKUP(AA$24,Differentials,2,FALSE),FALSE) ->  | AB8: =VLOOKUP(Credits_PolicyYear_Input&'Calculation Links'!$J8,Differentials,HLOOKUP(AB$24,Differentials,2,FALSE),FALSE) ->  | AC8: =VLOOKUP(Credits_PolicyYear_Input&'Calculation Links'!$J8,Differentials,HLOOKUP(AC$24,Differentials,2,FALSE),FALSE) ->  | AD8: =VLOOKUP(Credits_PolicyYear_Input&'Calculation Links'!$J8,Differentials,HLOOKUP(AD$24,Differentials,2,FALSE),FALSE) ->  | AE8: =VLOOKUP(Credits_PolicyYear_Input&'Calculation Links'!$J8,Differentials,HLOOKUP(AE$24,Differentials,2,FALSE),FALSE) ->  | AF8: =VLOOKUP(Credits_PolicyYear_Input&'Calculation Links'!$J8,Differentials,HLOOKUP(AF$24,Differentials,2,FALSE),FALSE) ->  | AG8: =VLOOKUP(Credits_PolicyYear_Input&'Calculation Links'!$J8,Differentials,HLOOKUP(AG$24,Differentials,2,FALSE),FALSE) ->  | AH8: =VLOOKUP(Credits_PolicyYear_Input&'Calculation Links'!$J8,Differentials,HLOOKUP(AH$24,Differentials,2,FALSE),FALSE) ->  | AI8: =VLOOKUP(Credits_PolicyYear_Input&'Calculation Links'!$J8,Differentials,HLOOKUP(AI$24,Differentials,2,FALSE),FALSE) ->  | AJ8: R | AK8: R | AN8: Glenorchy | AO8: Township
A9: Lake Hayes | B9: =VLOOKUP(Policy_Year_Input&'Calculation Links'!$A9,Standard_Contributions,HLOOKUP(B$4,Standard_Contributions,2,FALSE),FALSE) -> 4023 | C9: =VLOOKUP(Policy_Year_Input&'Calculation Links'!$A9,Standard_Contributions,HLOOKUP(C$4,Standard_Contributions,2,FALSE),FALSE) -> 6231 | D9: =VLOOKUP(Policy_Year_Input&'Calculation Links'!$A9,Standard_Contributions,HLOOKUP(D$4,Standard_Contributions,2,FALSE),FALSE) -> 0 | E9: =VLOOKUP(Policy_Year_Input&'Calculation Links'!$A9,Standard_Contributions,HLOOKUP(E$4,Standard_Contributions,2,FALSE),FALSE) -> 762 | F9: =VLOOKUP(Policy_Year_Input&'Calculation Links'!$A9,Standard_Contributions,HLOOKUP(F$4,Standard_Contributions,2,FALSE),FALSE) -> 1327 | G9: =VLOOKUP(Policy_Year_Input&'Calculation Links'!$A9,Standard_Contributions,HLOOKUP(G$4,Standard_Contributions,2,FALSE),FALSE) -> 5018 | H9: =VLOOKUP(Policy_Year_Input&'Calculation Links'!$A9,Standard_Contributions,HLOOKUP(H$4,Standard_Contributions,2,FALSE),FALSE) -> 0 | I9: Wakatipu | J9: Accommodation | K9: =VLOOKUP(Policy_Year_Input&'Calculation Links'!$J9,Differentials,HLOOKUP(K$24,Differentials,2,FALSE),FALSE) -> 0.9 | L9: =VLOOKUP(Policy_Year_Input&'Calculation Links'!$J9,Differentials,HLOOKUP(L$24,Differentials,2,FALSE),FALSE) -> 0 | M9: =VLOOKUP(Policy_Year_Input&'Calculation Links'!$J9,Differentials,HLOOKUP(M$24,Differentials,2,FALSE),FALSE) -> 0.49 | N9: =VLOOKUP(Policy_Year_Input&'Calculation Links'!$J9,Differentials,HLOOKUP(N$24,Differentials,2,FALSE),FALSE) -> 0.38 | O9: =VLOOKUP(Policy_Year_Input&'Calculation Links'!$J9,Differentials,HLOOKUP(O$24,Differentials,2,FALSE),FALSE) -> 0.89 | P9: =VLOOKUP(Policy_Year_Input&'Calculation Links'!$J9,Differentials,HLOOKUP(P$24,Differentials,2,FALSE),FALSE) -> 1.71 | Q9: =VLOOKUP(Policy_Year_Input&'Calculation Links'!$J9,Differentials,HLOOKUP(Q$24,Differentials,2,FALSE),FALSE) -> 0.89 | R9: =VLOOKUP(Policy_Year_Input&'Calculation Links'!$J9,Differentials,HLOOKUP(R$24,Differentials,2,FALSE),FALSE) -> 1.71 | S9: =VLOOKUP(Policy_Year_Input&'Calculation Links'!$J9,Differentials,HLOOKUP(S$24,Differentials,2,FALSE),FALSE) -> 1.88 | T9: =VLOOKUP(Policy_Year_Input&'Calculation Links'!$J9,Differentials,HLOOKUP(T$24,Differentials,2,FALSE),FALSE) -> 2.25 | U9: =VLOOKUP(Policy_Year_Input&'Calculation Links'!$J9,Differentials,HLOOKUP(U$24,Differentials,2,FALSE),FALSE) -> 1.36 | V9: NR | W9: R | X9: Accommodation | Y9: =VLOOKUP(Credits_PolicyYear_Input&'Calculation Links'!$J9,Differentials,HLOOKUP(Y$24,Differentials,2,FALSE),FALSE) ->  | Z9: =VLOOKUP(Credits_PolicyYear_Input&'Calculation Links'!$J9,Differentials,HLOOKUP(Z$24,Differentials,2,FALSE),FALSE) ->  | AA9: =VLOOKUP(Credits_PolicyYear_Input&'Calculation Links'!$J9,Differentials,HLOOKUP(AA$24,Differentials,2,FALSE),FALSE) ->  | AB9: =VLOOKUP(Credits_PolicyYear_Input&'Calculation Links'!$J9,Differentials,HLOOKUP(AB$24,Differentials,2,FALSE),FALSE) ->  | AC9: =VLOOKUP(Credits_PolicyYear_Input&'Calculation Links'!$J9,Differentials,HLOOKUP(AC$24,Differentials,2,FALSE),FALSE) ->  | AD9: =VLOOKUP(Credits_PolicyYear_Input&'Calculation Links'!$J9,Differentials,HLOOKUP(AD$24,Differentials,2,FALSE),FALSE) ->  | AE9: =VLOOKUP(Credits_PolicyYear_Input&'Calculation Links'!$J9,Differentials,HLOOKUP(AE$24,Differentials,2,FALSE),FALSE) ->  | AF9: =VLOOKUP(Credits_PolicyYear_Input&'Calculation Links'!$J9,Differentials,HLOOKUP(AF$24,Differentials,2,FALSE),FALSE) ->  | AG9: =VLOOKUP(Credits_PolicyYear_Input&'Calculation Links'!$J9,Differentials,HLOOKUP(AG$24,Differentials,2,FALSE),FALSE) ->  | AH9: =VLOOKUP(Credits_PolicyYear_Input&'Calculation Links'!$J9,Differentials,HLOOKUP(AH$24,Differentials,2,FALSE),FALSE) ->  | AI9: =VLOOKUP(Credits_PolicyYear_Input&'Calculation Links'!$J9,Differentials,HLOOKUP(AI$24,Differentials,2,FALSE),FALSE) ->  | AJ9: R | AK9: R | AN9: Lake Hayes | AO9: Urban
A10: Shotover Country | B10: =VLOOKUP(Policy_Year_Input&'Calculation Links'!$A10,Standard_Contributions,HLOOKUP(B$4,Standard_Contributions,2,FALSE),FALSE) -> 4023 | C10: =VLOOKUP(Policy_Year_Input&'Calculation Links'!$A10,Standard_Contributions,HLOOKUP(C$4,Standard_Contributions,2,FALSE),FALSE) -> 1426 | D10: =VLOOKUP(Policy_Year_Input&'Calculation Links'!$A10,Standard_Contributions,HLOOKUP(D$4,Standard_Contributions,2,FALSE),FALSE) -> 0 | E10: =VLOOKUP(Policy_Year_Input&'Calculation Links'!$A10,Standard_Contributions,HLOOKUP(E$4,Standard_Contributions,2,FALSE),FALSE) -> 762 | F10: =VLOOKUP(Policy_Year_Input&'Calculation Links'!$A10,Standard_Contributions,HLOOKUP(F$4,Standard_Contributions,2,FALSE),FALSE) -> 1327 | G10: =VLOOKUP(Policy_Year_Input&'Calculation Links'!$A10,Standard_Contributions,HLOOKUP(G$4,Standard_Contributions,2,FALSE),FALSE) -> 5018 | H10: =VLOOKUP(Policy_Year_Input&'Calculation Links'!$A10,Standard_Contributions,HLOOKUP(H$4,Standard_Contributions,2,FALSE),FALSE) -> 0 | I10: Wakatipu | J10: Commercial | K10: =VLOOKUP(Policy_Year_Input&'Calculation Links'!$J10,Differentials,HLOOKUP(K$24,Differentials,2,FALSE),FALSE) -> 0.6 | L10: =VLOOKUP(Policy_Year_Input&'Calculation Links'!$J10,Differentials,HLOOKUP(L$24,Differentials,2,FALSE),FALSE) -> 0 | M10: =VLOOKUP(Policy_Year_Input&'Calculation Links'!$J10,Differentials,HLOOKUP(M$24,Differentials,2,FALSE),FALSE) -> 0.41 | N10: =VLOOKUP(Policy_Year_Input&'Calculation Links'!$J10,Differentials,HLOOKUP(N$24,Differentials,2,FALSE),FALSE) -> 0.38 | O10: =VLOOKUP(Policy_Year_Input&'Calculation Links'!$J10,Differentials,HLOOKUP(O$24,Differentials,2,FALSE),FALSE) -> 0.04 | P10: =VLOOKUP(Policy_Year_Input&'Calculation Links'!$J10,Differentials,HLOOKUP(P$24,Differentials,2,FALSE),FALSE) -> 0.06 | Q10: =VLOOKUP(Policy_Year_Input&'Calculation Links'!$J10,Differentials,HLOOKUP(Q$24,Differentials,2,FALSE),FALSE) -> 0 | R10: =VLOOKUP(Policy_Year_Input&'Calculation Links'!$J10,Differentials,HLOOKUP(R$24,Differentials,2,FALSE),FALSE) -> 0 | S10: =VLOOKUP(Policy_Year_Input&'Calculation Links'!$J10,Differentials,HLOOKUP(S$24,Differentials,2,FALSE),FALSE) -> 2.83 | T10: =VLOOKUP(Policy_Year_Input&'Calculation Links'!$J10,Differentials,HLOOKUP(T$24,Differentials,2,FALSE),FALSE) -> 2.71 | U10: =VLOOKUP(Policy_Year_Input&'Calculation Links'!$J10,Differentials,HLOOKUP(U$24,Differentials,2,FALSE),FALSE) -> 2.99 | V10: NR | W10: NR | X10: Commercial | Y10: =VLOOKUP(Credits_PolicyYear_Input&'Calculation Links'!$J10,Differentials,HLOOKUP(Y$24,Differentials,2,FALSE),FALSE) ->  | Z10: =VLOOKUP(Credits_PolicyYear_Input&'Calculation Links'!$J10,Differentials,HLOOKUP(Z$24,Differentials,2,FALSE),FALSE) ->  | AA10: =VLOOKUP(Credits_PolicyYear_Input&'Calculation Links'!$J10,Differentials,HLOOKUP(AA$24,Differentials,2,FALSE),FALSE) ->  | AB10: =VLOOKUP(Credits_PolicyYear_Input&'Calculation Links'!$J10,Differentials,HLOOKUP(AB$24,Differentials,2,FALSE),FALSE) ->  | AC10: =VLOOKUP(Credits_PolicyYear_Input&'Calculation Links'!$J10,Differentials,HLOOKUP(AC$24,Differentials,2,FALSE),FALSE) ->  | AD10: =VLOOKUP(Credits_PolicyYear_Input&'Calculation Links'!$J10,Differentials,HLOOKUP(AD$24,Differentials,2,FALSE),FALSE) ->  | AE10: =VLOOKUP(Credits_PolicyYear_Input&'Calculation Links'!$J10,Differentials,HLOOKUP(AE$24,Differentials,2,FALSE),FALSE) ->  | AF10: =VLOOKUP(Credits_PolicyYear_Input&'Calculation Links'!$J10,Differentials,HLOOKUP(AF$24,Differentials,2,FALSE),FALSE) ->  | AG10: =VLOOKUP(Credits_PolicyYear_Input&'Calculation Links'!$J10,Differentials,HLOOKUP(AG$24,Differentials,2,FALSE),FALSE) ->  | AH10: =VLOOKUP(Credits_PolicyYear_Input&'Calculation Links'!$J10,Differentials,HLOOKUP(AH$24,Differentials,2,FALSE),FALSE) ->  | AI10: =VLOOKUP(Credits_PolicyYear_Input&'Calculation Links'!$J10,Differentials,HLOOKUP(AI$24,Differentials,2,FALSE),FALSE) ->  | AJ10: NR | AK10: NR | AN10: Shotover Country | AO10: Urban
A11: Arthurs Point | B11: =VLOOKUP(Policy_Year_Input&'Calculation Links'!$A11,Standard_Contributions,HLOOKUP(B$4,Standard_Contributions,2,FALSE),FALSE) -> 2813 | C11: =VLOOKUP(Policy_Year_Input&'Calculation Links'!$A11,Standard_Contributions,HLOOKUP(C$4,Standard_Contributions,2,FALSE),FALSE) -> 2279 | D11: =VLOOKUP(Policy_Year_Input&'Calculation Links'!$A11,Standard_Contributions,HLOOKUP(D$4,Standard_Contributions,2,FALSE),FALSE) -> 0 | E11: =VLOOKUP(Policy_Year_Input&'Calculation Links'!$A11,Standard_Contributions,HLOOKUP(E$4,Standard_Contributions,2,FALSE),FALSE) -> 762 | F11: =VLOOKUP(Policy_Year_Input&'Calculation Links'!$A11,Standard_Contributions,HLOOKUP(F$4,Standard_Contributions,2,FALSE),FALSE) -> 1327 | G11: =VLOOKUP(Policy_Year_Input&'Calculation Links'!$A11,Standard_Contributions,HLOOKUP(G$4,Standard_Contributions,2,FALSE),FALSE) -> 5018 | H11: =VLOOKUP(Policy_Year_Input&'Calculation Links'!$A11,Standard_Contributions,HLOOKUP(H$4,Standard_Contributions,2,FALSE),FALSE) -> 0 | I11: Wakatipu | J11: Childcare Centre | K11: =VLOOKUP(Policy_Year_Input&'Calculation Links'!$J11,Differentials,HLOOKUP(K$24,Differentials,2,FALSE),FALSE) -> 0.63 | L11: =VLOOKUP(Policy_Year_Input&'Calculation Links'!$J11,Differentials,HLOOKUP(L$24,Differentials,2,FALSE),FALSE) -> 0 | M11: =VLOOKUP(Policy_Year_Input&'Calculation Links'!$J11,Differentials,HLOOKUP(M$24,Differentials,2,FALSE),FALSE) -> 0.77 | N11: =VLOOKUP(Policy_Year_Input&'Calculation Links'!$J11,Differentials,HLOOKUP(N$24,Differentials,2,FALSE),FALSE) -> 0.38 | O11: =VLOOKUP(Policy_Year_Input&'Calculation Links'!$J11,Differentials,HLOOKUP(O$24,Differentials,2,FALSE),FALSE) -> 0.04 | P11: =VLOOKUP(Policy_Year_Input&'Calculation Links'!$J11,Differentials,HLOOKUP(P$24,Differentials,2,FALSE),FALSE) -> 0.06 | Q11: =VLOOKUP(Policy_Year_Input&'Calculation Links'!$J11,Differentials,HLOOKUP(Q$24,Differentials,2,FALSE),FALSE) -> 0 | R11: =VLOOKUP(Policy_Year_Input&'Calculation Links'!$J11,Differentials,HLOOKUP(R$24,Differentials,2,FALSE),FALSE) -> 0 | S11: =VLOOKUP(Policy_Year_Input&'Calculation Links'!$J11,Differentials,HLOOKUP(S$24,Differentials,2,FALSE),FALSE) -> 4.29 | T11: =VLOOKUP(Policy_Year_Input&'Calculation Links'!$J11,Differentials,HLOOKUP(T$24,Differentials,2,FALSE),FALSE) -> 4.29 | U11: =VLOOKUP(Policy_Year_Input&'Calculation Links'!$J11,Differentials,HLOOKUP(U$24,Differentials,2,FALSE),FALSE) -> 4.29 | V11: NR | W11: NR | X11: Childcare Centre | Y11: =VLOOKUP(Credits_PolicyYear_Input&'Calculation Links'!$J11,Differentials,HLOOKUP(Y$24,Differentials,2,FALSE),FALSE) ->  | Z11: =VLOOKUP(Credits_PolicyYear_Input&'Calculation Links'!$J11,Differentials,HLOOKUP(Z$24,Differentials,2,FALSE),FALSE) ->  | AA11: =VLOOKUP(Credits_PolicyYear_Input&'Calculation Links'!$J11,Differentials,HLOOKUP(AA$24,Differentials,2,FALSE),FALSE) ->  | AB11: =VLOOKUP(Credits_PolicyYear_Input&'Calculation Links'!$J11,Differentials,HLOOKUP(AB$24,Differentials,2,FALSE),FALSE) ->  | AC11: =VLOOKUP(Credits_PolicyYear_Input&'Calculation Links'!$J11,Differentials,HLOOKUP(AC$24,Differentials,2,FALSE),FALSE) ->  | AD11: =VLOOKUP(Credits_PolicyYear_Input&'Calculation Links'!$J11,Differentials,HLOOKUP(AD$24,Differentials,2,FALSE),FALSE) ->  | AE11: =VLOOKUP(Credits_PolicyYear_Input&'Calculation Links'!$J11,Differentials,HLOOKUP(AE$24,Differentials,2,FALSE),FALSE) ->  | AF11: =VLOOKUP(Credits_PolicyYear_Input&'Calculation Links'!$J11,Differentials,HLOOKUP(AF$24,Differentials,2,FALSE),FALSE) ->  | AG11: =VLOOKUP(Credits_PolicyYear_Input&'Calculation Links'!$J11,Differentials,HLOOKUP(AG$24,Differentials,2,FALSE),FALSE) ->  | AH11: =VLOOKUP(Credits_PolicyYear_Input&'Calculation Links'!$J11,Differentials,HLOOKUP(AH$24,Differentials,2,FALSE),FALSE) ->  | AI11: =VLOOKUP(Credits_PolicyYear_Input&'Calculation Links'!$J11,Differentials,HLOOKUP(AI$24,Differentials,2,FALSE),FALSE) ->  | AJ11: NR | AK11: NR | AN11: Arthurs Point | AO11: Urban
A12: Kingston | B12: =VLOOKUP(Policy_Year_Input&'Calculation Links'!$A12,Standard_Contributions,HLOOKUP(B$4,Standard_Contributions,2,FALSE),FALSE) -> 8423 | C12: =VLOOKUP(Policy_Year_Input&'Calculation Links'!$A12,Standard_Contributions,HLOOKUP(C$4,Standard_Contributions,2,FALSE),FALSE) -> 22616 | D12: =VLOOKUP(Policy_Year_Input&'Calculation Links'!$A12,Standard_Contributions,HLOOKUP(D$4,Standard_Contributions,2,FALSE),FALSE) -> 5824 | E12: =VLOOKUP(Policy_Year_Input&'Calculation Links'!$A12,Standard_Contributions,HLOOKUP(E$4,Standard_Contributions,2,FALSE),FALSE) -> 762 | F12: =VLOOKUP(Policy_Year_Input&'Calculation Links'!$A12,Standard_Contributions,HLOOKUP(F$4,Standard_Contributions,2,FALSE),FALSE) -> 1327 | G12: =VLOOKUP(Policy_Year_Input&'Calculation Links'!$A12,Standard_Contributions,HLOOKUP(G$4,Standard_Contributions,2,FALSE),FALSE) -> 5018 | H12: =VLOOKUP(Policy_Year_Input&'Calculation Links'!$A12,Standard_Contributions,HLOOKUP(H$4,Standard_Contributions,2,FALSE),FALSE) -> 0 | I12: Wakatipu | J12: Industrial | K12: =VLOOKUP(Policy_Year_Input&'Calculation Links'!$J12,Differentials,HLOOKUP(K$24,Differentials,2,FALSE),FALSE) -> 0.6 | L12: =VLOOKUP(Policy_Year_Input&'Calculation Links'!$J12,Differentials,HLOOKUP(L$24,Differentials,2,FALSE),FALSE) -> 0 | M12: =VLOOKUP(Policy_Year_Input&'Calculation Links'!$J12,Differentials,HLOOKUP(M$24,Differentials,2,FALSE),FALSE) -> 0.41 | N12: =VLOOKUP(Policy_Year_Input&'Calculation Links'!$J12,Differentials,HLOOKUP(N$24,Differentials,2,FALSE),FALSE) -> 0.38 | O12: =VLOOKUP(Policy_Year_Input&'Calculation Links'!$J12,Differentials,HLOOKUP(O$24,Differentials,2,FALSE),FALSE) -> 0.04 | P12: =VLOOKUP(Policy_Year_Input&'Calculation Links'!$J12,Differentials,HLOOKUP(P$24,Differentials,2,FALSE),FALSE) -> 0.06 | Q12: =VLOOKUP(Policy_Year_Input&'Calculation Links'!$J12,Differentials,HLOOKUP(Q$24,Differentials,2,FALSE),FALSE) -> 0 | R12: =VLOOKUP(Policy_Year_Input&'Calculation Links'!$J12,Differentials,HLOOKUP(R$24,Differentials,2,FALSE),FALSE) -> 0 | S12: =VLOOKUP(Policy_Year_Input&'Calculation Links'!$J12,Differentials,HLOOKUP(S$24,Differentials,2,FALSE),FALSE) -> 0.94 | T12: =VLOOKUP(Policy_Year_Input&'Calculation Links'!$J12,Differentials,HLOOKUP(T$24,Differentials,2,FALSE),FALSE) -> 1.15 | U12: =VLOOKUP(Policy_Year_Input&'Calculation Links'!$J12,Differentials,HLOOKUP(U$24,Differentials,2,FALSE),FALSE) -> 0.88 | V12: NR | W12: NR | X12: Industrial | Y12: =VLOOKUP(Credits_PolicyYear_Input&'Calculation Links'!$J12,Differentials,HLOOKUP(Y$24,Differentials,2,FALSE),FALSE) ->  | Z12: =VLOOKUP(Credits_PolicyYear_Input&'Calculation Links'!$J12,Differentials,HLOOKUP(Z$24,Differentials,2,FALSE),FALSE) ->  | AA12: =VLOOKUP(Credits_PolicyYear_Input&'Calculation Links'!$J12,Differentials,HLOOKUP(AA$24,Differentials,2,FALSE),FALSE) ->  | AB12: =VLOOKUP(Credits_PolicyYear_Input&'Calculation Links'!$J12,Differentials,HLOOKUP(AB$24,Differentials,2,FALSE),FALSE) ->  | AC12: =VLOOKUP(Credits_PolicyYear_Input&'Calculation Links'!$J12,Differentials,HLOOKUP(AC$24,Differentials,2,FALSE),FALSE) ->  | AD12: =VLOOKUP(Credits_PolicyYear_Input&'Calculation Links'!$J12,Differentials,HLOOKUP(AD$24,Differentials,2,FALSE),FALSE) ->  | AE12: =VLOOKUP(Credits_PolicyYear_Input&'Calculation Links'!$J12,Differentials,HLOOKUP(AE$24,Differentials,2,FALSE),FALSE) ->  | AF12: =VLOOKUP(Credits_PolicyYear_Input&'Calculation Links'!$J12,Differentials,HLOOKUP(AF$24,Differentials,2,FALSE),FALSE) ->  | AG12: =VLOOKUP(Credits_PolicyYear_Input&'Calculation Links'!$J12,Differentials,HLOOKUP(AG$24,Differentials,2,FALSE),FALSE) ->  | AH12: =VLOOKUP(Credits_PolicyYear_Input&'Calculation Links'!$J12,Differentials,HLOOKUP(AH$24,Differentials,2,FALSE),FALSE) ->  | AI12: =VLOOKUP(Credits_PolicyYear_Input&'Calculation Links'!$J12,Differentials,HLOOKUP(AI$24,Differentials,2,FALSE),FALSE) ->  | AJ12: NR | AK12: NR | AN12: Kingston | AO12: Township
A13: Quail Rise | B13: =VLOOKUP(Policy_Year_Input&'Calculation Links'!$A13,Standard_Contributions,HLOOKUP(B$4,Standard_Contributions,2,FALSE),FALSE) -> 2836 | C13: =VLOOKUP(Policy_Year_Input&'Calculation Links'!$A13,Standard_Contributions,HLOOKUP(C$4,Standard_Contributions,2,FALSE),FALSE) -> 3025 | D13: =VLOOKUP(Policy_Year_Input&'Calculation Links'!$A13,Standard_Contributions,HLOOKUP(D$4,Standard_Contributions,2,FALSE),FALSE) -> 0 | E13: =VLOOKUP(Policy_Year_Input&'Calculation Links'!$A13,Standard_Contributions,HLOOKUP(E$4,Standard_Contributions,2,FALSE),FALSE) -> 762 | F13: =VLOOKUP(Policy_Year_Input&'Calculation Links'!$A13,Standard_Contributions,HLOOKUP(F$4,Standard_Contributions,2,FALSE),FALSE) -> 1327 | G13: =VLOOKUP(Policy_Year_Input&'Calculation Links'!$A13,Standard_Contributions,HLOOKUP(G$4,Standard_Contributions,2,FALSE),FALSE) -> 5018 | H13: =VLOOKUP(Policy_Year_Input&'Calculation Links'!$A13,Standard_Contributions,HLOOKUP(H$4,Standard_Contributions,2,FALSE),FALSE) -> 0 | I13: Wakatipu | J13: Country Dwelling | K13: =VLOOKUP(Policy_Year_Input&'Calculation Links'!$J13,Differentials,HLOOKUP(K$24,Differentials,2,FALSE),FALSE) -> 1 | L13: =VLOOKUP(Policy_Year_Input&'Calculation Links'!$J13,Differentials,HLOOKUP(L$24,Differentials,2,FALSE),FALSE) -> 0 | M13: =VLOOKUP(Policy_Year_Input&'Calculation Links'!$J13,Differentials,HLOOKUP(M$24,Differentials,2,FALSE),FALSE) -> 1 | N13: =VLOOKUP(Policy_Year_Input&'Calculation Links'!$J13,Differentials,HLOOKUP(N$24,Differentials,2,FALSE),FALSE) -> 1 | O13: =VLOOKUP(Policy_Year_Input&'Calculation Links'!$J13,Differentials,HLOOKUP(O$24,Differentials,2,FALSE),FALSE) -> 1 | P13: =VLOOKUP(Policy_Year_Input&'Calculation Links'!$J13,Differentials,HLOOKUP(P$24,Differentials,2,FALSE),FALSE) -> 1 | Q13: =VLOOKUP(Policy_Year_Input&'Calculation Links'!$J13,Differentials,HLOOKUP(Q$24,Differentials,2,FALSE),FALSE) -> 0.66 | R13: =VLOOKUP(Policy_Year_Input&'Calculation Links'!$J13,Differentials,HLOOKUP(R$24,Differentials,2,FALSE),FALSE) -> 0.66 | S13: =VLOOKUP(Policy_Year_Input&'Calculation Links'!$J13,Differentials,HLOOKUP(S$24,Differentials,2,FALSE),FALSE) -> 1 | T13: =VLOOKUP(Policy_Year_Input&'Calculation Links'!$J13,Differentials,HLOOKUP(T$24,Differentials,2,FALSE),FALSE) -> 1 | U13: =VLOOKUP(Policy_Year_Input&'Calculation Links'!$J13,Differentials,HLOOKUP(U$24,Differentials,2,FALSE),FALSE) -> 1 | V13: NR | W13: R | X13: Country Dwelling | Y13: =VLOOKUP(Credits_PolicyYear_Input&'Calculation Links'!$J13,Differentials,HLOOKUP(Y$24,Differentials,2,FALSE),FALSE) ->  | Z13: =VLOOKUP(Credits_PolicyYear_Input&'Calculation Links'!$J13,Differentials,HLOOKUP(Z$24,Differentials,2,FALSE),FALSE) ->  | AA13: =VLOOKUP(Credits_PolicyYear_Input&'Calculation Links'!$J13,Differentials,HLOOKUP(AA$24,Differentials,2,FALSE),FALSE) ->  | AB13: =VLOOKUP(Credits_PolicyYear_Input&'Calculation Links'!$J13,Differentials,HLOOKUP(AB$24,Differentials,2,FALSE),FALSE) ->  | AC13: =VLOOKUP(Credits_PolicyYear_Input&'Calculation Links'!$J13,Differentials,HLOOKUP(AC$24,Differentials,2,FALSE),FALSE) ->  | AD13: =VLOOKUP(Credits_PolicyYear_Input&'Calculation Links'!$J13,Differentials,HLOOKUP(AD$24,Differentials,2,FALSE),FALSE) ->  | AE13: =VLOOKUP(Credits_PolicyYear_Input&'Calculation Links'!$J13,Differentials,HLOOKUP(AE$24,Differentials,2,FALSE),FALSE) ->  | AF13: =VLOOKUP(Credits_PolicyYear_Input&'Calculation Links'!$J13,Differentials,HLOOKUP(AF$24,Differentials,2,FALSE),FALSE) ->  | AG13: =VLOOKUP(Credits_PolicyYear_Input&'Calculation Links'!$J13,Differentials,HLOOKUP(AG$24,Differentials,2,FALSE),FALSE) ->  | AH13: =VLOOKUP(Credits_PolicyYear_Input&'Calculation Links'!$J13,Differentials,HLOOKUP(AH$24,Differentials,2,FALSE),FALSE) ->  | AI13: =VLOOKUP(Credits_PolicyYear_Input&'Calculation Links'!$J13,Differentials,HLOOKUP(AI$24,Differentials,2,FALSE),FALSE) ->  | AJ13: R | AK13: R | AN13: Quail Rise | AO13: Urban
A14: Ladies Mile | B14: =VLOOKUP(Policy_Year_Input&'Calculation Links'!$A14,Standard_Contributions,HLOOKUP(B$4,Standard_Contributions,2,FALSE),FALSE) -> 5170 | C14: =VLOOKUP(Policy_Year_Input&'Calculation Links'!$A14,Standard_Contributions,HLOOKUP(C$4,Standard_Contributions,2,FALSE),FALSE) -> 3466 | D14: =VLOOKUP(Policy_Year_Input&'Calculation Links'!$A14,Standard_Contributions,HLOOKUP(D$4,Standard_Contributions,2,FALSE),FALSE) -> 2121 | E14: =VLOOKUP(Policy_Year_Input&'Calculation Links'!$A14,Standard_Contributions,HLOOKUP(E$4,Standard_Contributions,2,FALSE),FALSE) -> 762 | F14: =VLOOKUP(Policy_Year_Input&'Calculation Links'!$A14,Standard_Contributions,HLOOKUP(F$4,Standard_Contributions,2,FALSE),FALSE) -> 1327 | G14: =VLOOKUP(Policy_Year_Input&'Calculation Links'!$A14,Standard_Contributions,HLOOKUP(G$4,Standard_Contributions,2,FALSE),FALSE) -> 5018 | H14: =VLOOKUP(Policy_Year_Input&'Calculation Links'!$A14,Standard_Contributions,HLOOKUP(H$4,Standard_Contributions,2,FALSE),FALSE) -> 0 | I14: Wakatipu | J14: Country Dwelling Flat | K14: =ROUND(K6*K13,2) -> 0.71 | L14: =ROUND(L6*K13,2) -> 0 | M14: =ROUND(M6*M13,2) -> 0.71 | N14: 0.38 | O14: 0.71 | P14: 0.71 | Q14: 0.47 | R14: 0.47 | S14: 0.71 | T14: 0.71 | U14: 0.71 | V14: NR | W14: R | X14: Country Dwelling Flat | Y14: =ROUND(Y6*Y13,2) ->  | Z14: =ROUND(Z6*Y13,2) ->  | AA14: =ROUND(AA6*AA13,2) ->  | AH14: =ROUND(AH6*AH13,2) ->  | AI14: =ROUND(AI6*AI13,2) ->  | AJ14: R | AK14: R | AN14: Ladies Mile | AO14: Urban
A15: Wanaka | B15: =VLOOKUP(Policy_Year_Input&'Calculation Links'!$A15,Standard_Contributions,HLOOKUP(B$4,Standard_Contributions,2,FALSE),FALSE) -> 4788 | C15: =VLOOKUP(Policy_Year_Input&'Calculation Links'!$A15,Standard_Contributions,HLOOKUP(C$4,Standard_Contributions,2,FALSE),FALSE) -> 5032 | D15: =VLOOKUP(Policy_Year_Input&'Calculation Links'!$A15,Standard_Contributions,HLOOKUP(D$4,Standard_Contributions,2,FALSE),FALSE) -> 1866 | E15: =VLOOKUP(Policy_Year_Input&'Calculation Links'!$A15,Standard_Contributions,HLOOKUP(E$4,Standard_Contributions,2,FALSE),FALSE) -> 1197 | F15: =VLOOKUP(Policy_Year_Input&'Calculation Links'!$A15,Standard_Contributions,HLOOKUP(F$4,Standard_Contributions,2,FALSE),FALSE) -> 955 | G15: =VLOOKUP(Policy_Year_Input&'Calculation Links'!$A15,Standard_Contributions,HLOOKUP(G$4,Standard_Contributions,2,FALSE),FALSE) -> 1964 | H15: =VLOOKUP(Policy_Year_Input&'Calculation Links'!$A15,Standard_Contributions,HLOOKUP(H$4,Standard_Contributions,2,FALSE),FALSE) -> 0 | I15: =+$D$51 -> Wanaka | J15: Other | K15: =VLOOKUP(Policy_Year_Input&'Calculation Links'!$J15,Differentials,HLOOKUP(K$24,Differentials,2,FALSE),FALSE) -> 0 | L15: =VLOOKUP(Policy_Year_Input&'Calculation Links'!$J15,Differentials,HLOOKUP(L$24,Differentials,2,FALSE),FALSE) -> 0 | M15: =VLOOKUP(Policy_Year_Input&'Calculation Links'!$J15,Differentials,HLOOKUP(M$24,Differentials,2,FALSE),FALSE) -> 0 | N15: =VLOOKUP(Policy_Year_Input&'Calculation Links'!$J15,Differentials,HLOOKUP(N$24,Differentials,2,FALSE),FALSE) -> 0 | O15: =VLOOKUP(Policy_Year_Input&'Calculation Links'!$J15,Differentials,HLOOKUP(O$24,Differentials,2,FALSE),FALSE) -> 0 | P15: =VLOOKUP(Policy_Year_Input&'Calculation Links'!$J15,Differentials,HLOOKUP(P$24,Differentials,2,FALSE),FALSE) -> 0 | Q15: =VLOOKUP(Policy_Year_Input&'Calculation Links'!$J15,Differentials,HLOOKUP(Q$24,Differentials,2,FALSE),FALSE) -> 0 | R15: =VLOOKUP(Policy_Year_Input&'Calculation Links'!$J15,Differentials,HLOOKUP(R$24,Differentials,2,FALSE),FALSE) -> 0 | S15: =VLOOKUP(Policy_Year_Input&'Calculation Links'!$J15,Differentials,HLOOKUP(S$24,Differentials,2,FALSE),FALSE) -> 0 | T15: =VLOOKUP(Policy_Year_Input&'Calculation Links'!$J15,Differentials,HLOOKUP(T$24,Differentials,2,FALSE),FALSE) -> 0 | U15: =VLOOKUP(Policy_Year_Input&'Calculation Links'!$J15,Differentials,HLOOKUP(U$24,Differentials,2,FALSE),FALSE) -> 0 | V15: NR | W15: R | X15: Other | Y15: =VLOOKUP(Credits_PolicyYear_Input&'Calculation Links'!$J15,Differentials,HLOOKUP(Y$24,Differentials,2,FALSE),FALSE) ->  | Z15: =VLOOKUP(Credits_PolicyYear_Input&'Calculation Links'!$J15,Differentials,HLOOKUP(Z$24,Differentials,2,FALSE),FALSE) ->  | AA15: =VLOOKUP(Credits_PolicyYear_Input&'Calculation Links'!$J15,Differentials,HLOOKUP(AA$24,Differentials,2,FALSE),FALSE) ->  | AB15: =VLOOKUP(Credits_PolicyYear_Input&'Calculation Links'!$J15,Differentials,HLOOKUP(AB$24,Differentials,2,FALSE),FALSE) ->  | AC15: =VLOOKUP(Credits_PolicyYear_Input&'Calculation Links'!$J15,Differentials,HLOOKUP(AC$24,Differentials,2,FALSE),FALSE) ->  | AD15: =VLOOKUP(Credits_PolicyYear_Input&'Calculation Links'!$J15,Differentials,HLOOKUP(AD$24,Differentials,2,FALSE),FALSE) ->  | AE15: =VLOOKUP(Credits_PolicyYear_Input&'Calculation Links'!$J15,Differentials,HLOOKUP(AE$24,Differentials,2,FALSE),FALSE) ->  | AF15: =VLOOKUP(Credits_PolicyYear_Input&'Calculation Links'!$J15,Differentials,HLOOKUP(AF$24,Differentials,2,FALSE),FALSE) ->  | AG15: =VLOOKUP(Credits_PolicyYear_Input&'Calculation Links'!$J15,Differentials,HLOOKUP(AG$24,Differentials,2,FALSE),FALSE) ->  | AH15: =VLOOKUP(Credits_PolicyYear_Input&'Calculation Links'!$J15,Differentials,HLOOKUP(AH$24,Differentials,2,FALSE),FALSE) ->  | AI15: =VLOOKUP(Credits_PolicyYear_Input&'Calculation Links'!$J15,Differentials,HLOOKUP(AI$24,Differentials,2,FALSE),FALSE) ->  | AJ15: R | AK15: R | AN15: Wanaka | AO15: Urban
A16: Hawea | B16: =VLOOKUP(Policy_Year_Input&'Calculation Links'!$A16,Standard_Contributions,HLOOKUP(B$4,Standard_Contributions,2,FALSE),FALSE) -> 5150 | C16: =VLOOKUP(Policy_Year_Input&'Calculation Links'!$A16,Standard_Contributions,HLOOKUP(C$4,Standard_Contributions,2,FALSE),FALSE) -> 7474 | D16: =VLOOKUP(Policy_Year_Input&'Calculation Links'!$A16,Standard_Contributions,HLOOKUP(D$4,Standard_Contributions,2,FALSE),FALSE) -> 316 | E16: =VLOOKUP(Policy_Year_Input&'Calculation Links'!$A16,Standard_Contributions,HLOOKUP(E$4,Standard_Contributions,2,FALSE),FALSE) -> 1197 | F16: =VLOOKUP(Policy_Year_Input&'Calculation Links'!$A16,Standard_Contributions,HLOOKUP(F$4,Standard_Contributions,2,FALSE),FALSE) -> 955 | G16: =VLOOKUP(Policy_Year_Input&'Calculation Links'!$A16,Standard_Contributions,HLOOKUP(G$4,Standard_Contributions,2,FALSE),FALSE) -> 1964 | H16: =VLOOKUP(Policy_Year_Input&'Calculation Links'!$A16,Standard_Contributions,HLOOKUP(H$4,Standard_Contributions,2,FALSE),FALSE) -> 0 | I16: =+$D$51 -> Wanaka | J16: CBD Accommodation | K16: =VLOOKUP(Policy_Year_Input&'Calculation Links'!$J16,Differentials,HLOOKUP(K$24,Differentials,2,FALSE),FALSE) -> 0.9 | L16: =VLOOKUP(Policy_Year_Input&'Calculation Links'!$J16,Differentials,HLOOKUP(L$24,Differentials,2,FALSE),FALSE) -> 0 | M16: =VLOOKUP(Policy_Year_Input&'Calculation Links'!$J16,Differentials,HLOOKUP(M$24,Differentials,2,FALSE),FALSE) -> 0.49 | N16: =VLOOKUP(Policy_Year_Input&'Calculation Links'!$J16,Differentials,HLOOKUP(N$24,Differentials,2,FALSE),FALSE) -> 0.38 | O16: =VLOOKUP(Policy_Year_Input&'Calculation Links'!$J16,Differentials,HLOOKUP(O$24,Differentials,2,FALSE),FALSE) -> 0.89 | P16: =VLOOKUP(Policy_Year_Input&'Calculation Links'!$J16,Differentials,HLOOKUP(P$24,Differentials,2,FALSE),FALSE) -> 1.71 | Q16: =VLOOKUP(Policy_Year_Input&'Calculation Links'!$J16,Differentials,HLOOKUP(Q$24,Differentials,2,FALSE),FALSE) -> 0.89 | R16: =VLOOKUP(Policy_Year_Input&'Calculation Links'!$J16,Differentials,HLOOKUP(R$24,Differentials,2,FALSE),FALSE) -> 1.71 | S16: =VLOOKUP(Policy_Year_Input&'Calculation Links'!$J16,Differentials,HLOOKUP(S$24,Differentials,2,FALSE),FALSE) -> 1.88 | T16: =VLOOKUP(Policy_Year_Input&'Calculation Links'!$J16,Differentials,HLOOKUP(T$24,Differentials,2,FALSE),FALSE) -> 2.25 | U16: =VLOOKUP(Policy_Year_Input&'Calculation Links'!$J16,Differentials,HLOOKUP(U$24,Differentials,2,FALSE),FALSE) -> 0 | V16: NR | W16: R | X16: CBD Accommodation | Y16: =VLOOKUP(Credits_PolicyYear_Input&'Calculation Links'!$J16,Differentials,HLOOKUP(Y$24,Differentials,2,FALSE),FALSE) ->  | Z16: =VLOOKUP(Credits_PolicyYear_Input&'Calculation Links'!$J16,Differentials,HLOOKUP(Z$24,Differentials,2,FALSE),FALSE) ->  | AA16: =VLOOKUP(Credits_PolicyYear_Input&'Calculation Links'!$J16,Differentials,HLOOKUP(AA$24,Differentials,2,FALSE),FALSE) ->  | AB16: =VLOOKUP(Credits_PolicyYear_Input&'Calculation Links'!$J16,Differentials,HLOOKUP(AB$24,Differentials,2,FALSE),FALSE) ->  | AC16: =VLOOKUP(Credits_PolicyYear_Input&'Calculation Links'!$J16,Differentials,HLOOKUP(AC$24,Differentials,2,FALSE),FALSE) ->  | AD16: =VLOOKUP(Credits_PolicyYear_Input&'Calculation Links'!$J16,Differentials,HLOOKUP(AD$24,Differentials,2,FALSE),FALSE) ->  | AE16: =VLOOKUP(Credits_PolicyYear_Input&'Calculation Links'!$J16,Differentials,HLOOKUP(AE$24,Differentials,2,FALSE),FALSE) ->  | AF16: =VLOOKUP(Credits_PolicyYear_Input&'Calculation Links'!$J16,Differentials,HLOOKUP(AF$24,Differentials,2,FALSE),FALSE) ->  | AG16: =VLOOKUP(Credits_PolicyYear_Input&'Calculation Links'!$J16,Differentials,HLOOKUP(AG$24,Differentials,2,FALSE),FALSE) ->  | AH16: =VLOOKUP(Credits_PolicyYear_Input&'Calculation Links'!$J16,Differentials,HLOOKUP(AH$24,Differentials,2,FALSE),FALSE) ->  | AI16: =VLOOKUP(Credits_PolicyYear_Input&'Calculation Links'!$J16,Differentials,HLOOKUP(AI$24,Differentials,2,FALSE),FALSE) ->  | AJ16: R | AK16: R | AN16: Hawea | AO16: Township
A17: Albert Town | B17: =VLOOKUP(Policy_Year_Input&'Calculation Links'!$A17,Standard_Contributions,HLOOKUP(B$4,Standard_Contributions,2,FALSE),FALSE) -> 4788 | C17: =VLOOKUP(Policy_Year_Input&'Calculation Links'!$A17,Standard_Contributions,HLOOKUP(C$4,Standard_Contributions,2,FALSE),FALSE) -> 5032 | D17: =VLOOKUP(Policy_Year_Input&'Calculation Links'!$A17,Standard_Contributions,HLOOKUP(D$4,Standard_Contributions,2,FALSE),FALSE) -> 583 | E17: =VLOOKUP(Policy_Year_Input&'Calculation Links'!$A17,Standard_Contributions,HLOOKUP(E$4,Standard_Contributions,2,FALSE),FALSE) -> 1197 | F17: =VLOOKUP(Policy_Year_Input&'Calculation Links'!$A17,Standard_Contributions,HLOOKUP(F$4,Standard_Contributions,2,FALSE),FALSE) -> 955 | G17: =VLOOKUP(Policy_Year_Input&'Calculation Links'!$A17,Standard_Contributions,HLOOKUP(G$4,Standard_Contributions,2,FALSE),FALSE) -> 1964 | H17: =VLOOKUP(Policy_Year_Input&'Calculation Links'!$A17,Standard_Contributions,HLOOKUP(H$4,Standard_Contributions,2,FALSE),FALSE) -> 0 | I17: =+$D$51 -> Wanaka | J17: CBD Commercial | K17: =VLOOKUP(Policy_Year_Input&'Calculation Links'!$J17,Differentials,HLOOKUP(K$24,Differentials,2,FALSE),FALSE) -> 0.6 | L17: =VLOOKUP(Policy_Year_Input&'Calculation Links'!$J17,Differentials,HLOOKUP(L$24,Differentials,2,FALSE),FALSE) -> 0 | M17: =VLOOKUP(Policy_Year_Input&'Calculation Links'!$J17,Differentials,HLOOKUP(M$24,Differentials,2,FALSE),FALSE) -> 0.41 | N17: =VLOOKUP(Policy_Year_Input&'Calculation Links'!$J17,Differentials,HLOOKUP(N$24,Differentials,2,FALSE),FALSE) -> 0.38 | O17: =VLOOKUP(Policy_Year_Input&'Calculation Links'!$J17,Differentials,HLOOKUP(O$24,Differentials,2,FALSE),FALSE) -> 0.04 | P17: =VLOOKUP(Policy_Year_Input&'Calculation Links'!$J17,Differentials,HLOOKUP(P$24,Differentials,2,FALSE),FALSE) -> 0.06 | Q17: =VLOOKUP(Policy_Year_Input&'Calculation Links'!$J17,Differentials,HLOOKUP(Q$24,Differentials,2,FALSE),FALSE) -> 0 | R17: =VLOOKUP(Policy_Year_Input&'Calculation Links'!$J17,Differentials,HLOOKUP(R$24,Differentials,2,FALSE),FALSE) -> 0 | S17: =VLOOKUP(Policy_Year_Input&'Calculation Links'!$J17,Differentials,HLOOKUP(S$24,Differentials,2,FALSE),FALSE) -> 2.83 | T17: =VLOOKUP(Policy_Year_Input&'Calculation Links'!$J17,Differentials,HLOOKUP(T$24,Differentials,2,FALSE),FALSE) -> 2.71 | U17: =VLOOKUP(Policy_Year_Input&'Calculation Links'!$J17,Differentials,HLOOKUP(U$24,Differentials,2,FALSE),FALSE) -> 0 | V17: NR | W17: NR | X17: CBD Commercial | Y17: =VLOOKUP(Credits_PolicyYear_Input&'Calculation Links'!$J17,Differentials,HLOOKUP(Y$24,Differentials,2,FALSE),FALSE) ->  | Z17: =VLOOKUP(Credits_PolicyYear_Input&'Calculation Links'!$J17,Differentials,HLOOKUP(Z$24,Differentials,2,FALSE),FALSE) ->  | AA17: =VLOOKUP(Credits_PolicyYear_Input&'Calculation Links'!$J17,Differentials,HLOOKUP(AA$24,Differentials,2,FALSE),FALSE) ->  | AB17: =VLOOKUP(Credits_PolicyYear_Input&'Calculation Links'!$J17,Differentials,HLOOKUP(AB$24,Differentials,2,FALSE),FALSE) ->  | AC17: =VLOOKUP(Credits_PolicyYear_Input&'Calculation Links'!$J17,Differentials,HLOOKUP(AC$24,Differentials,2,FALSE),FALSE) ->  | AD17: =VLOOKUP(Credits_PolicyYear_Input&'Calculation Links'!$J17,Differentials,HLOOKUP(AD$24,Differentials,2,FALSE),FALSE) ->  | AE17: =VLOOKUP(Credits_PolicyYear_Input&'Calculation Links'!$J17,Differentials,HLOOKUP(AE$24,Differentials,2,FALSE),FALSE) ->  | AF17: =VLOOKUP(Credits_PolicyYear_Input&'Calculation Links'!$J17,Differentials,HLOOKUP(AF$24,Differentials,2,FALSE),FALSE) ->  | AG17: =VLOOKUP(Credits_PolicyYear_Input&'Calculation Links'!$J17,Differentials,HLOOKUP(AG$24,Differentials,2,FALSE),FALSE) ->  | AH17: =VLOOKUP(Credits_PolicyYear_Input&'Calculation Links'!$J17,Differentials,HLOOKUP(AH$24,Differentials,2,FALSE),FALSE) ->  | AI17: =VLOOKUP(Credits_PolicyYear_Input&'Calculation Links'!$J17,Differentials,HLOOKUP(AI$24,Differentials,2,FALSE),FALSE) ->  | AJ17: NR | AK17: NR | AN17: Albert Town | AO17: Urban
A18: Luggate | B18: =VLOOKUP(Policy_Year_Input&'Calculation Links'!$A18,Standard_Contributions,HLOOKUP(B$4,Standard_Contributions,2,FALSE),FALSE) -> 4845 | C18: =VLOOKUP(Policy_Year_Input&'Calculation Links'!$A18,Standard_Contributions,HLOOKUP(C$4,Standard_Contributions,2,FALSE),FALSE) -> 5032 | D18: =VLOOKUP(Policy_Year_Input&'Calculation Links'!$A18,Standard_Contributions,HLOOKUP(D$4,Standard_Contributions,2,FALSE),FALSE) -> 1120 | E18: =VLOOKUP(Policy_Year_Input&'Calculation Links'!$A18,Standard_Contributions,HLOOKUP(E$4,Standard_Contributions,2,FALSE),FALSE) -> 1197 | F18: =VLOOKUP(Policy_Year_Input&'Calculation Links'!$A18,Standard_Contributions,HLOOKUP(F$4,Standard_Contributions,2,FALSE),FALSE) -> 955 | G18: =VLOOKUP(Policy_Year_Input&'Calculation Links'!$A18,Standard_Contributions,HLOOKUP(G$4,Standard_Contributions,2,FALSE),FALSE) -> 1964 | H18: =VLOOKUP(Policy_Year_Input&'Calculation Links'!$A18,Standard_Contributions,HLOOKUP(H$4,Standard_Contributions,2,FALSE),FALSE) -> 0 | I18: =+$D$51 -> Wanaka | J18: Mixed Use Accommodation | K18: =VLOOKUP(Policy_Year_Input&'Calculation Links'!$J18,Differentials,HLOOKUP(K$24,Differentials,2,FALSE),FALSE) -> 0.76 | L18: =VLOOKUP(Policy_Year_Input&'Calculation Links'!$J18,Differentials,HLOOKUP(L$24,Differentials,2,FALSE),FALSE) -> 0 | M18: =VLOOKUP(Policy_Year_Input&'Calculation Links'!$J18,Differentials,HLOOKUP(M$24,Differentials,2,FALSE),FALSE) -> 0.66 | N18: =VLOOKUP(Policy_Year_Input&'Calculation Links'!$J18,Differentials,HLOOKUP(N$24,Differentials,2,FALSE),FALSE) -> 0.38 | O18: =VLOOKUP(Policy_Year_Input&'Calculation Links'!$J18,Differentials,HLOOKUP(O$24,Differentials,2,FALSE),FALSE) -> 0.97 | P18: =VLOOKUP(Policy_Year_Input&'Calculation Links'!$J18,Differentials,HLOOKUP(P$24,Differentials,2,FALSE),FALSE) -> 1.18 | Q18: =VLOOKUP(Policy_Year_Input&'Calculation Links'!$J18,Differentials,HLOOKUP(Q$24,Differentials,2,FALSE),FALSE) -> 0.97 | R18: =VLOOKUP(Policy_Year_Input&'Calculation Links'!$J18,Differentials,HLOOKUP(R$24,Differentials,2,FALSE),FALSE) -> 1.18 | S18: =VLOOKUP(Policy_Year_Input&'Calculation Links'!$J18,Differentials,HLOOKUP(S$24,Differentials,2,FALSE),FALSE) -> 0.89 | T18: =VLOOKUP(Policy_Year_Input&'Calculation Links'!$J18,Differentials,HLOOKUP(T$24,Differentials,2,FALSE),FALSE) -> 0.93 | U18: =VLOOKUP(Policy_Year_Input&'Calculation Links'!$J18,Differentials,HLOOKUP(U$24,Differentials,2,FALSE),FALSE) -> 1.09 | V18: NR | W18: R | X18: Mixed Use Accommodation | Y18: =VLOOKUP(Credits_PolicyYear_Input&'Calculation Links'!$J18,Differentials,HLOOKUP(Y$24,Differentials,2,FALSE),FALSE) ->  | Z18: =VLOOKUP(Credits_PolicyYear_Input&'Calculation Links'!$J18,Differentials,HLOOKUP(Z$24,Differentials,2,FALSE),FALSE) ->  | AA18: =VLOOKUP(Credits_PolicyYear_Input&'Calculation Links'!$J18,Differentials,HLOOKUP(AA$24,Differentials,2,FALSE),FALSE) ->  | AB18: =VLOOKUP(Credits_PolicyYear_Input&'Calculation Links'!$J18,Differentials,HLOOKUP(AB$24,Differentials,2,FALSE),FALSE) ->  | AC18: =VLOOKUP(Credits_PolicyYear_Input&'Calculation Links'!$J18,Differentials,HLOOKUP(AC$24,Differentials,2,FALSE),FALSE) ->  | AD18: =VLOOKUP(Credits_PolicyYear_Input&'Calculation Links'!$J18,Differentials,HLOOKUP(AD$24,Differentials,2,FALSE),FALSE) ->  | AE18: =VLOOKUP(Credits_PolicyYear_Input&'Calculation Links'!$J18,Differentials,HLOOKUP(AE$24,Differentials,2,FALSE),FALSE) ->  | AF18: =VLOOKUP(Credits_PolicyYear_Input&'Calculation Links'!$J18,Differentials,HLOOKUP(AF$24,Differentials,2,FALSE),FALSE) ->  | AG18: =VLOOKUP(Credits_PolicyYear_Input&'Calculation Links'!$J18,Differentials,HLOOKUP(AG$24,Differentials,2,FALSE),FALSE) ->  | AH18: =VLOOKUP(Credits_PolicyYear_Input&'Calculation Links'!$J18,Differentials,HLOOKUP(AH$24,Differentials,2,FALSE),FALSE) ->  | AI18: =VLOOKUP(Credits_PolicyYear_Input&'Calculation Links'!$J18,Differentials,HLOOKUP(AI$24,Differentials,2,FALSE),FALSE) ->  | AJ18: R | AK18: R | AN18: Luggate | AO18: Township
A19: Cardrona | B19: =VLOOKUP(Policy_Year_Input&'Calculation Links'!$A19,Standard_Contributions,HLOOKUP(B$4,Standard_Contributions,2,FALSE),FALSE) -> 2529 | C19: =VLOOKUP(Policy_Year_Input&'Calculation Links'!$A19,Standard_Contributions,HLOOKUP(C$4,Standard_Contributions,2,FALSE),FALSE) -> 7465 | D19: =VLOOKUP(Policy_Year_Input&'Calculation Links'!$A19,Standard_Contributions,HLOOKUP(D$4,Standard_Contributions,2,FALSE),FALSE) -> 0 | E19: =VLOOKUP(Policy_Year_Input&'Calculation Links'!$A19,Standard_Contributions,HLOOKUP(E$4,Standard_Contributions,2,FALSE),FALSE) -> 1197 | F19: =VLOOKUP(Policy_Year_Input&'Calculation Links'!$A19,Standard_Contributions,HLOOKUP(F$4,Standard_Contributions,2,FALSE),FALSE) -> 955 | G19: =VLOOKUP(Policy_Year_Input&'Calculation Links'!$A19,Standard_Contributions,HLOOKUP(G$4,Standard_Contributions,2,FALSE),FALSE) -> 1964 | H19: =VLOOKUP(Policy_Year_Input&'Calculation Links'!$A19,Standard_Contributions,HLOOKUP(H$4,Standard_Contributions,2,FALSE),FALSE) -> 0 | I19: =+$D$51 -> Wanaka | J19: Mixed Use Commercial | K19: =VLOOKUP(Policy_Year_Input&'Calculation Links'!$J19,Differentials,HLOOKUP(K$24,Differentials,2,FALSE),FALSE) -> 1 | L19: =VLOOKUP(Policy_Year_Input&'Calculation Links'!$J19,Differentials,HLOOKUP(L$24,Differentials,2,FALSE),FALSE) -> 0 | M19: =VLOOKUP(Policy_Year_Input&'Calculation Links'!$J19,Differentials,HLOOKUP(M$24,Differentials,2,FALSE),FALSE) -> 1 | N19: =VLOOKUP(Policy_Year_Input&'Calculation Links'!$J19,Differentials,HLOOKUP(N$24,Differentials,2,FALSE),FALSE) -> 0.38 | O19: =VLOOKUP(Policy_Year_Input&'Calculation Links'!$J19,Differentials,HLOOKUP(O$24,Differentials,2,FALSE),FALSE) -> 0.76 | P19: =VLOOKUP(Policy_Year_Input&'Calculation Links'!$J19,Differentials,HLOOKUP(P$24,Differentials,2,FALSE),FALSE) -> 0.76 | Q19: =VLOOKUP(Policy_Year_Input&'Calculation Links'!$J19,Differentials,HLOOKUP(Q$24,Differentials,2,FALSE),FALSE) -> 1 | R19: =VLOOKUP(Policy_Year_Input&'Calculation Links'!$J19,Differentials,HLOOKUP(R$24,Differentials,2,FALSE),FALSE) -> 1 | S19: =VLOOKUP(Policy_Year_Input&'Calculation Links'!$J19,Differentials,HLOOKUP(S$24,Differentials,2,FALSE),FALSE) -> 1.32 | T19: =VLOOKUP(Policy_Year_Input&'Calculation Links'!$J19,Differentials,HLOOKUP(T$24,Differentials,2,FALSE),FALSE) -> 1.46 | U19: =VLOOKUP(Policy_Year_Input&'Calculation Links'!$J19,Differentials,HLOOKUP(U$24,Differentials,2,FALSE),FALSE) -> 1.5 | V19: NR | W19: NR | X19: Mixed Use Commercial | Y19: =VLOOKUP(Credits_PolicyYear_Input&'Calculation Links'!$J19,Differentials,HLOOKUP(Y$24,Differentials,2,FALSE),FALSE) ->  | Z19: =VLOOKUP(Credits_PolicyYear_Input&'Calculation Links'!$J19,Differentials,HLOOKUP(Z$24,Differentials,2,FALSE),FALSE) ->  | AA19: =VLOOKUP(Credits_PolicyYear_Input&'Calculation Links'!$J19,Differentials,HLOOKUP(AA$24,Differentials,2,FALSE),FALSE) ->  | AB19: =VLOOKUP(Credits_PolicyYear_Input&'Calculation Links'!$J19,Differentials,HLOOKUP(AB$24,Differentials,2,FALSE),FALSE) ->  | AC19: =VLOOKUP(Credits_PolicyYear_Input&'Calculation Links'!$J19,Differentials,HLOOKUP(AC$24,Differentials,2,FALSE),FALSE) ->  | AD19: =VLOOKUP(Credits_PolicyYear_Input&'Calculation Links'!$J19,Differentials,HLOOKUP(AD$24,Differentials,2,FALSE),FALSE) ->  | AE19: =VLOOKUP(Credits_PolicyYear_Input&'Calculation Links'!$J19,Differentials,HLOOKUP(AE$24,Differentials,2,FALSE),FALSE) ->  | AF19: =VLOOKUP(Credits_PolicyYear_Input&'Calculation Links'!$J19,Differentials,HLOOKUP(AF$24,Differentials,2,FALSE),FALSE) ->  | AG19: =VLOOKUP(Credits_PolicyYear_Input&'Calculation Links'!$J19,Differentials,HLOOKUP(AG$24,Differentials,2,FALSE),FALSE) ->  | AH19: =VLOOKUP(Credits_PolicyYear_Input&'Calculation Links'!$J19,Differentials,HLOOKUP(AH$24,Differentials,2,FALSE),FALSE) ->  | AI19: =VLOOKUP(Credits_PolicyYear_Input&'Calculation Links'!$J19,Differentials,HLOOKUP(AI$24,Differentials,2,FALSE),FALSE) ->  | AJ19: NR | AK19: NR | AN19: Cardrona | AO19: Township
A20: Other Wakatipu | B20: =VLOOKUP(Policy_Year_Input&'Calculation Links'!$A20,Standard_Contributions,HLOOKUP(B$4,Standard_Contributions,2,FALSE),FALSE) -> 0 | C20: =VLOOKUP(Policy_Year_Input&'Calculation Links'!$A20,Standard_Contributions,HLOOKUP(C$4,Standard_Contributions,2,FALSE),FALSE) -> 0 | D20: =VLOOKUP(Policy_Year_Input&'Calculation Links'!$A20,Standard_Contributions,HLOOKUP(D$4,Standard_Contributions,2,FALSE),FALSE) -> 0 | E20: =VLOOKUP(Policy_Year_Input&'Calculation Links'!$A20,Standard_Contributions,HLOOKUP(E$4,Standard_Contributions,2,FALSE),FALSE) -> 762 | F20: =VLOOKUP(Policy_Year_Input&'Calculation Links'!$A20,Standard_Contributions,HLOOKUP(F$4,Standard_Contributions,2,FALSE),FALSE) -> 1327 | G20: =VLOOKUP(Policy_Year_Input&'Calculation Links'!$A20,Standard_Contributions,HLOOKUP(G$4,Standard_Contributions,2,FALSE),FALSE) -> 5018 | H20: =VLOOKUP(Policy_Year_Input&'Calculation Links'!$A20,Standard_Contributions,HLOOKUP(H$4,Standard_Contributions,2,FALSE),FALSE) -> 0 | I20: =+$D$50 -> Wakatipu | J20: Primary Industry | K20: =VLOOKUP(Policy_Year_Input&'Calculation Links'!$J20,Differentials,HLOOKUP(K$24,Differentials,2,FALSE),FALSE) -> 1 | L20: =VLOOKUP(Policy_Year_Input&'Calculation Links'!$J20,Differentials,HLOOKUP(L$24,Differentials,2,FALSE),FALSE) -> 0 | M20: =VLOOKUP(Policy_Year_Input&'Calculation Links'!$J20,Differentials,HLOOKUP(M$24,Differentials,2,FALSE),FALSE) -> 1 | N20: =VLOOKUP(Policy_Year_Input&'Calculation Links'!$J20,Differentials,HLOOKUP(N$24,Differentials,2,FALSE),FALSE) -> 1 | O20: =VLOOKUP(Policy_Year_Input&'Calculation Links'!$J20,Differentials,HLOOKUP(O$24,Differentials,2,FALSE),FALSE) -> 1 | P20: =VLOOKUP(Policy_Year_Input&'Calculation Links'!$J20,Differentials,HLOOKUP(P$24,Differentials,2,FALSE),FALSE) -> 1 | Q20: =VLOOKUP(Policy_Year_Input&'Calculation Links'!$J20,Differentials,HLOOKUP(Q$24,Differentials,2,FALSE),FALSE) -> 0.66 | R20: =VLOOKUP(Policy_Year_Input&'Calculation Links'!$J20,Differentials,HLOOKUP(R$24,Differentials,2,FALSE),FALSE) -> 0.66 | S20: =VLOOKUP(Policy_Year_Input&'Calculation Links'!$J20,Differentials,HLOOKUP(S$24,Differentials,2,FALSE),FALSE) -> 1 | T20: =VLOOKUP(Policy_Year_Input&'Calculation Links'!$J20,Differentials,HLOOKUP(T$24,Differentials,2,FALSE),FALSE) -> 1 | U20: =VLOOKUP(Policy_Year_Input&'Calculation Links'!$J20,Differentials,HLOOKUP(U$24,Differentials,2,FALSE),FALSE) -> 0 | V20: NR | W20: R | X20: Primary Industry | Y20: =VLOOKUP(Credits_PolicyYear_Input&'Calculation Links'!$J20,Differentials,HLOOKUP(Y$24,Differentials,2,FALSE),FALSE) ->  | Z20: =VLOOKUP(Credits_PolicyYear_Input&'Calculation Links'!$J20,Differentials,HLOOKUP(Z$24,Differentials,2,FALSE),FALSE) ->  | AA20: =VLOOKUP(Credits_PolicyYear_Input&'Calculation Links'!$J20,Differentials,HLOOKUP(AA$24,Differentials,2,FALSE),FALSE) ->  | AB20: =VLOOKUP(Credits_PolicyYear_Input&'Calculation Links'!$J20,Differentials,HLOOKUP(AB$24,Differentials,2,FALSE),FALSE) ->  | AC20: =VLOOKUP(Credits_PolicyYear_Input&'Calculation Links'!$J20,Differentials,HLOOKUP(AC$24,Differentials,2,FALSE),FALSE) ->  | AD20: =VLOOKUP(Credits_PolicyYear_Input&'Calculation Links'!$J20,Differentials,HLOOKUP(AD$24,Differentials,2,FALSE),FALSE) ->  | AE20: =VLOOKUP(Credits_PolicyYear_Input&'Calculation Links'!$J20,Differentials,HLOOKUP(AE$24,Differentials,2,FALSE),FALSE) ->  | AF20: =VLOOKUP(Credits_PolicyYear_Input&'Calculation Links'!$J20,Differentials,HLOOKUP(AF$24,Differentials,2,FALSE),FALSE) ->  | AG20: =VLOOKUP(Credits_PolicyYear_Input&'Calculation Links'!$J20,Differentials,HLOOKUP(AG$24,Differentials,2,FALSE),FALSE) ->  | AH20: =VLOOKUP(Credits_PolicyYear_Input&'Calculation Links'!$J20,Differentials,HLOOKUP(AH$24,Differentials,2,FALSE),FALSE) ->  | AI20: =VLOOKUP(Credits_PolicyYear_Input&'Calculation Links'!$J20,Differentials,HLOOKUP(AI$24,Differentials,2,FALSE),FALSE) ->  | AJ20: R | AK20: R | AN20: Other Wakatipu | AO20: Urban
A21: Other Wanaka | B21: =VLOOKUP(Policy_Year_Input&'Calculation Links'!$A21,Standard_Contributions,HLOOKUP(B$4,Standard_Contributions,2,FALSE),FALSE) -> 0 | C21: =VLOOKUP(Policy_Year_Input&'Calculation Links'!$A21,Standard_Contributions,HLOOKUP(C$4,Standard_Contributions,2,FALSE),FALSE) -> 0 | D21: =VLOOKUP(Policy_Year_Input&'Calculation Links'!$A21,Standard_Contributions,HLOOKUP(D$4,Standard_Contributions,2,FALSE),FALSE) -> 0 | E21: =VLOOKUP(Policy_Year_Input&'Calculation Links'!$A21,Standard_Contributions,HLOOKUP(E$4,Standard_Contributions,2,FALSE),FALSE) -> 1197 | F21: =VLOOKUP(Policy_Year_Input&'Calculation Links'!$A21,Standard_Contributions,HLOOKUP(F$4,Standard_Contributions,2,FALSE),FALSE) -> 955 | G21: =VLOOKUP(Policy_Year_Input&'Calculation Links'!$A21,Standard_Contributions,HLOOKUP(G$4,Standard_Contributions,2,FALSE),FALSE) -> 1964 | H21: =VLOOKUP(Policy_Year_Input&'Calculation Links'!$A21,Standard_Contributions,HLOOKUP(H$4,Standard_Contributions,2,FALSE),FALSE) -> 0 | I21: =+$D$51 -> Wanaka | J21: Accommodation - Rural | K21: =+K9 -> 0.9 | L21: =+L9 -> 0 | M21: =+M9 -> 0.49 | N21: =+N9 -> 0.38 | O21: =ROUND(O9*O13,2) -> 0.89 | P21: =ROUND(P9*P13,2) -> 1.71 | Q21: =ROUND(Q9*Q13,2) -> 0.59 | R21: =ROUND(R9*R13,2) -> 1.13 | S21: =+S9 -> 1.88 | T21: =+T9 -> 2.25 | U21: =+U9 -> 1.36 | V21: NR | W21: R | X21: Accommodation - Rural | Y21: =+Y9 ->  | Z21: =+Z9 ->  | AA21: =+AA9 ->  | AB21: =+AB9 ->  | AC21: =ROUND(AC9*AC13,2) ->  | AD21: =ROUND(AD9*AD13,2) ->  | AE21: =ROUND(AE9*AE13,2) ->  | AF21: =ROUND(AF9*AF13,2) ->  | AG21: =+AG9 ->  | AH21: =+AH9 ->  | AI21: =+AI9 ->  | AJ21: R | AK21: R | AN21: Other Wanaka | AO21: Urban
J22: Restaurant/Bar | K22: =VLOOKUP(Policy_Year_Input&'Calculation Links'!$J22,Differentials,HLOOKUP(K$24,Differentials,2,FALSE),FALSE) -> 1.42 | L22: =VLOOKUP(Policy_Year_Input&'Calculation Links'!$J22,Differentials,HLOOKUP(L$24,Differentials,2,FALSE),FALSE) -> 0 | M22: =VLOOKUP(Policy_Year_Input&'Calculation Links'!$J22,Differentials,HLOOKUP(M$24,Differentials,2,FALSE),FALSE) -> 1.34 | N22: =VLOOKUP(Policy_Year_Input&'Calculation Links'!$J22,Differentials,HLOOKUP(N$24,Differentials,2,FALSE),FALSE) -> 0.38 | O22: =VLOOKUP(Policy_Year_Input&'Calculation Links'!$J22,Differentials,HLOOKUP(O$24,Differentials,2,FALSE),FALSE) -> 0.04 | P22: =VLOOKUP(Policy_Year_Input&'Calculation Links'!$J22,Differentials,HLOOKUP(P$24,Differentials,2,FALSE),FALSE) -> 0.06 | Q22: =VLOOKUP(Policy_Year_Input&'Calculation Links'!$J22,Differentials,HLOOKUP(Q$24,Differentials,2,FALSE),FALSE) -> 0 | R22: =VLOOKUP(Policy_Year_Input&'Calculation Links'!$J22,Differentials,HLOOKUP(R$24,Differentials,2,FALSE),FALSE) -> 0 | S22: =VLOOKUP(Policy_Year_Input&'Calculation Links'!$J22,Differentials,HLOOKUP(S$24,Differentials,2,FALSE),FALSE) -> 2.83 | T22: =VLOOKUP(Policy_Year_Input&'Calculation Links'!$J22,Differentials,HLOOKUP(T$24,Differentials,2,FALSE),FALSE) -> 2.71 | U22: =VLOOKUP(Policy_Year_Input&'Calculation Links'!$J22,Differentials,HLOOKUP(U$24,Differentials,2,FALSE),FALSE) -> 2.99 | V22: NR | W22: NR | X22: Restaurant/Bar | Y22: =VLOOKUP(Credits_PolicyYear_Input&'Calculation Links'!$J22,Differentials,HLOOKUP(Y$24,Differentials,2,FALSE),FALSE) ->  | Z22: =VLOOKUP(Credits_PolicyYear_Input&'Calculation Links'!$J22,Differentials,HLOOKUP(Z$24,Differentials,2,FALSE),FALSE) ->  | AA22: =VLOOKUP(Credits_PolicyYear_Input&'Calculation Links'!$J22,Differentials,HLOOKUP(AA$24,Differentials,2,FALSE),FALSE) ->  | AB22: =VLOOKUP(Credits_PolicyYear_Input&'Calculation Links'!$J22,Differentials,HLOOKUP(AB$24,Differentials,2,FALSE),FALSE) ->  | AC22: =VLOOKUP(Credits_PolicyYear_Input&'Calculation Links'!$J22,Differentials,HLOOKUP(AC$24,Differentials,2,FALSE),FALSE) ->  | AD22: =VLOOKUP(Credits_PolicyYear_Input&'Calculation Links'!$J22,Differentials,HLOOKUP(AD$24,Differentials,2,FALSE),FALSE) ->  | AE22: =VLOOKUP(Credits_PolicyYear_Input&'Calculation Links'!$J22,Differentials,HLOOKUP(AE$24,Differentials,2,FALSE),FALSE) ->  | AF22: =VLOOKUP(Credits_PolicyYear_Input&'Calculation Links'!$J22,Differentials,HLOOKUP(AF$24,Differentials,2,FALSE),FALSE) ->  | AG22: =VLOOKUP(Credits_PolicyYear_Input&'Calculation Links'!$J22,Differentials,HLOOKUP(AG$24,Differentials,2,FALSE),FALSE) ->  | AH22: =VLOOKUP(Credits_PolicyYear_Input&'Calculation Links'!$J22,Differentials,HLOOKUP(AH$24,Differentials,2,FALSE),FALSE) ->  | AI22: =VLOOKUP(Credits_PolicyYear_Input&'Calculation Links'!$J22,Differentials,HLOOKUP(AI$24,Differentials,2,FALSE),FALSE) ->  | AJ22: NR | AK22: NR
J24: Land Use Differential Type | K24: =K3&K4 -> Water SupplyDwelling Equivalents per 100m² GFA | L24: =K3&L4 -> Water SupplyPlus Network Factor Dwelling Equivalents | M24: =M3&M4 -> WastewaterDwelling Equivalents per 100m² GFA | N24: =N3&N4 -> StormwaterDwelling Equivalents per 100m² Impervious Surface Area | O24: =O3&O4 -> Reserve Improvements & Community FacilitiesDwelling Equivalents per 100m² GFA for Wakatipu | P24: =O3&P4 -> Reserve Improvements & Community FacilitiesDwelling Equivalents per 100m² GFA for Wanaka | Q24: =Q3&Q4 -> Reserve LandDwelling Equivalents per 100m² GFA for Wakatipu | R24: =Q3&R4 -> Reserve LandDwelling Equivalents per 100m² GFA for Wanaka | S24: =S3&S4 -> RoadingDwelling Equivalents per 100m² GFA for Wakatipu | T24: =S3&T4 -> RoadingDwelling Equivalents per 100m² GFA for Wanaka | U24: =U3&U4 -> Roading - EARDwelling Equivalents per 100m² GFA for Wakatipu | X24: Land Use Differential Type | Y24: =Y3&Y4 -> Water SupplyDwelling Equivalents per 100m² GFA | Z24: =Y3&Z4 -> Water SupplyPlus Network Factor Dwelling Equivalents | AA24: =AA3&AA4 -> WastewaterDwelling Equivalents per 100m² GFA | AB24: =AB3&AB4 -> StormwaterDwelling Equivalents per 100m² Impervious Surface Area | AC24: =AC3&AC4 -> Reserve Improvements & Community FacilitiesDwelling Equivalents per 100m² GFA for Wakatipu | AD24: =AC3&AD4 -> Reserve Improvements & Community FacilitiesDwelling Equivalents per 100m² GFA for Wanaka | AE24: =AE3&AE4 -> Reserve LandDwelling Equivalents per 100m² GFA for Wakatipu | AF24: =AE3&AF4 -> Reserve LandDwelling Equivalents per 100m² GFA for Wanaka | AG24: =AG3&AG4 -> RoadingDwelling Equivalents per 100m² GFA for Wakatipu | AH24: =AG3&AH4 -> RoadingDwelling Equivalents per 100m² GFA for Wanaka | AI24: =AI3&AI4 -> Roading - EARDwelling Equivalents per 100m² GFA for Wakatipu
J25: Residential | K25: =VLOOKUP(Policy_Year_Input&'Calculation Links'!$J25,Differential_Type,HLOOKUP(K$24,Differential_Type,2,FALSE),FALSE) -> Unit | L25: =VLOOKUP(Policy_Year_Input&'Calculation Links'!$J25,Differential_Type,HLOOKUP(L$24,Differential_Type,2,FALSE),FALSE) -> Unit | M25: =VLOOKUP(Policy_Year_Input&'Calculation Links'!$J25,Differential_Type,HLOOKUP(M$24,Differential_Type,2,FALSE),FALSE) -> Unit | N25: =VLOOKUP(Policy_Year_Input&'Calculation Links'!$J25,Differential_Type,HLOOKUP(N$24,Differential_Type,2,FALSE),FALSE) -> Unit | O25: =VLOOKUP(Policy_Year_Input&'Calculation Links'!$J25,Differential_Type,HLOOKUP(O$24,Differential_Type,2,FALSE),FALSE) -> Unit | P25: =VLOOKUP(Policy_Year_Input&'Calculation Links'!$J25,Differential_Type,HLOOKUP(P$24,Differential_Type,2,FALSE),FALSE) -> Unit | Q25: =VLOOKUP(Policy_Year_Input&'Calculation Links'!$J25,Differential_Type,HLOOKUP(Q$24,Differential_Type,2,FALSE),FALSE) -> Unit | R25: =VLOOKUP(Policy_Year_Input&'Calculation Links'!$J25,Differential_Type,HLOOKUP(R$24,Differential_Type,2,FALSE),FALSE) -> Unit | S25: =VLOOKUP(Policy_Year_Input&'Calculation Links'!$J25,Differential_Type,HLOOKUP(S$24,Differential_Type,2,FALSE),FALSE) -> Unit | T25: =VLOOKUP(Policy_Year_Input&'Calculation Links'!$J25,Differential_Type,HLOOKUP(T$24,Differential_Type,2,FALSE),FALSE) -> Unit | U25: =VLOOKUP(Policy_Year_Input&'Calculation Links'!$J25,Differential_Type,HLOOKUP(U$24,Differential_Type,2,FALSE),FALSE) -> Unit | X25: Residential | Y25: =VLOOKUP(Credits_PolicyYear_Input&'Calculation Links'!$J25,Differential_Type,HLOOKUP(Y$24,Differential_Type,2,FALSE),FALSE) ->  | Z25: =VLOOKUP(Credits_PolicyYear_Input&'Calculation Links'!$J25,Differential_Type,HLOOKUP(Z$24,Differential_Type,2,FALSE),FALSE) ->  | AA25: =VLOOKUP(Credits_PolicyYear_Input&'Calculation Links'!$J25,Differential_Type,HLOOKUP(AA$24,Differential_Type,2,FALSE),FALSE) ->  | AB25: =VLOOKUP(Credits_PolicyYear_Input&'Calculation Links'!$J25,Differential_Type,HLOOKUP(AB$24,Differential_Type,2,FALSE),FALSE) ->  | AC25: =VLOOKUP(Credits_PolicyYear_Input&'Calculation Links'!$J25,Differential_Type,HLOOKUP(AC$24,Differential_Type,2,FALSE),FALSE) ->  | AD25: =VLOOKUP(Credits_PolicyYear_Input&'Calculation Links'!$J25,Differential_Type,HLOOKUP(AD$24,Differential_Type,2,FALSE),FALSE) ->  | AE25: =VLOOKUP(Credits_PolicyYear_Input&'Calculation Links'!$J25,Differential_Type,HLOOKUP(AE$24,Differential_Type,2,FALSE),FALSE) ->  | AF25: =VLOOKUP(Credits_PolicyYear_Input&'Calculation Links'!$J25,Differential_Type,HLOOKUP(AF$24,Differential_Type,2,FALSE),FALSE) ->  | AG25: =VLOOKUP(Credits_PolicyYear_Input&'Calculation Links'!$J25,Differential_Type,HLOOKUP(AG$24,Differential_Type,2,FALSE),FALSE) ->  | AH25: =VLOOKUP(Credits_PolicyYear_Input&'Calculation Links'!$J25,Differential_Type,HLOOKUP(AH$24,Differential_Type,2,FALSE),FALSE) ->  | AI25: =VLOOKUP(Credits_PolicyYear_Input&'Calculation Links'!$J25,Differential_Type,HLOOKUP(AI$24,Differential_Type,2,FALSE),FALSE) -> 
J26: Residential Flat | K26: =VLOOKUP(Policy_Year_Input&'Calculation Links'!$J26,Differential_Type,HLOOKUP(K$24,Differential_Type,2,FALSE),FALSE) -> GFA | L26: =VLOOKUP(Policy_Year_Input&'Calculation Links'!$J26,Differential_Type,HLOOKUP(L$24,Differential_Type,2,FALSE),FALSE) -> GFA | M26: =VLOOKUP(Policy_Year_Input&'Calculation Links'!$J26,Differential_Type,HLOOKUP(M$24,Differential_Type,2,FALSE),FALSE) -> GFA | N26: =VLOOKUP(Policy_Year_Input&'Calculation Links'!$J26,Differential_Type,HLOOKUP(N$24,Differential_Type,2,FALSE),FALSE) -> GFA | O26: =VLOOKUP(Policy_Year_Input&'Calculation Links'!$J26,Differential_Type,HLOOKUP(O$24,Differential_Type,2,FALSE),FALSE) -> GFA | P26: =VLOOKUP(Policy_Year_Input&'Calculation Links'!$J26,Differential_Type,HLOOKUP(P$24,Differential_Type,2,FALSE),FALSE) -> GFA | Q26: =VLOOKUP(Policy_Year_Input&'Calculation Links'!$J26,Differential_Type,HLOOKUP(Q$24,Differential_Type,2,FALSE),FALSE) -> GFA | R26: =VLOOKUP(Policy_Year_Input&'Calculation Links'!$J26,Differential_Type,HLOOKUP(R$24,Differential_Type,2,FALSE),FALSE) -> GFA | S26: =VLOOKUP(Policy_Year_Input&'Calculation Links'!$J26,Differential_Type,HLOOKUP(S$24,Differential_Type,2,FALSE),FALSE) -> GFA | T26: =VLOOKUP(Policy_Year_Input&'Calculation Links'!$J26,Differential_Type,HLOOKUP(T$24,Differential_Type,2,FALSE),FALSE) -> GFA | U26: =VLOOKUP(Policy_Year_Input&'Calculation Links'!$J26,Differential_Type,HLOOKUP(U$24,Differential_Type,2,FALSE),FALSE) -> GFA | X26: Residential Flat | Y26: =VLOOKUP(Credits_PolicyYear_Input&'Calculation Links'!$J26,Differential_Type,HLOOKUP(Y$24,Differential_Type,2,FALSE),FALSE) ->  | Z26: =VLOOKUP(Credits_PolicyYear_Input&'Calculation Links'!$J26,Differential_Type,HLOOKUP(Z$24,Differential_Type,2,FALSE),FALSE) ->  | AA26: =VLOOKUP(Credits_PolicyYear_Input&'Calculation Links'!$J26,Differential_Type,HLOOKUP(AA$24,Differential_Type,2,FALSE),FALSE) ->  | AB26: =VLOOKUP(Credits_PolicyYear_Input&'Calculation Links'!$J26,Differential_Type,HLOOKUP(AB$24,Differential_Type,2,FALSE),FALSE) ->  | AC26: =VLOOKUP(Credits_PolicyYear_Input&'Calculation Links'!$J26,Differential_Type,HLOOKUP(AC$24,Differential_Type,2,FALSE),FALSE) ->  | AD26: =VLOOKUP(Credits_PolicyYear_Input&'Calculation Links'!$J26,Differential_Type,HLOOKUP(AD$24,Differential_Type,2,FALSE),FALSE) ->  | AE26: =VLOOKUP(Credits_PolicyYear_Input&'Calculation Links'!$J26,Differential_Type,HLOOKUP(AE$24,Differential_Type,2,FALSE),FALSE) ->  | AF26: =VLOOKUP(Credits_PolicyYear_Input&'Calculation Links'!$J26,Differential_Type,HLOOKUP(AF$24,Differential_Type,2,FALSE),FALSE) ->  | AG26: =VLOOKUP(Credits_PolicyYear_Input&'Calculation Links'!$J26,Differential_Type,HLOOKUP(AG$24,Differential_Type,2,FALSE),FALSE) ->  | AH26: =VLOOKUP(Credits_PolicyYear_Input&'Calculation Links'!$J26,Differential_Type,HLOOKUP(AH$24,Differential_Type,2,FALSE),FALSE) ->  | AI26: =VLOOKUP(Credits_PolicyYear_Input&'Calculation Links'!$J26,Differential_Type,HLOOKUP(AI$24,Differential_Type,2,FALSE),FALSE) -> 
J27: Multi Unit Residential | K27: =VLOOKUP(Policy_Year_Input&'Calculation Links'!$J27,Differential_Type,HLOOKUP(K$24,Differential_Type,2,FALSE),FALSE) -> GFA | L27: =VLOOKUP(Policy_Year_Input&'Calculation Links'!$J27,Differential_Type,HLOOKUP(L$24,Differential_Type,2,FALSE),FALSE) -> GFA | M27: =VLOOKUP(Policy_Year_Input&'Calculation Links'!$J27,Differential_Type,HLOOKUP(M$24,Differential_Type,2,FALSE),FALSE) -> GFA | N27: =VLOOKUP(Policy_Year_Input&'Calculation Links'!$J27,Differential_Type,HLOOKUP(N$24,Differential_Type,2,FALSE),FALSE) -> GFA | O27: =VLOOKUP(Policy_Year_Input&'Calculation Links'!$J27,Differential_Type,HLOOKUP(O$24,Differential_Type,2,FALSE),FALSE) -> GFA | P27: =VLOOKUP(Policy_Year_Input&'Calculation Links'!$J27,Differential_Type,HLOOKUP(P$24,Differential_Type,2,FALSE),FALSE) -> GFA | Q27: =VLOOKUP(Policy_Year_Input&'Calculation Links'!$J27,Differential_Type,HLOOKUP(Q$24,Differential_Type,2,FALSE),FALSE) -> GFA | R27: =VLOOKUP(Policy_Year_Input&'Calculation Links'!$J27,Differential_Type,HLOOKUP(R$24,Differential_Type,2,FALSE),FALSE) -> GFA | S27: =VLOOKUP(Policy_Year_Input&'Calculation Links'!$J27,Differential_Type,HLOOKUP(S$24,Differential_Type,2,FALSE),FALSE) -> GFA | T27: =VLOOKUP(Policy_Year_Input&'Calculation Links'!$J27,Differential_Type,HLOOKUP(T$24,Differential_Type,2,FALSE),FALSE) -> GFA | U27: =VLOOKUP(Policy_Year_Input&'Calculation Links'!$J27,Differential_Type,HLOOKUP(U$24,Differential_Type,2,FALSE),FALSE) -> GFA | X27: Multi Unit Residential | Y27: =VLOOKUP(Credits_PolicyYear_Input&'Calculation Links'!$J27,Differential_Type,HLOOKUP(Y$24,Differential_Type,2,FALSE),FALSE) ->  | Z27: =VLOOKUP(Credits_PolicyYear_Input&'Calculation Links'!$J27,Differential_Type,HLOOKUP(Z$24,Differential_Type,2,FALSE),FALSE) ->  | AA27: =VLOOKUP(Credits_PolicyYear_Input&'Calculation Links'!$J27,Differential_Type,HLOOKUP(AA$24,Differential_Type,2,FALSE),FALSE) ->  | AB27: =VLOOKUP(Credits_PolicyYear_Input&'Calculation Links'!$J27,Differential_Type,HLOOKUP(AB$24,Differential_Type,2,FALSE),FALSE) ->  | AC27: =VLOOKUP(Credits_PolicyYear_Input&'Calculation Links'!$J27,Differential_Type,HLOOKUP(AC$24,Differential_Type,2,FALSE),FALSE) ->  | AD27: =VLOOKUP(Credits_PolicyYear_Input&'Calculation Links'!$J27,Differential_Type,HLOOKUP(AD$24,Differential_Type,2,FALSE),FALSE) ->  | AE27: =VLOOKUP(Credits_PolicyYear_Input&'Calculation Links'!$J27,Differential_Type,HLOOKUP(AE$24,Differential_Type,2,FALSE),FALSE) ->  | AF27: =VLOOKUP(Credits_PolicyYear_Input&'Calculation Links'!$J27,Differential_Type,HLOOKUP(AF$24,Differential_Type,2,FALSE),FALSE) ->  | AG27: =VLOOKUP(Credits_PolicyYear_Input&'Calculation Links'!$J27,Differential_Type,HLOOKUP(AG$24,Differential_Type,2,FALSE),FALSE) ->  | AH27: =VLOOKUP(Credits_PolicyYear_Input&'Calculation Links'!$J27,Differential_Type,HLOOKUP(AH$24,Differential_Type,2,FALSE),FALSE) ->  | AI27: =VLOOKUP(Credits_PolicyYear_Input&'Calculation Links'!$J27,Differential_Type,HLOOKUP(AI$24,Differential_Type,2,FALSE),FALSE) -> 
J28: Retirement units | K28: =VLOOKUP(Policy_Year_Input&'Calculation Links'!$J28,Differential_Type,HLOOKUP(K$24,Differential_Type,2,FALSE),FALSE) -> Unit | L28: =VLOOKUP(Policy_Year_Input&'Calculation Links'!$J28,Differential_Type,HLOOKUP(L$24,Differential_Type,2,FALSE),FALSE) -> Unit | M28: =VLOOKUP(Policy_Year_Input&'Calculation Links'!$J28,Differential_Type,HLOOKUP(M$24,Differential_Type,2,FALSE),FALSE) -> Unit | N28: =VLOOKUP(Policy_Year_Input&'Calculation Links'!$J28,Differential_Type,HLOOKUP(N$24,Differential_Type,2,FALSE),FALSE) -> GFA | O28: =VLOOKUP(Policy_Year_Input&'Calculation Links'!$J28,Differential_Type,HLOOKUP(O$24,Differential_Type,2,FALSE),FALSE) -> Unit | P28: =VLOOKUP(Policy_Year_Input&'Calculation Links'!$J28,Differential_Type,HLOOKUP(P$24,Differential_Type,2,FALSE),FALSE) -> Unit | Q28: =VLOOKUP(Policy_Year_Input&'Calculation Links'!$J28,Differential_Type,HLOOKUP(Q$24,Differential_Type,2,FALSE),FALSE) -> Unit | R28: =VLOOKUP(Policy_Year_Input&'Calculation Links'!$J28,Differential_Type,HLOOKUP(R$24,Differential_Type,2,FALSE),FALSE) -> Unit | S28: =VLOOKUP(Policy_Year_Input&'Calculation Links'!$J28,Differential_Type,HLOOKUP(S$24,Differential_Type,2,FALSE),FALSE) -> Unit | T28: =VLOOKUP(Policy_Year_Input&'Calculation Links'!$J28,Differential_Type,HLOOKUP(T$24,Differential_Type,2,FALSE),FALSE) -> Unit | U28: =VLOOKUP(Policy_Year_Input&'Calculation Links'!$J28,Differential_Type,HLOOKUP(U$24,Differential_Type,2,FALSE),FALSE) -> Unit | X28: Retirement units | Y28: =VLOOKUP(Credits_PolicyYear_Input&'Calculation Links'!$J28,Differential_Type,HLOOKUP(Y$24,Differential_Type,2,FALSE),FALSE) ->  | Z28: =VLOOKUP(Credits_PolicyYear_Input&'Calculation Links'!$J28,Differential_Type,HLOOKUP(Z$24,Differential_Type,2,FALSE),FALSE) ->  | AA28: =VLOOKUP(Credits_PolicyYear_Input&'Calculation Links'!$J28,Differential_Type,HLOOKUP(AA$24,Differential_Type,2,FALSE),FALSE) ->  | AB28: =VLOOKUP(Credits_PolicyYear_Input&'Calculation Links'!$J28,Differential_Type,HLOOKUP(AB$24,Differential_Type,2,FALSE),FALSE) ->  | AC28: =VLOOKUP(Credits_PolicyYear_Input&'Calculation Links'!$J28,Differential_Type,HLOOKUP(AC$24,Differential_Type,2,FALSE),FALSE) ->  | AD28: =VLOOKUP(Credits_PolicyYear_Input&'Calculation Links'!$J28,Differential_Type,HLOOKUP(AD$24,Differential_Type,2,FALSE),FALSE) ->  | AE28: =VLOOKUP(Credits_PolicyYear_Input&'Calculation Links'!$J28,Differential_Type,HLOOKUP(AE$24,Differential_Type,2,FALSE),FALSE) ->  | AF28: =VLOOKUP(Credits_PolicyYear_Input&'Calculation Links'!$J28,Differential_Type,HLOOKUP(AF$24,Differential_Type,2,FALSE),FALSE) ->  | AG28: =VLOOKUP(Credits_PolicyYear_Input&'Calculation Links'!$J28,Differential_Type,HLOOKUP(AG$24,Differential_Type,2,FALSE),FALSE) ->  | AH28: =VLOOKUP(Credits_PolicyYear_Input&'Calculation Links'!$J28,Differential_Type,HLOOKUP(AH$24,Differential_Type,2,FALSE),FALSE) ->  | AI28: =VLOOKUP(Credits_PolicyYear_Input&'Calculation Links'!$J28,Differential_Type,HLOOKUP(AI$24,Differential_Type,2,FALSE),FALSE) -> 
J29: Accommodation | K29: =VLOOKUP(Policy_Year_Input&'Calculation Links'!$J29,Differential_Type,HLOOKUP(K$24,Differential_Type,2,FALSE),FALSE) -> GFA | L29: =VLOOKUP(Policy_Year_Input&'Calculation Links'!$J29,Differential_Type,HLOOKUP(L$24,Differential_Type,2,FALSE),FALSE) -> GFA | M29: =VLOOKUP(Policy_Year_Input&'Calculation Links'!$J29,Differential_Type,HLOOKUP(M$24,Differential_Type,2,FALSE),FALSE) -> GFA | N29: =VLOOKUP(Policy_Year_Input&'Calculation Links'!$J29,Differential_Type,HLOOKUP(N$24,Differential_Type,2,FALSE),FALSE) -> GFA | O29: =VLOOKUP(Policy_Year_Input&'Calculation Links'!$J29,Differential_Type,HLOOKUP(O$24,Differential_Type,2,FALSE),FALSE) -> GFA | P29: =VLOOKUP(Policy_Year_Input&'Calculation Links'!$J29,Differential_Type,HLOOKUP(P$24,Differential_Type,2,FALSE),FALSE) -> GFA | Q29: =VLOOKUP(Policy_Year_Input&'Calculation Links'!$J29,Differential_Type,HLOOKUP(Q$24,Differential_Type,2,FALSE),FALSE) -> GFA | R29: =VLOOKUP(Policy_Year_Input&'Calculation Links'!$J29,Differential_Type,HLOOKUP(R$24,Differential_Type,2,FALSE),FALSE) -> GFA | S29: =VLOOKUP(Policy_Year_Input&'Calculation Links'!$J29,Differential_Type,HLOOKUP(S$24,Differential_Type,2,FALSE),FALSE) -> GFA | T29: =VLOOKUP(Policy_Year_Input&'Calculation Links'!$J29,Differential_Type,HLOOKUP(T$24,Differential_Type,2,FALSE),FALSE) -> GFA | U29: =VLOOKUP(Policy_Year_Input&'Calculation Links'!$J29,Differential_Type,HLOOKUP(U$24,Differential_Type,2,FALSE),FALSE) -> GFA | X29: Accommodation | Y29: =VLOOKUP(Credits_PolicyYear_Input&'Calculation Links'!$J29,Differential_Type,HLOOKUP(Y$24,Differential_Type,2,FALSE),FALSE) ->  | Z29: =VLOOKUP(Credits_PolicyYear_Input&'Calculation Links'!$J29,Differential_Type,HLOOKUP(Z$24,Differential_Type,2,FALSE),FALSE) ->  | AA29: =VLOOKUP(Credits_PolicyYear_Input&'Calculation Links'!$J29,Differential_Type,HLOOKUP(AA$24,Differential_Type,2,FALSE),FALSE) ->  | AB29: =VLOOKUP(Credits_PolicyYear_Input&'Calculation Links'!$J29,Differential_Type,HLOOKUP(AB$24,Differential_Type,2,FALSE),FALSE) ->  | AC29: =VLOOKUP(Credits_PolicyYear_Input&'Calculation Links'!$J29,Differential_Type,HLOOKUP(AC$24,Differential_Type,2,FALSE),FALSE) ->  | AD29: =VLOOKUP(Credits_PolicyYear_Input&'Calculation Links'!$J29,Differential_Type,HLOOKUP(AD$24,Differential_Type,2,FALSE),FALSE) ->  | AE29: =VLOOKUP(Credits_PolicyYear_Input&'Calculation Links'!$J29,Differential_Type,HLOOKUP(AE$24,Differential_Type,2,FALSE),FALSE) ->  | AF29: =VLOOKUP(Credits_PolicyYear_Input&'Calculation Links'!$J29,Differential_Type,HLOOKUP(AF$24,Differential_Type,2,FALSE),FALSE) ->  | AG29: =VLOOKUP(Credits_PolicyYear_Input&'Calculation Links'!$J29,Differential_Type,HLOOKUP(AG$24,Differential_Type,2,FALSE),FALSE) ->  | AH29: =VLOOKUP(Credits_PolicyYear_Input&'Calculation Links'!$J29,Differential_Type,HLOOKUP(AH$24,Differential_Type,2,FALSE),FALSE) ->  | AI29: =VLOOKUP(Credits_PolicyYear_Input&'Calculation Links'!$J29,Differential_Type,HLOOKUP(AI$24,Differential_Type,2,FALSE),FALSE) -> 
J30: Commercial | K30: =VLOOKUP(Policy_Year_Input&'Calculation Links'!$J30,Differential_Type,HLOOKUP(K$24,Differential_Type,2,FALSE),FALSE) -> GFA | L30: =VLOOKUP(Policy_Year_Input&'Calculation Links'!$J30,Differential_Type,HLOOKUP(L$24,Differential_Type,2,FALSE),FALSE) -> GFA | M30: =VLOOKUP(Policy_Year_Input&'Calculation Links'!$J30,Differential_Type,HLOOKUP(M$24,Differential_Type,2,FALSE),FALSE) -> GFA | N30: =VLOOKUP(Policy_Year_Input&'Calculation Links'!$J30,Differential_Type,HLOOKUP(N$24,Differential_Type,2,FALSE),FALSE) -> GFA | O30: =VLOOKUP(Policy_Year_Input&'Calculation Links'!$J30,Differential_Type,HLOOKUP(O$24,Differential_Type,2,FALSE),FALSE) -> GFA | P30: =VLOOKUP(Policy_Year_Input&'Calculation Links'!$J30,Differential_Type,HLOOKUP(P$24,Differential_Type,2,FALSE),FALSE) -> GFA | Q30: =VLOOKUP(Policy_Year_Input&'Calculation Links'!$J30,Differential_Type,HLOOKUP(Q$24,Differential_Type,2,FALSE),FALSE) -> GFA | R30: =VLOOKUP(Policy_Year_Input&'Calculation Links'!$J30,Differential_Type,HLOOKUP(R$24,Differential_Type,2,FALSE),FALSE) -> GFA | S30: =VLOOKUP(Policy_Year_Input&'Calculation Links'!$J30,Differential_Type,HLOOKUP(S$24,Differential_Type,2,FALSE),FALSE) -> GFA | T30: =VLOOKUP(Policy_Year_Input&'Calculation Links'!$J30,Differential_Type,HLOOKUP(T$24,Differential_Type,2,FALSE),FALSE) -> GFA | U30: =VLOOKUP(Policy_Year_Input&'Calculation Links'!$J30,Differential_Type,HLOOKUP(U$24,Differential_Type,2,FALSE),FALSE) -> GFA | X30: Commercial | Y30: =VLOOKUP(Credits_PolicyYear_Input&'Calculation Links'!$J30,Differential_Type,HLOOKUP(Y$24,Differential_Type,2,FALSE),FALSE) ->  | Z30: =VLOOKUP(Credits_PolicyYear_Input&'Calculation Links'!$J30,Differential_Type,HLOOKUP(Z$24,Differential_Type,2,FALSE),FALSE) ->  | AA30: =VLOOKUP(Credits_PolicyYear_Input&'Calculation Links'!$J30,Differential_Type,HLOOKUP(AA$24,Differential_Type,2,FALSE),FALSE) ->  | AB30: =VLOOKUP(Credits_PolicyYear_Input&'Calculation Links'!$J30,Differential_Type,HLOOKUP(AB$24,Differential_Type,2,FALSE),FALSE) ->  | AC30: =VLOOKUP(Credits_PolicyYear_Input&'Calculation Links'!$J30,Differential_Type,HLOOKUP(AC$24,Differential_Type,2,FALSE),FALSE) ->  | AD30: =VLOOKUP(Credits_PolicyYear_Input&'Calculation Links'!$J30,Differential_Type,HLOOKUP(AD$24,Differential_Type,2,FALSE),FALSE) ->  | AE30: =VLOOKUP(Credits_PolicyYear_Input&'Calculation Links'!$J30,Differential_Type,HLOOKUP(AE$24,Differential_Type,2,FALSE),FALSE) ->  | AF30: =VLOOKUP(Credits_PolicyYear_Input&'Calculation Links'!$J30,Differential_Type,HLOOKUP(AF$24,Differential_Type,2,FALSE),FALSE) ->  | AG30: =VLOOKUP(Credits_PolicyYear_Input&'Calculation Links'!$J30,Differential_Type,HLOOKUP(AG$24,Differential_Type,2,FALSE),FALSE) ->  | AH30: =VLOOKUP(Credits_PolicyYear_Input&'Calculation Links'!$J30,Differential_Type,HLOOKUP(AH$24,Differential_Type,2,FALSE),FALSE) ->  | AI30: =VLOOKUP(Credits_PolicyYear_Input&'Calculation Links'!$J30,Differential_Type,HLOOKUP(AI$24,Differential_Type,2,FALSE),FALSE) -> 
J31: Childcare Centre | K31: =VLOOKUP(Policy_Year_Input&'Calculation Links'!$J31,Differential_Type,HLOOKUP(K$24,Differential_Type,2,FALSE),FALSE) -> GFA | L31: =VLOOKUP(Policy_Year_Input&'Calculation Links'!$J31,Differential_Type,HLOOKUP(L$24,Differential_Type,2,FALSE),FALSE) -> GFA | M31: =VLOOKUP(Policy_Year_Input&'Calculation Links'!$J31,Differential_Type,HLOOKUP(M$24,Differential_Type,2,FALSE),FALSE) -> GFA | N31: =VLOOKUP(Policy_Year_Input&'Calculation Links'!$J31,Differential_Type,HLOOKUP(N$24,Differential_Type,2,FALSE),FALSE) -> GFA | O31: =VLOOKUP(Policy_Year_Input&'Calculation Links'!$J31,Differential_Type,HLOOKUP(O$24,Differential_Type,2,FALSE),FALSE) -> GFA | P31: =VLOOKUP(Policy_Year_Input&'Calculation Links'!$J31,Differential_Type,HLOOKUP(P$24,Differential_Type,2,FALSE),FALSE) -> GFA | Q31: =VLOOKUP(Policy_Year_Input&'Calculation Links'!$J31,Differential_Type,HLOOKUP(Q$24,Differential_Type,2,FALSE),FALSE) -> GFA | R31: =VLOOKUP(Policy_Year_Input&'Calculation Links'!$J31,Differential_Type,HLOOKUP(R$24,Differential_Type,2,FALSE),FALSE) -> GFA | S31: =VLOOKUP(Policy_Year_Input&'Calculation Links'!$J31,Differential_Type,HLOOKUP(S$24,Differential_Type,2,FALSE),FALSE) -> GFA | T31: =VLOOKUP(Policy_Year_Input&'Calculation Links'!$J31,Differential_Type,HLOOKUP(T$24,Differential_Type,2,FALSE),FALSE) -> GFA | U31: =VLOOKUP(Policy_Year_Input&'Calculation Links'!$J31,Differential_Type,HLOOKUP(U$24,Differential_Type,2,FALSE),FALSE) -> GFA | X31: Childcare Centre | Y31: =VLOOKUP(Credits_PolicyYear_Input&'Calculation Links'!$J31,Differential_Type,HLOOKUP(Y$24,Differential_Type,2,FALSE),FALSE) ->  | Z31: =VLOOKUP(Credits_PolicyYear_Input&'Calculation Links'!$J31,Differential_Type,HLOOKUP(Z$24,Differential_Type,2,FALSE),FALSE) ->  | AA31: =VLOOKUP(Credits_PolicyYear_Input&'Calculation Links'!$J31,Differential_Type,HLOOKUP(AA$24,Differential_Type,2,FALSE),FALSE) ->  | AB31: =VLOOKUP(Credits_PolicyYear_Input&'Calculation Links'!$J31,Differential_Type,HLOOKUP(AB$24,Differential_Type,2,FALSE),FALSE) ->  | AC31: =VLOOKUP(Credits_PolicyYear_Input&'Calculation Links'!$J31,Differential_Type,HLOOKUP(AC$24,Differential_Type,2,FALSE),FALSE) ->  | AD31: =VLOOKUP(Credits_PolicyYear_Input&'Calculation Links'!$J31,Differential_Type,HLOOKUP(AD$24,Differential_Type,2,FALSE),FALSE) ->  | AE31: =VLOOKUP(Credits_PolicyYear_Input&'Calculation Links'!$J31,Differential_Type,HLOOKUP(AE$24,Differential_Type,2,FALSE),FALSE) ->  | AF31: =VLOOKUP(Credits_PolicyYear_Input&'Calculation Links'!$J31,Differential_Type,HLOOKUP(AF$24,Differential_Type,2,FALSE),FALSE) ->  | AG31: =VLOOKUP(Credits_PolicyYear_Input&'Calculation Links'!$J31,Differential_Type,HLOOKUP(AG$24,Differential_Type,2,FALSE),FALSE) ->  | AH31: =VLOOKUP(Credits_PolicyYear_Input&'Calculation Links'!$J31,Differential_Type,HLOOKUP(AH$24,Differential_Type,2,FALSE),FALSE) ->  | AI31: =VLOOKUP(Credits_PolicyYear_Input&'Calculation Links'!$J31,Differential_Type,HLOOKUP(AI$24,Differential_Type,2,FALSE),FALSE) -> 
J32: Industrial | K32: =VLOOKUP(Policy_Year_Input&'Calculation Links'!$J32,Differential_Type,HLOOKUP(K$24,Differential_Type,2,FALSE),FALSE) -> GFA | L32: =VLOOKUP(Policy_Year_Input&'Calculation Links'!$J32,Differential_Type,HLOOKUP(L$24,Differential_Type,2,FALSE),FALSE) -> GFA | M32: =VLOOKUP(Policy_Year_Input&'Calculation Links'!$J32,Differential_Type,HLOOKUP(M$24,Differential_Type,2,FALSE),FALSE) -> GFA | N32: =VLOOKUP(Policy_Year_Input&'Calculation Links'!$J32,Differential_Type,HLOOKUP(N$24,Differential_Type,2,FALSE),FALSE) -> GFA | O32: =VLOOKUP(Policy_Year_Input&'Calculation Links'!$J32,Differential_Type,HLOOKUP(O$24,Differential_Type,2,FALSE),FALSE) -> GFA | P32: =VLOOKUP(Policy_Year_Input&'Calculation Links'!$J32,Differential_Type,HLOOKUP(P$24,Differential_Type,2,FALSE),FALSE) -> GFA | Q32: =VLOOKUP(Policy_Year_Input&'Calculation Links'!$J32,Differential_Type,HLOOKUP(Q$24,Differential_Type,2,FALSE),FALSE) -> GFA | R32: =VLOOKUP(Policy_Year_Input&'Calculation Links'!$J32,Differential_Type,HLOOKUP(R$24,Differential_Type,2,FALSE),FALSE) -> GFA | S32: =VLOOKUP(Policy_Year_Input&'Calculation Links'!$J32,Differential_Type,HLOOKUP(S$24,Differential_Type,2,FALSE),FALSE) -> GFA | T32: =VLOOKUP(Policy_Year_Input&'Calculation Links'!$J32,Differential_Type,HLOOKUP(T$24,Differential_Type,2,FALSE),FALSE) -> GFA | U32: =VLOOKUP(Policy_Year_Input&'Calculation Links'!$J32,Differential_Type,HLOOKUP(U$24,Differential_Type,2,FALSE),FALSE) -> GFA | X32: Industrial | Y32: =VLOOKUP(Credits_PolicyYear_Input&'Calculation Links'!$J32,Differential_Type,HLOOKUP(Y$24,Differential_Type,2,FALSE),FALSE) ->  | Z32: =VLOOKUP(Credits_PolicyYear_Input&'Calculation Links'!$J32,Differential_Type,HLOOKUP(Z$24,Differential_Type,2,FALSE),FALSE) ->  | AA32: =VLOOKUP(Credits_PolicyYear_Input&'Calculation Links'!$J32,Differential_Type,HLOOKUP(AA$24,Differential_Type,2,FALSE),FALSE) ->  | AB32: =VLOOKUP(Credits_PolicyYear_Input&'Calculation Links'!$J32,Differential_Type,HLOOKUP(AB$24,Differential_Type,2,FALSE),FALSE) ->  | AC32: =VLOOKUP(Credits_PolicyYear_Input&'Calculation Links'!$J32,Differential_Type,HLOOKUP(AC$24,Differential_Type,2,FALSE),FALSE) ->  | AD32: =VLOOKUP(Credits_PolicyYear_Input&'Calculation Links'!$J32,Differential_Type,HLOOKUP(AD$24,Differential_Type,2,FALSE),FALSE) ->  | AE32: =VLOOKUP(Credits_PolicyYear_Input&'Calculation Links'!$J32,Differential_Type,HLOOKUP(AE$24,Differential_Type,2,FALSE),FALSE) ->  | AF32: =VLOOKUP(Credits_PolicyYear_Input&'Calculation Links'!$J32,Differential_Type,HLOOKUP(AF$24,Differential_Type,2,FALSE),FALSE) ->  | AG32: =VLOOKUP(Credits_PolicyYear_Input&'Calculation Links'!$J32,Differential_Type,HLOOKUP(AG$24,Differential_Type,2,FALSE),FALSE) ->  | AH32: =VLOOKUP(Credits_PolicyYear_Input&'Calculation Links'!$J32,Differential_Type,HLOOKUP(AH$24,Differential_Type,2,FALSE),FALSE) ->  | AI32: =VLOOKUP(Credits_PolicyYear_Input&'Calculation Links'!$J32,Differential_Type,HLOOKUP(AI$24,Differential_Type,2,FALSE),FALSE) -> 
J33: Country Dwelling | K33: =VLOOKUP(Policy_Year_Input&'Calculation Links'!$J33,Differential_Type,HLOOKUP(K$24,Differential_Type,2,FALSE),FALSE) -> Unit | L33: =VLOOKUP(Policy_Year_Input&'Calculation Links'!$J33,Differential_Type,HLOOKUP(L$24,Differential_Type,2,FALSE),FALSE) -> Unit | M33: =VLOOKUP(Policy_Year_Input&'Calculation Links'!$J33,Differential_Type,HLOOKUP(M$24,Differential_Type,2,FALSE),FALSE) -> Unit | N33: =VLOOKUP(Policy_Year_Input&'Calculation Links'!$J33,Differential_Type,HLOOKUP(N$24,Differential_Type,2,FALSE),FALSE) -> Unit | O33: =VLOOKUP(Policy_Year_Input&'Calculation Links'!$J33,Differential_Type,HLOOKUP(O$24,Differential_Type,2,FALSE),FALSE) -> Unit | P33: =VLOOKUP(Policy_Year_Input&'Calculation Links'!$J33,Differential_Type,HLOOKUP(P$24,Differential_Type,2,FALSE),FALSE) -> Unit | Q33: =VLOOKUP(Policy_Year_Input&'Calculation Links'!$J33,Differential_Type,HLOOKUP(Q$24,Differential_Type,2,FALSE),FALSE) -> Unit | R33: =VLOOKUP(Policy_Year_Input&'Calculation Links'!$J33,Differential_Type,HLOOKUP(R$24,Differential_Type,2,FALSE),FALSE) -> Unit | S33: =VLOOKUP(Policy_Year_Input&'Calculation Links'!$J33,Differential_Type,HLOOKUP(S$24,Differential_Type,2,FALSE),FALSE) -> Unit | T33: =VLOOKUP(Policy_Year_Input&'Calculation Links'!$J33,Differential_Type,HLOOKUP(T$24,Differential_Type,2,FALSE),FALSE) -> Unit | U33: =VLOOKUP(Policy_Year_Input&'Calculation Links'!$J33,Differential_Type,HLOOKUP(U$24,Differential_Type,2,FALSE),FALSE) -> Unit | X33: Country Dwelling | Y33: =VLOOKUP(Credits_PolicyYear_Input&'Calculation Links'!$J33,Differential_Type,HLOOKUP(Y$24,Differential_Type,2,FALSE),FALSE) ->  | Z33: =VLOOKUP(Credits_PolicyYear_Input&'Calculation Links'!$J33,Differential_Type,HLOOKUP(Z$24,Differential_Type,2,FALSE),FALSE) ->  | AA33: =VLOOKUP(Credits_PolicyYear_Input&'Calculation Links'!$J33,Differential_Type,HLOOKUP(AA$24,Differential_Type,2,FALSE),FALSE) ->  | AB33: =VLOOKUP(Credits_PolicyYear_Input&'Calculation Links'!$J33,Differential_Type,HLOOKUP(AB$24,Differential_Type,2,FALSE),FALSE) ->  | AC33: =VLOOKUP(Credits_PolicyYear_Input&'Calculation Links'!$J33,Differential_Type,HLOOKUP(AC$24,Differential_Type,2,FALSE),FALSE) ->  | AD33: =VLOOKUP(Credits_PolicyYear_Input&'Calculation Links'!$J33,Differential_Type,HLOOKUP(AD$24,Differential_Type,2,FALSE),FALSE) ->  | AE33: =VLOOKUP(Credits_PolicyYear_Input&'Calculation Links'!$J33,Differential_Type,HLOOKUP(AE$24,Differential_Type,2,FALSE),FALSE) ->  | AF33: =VLOOKUP(Credits_PolicyYear_Input&'Calculation Links'!$J33,Differential_Type,HLOOKUP(AF$24,Differential_Type,2,FALSE),FALSE) ->  | AG33: =VLOOKUP(Credits_PolicyYear_Input&'Calculation Links'!$J33,Differential_Type,HLOOKUP(AG$24,Differential_Type,2,FALSE),FALSE) ->  | AH33: =VLOOKUP(Credits_PolicyYear_Input&'Calculation Links'!$J33,Differential_Type,HLOOKUP(AH$24,Differential_Type,2,FALSE),FALSE) ->  | AI33: =VLOOKUP(Credits_PolicyYear_Input&'Calculation Links'!$J33,Differential_Type,HLOOKUP(AI$24,Differential_Type,2,FALSE),FALSE) -> 
J34: Country Dwelling Flat | K34: =K33 -> Unit | L34: =L33 -> Unit | M34: Unit | N34: Unit | O34: Unit | P34: Unit | Q34: Unit | R34: Unit | S34: Unit | T34: Unit | U34: Unit | X34: Country Dwelling Flat | Y34: =Y33 -> 
J35: Other | K35: =VLOOKUP(Policy_Year_Input&'Calculation Links'!$J35,Differential_Type,HLOOKUP(K$24,Differential_Type,2,FALSE),FALSE) -> GFA | L35: =VLOOKUP(Policy_Year_Input&'Calculation Links'!$J35,Differential_Type,HLOOKUP(L$24,Differential_Type,2,FALSE),FALSE) -> GFA | M35: =VLOOKUP(Policy_Year_Input&'Calculation Links'!$J35,Differential_Type,HLOOKUP(M$24,Differential_Type,2,FALSE),FALSE) -> GFA | N35: =VLOOKUP(Policy_Year_Input&'Calculation Links'!$J35,Differential_Type,HLOOKUP(N$24,Differential_Type,2,FALSE),FALSE) -> GFA | O35: =VLOOKUP(Policy_Year_Input&'Calculation Links'!$J35,Differential_Type,HLOOKUP(O$24,Differential_Type,2,FALSE),FALSE) -> GFA | P35: =VLOOKUP(Policy_Year_Input&'Calculation Links'!$J35,Differential_Type,HLOOKUP(P$24,Differential_Type,2,FALSE),FALSE) -> GFA | Q35: =VLOOKUP(Policy_Year_Input&'Calculation Links'!$J35,Differential_Type,HLOOKUP(Q$24,Differential_Type,2,FALSE),FALSE) -> GFA | R35: =VLOOKUP(Policy_Year_Input&'Calculation Links'!$J35,Differential_Type,HLOOKUP(R$24,Differential_Type,2,FALSE),FALSE) -> GFA | S35: =VLOOKUP(Policy_Year_Input&'Calculation Links'!$J35,Differential_Type,HLOOKUP(S$24,Differential_Type,2,FALSE),FALSE) -> GFA | T35: =VLOOKUP(Policy_Year_Input&'Calculation Links'!$J35,Differential_Type,HLOOKUP(T$24,Differential_Type,2,FALSE),FALSE) -> GFA | U35: =VLOOKUP(Policy_Year_Input&'Calculation Links'!$J35,Differential_Type,HLOOKUP(U$24,Differential_Type,2,FALSE),FALSE) -> GFA | X35: Other | Y35: =VLOOKUP(Credits_PolicyYear_Input&'Calculation Links'!$J35,Differential_Type,HLOOKUP(Y$24,Differential_Type,2,FALSE),FALSE) ->  | Z35: =VLOOKUP(Credits_PolicyYear_Input&'Calculation Links'!$J35,Differential_Type,HLOOKUP(Z$24,Differential_Type,2,FALSE),FALSE) ->  | AA35: =VLOOKUP(Credits_PolicyYear_Input&'Calculation Links'!$J35,Differential_Type,HLOOKUP(AA$24,Differential_Type,2,FALSE),FALSE) ->  | AB35: =VLOOKUP(Credits_PolicyYear_Input&'Calculation Links'!$J35,Differential_Type,HLOOKUP(AB$24,Differential_Type,2,FALSE),FALSE) ->  | AC35: =VLOOKUP(Credits_PolicyYear_Input&'Calculation Links'!$J35,Differential_Type,HLOOKUP(AC$24,Differential_Type,2,FALSE),FALSE) ->  | AD35: =VLOOKUP(Credits_PolicyYear_Input&'Calculation Links'!$J35,Differential_Type,HLOOKUP(AD$24,Differential_Type,2,FALSE),FALSE) ->  | AE35: =VLOOKUP(Credits_PolicyYear_Input&'Calculation Links'!$J35,Differential_Type,HLOOKUP(AE$24,Differential_Type,2,FALSE),FALSE) ->  | AF35: =VLOOKUP(Credits_PolicyYear_Input&'Calculation Links'!$J35,Differential_Type,HLOOKUP(AF$24,Differential_Type,2,FALSE),FALSE) ->  | AG35: =VLOOKUP(Credits_PolicyYear_Input&'Calculation Links'!$J35,Differential_Type,HLOOKUP(AG$24,Differential_Type,2,FALSE),FALSE) ->  | AH35: =VLOOKUP(Credits_PolicyYear_Input&'Calculation Links'!$J35,Differential_Type,HLOOKUP(AH$24,Differential_Type,2,FALSE),FALSE) ->  | AI35: =VLOOKUP(Credits_PolicyYear_Input&'Calculation Links'!$J35,Differential_Type,HLOOKUP(AI$24,Differential_Type,2,FALSE),FALSE) -> 
J36: CBD Accommodation | K36: =VLOOKUP(Policy_Year_Input&'Calculation Links'!$J36,Differential_Type,HLOOKUP(K$24,Differential_Type,2,FALSE),FALSE) -> GFA | L36: =VLOOKUP(Policy_Year_Input&'Calculation Links'!$J36,Differential_Type,HLOOKUP(L$24,Differential_Type,2,FALSE),FALSE) -> GFA | M36: =VLOOKUP(Policy_Year_Input&'Calculation Links'!$J36,Differential_Type,HLOOKUP(M$24,Differential_Type,2,FALSE),FALSE) -> GFA | N36: =VLOOKUP(Policy_Year_Input&'Calculation Links'!$J36,Differential_Type,HLOOKUP(N$24,Differential_Type,2,FALSE),FALSE) -> GFA | O36: =VLOOKUP(Policy_Year_Input&'Calculation Links'!$J36,Differential_Type,HLOOKUP(O$24,Differential_Type,2,FALSE),FALSE) -> GFA | P36: =VLOOKUP(Policy_Year_Input&'Calculation Links'!$J36,Differential_Type,HLOOKUP(P$24,Differential_Type,2,FALSE),FALSE) -> GFA | Q36: =VLOOKUP(Policy_Year_Input&'Calculation Links'!$J36,Differential_Type,HLOOKUP(Q$24,Differential_Type,2,FALSE),FALSE) -> GFA | R36: =VLOOKUP(Policy_Year_Input&'Calculation Links'!$J36,Differential_Type,HLOOKUP(R$24,Differential_Type,2,FALSE),FALSE) -> GFA | S36: =VLOOKUP(Policy_Year_Input&'Calculation Links'!$J36,Differential_Type,HLOOKUP(S$24,Differential_Type,2,FALSE),FALSE) -> GFA | T36: =VLOOKUP(Policy_Year_Input&'Calculation Links'!$J36,Differential_Type,HLOOKUP(T$24,Differential_Type,2,FALSE),FALSE) -> GFA | U36: =VLOOKUP(Policy_Year_Input&'Calculation Links'!$J36,Differential_Type,HLOOKUP(U$24,Differential_Type,2,FALSE),FALSE) -> GFA | X36: CBD Accommodation | Y36: =VLOOKUP(Credits_PolicyYear_Input&'Calculation Links'!$J36,Differential_Type,HLOOKUP(Y$24,Differential_Type,2,FALSE),FALSE) ->  | Z36: =VLOOKUP(Credits_PolicyYear_Input&'Calculation Links'!$J36,Differential_Type,HLOOKUP(Z$24,Differential_Type,2,FALSE),FALSE) ->  | AA36: =VLOOKUP(Credits_PolicyYear_Input&'Calculation Links'!$J36,Differential_Type,HLOOKUP(AA$24,Differential_Type,2,FALSE),FALSE) ->  | AB36: =VLOOKUP(Credits_PolicyYear_Input&'Calculation Links'!$J36,Differential_Type,HLOOKUP(AB$24,Differential_Type,2,FALSE),FALSE) ->  | AC36: =VLOOKUP(Credits_PolicyYear_Input&'Calculation Links'!$J36,Differential_Type,HLOOKUP(AC$24,Differential_Type,2,FALSE),FALSE) ->  | AD36: =VLOOKUP(Credits_PolicyYear_Input&'Calculation Links'!$J36,Differential_Type,HLOOKUP(AD$24,Differential_Type,2,FALSE),FALSE) ->  | AE36: =VLOOKUP(Credits_PolicyYear_Input&'Calculation Links'!$J36,Differential_Type,HLOOKUP(AE$24,Differential_Type,2,FALSE),FALSE) ->  | AF36: =VLOOKUP(Credits_PolicyYear_Input&'Calculation Links'!$J36,Differential_Type,HLOOKUP(AF$24,Differential_Type,2,FALSE),FALSE) ->  | AG36: =VLOOKUP(Credits_PolicyYear_Input&'Calculation Links'!$J36,Differential_Type,HLOOKUP(AG$24,Differential_Type,2,FALSE),FALSE) ->  | AH36: =VLOOKUP(Credits_PolicyYear_Input&'Calculation Links'!$J36,Differential_Type,HLOOKUP(AH$24,Differential_Type,2,FALSE),FALSE) ->  | AI36: =VLOOKUP(Credits_PolicyYear_Input&'Calculation Links'!$J36,Differential_Type,HLOOKUP(AI$24,Differential_Type,2,FALSE),FALSE) -> 
J37: CBD Commercial | K37: =VLOOKUP(Policy_Year_Input&'Calculation Links'!$J37,Differential_Type,HLOOKUP(K$24,Differential_Type,2,FALSE),FALSE) -> GFA | L37: =VLOOKUP(Policy_Year_Input&'Calculation Links'!$J37,Differential_Type,HLOOKUP(L$24,Differential_Type,2,FALSE),FALSE) -> GFA | M37: =VLOOKUP(Policy_Year_Input&'Calculation Links'!$J37,Differential_Type,HLOOKUP(M$24,Differential_Type,2,FALSE),FALSE) -> GFA | N37: =VLOOKUP(Policy_Year_Input&'Calculation Links'!$J37,Differential_Type,HLOOKUP(N$24,Differential_Type,2,FALSE),FALSE) -> GFA | O37: =VLOOKUP(Policy_Year_Input&'Calculation Links'!$J37,Differential_Type,HLOOKUP(O$24,Differential_Type,2,FALSE),FALSE) -> GFA | P37: =VLOOKUP(Policy_Year_Input&'Calculation Links'!$J37,Differential_Type,HLOOKUP(P$24,Differential_Type,2,FALSE),FALSE) -> GFA | Q37: =VLOOKUP(Policy_Year_Input&'Calculation Links'!$J37,Differential_Type,HLOOKUP(Q$24,Differential_Type,2,FALSE),FALSE) -> GFA | R37: =VLOOKUP(Policy_Year_Input&'Calculation Links'!$J37,Differential_Type,HLOOKUP(R$24,Differential_Type,2,FALSE),FALSE) -> GFA | S37: =VLOOKUP(Policy_Year_Input&'Calculation Links'!$J37,Differential_Type,HLOOKUP(S$24,Differential_Type,2,FALSE),FALSE) -> GFA | T37: =VLOOKUP(Policy_Year_Input&'Calculation Links'!$J37,Differential_Type,HLOOKUP(T$24,Differential_Type,2,FALSE),FALSE) -> GFA | U37: =VLOOKUP(Policy_Year_Input&'Calculation Links'!$J37,Differential_Type,HLOOKUP(U$24,Differential_Type,2,FALSE),FALSE) -> GFA | X37: CBD Commercial | Y37: =VLOOKUP(Credits_PolicyYear_Input&'Calculation Links'!$J37,Differential_Type,HLOOKUP(Y$24,Differential_Type,2,FALSE),FALSE) ->  | Z37: =VLOOKUP(Credits_PolicyYear_Input&'Calculation Links'!$J37,Differential_Type,HLOOKUP(Z$24,Differential_Type,2,FALSE),FALSE) ->  | AA37: =VLOOKUP(Credits_PolicyYear_Input&'Calculation Links'!$J37,Differential_Type,HLOOKUP(AA$24,Differential_Type,2,FALSE),FALSE) ->  | AB37: =VLOOKUP(Credits_PolicyYear_Input&'Calculation Links'!$J37,Differential_Type,HLOOKUP(AB$24,Differential_Type,2,FALSE),FALSE) ->  | AC37: =VLOOKUP(Credits_PolicyYear_Input&'Calculation Links'!$J37,Differential_Type,HLOOKUP(AC$24,Differential_Type,2,FALSE),FALSE) ->  | AD37: =VLOOKUP(Credits_PolicyYear_Input&'Calculation Links'!$J37,Differential_Type,HLOOKUP(AD$24,Differential_Type,2,FALSE),FALSE) ->  | AE37: =VLOOKUP(Credits_PolicyYear_Input&'Calculation Links'!$J37,Differential_Type,HLOOKUP(AE$24,Differential_Type,2,FALSE),FALSE) ->  | AF37: =VLOOKUP(Credits_PolicyYear_Input&'Calculation Links'!$J37,Differential_Type,HLOOKUP(AF$24,Differential_Type,2,FALSE),FALSE) ->  | AG37: =VLOOKUP(Credits_PolicyYear_Input&'Calculation Links'!$J37,Differential_Type,HLOOKUP(AG$24,Differential_Type,2,FALSE),FALSE) ->  | AH37: =VLOOKUP(Credits_PolicyYear_Input&'Calculation Links'!$J37,Differential_Type,HLOOKUP(AH$24,Differential_Type,2,FALSE),FALSE) ->  | AI37: =VLOOKUP(Credits_PolicyYear_Input&'Calculation Links'!$J37,Differential_Type,HLOOKUP(AI$24,Differential_Type,2,FALSE),FALSE) -> 
J38: Mixed Use Accommodation | K38: =VLOOKUP(Policy_Year_Input&'Calculation Links'!$J38,Differential_Type,HLOOKUP(K$24,Differential_Type,2,FALSE),FALSE) -> Unit | L38: =VLOOKUP(Policy_Year_Input&'Calculation Links'!$J38,Differential_Type,HLOOKUP(L$24,Differential_Type,2,FALSE),FALSE) -> Unit | M38: =VLOOKUP(Policy_Year_Input&'Calculation Links'!$J38,Differential_Type,HLOOKUP(M$24,Differential_Type,2,FALSE),FALSE) -> Unit | N38: =VLOOKUP(Policy_Year_Input&'Calculation Links'!$J38,Differential_Type,HLOOKUP(N$24,Differential_Type,2,FALSE),FALSE) -> GFA | O38: =VLOOKUP(Policy_Year_Input&'Calculation Links'!$J38,Differential_Type,HLOOKUP(O$24,Differential_Type,2,FALSE),FALSE) -> GFA | P38: =VLOOKUP(Policy_Year_Input&'Calculation Links'!$J38,Differential_Type,HLOOKUP(P$24,Differential_Type,2,FALSE),FALSE) -> GFA | Q38: =VLOOKUP(Policy_Year_Input&'Calculation Links'!$J38,Differential_Type,HLOOKUP(Q$24,Differential_Type,2,FALSE),FALSE) -> GFA | R38: =VLOOKUP(Policy_Year_Input&'Calculation Links'!$J38,Differential_Type,HLOOKUP(R$24,Differential_Type,2,FALSE),FALSE) -> GFA | S38: =VLOOKUP(Policy_Year_Input&'Calculation Links'!$J38,Differential_Type,HLOOKUP(S$24,Differential_Type,2,FALSE),FALSE) -> GFA | T38: =VLOOKUP(Policy_Year_Input&'Calculation Links'!$J38,Differential_Type,HLOOKUP(T$24,Differential_Type,2,FALSE),FALSE) -> GFA | U38: =VLOOKUP(Policy_Year_Input&'Calculation Links'!$J38,Differential_Type,HLOOKUP(U$24,Differential_Type,2,FALSE),FALSE) -> GFA | X38: Mixed Use Accommodation | Y38: =VLOOKUP(Credits_PolicyYear_Input&'Calculation Links'!$J38,Differential_Type,HLOOKUP(Y$24,Differential_Type,2,FALSE),FALSE) ->  | Z38: =VLOOKUP(Credits_PolicyYear_Input&'Calculation Links'!$J38,Differential_Type,HLOOKUP(Z$24,Differential_Type,2,FALSE),FALSE) ->  | AA38: =VLOOKUP(Credits_PolicyYear_Input&'Calculation Links'!$J38,Differential_Type,HLOOKUP(AA$24,Differential_Type,2,FALSE),FALSE) ->  | AB38: =VLOOKUP(Credits_PolicyYear_Input&'Calculation Links'!$J38,Differential_Type,HLOOKUP(AB$24,Differential_Type,2,FALSE),FALSE) ->  | AC38: =VLOOKUP(Credits_PolicyYear_Input&'Calculation Links'!$J38,Differential_Type,HLOOKUP(AC$24,Differential_Type,2,FALSE),FALSE) ->  | AD38: =VLOOKUP(Credits_PolicyYear_Input&'Calculation Links'!$J38,Differential_Type,HLOOKUP(AD$24,Differential_Type,2,FALSE),FALSE) ->  | AE38: =VLOOKUP(Credits_PolicyYear_Input&'Calculation Links'!$J38,Differential_Type,HLOOKUP(AE$24,Differential_Type,2,FALSE),FALSE) ->  | AF38: =VLOOKUP(Credits_PolicyYear_Input&'Calculation Links'!$J38,Differential_Type,HLOOKUP(AF$24,Differential_Type,2,FALSE),FALSE) ->  | AG38: =VLOOKUP(Credits_PolicyYear_Input&'Calculation Links'!$J38,Differential_Type,HLOOKUP(AG$24,Differential_Type,2,FALSE),FALSE) ->  | AH38: =VLOOKUP(Credits_PolicyYear_Input&'Calculation Links'!$J38,Differential_Type,HLOOKUP(AH$24,Differential_Type,2,FALSE),FALSE) ->  | AI38: =VLOOKUP(Credits_PolicyYear_Input&'Calculation Links'!$J38,Differential_Type,HLOOKUP(AI$24,Differential_Type,2,FALSE),FALSE) -> 
J39: Mixed Use Commercial | K39: =VLOOKUP(Policy_Year_Input&'Calculation Links'!$J39,Differential_Type,HLOOKUP(K$24,Differential_Type,2,FALSE),FALSE) -> Unit | L39: =VLOOKUP(Policy_Year_Input&'Calculation Links'!$J39,Differential_Type,HLOOKUP(L$24,Differential_Type,2,FALSE),FALSE) -> Unit | M39: =VLOOKUP(Policy_Year_Input&'Calculation Links'!$J39,Differential_Type,HLOOKUP(M$24,Differential_Type,2,FALSE),FALSE) -> Unit | N39: =VLOOKUP(Policy_Year_Input&'Calculation Links'!$J39,Differential_Type,HLOOKUP(N$24,Differential_Type,2,FALSE),FALSE) -> GFA | O39: =VLOOKUP(Policy_Year_Input&'Calculation Links'!$J39,Differential_Type,HLOOKUP(O$24,Differential_Type,2,FALSE),FALSE) -> GFA | P39: =VLOOKUP(Policy_Year_Input&'Calculation Links'!$J39,Differential_Type,HLOOKUP(P$24,Differential_Type,2,FALSE),FALSE) -> GFA | Q39: =VLOOKUP(Policy_Year_Input&'Calculation Links'!$J39,Differential_Type,HLOOKUP(Q$24,Differential_Type,2,FALSE),FALSE) -> Unit | R39: =VLOOKUP(Policy_Year_Input&'Calculation Links'!$J39,Differential_Type,HLOOKUP(R$24,Differential_Type,2,FALSE),FALSE) -> Unit | S39: =VLOOKUP(Policy_Year_Input&'Calculation Links'!$J39,Differential_Type,HLOOKUP(S$24,Differential_Type,2,FALSE),FALSE) -> GFA | T39: =VLOOKUP(Policy_Year_Input&'Calculation Links'!$J39,Differential_Type,HLOOKUP(T$24,Differential_Type,2,FALSE),FALSE) -> GFA | U39: =VLOOKUP(Policy_Year_Input&'Calculation Links'!$J39,Differential_Type,HLOOKUP(U$24,Differential_Type,2,FALSE),FALSE) -> GFA | X39: Mixed Use Commercial | Y39: =VLOOKUP(Credits_PolicyYear_Input&'Calculation Links'!$J39,Differential_Type,HLOOKUP(Y$24,Differential_Type,2,FALSE),FALSE) ->  | Z39: =VLOOKUP(Credits_PolicyYear_Input&'Calculation Links'!$J39,Differential_Type,HLOOKUP(Z$24,Differential_Type,2,FALSE),FALSE) ->  | AA39: =VLOOKUP(Credits_PolicyYear_Input&'Calculation Links'!$J39,Differential_Type,HLOOKUP(AA$24,Differential_Type,2,FALSE),FALSE) ->  | AB39: =VLOOKUP(Credits_PolicyYear_Input&'Calculation Links'!$J39,Differential_Type,HLOOKUP(AB$24,Differential_Type,2,FALSE),FALSE) ->  | AC39: =VLOOKUP(Credits_PolicyYear_Input&'Calculation Links'!$J39,Differential_Type,HLOOKUP(AC$24,Differential_Type,2,FALSE),FALSE) ->  | AD39: =VLOOKUP(Credits_PolicyYear_Input&'Calculation Links'!$J39,Differential_Type,HLOOKUP(AD$24,Differential_Type,2,FALSE),FALSE) ->  | AE39: =VLOOKUP(Credits_PolicyYear_Input&'Calculation Links'!$J39,Differential_Type,HLOOKUP(AE$24,Differential_Type,2,FALSE),FALSE) ->  | AF39: =VLOOKUP(Credits_PolicyYear_Input&'Calculation Links'!$J39,Differential_Type,HLOOKUP(AF$24,Differential_Type,2,FALSE),FALSE) ->  | AG39: =VLOOKUP(Credits_PolicyYear_Input&'Calculation Links'!$J39,Differential_Type,HLOOKUP(AG$24,Differential_Type,2,FALSE),FALSE) ->  | AH39: =VLOOKUP(Credits_PolicyYear_Input&'Calculation Links'!$J39,Differential_Type,HLOOKUP(AH$24,Differential_Type,2,FALSE),FALSE) ->  | AI39: =VLOOKUP(Credits_PolicyYear_Input&'Calculation Links'!$J39,Differential_Type,HLOOKUP(AI$24,Differential_Type,2,FALSE),FALSE) -> 
J40: Primary Industry | K40: =VLOOKUP(Policy_Year_Input&'Calculation Links'!$J40,Differential_Type,HLOOKUP(K$24,Differential_Type,2,FALSE),FALSE) -> Unit | L40: =VLOOKUP(Policy_Year_Input&'Calculation Links'!$J40,Differential_Type,HLOOKUP(L$24,Differential_Type,2,FALSE),FALSE) -> Unit | M40: =VLOOKUP(Policy_Year_Input&'Calculation Links'!$J40,Differential_Type,HLOOKUP(M$24,Differential_Type,2,FALSE),FALSE) -> Unit | N40: =VLOOKUP(Policy_Year_Input&'Calculation Links'!$J40,Differential_Type,HLOOKUP(N$24,Differential_Type,2,FALSE),FALSE) -> Unit | O40: =VLOOKUP(Policy_Year_Input&'Calculation Links'!$J40,Differential_Type,HLOOKUP(O$24,Differential_Type,2,FALSE),FALSE) -> Unit | P40: =VLOOKUP(Policy_Year_Input&'Calculation Links'!$J40,Differential_Type,HLOOKUP(P$24,Differential_Type,2,FALSE),FALSE) -> Unit | Q40: =VLOOKUP(Policy_Year_Input&'Calculation Links'!$J40,Differential_Type,HLOOKUP(Q$24,Differential_Type,2,FALSE),FALSE) -> Unit | R40: =VLOOKUP(Policy_Year_Input&'Calculation Links'!$J40,Differential_Type,HLOOKUP(R$24,Differential_Type,2,FALSE),FALSE) -> Unit | S40: =VLOOKUP(Policy_Year_Input&'Calculation Links'!$J40,Differential_Type,HLOOKUP(S$24,Differential_Type,2,FALSE),FALSE) -> Unit | T40: =VLOOKUP(Policy_Year_Input&'Calculation Links'!$J40,Differential_Type,HLOOKUP(T$24,Differential_Type,2,FALSE),FALSE) -> Unit | U40: =VLOOKUP(Policy_Year_Input&'Calculation Links'!$J40,Differential_Type,HLOOKUP(U$24,Differential_Type,2,FALSE),FALSE) -> Unit | X40: Primary Industry | Y40: =VLOOKUP(Credits_PolicyYear_Input&'Calculation Links'!$J40,Differential_Type,HLOOKUP(Y$24,Differential_Type,2,FALSE),FALSE) ->  | Z40: =VLOOKUP(Credits_PolicyYear_Input&'Calculation Links'!$J40,Differential_Type,HLOOKUP(Z$24,Differential_Type,2,FALSE),FALSE) ->  | AA40: =VLOOKUP(Credits_PolicyYear_Input&'Calculation Links'!$J40,Differential_Type,HLOOKUP(AA$24,Differential_Type,2,FALSE),FALSE) ->  | AB40: =VLOOKUP(Credits_PolicyYear_Input&'Calculation Links'!$J40,Differential_Type,HLOOKUP(AB$24,Differential_Type,2,FALSE),FALSE) ->  | AC40: =VLOOKUP(Credits_PolicyYear_Input&'Calculation Links'!$J40,Differential_Type,HLOOKUP(AC$24,Differential_Type,2,FALSE),FALSE) ->  | AD40: =VLOOKUP(Credits_PolicyYear_Input&'Calculation Links'!$J40,Differential_Type,HLOOKUP(AD$24,Differential_Type,2,FALSE),FALSE) ->  | AE40: =VLOOKUP(Credits_PolicyYear_Input&'Calculation Links'!$J40,Differential_Type,HLOOKUP(AE$24,Differential_Type,2,FALSE),FALSE) ->  | AF40: =VLOOKUP(Credits_PolicyYear_Input&'Calculation Links'!$J40,Differential_Type,HLOOKUP(AF$24,Differential_Type,2,FALSE),FALSE) ->  | AG40: =VLOOKUP(Credits_PolicyYear_Input&'Calculation Links'!$J40,Differential_Type,HLOOKUP(AG$24,Differential_Type,2,FALSE),FALSE) ->  | AH40: =VLOOKUP(Credits_PolicyYear_Input&'Calculation Links'!$J40,Differential_Type,HLOOKUP(AH$24,Differential_Type,2,FALSE),FALSE) ->  | AI40: =VLOOKUP(Credits_PolicyYear_Input&'Calculation Links'!$J40,Differential_Type,HLOOKUP(AI$24,Differential_Type,2,FALSE),FALSE) -> 
J41: Accommodation - Rural | K41: =K29 -> GFA | L41: =L29 -> GFA | M41: GFA | N41: GFA | O41: GFA | P41: GFA | Q41: GFA | R41: GFA | S41: GFA | T41: GFA | U41: GFA | X41: Accommodation - Rural | Y41: =Y29 ->  | Z41: =Z29 -> 
J42: Restaurant/Bar | K42: =VLOOKUP(Policy_Year_Input&'Calculation Links'!$J42,Differential_Type,HLOOKUP(K$24,Differential_Type,2,FALSE),FALSE) -> GFA | L42: =VLOOKUP(Policy_Year_Input&'Calculation Links'!$J42,Differential_Type,HLOOKUP(L$24,Differential_Type,2,FALSE),FALSE) -> GFA | M42: =VLOOKUP(Policy_Year_Input&'Calculation Links'!$J42,Differential_Type,HLOOKUP(M$24,Differential_Type,2,FALSE),FALSE) -> GFA | N42: =VLOOKUP(Policy_Year_Input&'Calculation Links'!$J42,Differential_Type,HLOOKUP(N$24,Differential_Type,2,FALSE),FALSE) -> GFA | O42: =VLOOKUP(Policy_Year_Input&'Calculation Links'!$J42,Differential_Type,HLOOKUP(O$24,Differential_Type,2,FALSE),FALSE) -> GFA | P42: =VLOOKUP(Policy_Year_Input&'Calculation Links'!$J42,Differential_Type,HLOOKUP(P$24,Differential_Type,2,FALSE),FALSE) -> GFA | Q42: =VLOOKUP(Policy_Year_Input&'Calculation Links'!$J42,Differential_Type,HLOOKUP(Q$24,Differential_Type,2,FALSE),FALSE) -> GFA | R42: =VLOOKUP(Policy_Year_Input&'Calculation Links'!$J42,Differential_Type,HLOOKUP(R$24,Differential_Type,2,FALSE),FALSE) -> GFA | S42: =VLOOKUP(Policy_Year_Input&'Calculation Links'!$J42,Differential_Type,HLOOKUP(S$24,Differential_Type,2,FALSE),FALSE) -> GFA | T42: =VLOOKUP(Policy_Year_Input&'Calculation Links'!$J42,Differential_Type,HLOOKUP(T$24,Differential_Type,2,FALSE),FALSE) -> GFA | U42: =VLOOKUP(Policy_Year_Input&'Calculation Links'!$J42,Differential_Type,HLOOKUP(U$24,Differential_Type,2,FALSE),FALSE) -> GFA | X42: Restaurant/Bar | Y42: =VLOOKUP(Credits_PolicyYear_Input&'Calculation Links'!$J42,Differential_Type,HLOOKUP(Y$24,Differential_Type,2,FALSE),FALSE) ->  | Z42: =VLOOKUP(Credits_PolicyYear_Input&'Calculation Links'!$J42,Differential_Type,HLOOKUP(Z$24,Differential_Type,2,FALSE),FALSE) ->  | AA42: =VLOOKUP(Credits_PolicyYear_Input&'Calculation Links'!$J42,Differential_Type,HLOOKUP(AA$24,Differential_Type,2,FALSE),FALSE) ->  | AB42: =VLOOKUP(Credits_PolicyYear_Input&'Calculation Links'!$J42,Differential_Type,HLOOKUP(AB$24,Differential_Type,2,FALSE),FALSE) ->  | AC42: =VLOOKUP(Credits_PolicyYear_Input&'Calculation Links'!$J42,Differential_Type,HLOOKUP(AC$24,Differential_Type,2,FALSE),FALSE) ->  | AD42: =VLOOKUP(Credits_PolicyYear_Input&'Calculation Links'!$J42,Differential_Type,HLOOKUP(AD$24,Differential_Type,2,FALSE),FALSE) ->  | AE42: =VLOOKUP(Credits_PolicyYear_Input&'Calculation Links'!$J42,Differential_Type,HLOOKUP(AE$24,Differential_Type,2,FALSE),FALSE) ->  | AF42: =VLOOKUP(Credits_PolicyYear_Input&'Calculation Links'!$J42,Differential_Type,HLOOKUP(AF$24,Differential_Type,2,FALSE),FALSE) ->  | AG42: =VLOOKUP(Credits_PolicyYear_Input&'Calculation Links'!$J42,Differential_Type,HLOOKUP(AG$24,Differential_Type,2,FALSE),FALSE) ->  | AH42: =VLOOKUP(Credits_PolicyYear_Input&'Calculation Links'!$J42,Differential_Type,HLOOKUP(AH$24,Differential_Type,2,FALSE),FALSE) ->  | AI42: =VLOOKUP(Credits_PolicyYear_Input&'Calculation Links'!$J42,Differential_Type,HLOOKUP(AI$24,Differential_Type,2,FALSE),FALSE) -> 
A46: Use for post development | X46: Use for pre development (credits)
A47: Impermeable Surface Area (ISA) Estimates | D47: Roading - Primary Industry Area | G47: Estimating GFA Table | K47: Reserve Land Prices | X47: Impermeable Surface Area (ISA) Estimates | AB47: Roading - Primary Industry Area | AF47: Estimating GFA Table
B49: Building Coverage | E49: Area per 1.3 DE's (m2) | H49: Building Coverage | I49: No. of Floors | L49: Township | M49: Urban | Y49: Building Coverage | AC49: Area per 1.3 DE's (m2) | AG49: Building Coverage | AH49: No. of Floors
A50: Residential | B50: =IFERROR(VLOOKUP(Policy_Year_Input&'Calculation Links'!$A50,ISA_Estimate,HLOOKUP(B$49,ISA_Estimate,2,FALSE),FALSE),0) -> 0 | D50: Wakatipu | E50: =VLOOKUP(Policy_Year_Input&'Calculation Links'!$D50,Roading_Primary_Industry_Area,HLOOKUP(E$49,Roading_Primary_Industry_Area,2,FALSE),FALSE) -> 270000 | G50: Residential | H50: =IFERROR(VLOOKUP(Policy_Year_Input&'Calculation Links'!$G50,Estimating_GFA,HLOOKUP(H$49,Estimating_GFA,2,FALSE),FALSE),0) -> 0 | I50: =IFERROR(VLOOKUP(Policy_Year_Input&'Calculation Links'!$G50,Estimating_GFA,HLOOKUP(I$49,Estimating_GFA,2,FALSE),FALSE),0) -> 0 | K50: =+'Calculation Links'!D50 -> Wakatipu | L50: =VLOOKUP(Policy_Year_Input&$K50,ResLandPrice,2,FALSE) -> 310.5 | M50: =VLOOKUP(Policy_Year_Input&$K50,ResLandPrice,3,FALSE) -> 707.25 | N50: GST Inclusive | X50: Residential | Y50: =VLOOKUP(Credits_PolicyYear_Input&'Calculation Links'!$A50,ISA_Estimate,HLOOKUP(Y$49,ISA_Estimate,2,FALSE),FALSE) ->  | AB50: Wakatipu | AC50: =VLOOKUP(Credits_PolicyYear_Input&'Calculation Links'!$D50,Roading_Primary_Industry_Area,HLOOKUP(AC$49,Roading_Primary_Industry_Area,2,FALSE),FALSE) ->  | AF50: Residential | AG50: =VLOOKUP(Credits_PolicyYear_Input&'Calculation Links'!$G50,Estimating_GFA,HLOOKUP(AG$49,Estimating_GFA,2,FALSE),FALSE) ->  | AH50: =VLOOKUP(Credits_PolicyYear_Input&'Calculation Links'!$G50,Estimating_GFA,HLOOKUP(AH$49,Estimating_GFA,2,FALSE),FALSE) -> 
A51: Residential Flat | B51: =IFERROR(VLOOKUP(Policy_Year_Input&'Calculation Links'!$A51,ISA_Estimate,HLOOKUP(B$49,ISA_Estimate,2,FALSE),FALSE),0) -> 0 | D51: Wanaka | E51: =VLOOKUP(Policy_Year_Input&'Calculation Links'!$D51,Roading_Primary_Industry_Area,HLOOKUP(E$49,Roading_Primary_Industry_Area,2,FALSE),FALSE) -> 410000 | G51: Residential Flat | H51: =IFERROR(VLOOKUP(Policy_Year_Input&'Calculation Links'!$G51,Estimating_GFA,HLOOKUP(H$49,Estimating_GFA,2,FALSE),FALSE),0) -> 0 | I51: =IFERROR(VLOOKUP(Policy_Year_Input&'Calculation Links'!$G51,Estimating_GFA,HLOOKUP(I$49,Estimating_GFA,2,FALSE),FALSE),0) -> 0 | K51: =+'Calculation Links'!D51 -> Wanaka | L51: =VLOOKUP(Policy_Year_Input&$K51,ResLandPrice,2,FALSE) -> 293.25 | M51: =VLOOKUP(Policy_Year_Input&$K51,ResLandPrice,3,FALSE) -> 540.5 | N51: GST Inclusive | X51: Residential Flat | Y51: =VLOOKUP(Credits_PolicyYear_Input&'Calculation Links'!$A51,ISA_Estimate,HLOOKUP(Y$49,ISA_Estimate,2,FALSE),FALSE) ->  | AB51: Wanaka | AC51: =VLOOKUP(Credits_PolicyYear_Input&'Calculation Links'!$D51,Roading_Primary_Industry_Area,HLOOKUP(AC$49,Roading_Primary_Industry_Area,2,FALSE),FALSE) ->  | AF51: Residential Flat | AG51: =VLOOKUP(Credits_PolicyYear_Input&'Calculation Links'!$G51,Estimating_GFA,HLOOKUP(AG$49,Estimating_GFA,2,FALSE),FALSE) ->  | AH51: =VLOOKUP(Credits_PolicyYear_Input&'Calculation Links'!$G51,Estimating_GFA,HLOOKUP(AH$49,Estimating_GFA,2,FALSE),FALSE) -> 
A52: Multi Unit Residential | B52: =IFERROR(VLOOKUP(Policy_Year_Input&'Calculation Links'!$A52,ISA_Estimate,HLOOKUP(B$49,ISA_Estimate,2,FALSE),FALSE),0) -> 0 | G52: Multi Unit Residential | H52: =IFERROR(VLOOKUP(Policy_Year_Input&'Calculation Links'!$G52,Estimating_GFA,HLOOKUP(H$49,Estimating_GFA,2,FALSE),FALSE),0) -> 0 | I52: =IFERROR(VLOOKUP(Policy_Year_Input&'Calculation Links'!$G52,Estimating_GFA,HLOOKUP(I$49,Estimating_GFA,2,FALSE),FALSE),0) -> 0 | X52: Multi Unit Residential | Y52: =VLOOKUP(Credits_PolicyYear_Input&'Calculation Links'!$A52,ISA_Estimate,HLOOKUP(Y$49,ISA_Estimate,2,FALSE),FALSE) ->  | AF52: Multi Unit Residential | AG52: =VLOOKUP(Credits_PolicyYear_Input&'Calculation Links'!$G52,Estimating_GFA,HLOOKUP(AG$49,Estimating_GFA,2,FALSE),FALSE) ->  | AH52: =VLOOKUP(Credits_PolicyYear_Input&'Calculation Links'!$G52,Estimating_GFA,HLOOKUP(AH$49,Estimating_GFA,2,FALSE),FALSE) -> 
A53: Retirement units | B53: =IFERROR(VLOOKUP(Policy_Year_Input&'Calculation Links'!$A53,ISA_Estimate,HLOOKUP(B$49,ISA_Estimate,2,FALSE),FALSE),0) -> 0 | G53: Retirement units | H53: =IFERROR(VLOOKUP(Policy_Year_Input&'Calculation Links'!$G53,Estimating_GFA,HLOOKUP(H$49,Estimating_GFA,2,FALSE),FALSE),0) -> 0 | I53: =IFERROR(VLOOKUP(Policy_Year_Input&'Calculation Links'!$G53,Estimating_GFA,HLOOKUP(I$49,Estimating_GFA,2,FALSE),FALSE),0) -> 0 | X53: Retirement units | Y53: =VLOOKUP(Credits_PolicyYear_Input&'Calculation Links'!$A53,ISA_Estimate,HLOOKUP(Y$49,ISA_Estimate,2,FALSE),FALSE) ->  | AF53: Retirement units | AG53: =VLOOKUP(Credits_PolicyYear_Input&'Calculation Links'!$G53,Estimating_GFA,HLOOKUP(AG$49,Estimating_GFA,2,FALSE),FALSE) ->  | AH53: =VLOOKUP(Credits_PolicyYear_Input&'Calculation Links'!$G53,Estimating_GFA,HLOOKUP(AH$49,Estimating_GFA,2,FALSE),FALSE) -> 
A54: Accommodation | B54: =IFERROR(VLOOKUP(Policy_Year_Input&'Calculation Links'!$A54,ISA_Estimate,HLOOKUP(B$49,ISA_Estimate,2,FALSE),FALSE),0) -> 0.55 | G54: Accommodation | H54: =IFERROR(VLOOKUP(Policy_Year_Input&'Calculation Links'!$G54,Estimating_GFA,HLOOKUP(H$49,Estimating_GFA,2,FALSE),FALSE),0) -> 0.55 | I54: =IFERROR(VLOOKUP(Policy_Year_Input&'Calculation Links'!$G54,Estimating_GFA,HLOOKUP(I$49,Estimating_GFA,2,FALSE),FALSE),0) -> 2 | X54: Accommodation | Y54: =VLOOKUP(Credits_PolicyYear_Input&'Calculation Links'!$A54,ISA_Estimate,HLOOKUP(Y$49,ISA_Estimate,2,FALSE),FALSE) ->  | AF54: Accommodation | AG54: =VLOOKUP(Credits_PolicyYear_Input&'Calculation Links'!$G54,Estimating_GFA,HLOOKUP(AG$49,Estimating_GFA,2,FALSE),FALSE) ->  | AH54: =VLOOKUP(Credits_PolicyYear_Input&'Calculation Links'!$G54,Estimating_GFA,HLOOKUP(AH$49,Estimating_GFA,2,FALSE),FALSE) -> 
A55: Commercial | B55: =IFERROR(VLOOKUP(Policy_Year_Input&'Calculation Links'!$A55,ISA_Estimate,HLOOKUP(B$49,ISA_Estimate,2,FALSE),FALSE),0) -> 0.75 | G55: Commercial | H55: =IFERROR(VLOOKUP(Policy_Year_Input&'Calculation Links'!$G55,Estimating_GFA,HLOOKUP(H$49,Estimating_GFA,2,FALSE),FALSE),0) -> 0.75 | I55: =IFERROR(VLOOKUP(Policy_Year_Input&'Calculation Links'!$G55,Estimating_GFA,HLOOKUP(I$49,Estimating_GFA,2,FALSE),FALSE),0) -> 1 | X55: Commercial | Y55: =VLOOKUP(Credits_PolicyYear_Input&'Calculation Links'!$A55,ISA_Estimate,HLOOKUP(Y$49,ISA_Estimate,2,FALSE),FALSE) ->  | AF55: Commercial | AG55: =VLOOKUP(Credits_PolicyYear_Input&'Calculation Links'!$G55,Estimating_GFA,HLOOKUP(AG$49,Estimating_GFA,2,FALSE),FALSE) ->  | AH55: =VLOOKUP(Credits_PolicyYear_Input&'Calculation Links'!$G55,Estimating_GFA,HLOOKUP(AH$49,Estimating_GFA,2,FALSE),FALSE) -> 
A56: Childcare Centre | B56: =IFERROR(VLOOKUP(Policy_Year_Input&'Calculation Links'!$A56,ISA_Estimate,HLOOKUP(B$49,ISA_Estimate,2,FALSE),FALSE),0) -> 0.75 | G56: Childcare Centre | H56: =IFERROR(VLOOKUP(Policy_Year_Input&'Calculation Links'!$G56,Estimating_GFA,HLOOKUP(H$49,Estimating_GFA,2,FALSE),FALSE),0) -> 0.75 | I56: =IFERROR(VLOOKUP(Policy_Year_Input&'Calculation Links'!$G56,Estimating_GFA,HLOOKUP(I$49,Estimating_GFA,2,FALSE),FALSE),0) -> 1 | X56: Childcare Centre | Y56: =VLOOKUP(Credits_PolicyYear_Input&'Calculation Links'!$A56,ISA_Estimate,HLOOKUP(Y$49,ISA_Estimate,2,FALSE),FALSE) ->  | AF56: Childcare Centre | AG56: =VLOOKUP(Credits_PolicyYear_Input&'Calculation Links'!$G56,Estimating_GFA,HLOOKUP(AG$49,Estimating_GFA,2,FALSE),FALSE) ->  | AH56: =VLOOKUP(Credits_PolicyYear_Input&'Calculation Links'!$G56,Estimating_GFA,HLOOKUP(AH$49,Estimating_GFA,2,FALSE),FALSE) -> 
A57: Industrial | B57: =IFERROR(VLOOKUP(Policy_Year_Input&'Calculation Links'!$A57,ISA_Estimate,HLOOKUP(B$49,ISA_Estimate,2,FALSE),FALSE),0) -> 0.3 | G57: Industrial | H57: =IFERROR(VLOOKUP(Policy_Year_Input&'Calculation Links'!$G57,Estimating_GFA,HLOOKUP(H$49,Estimating_GFA,2,FALSE),FALSE),0) -> 0.3 | I57: =IFERROR(VLOOKUP(Policy_Year_Input&'Calculation Links'!$G57,Estimating_GFA,HLOOKUP(I$49,Estimating_GFA,2,FALSE),FALSE),0) -> 1 | X57: Industrial | Y57: =VLOOKUP(Credits_PolicyYear_Input&'Calculation Links'!$A57,ISA_Estimate,HLOOKUP(Y$49,ISA_Estimate,2,FALSE),FALSE) ->  | AF57: Industrial | AG57: =VLOOKUP(Credits_PolicyYear_Input&'Calculation Links'!$G57,Estimating_GFA,HLOOKUP(AG$49,Estimating_GFA,2,FALSE),FALSE) ->  | AH57: =VLOOKUP(Credits_PolicyYear_Input&'Calculation Links'!$G57,Estimating_GFA,HLOOKUP(AH$49,Estimating_GFA,2,FALSE),FALSE) -> 
A58: Country Dwelling | B58: =IFERROR(VLOOKUP(Policy_Year_Input&'Calculation Links'!$A58,ISA_Estimate,HLOOKUP(B$49,ISA_Estimate,2,FALSE),FALSE),0) -> 0 | D58: Base GFA | G58: Country Dwelling | H58: =IFERROR(VLOOKUP(Policy_Year_Input&'Calculation Links'!$G58,Estimating_GFA,HLOOKUP(H$49,Estimating_GFA,2,FALSE),FALSE),0) -> 0 | I58: =IFERROR(VLOOKUP(Policy_Year_Input&'Calculation Links'!$G58,Estimating_GFA,HLOOKUP(I$49,Estimating_GFA,2,FALSE),FALSE),0) -> 0 | X58: Country Dwelling | Y58: =VLOOKUP(Credits_PolicyYear_Input&'Calculation Links'!$A58,ISA_Estimate,HLOOKUP(Y$49,ISA_Estimate,2,FALSE),FALSE) ->  | AB58: Base GFA | AF58: Country Dwelling | AG58: =VLOOKUP(Credits_PolicyYear_Input&'Calculation Links'!$G58,Estimating_GFA,HLOOKUP(AG$49,Estimating_GFA,2,FALSE),FALSE) ->  | AH58: =VLOOKUP(Credits_PolicyYear_Input&'Calculation Links'!$G58,Estimating_GFA,HLOOKUP(AH$49,Estimating_GFA,2,FALSE),FALSE) -> 
A59: Country Dwelling Flat | B59: =B47 -> 0 | G59: Country Dwelling Flat | H59: =H47 -> 0 | I59: =I47 -> 0 | X59: Country Dwelling Flat | Y59: =Y47 -> 0 | AF59: Country Dwelling Flat | AG59: =AG47 -> 0 | AH59: =AH51 -> 
A60: Other | B60: =IFERROR(VLOOKUP(Policy_Year_Input&'Calculation Links'!$A60,ISA_Estimate,HLOOKUP(B$49,ISA_Estimate,2,FALSE),FALSE),0) -> 0 | E60: Base GFA (m2) | G60: Other | H60: =IFERROR(VLOOKUP(Policy_Year_Input&'Calculation Links'!$G60,Estimating_GFA,HLOOKUP(H$49,Estimating_GFA,2,FALSE),FALSE),0) -> 0 | I60: =IFERROR(VLOOKUP(Policy_Year_Input&'Calculation Links'!$G60,Estimating_GFA,HLOOKUP(I$49,Estimating_GFA,2,FALSE),FALSE),0) -> 0 | X60: Other | Y60: =VLOOKUP(Credits_PolicyYear_Input&'Calculation Links'!$A60,ISA_Estimate,HLOOKUP(Y$49,ISA_Estimate,2,FALSE),FALSE) ->  | AC60: Base GFA (m2) | AF60: Other | AG60: =VLOOKUP(Credits_PolicyYear_Input&'Calculation Links'!$G60,Estimating_GFA,HLOOKUP(AG$49,Estimating_GFA,2,FALSE),FALSE) ->  | AH60: =VLOOKUP(Credits_PolicyYear_Input&'Calculation Links'!$G60,Estimating_GFA,HLOOKUP(AH$49,Estimating_GFA,2,FALSE),FALSE) -> 
A61: CBD Accommodation | B61: =IFERROR(VLOOKUP(Policy_Year_Input&'Calculation Links'!$A61,ISA_Estimate,HLOOKUP(B$49,ISA_Estimate,2,FALSE),FALSE),0) -> 0.8 | D61: Base GFA | E61: =VLOOKUP(Policy_Year_Input&'Calculation Links'!$D61,Base_GFA,HLOOKUP(E$60,Base_GFA,2,FALSE),FALSE) -> 140 | G61: CBD Accommodation | H61: =IFERROR(VLOOKUP(Policy_Year_Input&'Calculation Links'!$G61,Estimating_GFA,HLOOKUP(H$49,Estimating_GFA,2,FALSE),FALSE),0) -> 0.8 | I61: =IFERROR(VLOOKUP(Policy_Year_Input&'Calculation Links'!$G61,Estimating_GFA,HLOOKUP(I$49,Estimating_GFA,2,FALSE),FALSE),0) -> 2 | X61: CBD Accommodation | Y61: =VLOOKUP(Credits_PolicyYear_Input&'Calculation Links'!$A61,ISA_Estimate,HLOOKUP(Y$49,ISA_Estimate,2,FALSE),FALSE) ->  | AB61: Base GFA | AC61: =VLOOKUP(Credits_PolicyYear_Input&'Calculation Links'!$D61,Base_GFA,HLOOKUP(AC$60,Base_GFA,2,FALSE),FALSE) ->  | AF61: CBD Accommodation | AG61: =VLOOKUP(Credits_PolicyYear_Input&'Calculation Links'!$G61,Estimating_GFA,HLOOKUP(AG$49,Estimating_GFA,2,FALSE),FALSE) ->  | AH61: =VLOOKUP(Credits_PolicyYear_Input&'Calculation Links'!$G61,Estimating_GFA,HLOOKUP(AH$49,Estimating_GFA,2,FALSE),FALSE) -> 
A62: CBD Commercial | B62: =IFERROR(VLOOKUP(Policy_Year_Input&'Calculation Links'!$A62,ISA_Estimate,HLOOKUP(B$49,ISA_Estimate,2,FALSE),FALSE),0) -> 0.8 | G62: CBD Commercial | H62: =IFERROR(VLOOKUP(Policy_Year_Input&'Calculation Links'!$G62,Estimating_GFA,HLOOKUP(H$49,Estimating_GFA,2,FALSE),FALSE),0) -> 0.8 | I62: =IFERROR(VLOOKUP(Policy_Year_Input&'Calculation Links'!$G62,Estimating_GFA,HLOOKUP(I$49,Estimating_GFA,2,FALSE),FALSE),0) -> 2 | X62: CBD Commercial | Y62: =VLOOKUP(Credits_PolicyYear_Input&'Calculation Links'!$A62,ISA_Estimate,HLOOKUP(Y$49,ISA_Estimate,2,FALSE),FALSE) ->  | AF62: CBD Commercial | AG62: =VLOOKUP(Credits_PolicyYear_Input&'Calculation Links'!$G62,Estimating_GFA,HLOOKUP(AG$49,Estimating_GFA,2,FALSE),FALSE) ->  | AH62: =VLOOKUP(Credits_PolicyYear_Input&'Calculation Links'!$G62,Estimating_GFA,HLOOKUP(AH$49,Estimating_GFA,2,FALSE),FALSE) -> 
A63: Mixed Use Accommodation | B63: =IFERROR(VLOOKUP(Policy_Year_Input&'Calculation Links'!$A63,ISA_Estimate,HLOOKUP(B$49,ISA_Estimate,2,FALSE),FALSE),0) -> 0.55 | G63: Mixed Use Accommodation | H63: =IFERROR(VLOOKUP(Policy_Year_Input&'Calculation Links'!$G63,Estimating_GFA,HLOOKUP(H$49,Estimating_GFA,2,FALSE),FALSE),0) -> 0.55 | I63: =IFERROR(VLOOKUP(Policy_Year_Input&'Calculation Links'!$G63,Estimating_GFA,HLOOKUP(I$49,Estimating_GFA,2,FALSE),FALSE),0) -> 1 | X63: Mixed Use Accommodation | Y63: =VLOOKUP(Credits_PolicyYear_Input&'Calculation Links'!$A63,ISA_Estimate,HLOOKUP(Y$49,ISA_Estimate,2,FALSE),FALSE) ->  | AF63: Mixed Use Accommodation | AG63: =VLOOKUP(Credits_PolicyYear_Input&'Calculation Links'!$G63,Estimating_GFA,HLOOKUP(AG$49,Estimating_GFA,2,FALSE),FALSE) ->  | AH63: =VLOOKUP(Credits_PolicyYear_Input&'Calculation Links'!$G63,Estimating_GFA,HLOOKUP(AH$49,Estimating_GFA,2,FALSE),FALSE) -> 
A64: Mixed Use Commercial | B64: =IFERROR(VLOOKUP(Policy_Year_Input&'Calculation Links'!$A64,ISA_Estimate,HLOOKUP(B$49,ISA_Estimate,2,FALSE),FALSE),0) -> 0.55 | G64: Mixed Use Commercial | H64: =IFERROR(VLOOKUP(Policy_Year_Input&'Calculation Links'!$G64,Estimating_GFA,HLOOKUP(H$49,Estimating_GFA,2,FALSE),FALSE),0) -> 0.55 | I64: =IFERROR(VLOOKUP(Policy_Year_Input&'Calculation Links'!$G64,Estimating_GFA,HLOOKUP(I$49,Estimating_GFA,2,FALSE),FALSE),0) -> 1 | X64: Mixed Use Commercial | Y64: =VLOOKUP(Credits_PolicyYear_Input&'Calculation Links'!$A64,ISA_Estimate,HLOOKUP(Y$49,ISA_Estimate,2,FALSE),FALSE) ->  | AF64: Mixed Use Commercial | AG64: =VLOOKUP(Credits_PolicyYear_Input&'Calculation Links'!$G64,Estimating_GFA,HLOOKUP(AG$49,Estimating_GFA,2,FALSE),FALSE) ->  | AH64: =VLOOKUP(Credits_PolicyYear_Input&'Calculation Links'!$G64,Estimating_GFA,HLOOKUP(AH$49,Estimating_GFA,2,FALSE),FALSE) -> 
A65: Primary Industry | B65: =IFERROR(VLOOKUP(Policy_Year_Input&'Calculation Links'!$A65,ISA_Estimate,HLOOKUP(B$49,ISA_Estimate,2,FALSE),FALSE),0) -> 0 | G65: Primary Industry | H65: =IFERROR(VLOOKUP(Policy_Year_Input&'Calculation Links'!$G65,Estimating_GFA,HLOOKUP(H$49,Estimating_GFA,2,FALSE),FALSE),0) -> 0 | I65: =IFERROR(VLOOKUP(Policy_Year_Input&'Calculation Links'!$G65,Estimating_GFA,HLOOKUP(I$49,Estimating_GFA,2,FALSE),FALSE),0) -> 0 | X65: Primary Industry | Y65: =VLOOKUP(Credits_PolicyYear_Input&'Calculation Links'!$A65,ISA_Estimate,HLOOKUP(Y$49,ISA_Estimate,2,FALSE),FALSE) ->  | AF65: Primary Industry | AG65: =VLOOKUP(Credits_PolicyYear_Input&'Calculation Links'!$G65,Estimating_GFA,HLOOKUP(AG$49,Estimating_GFA,2,FALSE),FALSE) ->  | AH65: =VLOOKUP(Credits_PolicyYear_Input&'Calculation Links'!$G65,Estimating_GFA,HLOOKUP(AH$49,Estimating_GFA,2,FALSE),FALSE) -> 
A66: Accommodation - Rural | B66: =B54 -> 0.55 | G66: Accommodation - Rural | H66: =H54 -> 0.55 | I66: =I54 -> 2 | X66: Accommodation - Rural | Y66: =Y54 ->  | AF66: Accommodation - Rural | AG66: =AG54 ->  | AH66: =AH54 -> 
A67: Restaurant/Bar | B67: =IFERROR(VLOOKUP(Policy_Year_Input&'Calculation Links'!$A67,ISA_Estimate,HLOOKUP(B$49,ISA_Estimate,2,FALSE),FALSE),0) -> 0.75 | G67: Restaurant/Bar | H67: =IFERROR(VLOOKUP(Policy_Year_Input&'Calculation Links'!$G67,Estimating_GFA,HLOOKUP(H$49,Estimating_GFA,2,FALSE),FALSE),0) -> 0.75 | I67: =IFERROR(VLOOKUP(Policy_Year_Input&'Calculation Links'!$G67,Estimating_GFA,HLOOKUP(I$49,Estimating_GFA,2,FALSE),FALSE),0) -> 1 | X67: Restaurant/Bar | Y67: =VLOOKUP(Credits_PolicyYear_Input&'Calculation Links'!$A67,ISA_Estimate,HLOOKUP(Y$49,ISA_Estimate,2,FALSE),FALSE) ->  | AF67: Restaurant/Bar | AG67: =VLOOKUP(Credits_PolicyYear_Input&'Calculation Links'!$G67,Estimating_GFA,HLOOKUP(AG$49,Estimating_GFA,2,FALSE),FALSE) ->  | AH67: =VLOOKUP(Credits_PolicyYear_Input&'Calculation Links'!$G67,Estimating_GFA,HLOOKUP(AH$49,Estimating_GFA,2,FALSE),FALSE) -> 

Sheet Policy Inputs (hidden)
D1: Standard Contributions | O1: Land Use Differentials | AD1: Land Use Differential Type | AS1: Impermeable Surface Area Estimates | AX1: Estimating GFA Table | BD1: Roading - Primary Industry Area | BI1: Base GFA | BN1: Reserve Land Prices (GST Inclusive)
O2: Water Supply | Q2: Wastewater | R2: Stormwater | S2: Reserve Improvements & Community Facilities | U2: Reserve Land | W2: Roading | Y2: Roading - EAR | AD2: Water Supply | AF2: Wastewater | AG2: Stormwater | AH2: Reserve Improvements & Community Facilities | AJ2: Reserve Land | AL2: Roading | AN2: Roading - EAR
D3: Water Supply | E3: Wastewater | F3: Stormwater | G3: Reserve Improvements | H3: Community Facilities | I3: Transportation | J3: Transportation - EAR | O3: Dwelling Equivalents per 100m² GFA | P3: Plus Network Factor Dwelling Equivalents | Q3: Dwelling Equivalents per 100m² GFA | R3: Dwelling Equivalents per 100m² Impervious Surface Area | S3: Dwelling Equivalents per 100m² GFA for Wakatipu | T3: Dwelling Equivalents per 100m² GFA for Wanaka | U3: Dwelling Equivalents per 100m² GFA for Wakatipu | V3: Dwelling Equivalents per 100m² GFA for Wanaka | W3: Dwelling Equivalents per 100m² GFA for Wakatipu | X3: Dwelling Equivalents per 100m² GFA for Wanaka | Y3: Dwelling Equivalents per 100m² GFA for Wakatipu | AD3: Dwelling Equivalents per 100m² GFA | AE3: Plus Network Factor Dwelling Equivalents | AF3: Dwelling Equivalents per 100m² GFA | AG3: Dwelling Equivalents per 100m² Impervious Surface Area | AH3: Dwelling Equivalents per 100m² GFA for Wakatipu | AI3: Dwelling Equivalents per 100m² GFA for Wanaka | AJ3: Dwelling Equivalents per 100m² GFA for Wakatipu | AK3: Dwelling Equivalents per 100m² GFA for Wanaka | AL3: Dwelling Equivalents per 100m² GFA for Wakatipu | AM3: Dwelling Equivalents per 100m² GFA for Wanaka | AN3: Dwelling Equivalents per 100m² GFA for Wakatipu | AS3: Building Coverage | AX3: Building Coverage | AY3: No. of Floors | BD3: Area per 1.3 DE's (m2) | BI3: Base GFA (m2) | BN3: Township | BO3: Urban
D4: =D3 -> Water Supply | E4: Wastewater | F4: Stormwater | G4: Reserve Improvements | H4: Community Facilities | I4: =I3 -> Transportation | J4: Transportation - EAR | O4: =O2&O3 -> Water SupplyDwelling Equivalents per 100m² GFA | P4: =O2&P3 -> Water SupplyPlus Network Factor Dwelling Equivalents | Q4: =Q2&Q3 -> WastewaterDwelling Equivalents per 100m² GFA | R4: StormwaterDwelling Equivalents per 100m² Impervious Surface Area | S4: Reserve Improvements & Community FacilitiesDwelling Equivalents per 100m² GFA for Wakatipu | T4: =S2&T3 -> Reserve Improvements & Community FacilitiesDwelling Equivalents per 100m² GFA for Wanaka | U4: Reserve LandDwelling Equivalents per 100m² GFA for Wakatipu | V4: =U2&V3 -> Reserve LandDwelling Equivalents per 100m² GFA for Wanaka | W4: =W2&W3 -> RoadingDwelling Equivalents per 100m² GFA for Wakatipu | X4: =W2&X3 -> RoadingDwelling Equivalents per 100m² GFA for Wanaka | Y4: Roading - EARDwelling Equivalents per 100m² GFA for Wakatipu | AD4: =AD2&AD3 -> Water SupplyDwelling Equivalents per 100m² GFA | AE4: =AD2&AE3 -> Water SupplyPlus Network Factor Dwelling Equivalents | AF4: =AF2&AF3 -> WastewaterDwelling Equivalents per 100m² GFA | AG4: =AG2&AG3 -> StormwaterDwelling Equivalents per 100m² Impervious Surface Area | AH4: =AH2&AH3 -> Reserve Improvements & Community FacilitiesDwelling Equivalents per 100m² GFA for Wakatipu | AI4: =AH2&AI3 -> Reserve Improvements & Community FacilitiesDwelling Equivalents per 100m² GFA for Wanaka | AJ4: =AJ2&AJ3 -> Reserve LandDwelling Equivalents per 100m² GFA for Wakatipu | AK4: =AJ2&AK3 -> Reserve LandDwelling Equivalents per 100m² GFA for Wanaka | AL4: =AL2&AL3 -> RoadingDwelling Equivalents per 100m² GFA for Wakatipu | AM4: =AL2&AM3 -> RoadingDwelling Equivalents per 100m² GFA for Wanaka | AN4: =AN2&AN3 -> Roading - EARDwelling Equivalents per 100m² GFA for Wakatipu | AS4: =AS3 -> Building Coverage | AX4: =AX3 -> Building Coverage | AY4: =AY3 -> No. of Floors | BD4: =BD3 -> Area per 1.3 DE's (m2) | BI4: =BI3 -> Base GFA (m2) | BN4: =BN3 -> Township | BO4: =BO3 -> Urban
C5: 1 | D5: =C5+1 -> 2 | E5: 3 | F5: 4 | G5: 5 | H5: 6 | I5: 7 | J5: 8 | N5: 1 | O5: =N5+1 -> 2 | P5: 3 | Q5: 4 | R5: 5 | S5: 6 | T5: 7 | U5: 8 | V5: 9 | W5: 10 | X5: 11 | Y5: 12 | AC5: 1 | AD5: =AC5+1 -> 2 | AE5: 3 | AF5: 4 | AG5: 5 | AH5: 6 | AI5: 7 | AJ5: 8 | AK5: 9 | AL5: 10 | AM5: 11 | AN5: 12 | AR5: 1 | AS5: =AR5+1 -> 2 | AW5: 1 | AX5: =AW5+1 -> 2 | AY5: =AX5+1 -> 3 | BC5: 1 | BD5: =BC5+1 -> 2 | BH5: 1 | BI5: =BH5+1 -> 2
D6: 2007/08 | O6: =D6 -> 2007/08 | AD6: =O6 -> 2007/08 | AS6: =O6 -> 2007/08 | AX6: =AS6 -> 2007/08 | BD6: =AX6 -> 2007/08 | BI6: =BD6 -> 2007/08 | BN6: =BI6 -> 2007/08
A7: =D6 -> 2007/08 | B7: Queenstown | C7: =A7&B7 -> 2007/08Queenstown | D7: 3610 | E7: 3927 | F7: 685 | G7: 1833 | H7: 2410 | I7: 2639 | L7: =O6 -> 2007/08 | M7: Residential | N7: =L7&M7 -> 2007/08Residential | O7: 1 | Q7: 1 | R7: 1 | S7: 1 | T7: 1 | U7: 1 | V7: 1 | W7: 1 | X7: 1 | AA7: =AD6 -> 2007/08 | AB7: Residential | AC7: =AA7&AB7 -> 2007/08Residential | AD7: Unit | AE7: Unit | AF7: Unit | AG7: Unit | AH7: Unit | AI7: Unit | AJ7: Unit | AK7: Unit | AL7: Unit | AM7: Unit | AN7: Unit | AP7: =AS6 -> 2007/08 | AQ7: Residential | AR7: =AP7&AQ7 -> 2007/08Residential | AU7: =AX6 -> 2007/08 | AV7: Residential | AW7: =AU7&AV7 -> 2007/08Residential | BA7: =BD6 -> 2007/08 | BB7: Wakatipu | BC7: =BA7&BB7 -> 2007/08Wakatipu | BD7: 270000 | BF7: =BI6 -> 2007/08 | BG7: Base GFA | BH7: =BF7&BG7 -> 2007/08Base GFA | BI7: 143 | BK7: =BN6 -> 2007/08 | BL7: Wakatipu | BM7: =BK7&BL7 -> 2007/08Wakatipu | BZ7: Consent Lodged | CA7: =Consent_Lodged_Date -> 2018-07-01
A8: =A7 -> 2007/08 | B8: Arrowtown | C8: 2007/08Arrowtown | D8: 6057 | E8: 5273 | F8: 425 | G8: 1833 | H8: 2410 | I8: 2639 | L8: =L7 -> 2007/08 | M8: Residential Flat | N8: =L8&M8 -> 2007/08Residential Flat | O8: 0.42 | P8: 0.4 | Q8: 0.7 | R8: 0.37 | S8: 0.7 | T8: 0.7 | U8: 0.7 | V8: 0.7 | W8: 0.7 | X8: 0.69 | AA8: =AA7 -> 2007/08 | AB8: Residential Flat | AC8: =AA8&AB8 -> 2007/08Residential Flat | AD8: Unit | AE8: Unit | AF8: Unit | AG8: Unit | AH8: Unit | AI8: Unit | AJ8: Unit | AK8: Unit | AL8: Unit | AM8: Unit | AN8: Unit | AP8: =AP7 -> 2007/08 | AQ8: Residential Flat | AR8: 2007/08Residential Flat | AU8: =AU7 -> 2007/08 | AV8: Residential Flat | AW8: 2007/08Residential Flat | BA8: =BA7 -> 2007/08 | BB8: Wanaka | BC8: =BA8&BB8 -> 2007/08Wanaka | BD8: 410000 | BK8: =BK7 -> 2007/08 | BL8: Wanaka | BM8: =BK8&BL8 -> 2007/08Wanaka | BZ8: Consent Granted | CA8: =Consent_Granted_Date -> 2018-07-01
A9: =A8 -> 2007/08 | B9: Glenorchy | C9: 2007/08Glenorchy | D9: 8106 | E9: 0 | F9: 1404 | G9: 1833 | H9: 2410 | I9: 2639 | L9: =L8 -> 2007/08 | M9: Multi Unit Residential | N9: 2007/08Multi Unit Residential | O9: 0.42 | P9: 0.4 | Q9: 0.7 | R9: 0.37 | S9: 0.7 | T9: 0.7 | U9: 0.7 | V9: 0.7 | W9: 0.7 | X9: 0.69 | AA9: =AA8 -> 2007/08 | AB9: Multi Unit Residential | AC9: 2007/08Multi Unit Residential | AD9: Unit | AE9: Unit | AF9: Unit | AG9: GFA | AH9: GFA | AI9: GFA | AJ9: GFA | AK9: GFA | AL9: GFA | AM9: GFA | AN9: GFA | AP9: =AP8 -> 2007/08 | AQ9: Multi Unit Residential | AR9: 2007/08Multi Unit Residential | AU9: =AU8 -> 2007/08 | AV9: Multi Unit Residential | AW9: 2007/08Multi Unit Residential | BZ9: Policy Year | CA9: =IF(CA8<CA7,"Check Dates",MAX(IF((CA7>=CA12:CL12)*(CA8>=BZ13:BZ36),CA13:CL36))&"/"&RIGHT(MAX(IF((CA7>=CA12:CL12)*(CA8>=BZ13:BZ36),CA13:CL36))+1,2)) -> 2018/19
A10: 2007/08 | B10: Lake Hayes | C10: 2007/08Lake Hayes | D10: 6108 | E10: 7833 | G10: 1833 | H10: 2410 | I10: 2639 | L10: 2007/08 | M10: Accommodation | N10: 2007/08Accommodation | O10: 0.27 | P10: 1.3 | Q10: 0.61 | R10: 0.37 | S10: 0.98 | T10: 1.07 | U10: 0.98 | V10: 1.07 | W10: 0.83 | X10: 1.65 | AA10: 2007/08 | AB10: Accommodation | AC10: 2007/08Accommodation | AD10: GFA | AE10: GFA | AF10: GFA | AG10: GFA | AH10: GFA | AI10: GFA | AJ10: GFA | AK10: GFA | AL10: GFA | AM10: GFA | AN10: GFA | AP10: 2007/08 | AQ10: Accommodation | AR10: 2007/08Accommodation | AS10: 0.55 | AU10: 2007/08 | AV10: Accommodation | AW10: 2007/08Accommodation | AX10: 0.55 | AY10: 2 | CL10: *Check date of LTP Submissions
A11: 2007/08 | B11: Arthurs Point | C11: 2007/08Arthurs Point | D11: 5663 | E11: 4654 | F11: 204 | G11: 1833 | H11: 2410 | I11: 2639 | L11: 2007/08 | M11: Commercial | N11: 2007/08Commercial | O11: 0.05 | P11: 1.2 | Q11: 0.17 | R11: 0.37 | S11: 0.04 | T11: 0.03 | U11: 0.04 | V11: 0.03 | W11: 0.94 | X11: 1.08 | AA11: 2007/08 | AB11: Commercial | AC11: 2007/08Commercial | AD11: GFA | AE11: GFA | AF11: GFA | AG11: GFA | AH11: GFA | AI11: GFA | AJ11: GFA | AK11: GFA | AL11: GFA | AM11: GFA | AN11: GFA | AP11: 2007/08 | AQ11: Commercial | AR11: 2007/08Commercial | AS11: 0.75 | AU11: 2007/08 | AV11: Commercial | AW11: 2007/08Commercial | AX11: 0.75 | AY11: 1 | CA11: Consent Lodged (On or After)
A12: 2007/08 | B12: Wanaka | C12: 2007/08Wanaka | D12: 5078 | E12: 5828 | F12: 1163 | G12: 1798 | H12: 1636 | I12: 2802 | L12: 2007/08 | M12: Country Dwelling | N12: 2007/08Country Dwelling | O12: 1 | Q12: 1 | R12: 1 | S12: 1 | T12: 1 | U12: 0.66 | V12: 0.66 | W12: 1.2 | X12: 1.1 | AA12: 2007/08 | AB12: Country Dwelling | AC12: 2007/08Country Dwelling | AD12: Unit | AE12: Unit | AF12: Unit | AG12: Unit | AH12: Unit | AI12: Unit | AJ12: Unit | AK12: Unit | AL12: Unit | AM12: Unit | AN12: Unit | AP12: 2007/08 | AQ12: Country Dwelling | AR12: 2007/08Country Dwelling | AU12: 2007/08 | AV12: Country Dwelling | AW12: 2007/08Country Dwelling | CA12: 2007-04-02 | CB12: 2008-04-05 | CC12: 2009-04-17 | CD12: 2010-04-17 | CE12: 2011-04-16 | CF12: 2012-04-16 | CG12: 2013-04-12 | CH12: 2014-04-17 | CI12: 2015-03-25 | CJ12: 2016-04-06 | CK12: 2017-03-27 | CL12: 2018-04-13
A13: 2007/08 | B13: Hawea | C13: 2007/08Hawea | D13: 5346 | E13: 3644 | F13: 399 | G13: 1798 | H13: 1636 | I13: 2802 | L13: 2007/08 | M13: Other | N13: 2007/08Other | AA13: 2007/08 | AB13: Other | AC13: 2007/08Other | AD13: Unit | AE13: Unit | AF13: Unit | AG13: GFA | AH13: GFA | AI13: GFA | AJ13: GFA | AK13: GFA | AL13: GFA | AM13: GFA | AN13: GFA | AP13: 2007/08 | AQ13: Other | AR13: 2007/08Other | AU13: 2007/08 | AV13: Other | AW13: 2007/08Other | BY13: Consent Granted (On or After) | BZ13: 2007-04-02 | CA13: 2006
A14: 2007/08 | B14: Albert Town | C14: 2007/08Albert Town | D14: 5078 | E14: 4791 | F14: 952 | G14: 1798 | H14: 1636 | I14: 2802 | L14: 2007/08 | M14: CBD Accommodation | N14: 2007/08CBD Accommodation | O14: 0.27 | P14: 1.3 | Q14: 0.61 | R14: 0.37 | S14: 0.98 | T14: 1.07 | U14: 0.98 | V14: 1.07 | W14: 0.83 | X14: 1.65 | AA14: 2007/08 | AB14: CBD Accommodation | AC14: 2007/08CBD Accommodation | AD14: GFA | AE14: GFA | AF14: GFA | AG14: GFA | AH14: GFA | AI14: GFA | AJ14: GFA | AK14: GFA | AL14: GFA | AM14: GFA | AN14: GFA | AP14: 2007/08 | AQ14: CBD Accommodation | AR14: 2007/08CBD Accommodation | AS14: 0.8 | AU14: 2007/08 | AV14: CBD Accommodation | AW14: 2007/08CBD Accommodation | AX14: 0.8 | AY14: 2 | BZ14: 2007-07-01 | CA14: 2007
A15: 2007/08 | B15: Luggate | C15: 2007/08Luggate | D15: 3502 | E15: 0 | G15: 1798 | H15: 1636 | I15: 2802 | L15: 2007/08 | M15: CBD Commercial | N15: 2007/08CBD Commercial | O15: 0.05 | P15: 1.2 | Q15: 0.17 | R15: 0.37 | S15: 0.04 | T15: 0.03 | U15: 0.04 | V15: 0.03 | W15: 0.94 | X15: 1.08 | AA15: 2007/08 | AB15: CBD Commercial | AC15: 2007/08CBD Commercial | AD15: GFA | AE15: GFA | AF15: GFA | AG15: GFA | AH15: GFA | AI15: GFA | AJ15: GFA | AK15: GFA | AL15: GFA | AM15: GFA | AN15: GFA | AP15: 2007/08 | AQ15: CBD Commercial | AR15: 2007/08CBD Commercial | AS15: 0.8 | AU15: 2007/08 | AV15: CBD Commercial | AW15: 2007/08CBD Commercial | AX15: 0.8 | AY15: 2 | BZ15: 2008-04-05 | CA15: 2007 | CB15: 2007
A16: 2007/08 | B16: Other Wakatipu | C16: 2007/08Other Wakatipu | G16: 1833 | H16: 2410 | I16: 2639 | L16: 2007/08 | M16: Mixed Use Accommodation | N16: 2007/08Mixed Use Accommodation | O16: 1 | Q16: 1 | R16: 0.37 | S16: 0.78 | T16: 0.8 | U16: 0.78 | V16: 0.8 | W16: 0.52 | X16: 0.52 | AA16: 2007/08 | AB16: Mixed Use Accommodation | AC16: 2007/08Mixed Use Accommodation | AD16: Unit | AE16: Unit | AF16: Unit | AG16: GFA | AH16: GFA | AI16: GFA | AJ16: GFA | AK16: GFA | AL16: GFA | AM16: GFA | AN16: GFA | AP16: 2007/08 | AQ16: Mixed Use Accommodation | AR16: 2007/08Mixed Use Accommodation | AS16: 0.55 | AU16: 2007/08 | AV16: Mixed Use Accommodation | AW16: 2007/08Mixed Use Accommodation | AX16: 0.55 | AY16: 1 | BZ16: 2008-07-01 | CA16: 2007 | CB16: 2008
A17: 2007/08 | B17: Other Wanaka | C17: 2007/08Other Wanaka | G17: 1798 | H17: 1636 | I17: 2802 | L17: 2007/08 | M17: Mixed Use Commercial | N17: 2007/08Mixed Use Commercial | O17: 1 | Q17: 1 | R17: 0.37 | S17: 0.78 | T17: 0.8 | U17: 0.78 | V17: 0.8 | W17: 0.59 | X17: 0.51 | AA17: 2007/08 | AB17: Mixed Use Commercial | AC17: 2007/08Mixed Use Commercial | AD17: Unit | AE17: Unit | AF17: Unit | AG17: GFA | AH17: GFA | AI17: GFA | AJ17: GFA | AK17: GFA | AL17: GFA | AM17: GFA | AN17: GFA | AP17: 2007/08 | AQ17: Mixed Use Commercial | AR17: 2007/08Mixed Use Commercial | AS17: 0.55 | AU17: 2007/08 | AV17: Mixed Use Commercial | AW17: 2007/08Mixed Use Commercial | AX17: 0.55 | AY17: 1 | BZ17: 2009-04-17 | CA17: 2007 | CB17: 2008 | CC17: 2008
L18: 2007/08 | M18: Primary Industry | N18: 2007/08Primary Industry | O18: 1 | Q18: 1 | R18: 1 | S18: 1 | T18: 1 | U18: 0.66 | V18: 0.66 | W18: 1.4 | X18: 1.4 | AA18: 2007/08 | AB18: Primary Industry | AC18: 2007/08Primary Industry | AD18: Unit | AE18: Unit | AF18: Unit | AG18: Unit | AH18: Unit | AI18: Unit | AJ18: Unit | AK18: Unit | AL18: Unit | AM18: Unit | AN18: Unit | AP18: 2007/08 | AQ18: Primary Industry | AR18: 2007/08Primary Industry | AU18: 2007/08 | AV18: Primary Industry | AW18: 2007/08Primary Industry | BZ18: 2009-07-01 | CA18: 2007 | CB18: 2008 | CC18: 2009
L19: 2007/08 | M19: Restaurant/Bar | N19: 2007/08Restaurant/Bar | O19: 0.4 | P19: 1.2 | Q19: 1.3 | R19: 0.37 | S19: 0.04 | T19: 0.03 | U19: 0.04 | V19: 0.03 | W19: 0.94 | X19: 1.08 | AA19: 2007/08 | AB19: Restaurant/Bar | AC19: 2007/08Restaurant/Bar | AD19: GFA | AE19: GFA | AF19: GFA | AG19: GFA | AH19: GFA | AI19: GFA | AJ19: GFA | AK19: GFA | AL19: GFA | AM19: GFA | AN19: GFA | AP19: 2007/08 | AQ19: Restaurant/Bar | AR19: 2007/08Restaurant/Bar | AS19: 0.75 | AU19: 2007/08 | AV19: Restaurant/Bar | AW19: 2007/08Restaurant/Bar | AX19: 0.75 | AY19: 1 | BZ19: 2010-04-17 | CA19: 2007 | CB19: 2008 | CC19: 2009 | CD19: 2009
D20: 2008/09 | O20: =D20 -> 2008/09 | AD20: =O20 -> 2008/09 | AS20: =O20 -> 2008/09 | AX20: =AS20 -> 2008/09 | BD20: =AX20 -> 2008/09 | BI20: =BD20 -> 2008/09 | BN20: =BI20 -> 2008/09 | BZ20: 2010-07-01 | CA20: 2007 | CB20: 2008 | CC20: 2009 | CD20: 2010
A21: =D20 -> 2008/09 | B21: Queenstown | C21: =A21&B21 -> 2008/09Queenstown | D21: 3762 | E21: 3856 | F21: 711 | G21: 1665 | H21: 2376 | I21: 2856 | L21: =O20 -> 2008/09 | M21: Residential | N21: =L21&M21 -> 2008/09Residential | O21: 1 | Q21: 1 | R21: 1 | S21: 1 | T21: 1 | U21: 1 | V21: 1 | W21: 1 | X21: 1 | AA21: =AD20 -> 2008/09 | AB21: Residential | AC21: =AA21&AB21 -> 2008/09Residential | AD21: Unit | AE21: Unit | AF21: Unit | AG21: Unit | AH21: Unit | AI21: Unit | AJ21: Unit | AK21: Unit | AL21: Unit | AM21: Unit | AN21: Unit | AP21: =AS20 -> 2008/09 | AQ21: Residential | AR21: =AP21&AQ21 -> 2008/09Residential | AU21: =AX20 -> 2008/09 | AV21: Residential | AW21: =AU21&AV21 -> 2008/09Residential | BA21: =BD20 -> 2008/09 | BB21: Wakatipu | BC21: =BA21&BB21 -> 2008/09Wakatipu | BD21: 270000 | BF21: =BI20 -> 2008/09 | BG21: Base GFA | BH21: =BF21&BG21 -> 2008/09Base GFA | BI21: 143 | BK21: =BN20 -> 2008/09 | BL21: Wakatipu | BM21: =BK21&BL21 -> 2008/09Wakatipu | BZ21: 2011-04-16 | CA21: 2007 | CB21: 2008 | CC21: 2009 | CD21: 2010 | CE21: 2010
A22: =A21 -> 2008/09 | B22: Arrowtown | C22: 2008/09Arrowtown | D22: 6597 | E22: 5209 | F22: 442 | G22: 1665 | H22: 2376 | I22: 2856 | L22: =L21 -> 2008/09 | M22: Residential Flat | N22: =L22&M22 -> 2008/09Residential Flat | O22: 0.42 | P22: 0.4 | Q22: 0.7 | R22: 0.37 | S22: 0.7 | T22: 0.7 | U22: 0.7 | V22: 0.7 | W22: 0.7 | X22: 0.69 | AA22: =AA21 -> 2008/09 | AB22: Residential Flat | AC22: =AA22&AB22 -> 2008/09Residential Flat | AD22: Unit | AE22: Unit | AF22: Unit | AG22: Unit | AH22: Unit | AI22: Unit | AJ22: Unit | AK22: Unit | AL22: Unit | AM22: Unit | AN22: Unit | AP22: =AP21 -> 2008/09 | AQ22: Residential Flat | AR22: 2008/09Residential Flat | AU22: =AU21 -> 2008/09 | AV22: Residential Flat | AW22: 2008/09Residential Flat | BA22: =BA21 -> 2008/09 | BB22: Wanaka | BC22: =BA22&BB22 -> 2008/09Wanaka | BD22: 410000 | BK22: =BK21 -> 2008/09 | BL22: Wanaka | BM22: =BK22&BL22 -> 2008/09Wanaka | BZ22: 2011-07-01 | CA22: 2007 | CB22: 2008 | CC22: 2009 | CD22: 2010 | CE22: 2011
A23: =A22 -> 2008/09 | B23: Glenorchy | C23: 2008/09Glenorchy | D23: 7465 | E23: 0 | F23: 1398 | G23: 1665 | H23: 2376 | I23: 2856 | L23: =L22 -> 2008/09 | M23: Multi Unit Residential | N23: 2008/09Multi Unit Residential | O23: 0.42 | P23: 0.4 | Q23: 0.7 | R23: 0.37 | S23: 0.7 | T23: 0.7 | U23: 0.7 | V23: 0.7 | W23: 0.7 | X23: 0.69 | AA23: =AA22 -> 2008/09 | AB23: Multi Unit Residential | AC23: 2008/09Multi Unit Residential | AD23: Unit | AE23: Unit | AF23: Unit | AG23: GFA | AH23: GFA | AI23: GFA | AJ23: GFA | AK23: GFA | AL23: GFA | AM23: GFA | AN23: GFA | AP23: =AP22 -> 2008/09 | AQ23: Multi Unit Residential | AR23: 2008/09Multi Unit Residential | AU23: =AU22 -> 2008/09 | AV23: Multi Unit Residential | AW23: 2008/09Multi Unit Residential | BZ23: 2012-04-16 | CA23: 2007 | CB23: 2008 | CC23: 2009 | CD23: 2010 | CE23: 2011 | CF23: 2011
A24: 2008/09 | B24: Lake Hayes | C24: 2008/09Lake Hayes | D24: 7782 | E24: 7779 | G24: 1665 | H24: 2376 | I24: 2856 | L24: 2008/09 | M24: Accommodation | N24: 2008/09Accommodation | O24: 0.27 | P24: 1.3 | Q24: 0.61 | R24: 0.37 | S24: 0.98 | T24: 1.07 | U24: 0.98 | V24: 1.07 | W24: 0.83 | X24: 1.65 | AA24: 2008/09 | AB24: Accommodation | AC24: 2008/09Accommodation | AD24: GFA | AE24: GFA | AF24: GFA | AG24: GFA | AH24: GFA | AI24: GFA | AJ24: GFA | AK24: GFA | AL24: GFA | AM24: GFA | AN24: GFA | AP24: 2008/09 | AQ24: Accommodation | AR24: 2008/09Accommodation | AS24: 0.55 | AU24: 2008/09 | AV24: Accommodation | AW24: 2008/09Accommodation | AX24: 0.55 | AY24: 2 | BZ24: 2012-07-01 | CA24: 2007 | CB24: 2008 | CC24: 2009 | CD24: 2010 | CE24: 2011 | CF24: 2012
A25: 2008/09 | B25: Arthurs Point | C25: 2008/09Arthurs Point | D25: 4959 | E25: 4838 | F25: 213 | G25: 1665 | H25: 2376 | I25: 2856 | L25: 2008/09 | M25: Commercial | N25: 2008/09Commercial | O25: 0.05 | P25: 1.2 | Q25: 0.17 | R25: 0.37 | S25: 0.04 | T25: 0.03 | U25: 0.04 | V25: 0.03 | W25: 0.94 | X25: 1.08 | AA25: 2008/09 | AB25: Commercial | AC25: 2008/09Commercial | AD25: GFA | AE25: GFA | AF25: GFA | AG25: GFA | AH25: GFA | AI25: GFA | AJ25: GFA | AK25: GFA | AL25: GFA | AM25: GFA | AN25: GFA | AP25: 2008/09 | AQ25: Commercial | AR25: 2008/09Commercial | AS25: 0.75 | AU25: 2008/09 | AV25: Commercial | AW25: 2008/09Commercial | AX25: 0.75 | AY25: 1 | BZ25: 2013-04-12 | CA25: 2007 | CB25: 2008 | CC25: 2009 | CD25: 2010 | CE25: 2011 | CF25: 2012 | CG25: 2012
A26: 2008/09 | B26: Wanaka | C26: 2008/09Wanaka | D26: 4989 | E26: 6339 | F26: 1231 | G26: 1870 | H26: 1664 | I26: 3100 | L26: 2008/09 | M26: Country Dwelling | N26: 2008/09Country Dwelling | O26: 1 | Q26: 1 | R26: 1 | S26: 1 | T26: 1 | U26: 0.66 | V26: 0.66 | W26: 1.2 | X26: 1.1 | AA26: 2008/09 | AB26: Country Dwelling | AC26: 2008/09Country Dwelling | AD26: Unit | AE26: Unit | AF26: Unit | AG26: Unit | AH26: Unit | AI26: Unit | AJ26: Unit | AK26: Unit | AL26: Unit | AM26: Unit | AN26: Unit | AP26: 2008/09 | AQ26: Country Dwelling | AR26: 2008/09Country Dwelling | AU26: 2008/09 | AV26: Country Dwelling | AW26: 2008/09Country Dwelling | BZ26: 2013-07-01 | CA26: 2007 | CB26: 2008 | CC26: 2009 | CD26: 2010 | CE26: 2011 | CF26: 2012 | CG26: 2013
A27: 2008/09 | B27: Hawea | C27: 2008/09Hawea | D27: 3997 | E27: 3982 | F27: 417 | G27: 1870 | H27: 1664 | I27: 3100 | L27: 2008/09 | M27: Other | N27: 2008/09Other | AA27: 2008/09 | AB27: Other | AC27: 2008/09Other | AD27: Unit | AE27: Unit | AF27: Unit | AG27: GFA | AH27: GFA | AI27: GFA | AJ27: GFA | AK27: GFA | AL27: GFA | AM27: GFA | AN27: GFA | AP27: 2008/09 | AQ27: Other | AR27: 2008/09Other | AU27: 2008/09 | AV27: Other | AW27: 2008/09Other | BZ27: =CH12 -> 2014-04-17 | CA27: 2007 | CB27: 2008 | CC27: 2009 | CD27: 2010 | CE27: 2011 | CF27: 2012 | CG27: 2013 | CH27: 2013
A28: 2008/09 | B28: Albert Town | C28: 2008/09Albert Town | D28: 4989 | E28: 4969 | F28: 988 | G28: 1870 | H28: 1664 | I28: 3100 | L28: 2008/09 | M28: CBD Accommodation | N28: 2008/09CBD Accommodation | O28: 0.27 | P28: 1.3 | Q28: 0.61 | R28: 0.37 | S28: 0.98 | T28: 1.07 | U28: 0.98 | V28: 1.07 | W28: 0.83 | X28: 1.65 | AA28: 2008/09 | AB28: CBD Accommodation | AC28: 2008/09CBD Accommodation | AD28: GFA | AE28: GFA | AF28: GFA | AG28: GFA | AH28: GFA | AI28: GFA | AJ28: GFA | AK28: GFA | AL28: GFA | AM28: GFA | AN28: GFA | AP28: 2008/09 | AQ28: CBD Accommodation | AR28: 2008/09CBD Accommodation | AS28: 0.8 | AU28: 2008/09 | AV28: CBD Accommodation | AW28: 2008/09CBD Accommodation | AX28: 0.8 | AY28: 2 | BZ28: 2014-07-01 | CA28: 2007 | CB28: 2008 | CC28: 2009 | CD28: 2010 | CE28: 2011 | CF28: 2012 | CG28: 2013 | CH28: 2014
A29: 2008/09 | B29: Luggate | C29: 2008/09Luggate | D29: 5310 | E29: 0 | G29: 1870 | H29: 1664 | I29: 3100 | L29: 2008/09 | M29: CBD Commercial | N29: 2008/09CBD Commercial | O29: 0.05 | P29: 1.2 | Q29: 0.17 | R29: 0.37 | S29: 0.04 | T29: 0.03 | U29: 0.04 | V29: 0.03 | W29: 0.94 | X29: 1.08 | AA29: 2008/09 | AB29: CBD Commercial | AC29: 2008/09CBD Commercial | AD29: GFA | AE29: GFA | AF29: GFA | AG29: GFA | AH29: GFA | AI29: GFA | AJ29: GFA | AK29: GFA | AL29: GFA | AM29: GFA | AN29: GFA | AP29: 2008/09 | AQ29: CBD Commercial | AR29: 2008/09CBD Commercial | AS29: 0.8 | AU29: 2008/09 | AV29: CBD Commercial | AW29: 2008/09CBD Commercial | AX29: 0.8 | AY29: 2 | BZ29: =CI12 -> 2015-03-25 | CA29: 2007 | CB29: 2008 | CC29: 2009 | CD29: 2010 | CE29: 2011 | CF29: 2012 | CG29: 2013 | CH29: 2014 | CI29: 2014
A30: 2008/09 | B30: Other Wakatipu | C30: 2008/09Other Wakatipu | G30: 1665 | H30: 2376 | I30: 2856 | L30: 2008/09 | M30: Mixed Use Accommodation | N30: 2008/09Mixed Use Accommodation | O30: 1 | Q30: 1 | R30: 0.37 | S30: 0.78 | T30: 0.8 | U30: 0.78 | V30: 0.8 | W30: 0.52 | X30: 0.52 | AA30: 2008/09 | AB30: Mixed Use Accommodation | AC30: 2008/09Mixed Use Accommodation | AD30: Unit | AE30: Unit | AF30: Unit | AG30: GFA | AH30: GFA | AI30: GFA | AJ30: GFA | AK30: GFA | AL30: GFA | AM30: GFA | AN30: GFA | AP30: 2008/09 | AQ30: Mixed Use Accommodation | AR30: 2008/09Mixed Use Accommodation | AS30: 0.55 | AU30: 2008/09 | AV30: Mixed Use Accommodation | AW30: 2008/09Mixed Use Accommodation | AX30: 0.55 | AY30: 1 | BZ30: 2015-07-01 | CA30: 2007 | CB30: 2008 | CC30: 2009 | CD30: 2010 | CE30: 2011 | CF30: 2012 | CG30: 2013 | CH30: 2014 | CI30: 2015
A31: 2008/09 | B31: Other Wanaka | C31: 2008/09Other Wanaka | G31: 1870 | H31: 1664 | I31: 3100 | L31: 2008/09 | M31: Mixed Use Commercial | N31: 2008/09Mixed Use Commercial | O31: 1 | Q31: 1 | R31: 0.37 | S31: 0.78 | T31: 0.8 | U31: 0.78 | V31: 0.8 | W31: 0.59 | X31: 0.51 | AA31: 2008/09 | AB31: Mixed Use Commercial | AC31: 2008/09Mixed Use Commercial | AD31: Unit | AE31: Unit | AF31: Unit | AG31: GFA | AH31: GFA | AI31: GFA | AJ31: GFA | AK31: GFA | AL31: GFA | AM31: GFA | AN31: GFA | AP31: 2008/09 | AQ31: Mixed Use Commercial | AR31: 2008/09Mixed Use Commercial | AS31: 0.55 | AU31: 2008/09 | AV31: Mixed Use Commercial | AW31: 2008/09Mixed Use Commercial | AX31: 0.55 | AY31: 1 | BZ31: =+CJ12 -> 2016-04-06 | CA31: 2007 | CB31: 2008 | CC31: 2009 | CD31: 2010 | CE31: 2011 | CF31: 2012 | CG31: 2013 | CH31: 2014 | CI31: 2015 | CJ31: 2015
L32: 2008/09 | M32: Primary Industry | N32: 2008/09Primary Industry | O32: 1 | Q32: 1 | R32: 1 | S32: 1 | T32: 1 | U32: 0.66 | V32: 0.66 | W32: 1.4 | X32: 1.4 | AA32: 2008/09 | AB32: Primary Industry | AC32: 2008/09Primary Industry | AD32: Unit | AE32: Unit | AF32: Unit | AG32: Unit | AH32: Unit | AI32: Unit | AJ32: Unit | AK32: Unit | AL32: Unit | AM32: Unit | AN32: Unit | AP32: 2008/09 | AQ32: Primary Industry | AR32: 2008/09Primary Industry | AU32: 2008/09 | AV32: Primary Industry | AW32: 2008/09Primary Industry | BZ32: 2016-07-01 | CA32: 2007 | CB32: 2008 | CC32: 2009 | CD32: 2010 | CE32: 2011 | CF32: 2012 | CG32: 2013 | CH32: 2014 | CI32: 2015 | CJ32: 2016
L33: 2008/09 | M33: Restaurant/Bar | N33: 2008/09Restaurant/Bar | O33: 0.4 | P33: 1.2 | Q33: 1.3 | R33: 0.37 | S33: 0.04 | T33: 0.03 | U33: 0.04 | V33: 0.03 | W33: 0.94 | X33: 1.08 | AA33: 2008/09 | AB33: Restaurant/Bar | AC33: 2008/09Restaurant/Bar | AD33: GFA | AE33: GFA | AF33: GFA | AG33: GFA | AH33: GFA | AI33: GFA | AJ33: GFA | AK33: GFA | AL33: GFA | AM33: GFA | AN33: GFA | AP33: 2008/09 | AQ33: Restaurant/Bar | AR33: 2008/09Restaurant/Bar | AS33: 0.75 | AU33: 2008/09 | AV33: Restaurant/Bar | AW33: 2008/09Restaurant/Bar | AX33: 0.75 | AY33: 1 | BZ33: =CL12 -> 2018-04-13 | CA33: 2007 | CB33: 2008 | CC33: 2009 | CD33: 2010 | CE33: 2011 | CF33: 2012 | CG33: 2013 | CH33: 2014 | CI33: 2015 | CJ33: 2016 | CK33: 2016
D34: 2009/10 | O34: =D34 -> 2009/10 | AD34: =O34 -> 2009/10 | AS34: =O34 -> 2009/10 | AX34: =AS34 -> 2009/10 | BD34: =AX34 -> 2009/10 | BI34: =BD34 -> 2009/10 | BN34: =BI34 -> 2009/10 | BZ34: 2017-07-01 | CA34: 2007 | CB34: 2008 | CC34: 2009 | CD34: 2010 | CE34: 2011 | CF34: 2012 | CG34: 2013 | CH34: 2014 | CI34: 2015 | CJ34: 2016 | CK34: 2017
A35: =D34 -> 2009/10 | B35: Queenstown | C35: =A35&B35 -> 2009/10Queenstown | D35: 3282 | E35: 5415 | F35: 1191 | G35: 1684 | H35: 3342 | I35: 2822 | L35: =O34 -> 2009/10 | M35: Residential | N35: =L35&M35 -> 2009/10Residential | O35: 1 | Q35: 1 | R35: 1 | S35: 1 | T35: 1 | U35: 1 | V35: 1 | W35: 1 | X35: 1 | AA35: =AD34 -> 2009/10 | AB35: Residential | AC35: =AA35&AB35 -> 2009/10Residential | AD35: Unit | AE35: Unit | AF35: Unit | AG35: Unit | AH35: Unit | AI35: Unit | AJ35: Unit | AK35: Unit | AL35: Unit | AM35: Unit | AN35: Unit | AP35: =AS34 -> 2009/10 | AQ35: Residential | AR35: =AP35&AQ35 -> 2009/10Residential | AU35: =AX34 -> 2009/10 | AV35: Residential | AW35: =AU35&AV35 -> 2009/10Residential | BA35: =BD34 -> 2009/10 | BB35: Wakatipu | BC35: =BA35&BB35 -> 2009/10Wakatipu | BD35: 270000 | BF35: =BI34 -> 2009/10 | BG35: Base GFA | BH35: =BF35&BG35 -> 2009/10Base GFA | BI35: 133 | BK35: =BN34 -> 2009/10 | BL35: Wakatipu | BM35: =BK35&BL35 -> 2009/10Wakatipu | BZ35: =CL12 -> 2018-04-13 | CA35: 2007 | CB35: 2008 | CC35: 2009 | CD35: 2010 | CE35: 2011 | CF35: 2012 | CG35: 2013 | CH35: 2014 | CI35: 2015 | CJ35: 2016 | CK35: 2017 | CL35: 2017
A36: =A35 -> 2009/10 | B36: Arrowtown | C36: 2009/10Arrowtown | D36: 4057 | E36: 5749 | F36: 729 | G36: 1684 | H36: 3342 | I36: 2822 | L36: =L35 -> 2009/10 | M36: Residential Flat | N36: =L36&M36 -> 2009/10Residential Flat | O36: 0.45 | Q36: 0.75 | R36: 0.37 | S36: 0.75 | T36: 0.75 | U36: 0.75 | V36: 0.75 | W36: 0.77 | X36: 0.72 | AA36: =AA35 -> 2009/10 | AB36: Residential Flat | AC36: =AA36&AB36 -> 2009/10Residential Flat | AD36: Unit | AE36: Unit | AF36: Unit | AG36: Unit | AH36: Unit | AI36: Unit | AJ36: Unit | AK36: Unit | AL36: Unit | AM36: Unit | AN36: Unit | AP36: =AP35 -> 2009/10 | AQ36: Residential Flat | AR36: 2009/10Residential Flat | AU36: =AU35 -> 2009/10 | AV36: Residential Flat | AW36: 2009/10Residential Flat | BA36: =BA35 -> 2009/10 | BB36: Wanaka | BC36: =BA36&BB36 -> 2009/10Wanaka | BD36: 410000 | BK36: =BK35 -> 2009/10 | BL36: Wanaka | BM36: =BK36&BL36 -> 2009/10Wanaka | BZ36: 2018-07-01 | CA36: 2007 | CB36: 2008 | CC36: 2009 | CD36: 2010 | CE36: 2011 | CF36: 2012 | CG36: 2013 | CH36: 2014 | CI36: 2015 | CJ36: 2016 | CK36: 2017 | CL36: 2018
A37: =A36 -> 2009/10 | B37: Glenorchy | C37: 2009/10Glenorchy | D37: 6906 | F37: 1133 | G37: 1684 | H37: 3342 | I37: 2822 | L37: =L36 -> 2009/10 | M37: Multi Unit Residential | N37: 2009/10Multi Unit Residential | O37: 0.45 | P37: 0.4 | Q37: 0.75 | R37: 0.37 | S37: 0.75 | T37: 0.75 | U37: 0.75 | V37: 0.75 | W37: 0.77 | X37: 0.72 | AA37: =AA36 -> 2009/10 | AB37: Multi Unit Residential | AC37: 2009/10Multi Unit Residential | AD37: Unit | AE37: Unit | AF37: Unit | AG37: GFA | AH37: GFA | AI37: GFA | AJ37: GFA | AK37: GFA | AL37: GFA | AM37: GFA | AN37: GFA | AP37: =AP36 -> 2009/10 | AQ37: Multi Unit Residential | AR37: 2009/10Multi Unit Residential | AU37: =AU36 -> 2009/10 | AV37: Multi Unit Residential | AW37: 2009/10Multi Unit Residential
A38: 2009/10 | B38: Lake Hayes | C38: 2009/10Lake Hayes | D38: 3634 | E38: 6153 | F38: 34 | G38: 1684 | H38: 3342 | I38: 2822 | L38: 2009/10 | M38: Accommodation | N38: 2009/10Accommodation | O38: 0.29 | P38: 1.3 | Q38: 0.66 | R38: 0.37 | S38: 1.05 | T38: 1.01 | U38: 1.05 | V38: 1.01 | W38: 1.26 | X38: 1.86 | AA38: 2009/10 | AB38: Accommodation | AC38: 2009/10Accommodation | AD38: GFA | AE38: GFA | AF38: GFA | AG38: GFA | AH38: GFA | AI38: GFA | AJ38: GFA | AK38: GFA | AL38: GFA | AM38: GFA | AN38: GFA | AP38: 2009/10 | AQ38: Accommodation | AR38: 2009/10Accommodation | AS38: 0.55 | AU38: 2009/10 | AV38: Accommodation | AW38: 2009/10Accommodation | AX38: 0.55 | AY38: 2
A39: 2009/10 | B39: Arthurs Point | C39: 2009/10Arthurs Point | D39: 4157 | E39: 5226 | F39: 69 | G39: 1684 | H39: 3342 | I39: 2822 | L39: 2009/10 | M39: Commercial | N39: 2009/10Commercial | O39: 0.06 | P39: 1.17 | Q39: 0.19 | R39: 0.37 | S39: 0.05 | T39: 0.03 | U39: 0.05 | V39: 0.03 | W39: 1.37 | X39: 1.55 | AA39: 2009/10 | AB39: Commercial | AC39: 2009/10Commercial | AD39: GFA | AE39: GFA | AF39: GFA | AG39: GFA | AH39: GFA | AI39: GFA | AJ39: GFA | AK39: GFA | AL39: GFA | AM39: GFA | AN39: GFA | AP39: 2009/10 | AQ39: Commercial | AR39: 2009/10Commercial | AS39: 0.75 | AU39: 2009/10 | AV39: Commercial | AW39: 2009/10Commercial | AX39: 0.75 | AY39: 1
A40: 2009/10 | B40: Kingston | C40: 2009/10Kingston | F40: 123 | G40: 1684 | H40: 3342 | I40: 2822 | L40: 2009/10 | M40: Country Dwelling | N40: 2009/10Country Dwelling | O40: 1 | Q40: 1 | R40: 1 | S40: 1 | T40: 1 | U40: 0.66 | V40: 0.66 | W40: 1.7 | X40: 2.9 | AA40: 2009/10 | AB40: Country Dwelling | AC40: 2009/10Country Dwelling | AD40: Unit | AE40: Unit | AF40: Unit | AG40: Unit | AH40: Unit | AI40: Unit | AJ40: Unit | AK40: Unit | AL40: Unit | AM40: Unit | AN40: Unit | AP40: 2009/10 | AQ40: Country Dwelling | AR40: 2009/10Country Dwelling | AU40: 2009/10 | AV40: Country Dwelling | AW40: 2009/10Country Dwelling
A41: 2009/10 | B41: Wanaka | C41: 2009/10Wanaka | D41: 4653 | E41: 6615 | F41: 1770 | G41: 1881 | H41: 2522 | I41: 2985 | L41: 2009/10 | M41: Other | N41: 2009/10Other | AA41: 2009/10 | AB41: Other | AC41: 2009/10Other | AD41: Unit | AE41: Unit | AF41: Unit | AG41: GFA | AH41: GFA | AI41: GFA | AJ41: GFA | AK41: GFA | AL41: GFA | AM41: GFA | AN41: GFA | AP41: 2009/10 | AQ41: Other | AR41: 2009/10Other | AU41: 2009/10 | AV41: Other | AW41: 2009/10Other | BZ41: Reserve Lnad | CB41: Greenfields
A42: 2009/10 | B42: Hawea | C42: 2009/10Hawea | D42: 8892 | E42: 8743 | F42: 808 | G42: 1881 | H42: 2522 | I42: 2985 | L42: 2009/10 | M42: CBD Accommodation | N42: 2009/10CBD Accommodation | O42: 0.29 | P42: 1.3 | Q42: 0.66 | R42: 0.37 | S42: 1.05 | T42: 1.01 | U42: 1.05 | V42: 1.01 | W42: 1.26 | X42: 1.86 | AA42: 2009/10 | AB42: CBD Accommodation | AC42: 2009/10CBD Accommodation | AD42: GFA | AE42: GFA | AF42: GFA | AG42: GFA | AH42: GFA | AI42: GFA | AJ42: GFA | AK42: GFA | AL42: GFA | AM42: GFA | AN42: GFA | AP42: 2009/10 | AQ42: CBD Accommodation | AR42: 2009/10CBD Accommodation | AS42: 0.8 | AU42: 2009/10 | AV42: CBD Accommodation | AW42: 2009/10CBD Accommodation | AX42: 0.8 | AY42: 2 | CB42: Brownfields
A43: 2009/10 | B43: Albert Town | C43: 2009/10Albert Town | D43: 4653 | E43: 6615 | F43: 1247 | G43: 1881 | H43: 2522 | I43: 2985 | L43: 2009/10 | M43: CBD Commercial | N43: 2009/10CBD Commercial | O43: 0.06 | P43: 1.17 | Q43: 0.19 | R43: 0.37 | S43: 0.05 | T43: 0.03 | U43: 0.05 | V43: 0.03 | W43: 1.37 | X43: 1.55 | AA43: 2009/10 | AB43: CBD Commercial | AC43: 2009/10CBD Commercial | AD43: GFA | AE43: GFA | AF43: GFA | AG43: GFA | AH43: GFA | AI43: GFA | AJ43: GFA | AK43: GFA | AL43: GFA | AM43: GFA | AN43: GFA | AP43: 2009/10 | AQ43: CBD Commercial | AR43: 2009/10CBD Commercial | AS43: 0.8 | AU43: 2009/10 | AV43: CBD Commercial | AW43: 2009/10CBD Commercial | AX43: 0.8 | AY43: 2 | BZ43: =Field_Type -> 0
A44: 2009/10 | B44: Luggate | C44: 2009/10Luggate | D44: 3400 | G44: 1881 | H44: 2522 | I44: 2985 | L44: 2009/10 | M44: Mixed Use Accommodation | N44: 2009/10Mixed Use Accommodation | O44: 1 | Q44: 1 | R44: 0.37 | S44: 0.86 | T44: 0.74 | U44: 0.86 | V44: 0.74 | W44: 0.95 | X44: 1.04 | AA44: 2009/10 | AB44: Mixed Use Accommodation | AC44: 2009/10Mixed Use Accommodation | AD44: Unit | AE44: Unit | AF44: Unit | AG44: GFA | AH44: GFA | AI44: GFA | AJ44: GFA | AK44: GFA | AL44: GFA | AM44: GFA | AN44: GFA | AP44: 2009/10 | AQ44: Mixed Use Accommodation | AR44: 2009/10Mixed Use Accommodation | AS44: 0.55 | AU44: 2009/10 | AV44: Mixed Use Accommodation | AW44: 2009/10Mixed Use Accommodation | AX44: 0.55 | AY44: 1 | BZ44: Policy Year | CB44: =+CB42 -> Brownfields | CC44: Land Value
A45: 2009/10 | B45: Other Wakatipu | C45: 2009/10Other Wakatipu | G45: 1684 | H45: 3342 | I45: 2822 | L45: 2009/10 | M45: Mixed Use Commercial | N45: 2009/10Mixed Use Commercial | O45: 1 | Q45: 1 | R45: 0.37 | S45: 0.86 | T45: 0.74 | U45: 0.86 | V45: 0.74 | W45: 0.91 | X45: 0.79 | AA45: 2009/10 | AB45: Mixed Use Commercial | AC45: 2009/10Mixed Use Commercial | AD45: Unit | AE45: Unit | AF45: Unit | AG45: GFA | AH45: GFA | AI45: GFA | AJ45: GFA | AK45: GFA | AL45: GFA | AM45: GFA | AN45: GFA | AP45: 2009/10 | AQ45: Mixed Use Commercial | AR45: 2009/10Mixed Use Commercial | AS45: 0.55 | AU45: 2009/10 | AV45: Mixed Use Commercial | AW45: 2009/10Mixed Use Commercial | AX45: 0.55 | AY45: 1 | BZ45: 2007/08 | CA45: Old | CB45: 1 | CC45: input
A46: 2009/10 | B46: Other Wanaka | C46: 2009/10Other Wanaka | G46: 1881 | H46: 2522 | I46: 2985 | L46: 2009/10 | M46: Primary Industry | N46: 2009/10Primary Industry | O46: 1 | Q46: 1 | R46: 1 | S46: 1 | T46: 1 | U46: 0.66 | V46: 0.66 | W46: 1.3 | X46: 1.3 | AA46: 2009/10 | AB46: Primary Industry | AC46: 2009/10Primary Industry | AD46: Unit | AE46: Unit | AF46: Unit | AG46: Unit | AH46: Unit | AI46: Unit | AJ46: Unit | AK46: Unit | AL46: Unit | AM46: Unit | AN46: Unit | AP46: 2009/10 | AQ46: Primary Industry | AR46: 2009/10Primary Industry | AU46: 2009/10 | AV46: Primary Industry | AW46: 2009/10Primary Industry | BZ46: 2008/09 | CA46: Old | CB46: 1 | CC46: input
L47: 2009/10 | M47: Restaurant/Bar | N47: 2009/10Restaurant/Bar | O47: 0.43 | P47: 1.17 | Q47: 1.39 | R47: 0.37 | S47: 0.05 | T47: 0.03 | U47: 0.05 | V47: 0.03 | W47: 1.37 | X47: 1.55 | AA47: 2009/10 | AB47: Restaurant/Bar | AC47: 2009/10Restaurant/Bar | AD47: GFA | AE47: GFA | AF47: GFA | AG47: GFA | AH47: GFA | AI47: GFA | AJ47: GFA | AK47: GFA | AL47: GFA | AM47: GFA | AN47: GFA | AP47: 2009/10 | AQ47: Restaurant/Bar | AR47: 2009/10Restaurant/Bar | AS47: 0.75 | AU47: 2009/10 | AV47: Restaurant/Bar | AW47: 2009/10Restaurant/Bar | AX47: 0.75 | AY47: 1 | BZ47: 2009/10 | CA47: Old | CB47: 1 | CC47: input
D48: 2010/11 | O48: =D48 -> 2010/11 | AD48: =O48 -> 2010/11 | AS48: =O48 -> 2010/11 | AX48: =AS48 -> 2010/11 | BD48: =AX48 -> 2010/11 | BI48: =BD48 -> 2010/11 | BN48: =BI48 -> 2010/11 | BZ48: 2010/11 | CA48: Old | CB48: 1 | CC48: input
A49: =D48 -> 2010/11 | B49: Queenstown | C49: =A49&B49 -> 2010/11Queenstown | D49: 3800 | E49: 5136 | F49: 1138 | G49: 1482 | H49: 3379 | I49: 2325 | L49: =O48 -> 2010/11 | M49: Residential | N49: =L49&M49 -> 2010/11Residential | O49: 1 | Q49: 1 | R49: 1 | S49: 1 | T49: 1 | U49: 1 | V49: 1 | W49: 1 | X49: 1 | AA49: =AD48 -> 2010/11 | AB49: Residential | AC49: =AA49&AB49 -> 2010/11Residential | AD49: Unit | AE49: Unit | AF49: Unit | AG49: Unit | AH49: Unit | AI49: Unit | AJ49: Unit | AK49: Unit | AL49: Unit | AM49: Unit | AN49: Unit | AP49: =AS48 -> 2010/11 | AQ49: Residential | AR49: =AP49&AQ49 -> 2010/11Residential | AU49: =AX48 -> 2010/11 | AV49: Residential | AW49: =AU49&AV49 -> 2010/11Residential | BA49: =BD48 -> 2010/11 | BB49: Wakatipu | BC49: =BA49&BB49 -> 2010/11Wakatipu | BD49: 270000 | BF49: =BI48 -> 2010/11 | BG49: Base GFA | BH49: =BF49&BG49 -> 2010/11Base GFA | BI49: 133 | BK49: =BN48 -> 2010/11 | BL49: Wakatipu | BM49: =BK49&BL49 -> 2010/11Wakatipu | BZ49: 2011/12 | CA49: Old | CB49: 1 | CC49: input
A50: =A49 -> 2010/11 | B50: Arrowtown | C50: 2010/11Arrowtown | D50: 4362 | E50: 5838 | F50: 513 | G50: 1482 | H50: 3379 | I50: 2325 | L50: =L49 -> 2010/11 | M50: Residential Flat | N50: =L50&M50 -> 2010/11Residential Flat | O50: 0.45 | Q50: 0.75 | R50: 0.37 | S50: 0.75 | T50: 0.75 | U50: 0.75 | V50: 0.75 | W50: 0.77 | X50: 0.72 | AA50: =AA49 -> 2010/11 | AB50: Residential Flat | AC50: =AA50&AB50 -> 2010/11Residential Flat | AD50: Unit | AE50: Unit | AF50: Unit | AG50: Unit | AH50: Unit | AI50: Unit | AJ50: Unit | AK50: Unit | AL50: Unit | AM50: Unit | AN50: Unit | AP50: =AP49 -> 2010/11 | AQ50: Residential Flat | AR50: 2010/11Residential Flat | AU50: =AU49 -> 2010/11 | AV50: Residential Flat | AW50: 2010/11Residential Flat | BA50: =BA49 -> 2010/11 | BB50: Wanaka | BC50: =BA50&BB50 -> 2010/11Wanaka | BD50: 410000 | BK50: =BK49 -> 2010/11 | BL50: Wanaka | BM50: =BK50&BL50 -> 2010/11Wanaka | BZ50: 2012/13 | CA50: Old | CB50: 1 | CC50: input
A51: =A50 -> 2010/11 | B51: Glenorchy | C51: 2010/11Glenorchy | D51: 9484 | F51: 768 | G51: 1482 | H51: 3379 | I51: 2325 | L51: =L50 -> 2010/11 | M51: Multi Unit Residential | N51: 2010/11Multi Unit Residential | O51: 0.45 | P51: 0.4 | Q51: 0.75 | R51: 0.37 | S51: 0.75 | T51: 0.75 | U51: 0.75 | V51: 0.75 | W51: 0.77 | X51: 0.72 | AA51: =AA50 -> 2010/11 | AB51: Multi Unit Residential | AC51: 2010/11Multi Unit Residential | AD51: Unit | AE51: Unit | AF51: Unit | AG51: GFA | AH51: GFA | AI51: GFA | AJ51: GFA | AK51: GFA | AL51: GFA | AM51: GFA | AN51: GFA | AP51: =AP50 -> 2010/11 | AQ51: Multi Unit Residential | AR51: 2010/11Multi Unit Residential | AU51: =AU50 -> 2010/11 | AV51: Multi Unit Residential | AW51: 2010/11Multi Unit Residential | BZ51: 2013/14 | CA51: Old | CB51: 1 | CC51: input
A52: 2010/11 | B52: Lake Hayes | C52: 2010/11Lake Hayes | D52: 2920 | E52: 4367 | F52: 36 | G52: 1482 | H52: 3379 | I52: 2325 | L52: 2010/11 | M52: Accommodation | N52: 2010/11Accommodation | O52: 0.29 | P52: 1.3 | Q52: 0.66 | R52: 0.37 | S52: 1.05 | T52: 1.01 | U52: 1.05 | V52: 1.01 | W52: 1.26 | X52: 1.86 | AA52: 2010/11 | AB52: Accommodation | AC52: 2010/11Accommodation | AD52: GFA | AE52: GFA | AF52: GFA | AG52: GFA | AH52: GFA | AI52: GFA | AJ52: GFA | AK52: GFA | AL52: GFA | AM52: GFA | AN52: GFA | AP52: 2010/11 | AQ52: Accommodation | AR52: 2010/11Accommodation | AS52: 0.55 | AU52: 2010/11 | AV52: Accommodation | AW52: 2010/11Accommodation | AX52: 0.55 | AY52: 2 | BZ52: 2014/15 | CA52: Amend | CB52: 1 | CC52: input
A53: 2010/11 | B53: Arthurs Point | C53: 2010/11Arthurs Point | D53: 3454 | E53: 3489 | F53: 72 | G53: 1482 | H53: 3379 | I53: 2325 | L53: 2010/11 | M53: Commercial | N53: 2010/11Commercial | O53: 0.06 | P53: 1.17 | Q53: 0.19 | R53: 0.37 | S53: 0.05 | T53: 0.03 | U53: 0.05 | V53: 0.03 | W53: 1.37 | X53: 1.55 | AA53: 2010/11 | AB53: Commercial | AC53: 2010/11Commercial | AD53: GFA | AE53: GFA | AF53: GFA | AG53: GFA | AH53: GFA | AI53: GFA | AJ53: GFA | AK53: GFA | AL53: GFA | AM53: GFA | AN53: GFA | AP53: 2010/11 | AQ53: Commercial | AR53: 2010/11Commercial | AS53: 0.75 | AU53: 2010/11 | AV53: Commercial | AW53: 2010/11Commercial | AX53: 0.75 | AY53: 1 | BZ53: 2015/16 | CA53: Amend | CB53: =IF(Field_Type=CB$42,0,IF(Field_Type=CB$41,1)) -> FALSE | CC53: set
A54: 2010/11 | B54: Kingston | C54: 2010/11Kingston | F54: 129 | G54: 1482 | H54: 3379 | I54: 2325 | L54: 2010/11 | M54: Country Dwelling | N54: 2010/11Country Dwelling | O54: 1 | Q54: 1 | R54: 1 | S54: 1 | T54: 1 | U54: 0.66 | V54: 0.66 | W54: 1.7 | X54: 2.9 | AA54: 2010/11 | AB54: Country Dwelling | AC54: 2010/11Country Dwelling | AD54: Unit | AE54: Unit | AF54: Unit | AG54: Unit | AH54: Unit | AI54: Unit | AJ54: Unit | AK54: Unit | AL54: Unit | AM54: Unit | AN54: Unit | AP54: 2010/11 | AQ54: Country Dwelling | AR54: 2010/11Country Dwelling | AU54: 2010/11 | AV54: Country Dwelling | AW54: 2010/11Country Dwelling | BZ54: 2016/17 | CA54: Amend | CB54: =IF(Field_Type=CB$42,0,IF(Field_Type=CB$41,1)) -> FALSE | CC54: set
A55: 2010/11 | B55: Wanaka | C55: 2010/11Wanaka | D55: 5092 | E55: 6605 | F55: 1821 | G55: 1777 | H55: 2466 | I55: 2503 | L55: 2010/11 | M55: Other | N55: 2010/11Other | AA55: 2010/11 | AB55: Other | AC55: 2010/11Other | AD55: Unit | AE55: Unit | AF55: Unit | AG55: GFA | AH55: GFA | AI55: GFA | AJ55: GFA | AK55: GFA | AL55: GFA | AM55: GFA | AN55: GFA | AP55: 2010/11 | AQ55: Other | AR55: 2010/11Other | AU55: 2010/11 | AV55: Other | AW55: 2010/11Other | BZ55: 2017/18 | CA55: Amend | CB55: =IF(Field_Type=CB$42,0,IF(Field_Type=CB$41,1)) -> FALSE | CC55: set
A56: 2010/11 | B56: Hawea | C56: 2010/11Hawea | D56: 9927 | E56: 8111 | F56: 532 | G56: 1777 | H56: 2466 | I56: 2503 | L56: 2010/11 | M56: CBD Accommodation | N56: 2010/11CBD Accommodation | O56: 0.29 | P56: 1.3 | Q56: 0.66 | R56: 0.37 | S56: 1.05 | T56: 1.01 | U56: 1.05 | V56: 1.01 | W56: 1.26 | X56: 1.86 | AA56: 2010/11 | AB56: CBD Accommodation | AC56: 2010/11CBD Accommodation | AD56: GFA | AE56: GFA | AF56: GFA | AG56: GFA | AH56: GFA | AI56: GFA | AJ56: GFA | AK56: GFA | AL56: GFA | AM56: GFA | AN56: GFA | AP56: 2010/11 | AQ56: CBD Accommodation | AR56: 2010/11CBD Accommodation | AS56: 0.8 | AU56: 2010/11 | AV56: CBD Accommodation | AW56: 2010/11CBD Accommodation | AX56: 0.8 | AY56: 2 | BZ56: 2018/19 | CA56: Amend | CB56: =IF(Field_Type=CB$42,0,IF(Field_Type=CB$41,1)) -> FALSE | CC56: set
A57: 2010/11 | B57: Albert Town | C57: 2010/11Albert Town | D57: 5092 | E57: 6605 | F57: 1170 | G57: 1777 | H57: 2466 | I57: 2503 | L57: 2010/11 | M57: CBD Commercial | N57: 2010/11CBD Commercial | O57: 0.06 | P57: 1.17 | Q57: 0.19 | R57: 0.37 | S57: 0.05 | T57: 0.03 | U57: 0.05 | V57: 0.03 | W57: 1.37 | X57: 1.55 | AA57: 2010/11 | AB57: CBD Commercial | AC57: 2010/11CBD Commercial | AD57: GFA | AE57: GFA | AF57: GFA | AG57: GFA | AH57: GFA | AI57: GFA | AJ57: GFA | AK57: GFA | AL57: GFA | AM57: GFA | AN57: GFA | AP57: 2010/11 | AQ57: CBD Commercial | AR57: 2010/11CBD Commercial | AS57: 0.8 | AU57: 2010/11 | AV57: CBD Commercial | AW57: 2010/11CBD Commercial | AX57: 0.8 | AY57: 2
A58: 2010/11 | B58: Luggate | C58: 2010/11Luggate | D58: 1442 | F58: 83 | G58: 1777 | H58: 2466 | I58: 2503 | L58: 2010/11 | M58: Mixed Use Accommodation | N58: 2010/11Mixed Use Accommodation | O58: 1 | Q58: 1 | R58: 0.37 | S58: 0.86 | T58: 0.74 | U58: 0.86 | V58: 0.74 | W58: 0.95 | X58: 1.04 | AA58: 2010/11 | AB58: Mixed Use Accommodation | AC58: 2010/11Mixed Use Accommodation | AD58: Unit | AE58: Unit | AF58: Unit | AG58: GFA | AH58: GFA | AI58: GFA | AJ58: GFA | AK58: GFA | AL58: GFA | AM58: GFA | AN58: GFA | AP58: 2010/11 | AQ58: Mixed Use Accommodation | AR58: 2010/11Mixed Use Accommodation | AS58: 0.55 | AU58: 2010/11 | AV58: Mixed Use Accommodation | AW58: 2010/11Mixed Use Accommodation | AX58: 0.55 | AY58: 1
A59: 2010/11 | B59: Other Wakatipu | C59: 2010/11Other Wakatipu | G59: 1482 | H59: 3379 | I59: 2325 | L59: 2010/11 | M59: Mixed Use Commercial | N59: 2010/11Mixed Use Commercial | O59: 1 | Q59: 1 | R59: 0.37 | S59: 0.86 | T59: 0.74 | U59: 0.86 | V59: 0.74 | W59: 0.91 | X59: 0.79 | AA59: 2010/11 | AB59: Mixed Use Commercial | AC59: 2010/11Mixed Use Commercial | AD59: Unit | AE59: Unit | AF59: Unit | AG59: GFA | AH59: GFA | AI59: GFA | AJ59: GFA | AK59: GFA | AL59: GFA | AM59: GFA | AN59: GFA | AP59: 2010/11 | AQ59: Mixed Use Commercial | AR59: 2010/11Mixed Use Commercial | AS59: 0.55 | AU59: 2010/11 | AV59: Mixed Use Commercial | AW59: 2010/11Mixed Use Commercial | AX59: 0.55 | AY59: 1
A60: 2010/11 | B60: Other Wanaka | C60: 2010/11Other Wanaka | G60: 1777 | H60: 2466 | I60: 2503 | L60: 2010/11 | M60: Primary Industry | N60: 2010/11Primary Industry | O60: 1 | Q60: 1 | R60: 1 | S60: 1 | T60: 1 | U60: 0.66 | V60: 0.66 | W60: 1.3 | X60: 1.3 | AA60: 2010/11 | AB60: Primary Industry | AC60: 2010/11Primary Industry | AD60: Unit | AE60: Unit | AF60: Unit | AG60: Unit | AH60: Unit | AI60: Unit | AJ60: Unit | AK60: Unit | AL60: Unit | AM60: Unit | AN60: Unit | AP60: 2010/11 | AQ60: Primary Industry | AR60: 2010/11Primary Industry | AU60: 2010/11 | AV60: Primary Industry | AW60: 2010/11Primary Industry
L61: 2010/11 | M61: Restaurant/Bar | N61: 2010/11Restaurant/Bar | O61: 0.43 | P61: 1.17 | Q61: 1.39 | R61: 0.37 | S61: 0.05 | T61: 0.03 | U61: 0.05 | V61: 0.03 | W61: 1.37 | X61: 1.55 | AA61: 2010/11 | AB61: Restaurant/Bar | AC61: 2010/11Restaurant/Bar | AD61: GFA | AE61: GFA | AF61: GFA | AG61: GFA | AH61: GFA | AI61: GFA | AJ61: GFA | AK61: GFA | AL61: GFA | AM61: GFA | AN61: GFA | AP61: 2010/11 | AQ61: Restaurant/Bar | AR61: 2010/11Restaurant/Bar | AS61: 0.75 | AU61: 2010/11 | AV61: Restaurant/Bar | AW61: 2010/11Restaurant/Bar | AX61: 0.75 | AY61: 1
D62: 2011/12 | O62: =D62 -> 2011/12 | AD62: =O62 -> 2011/12 | AS62: =O62 -> 2011/12 | AX62: =AS62 -> 2011/12 | BD62: =AX62 -> 2011/12 | BI62: =BD62 -> 2011/12 | BN62: =BI62 -> 2011/12
A63: =D62 -> 2011/12 | B63: Queenstown | C63: =A63&B63 -> 2011/12Queenstown | D63: 3846 | E63: 4529 | F63: 1248 | G63: 1529 | H63: 3450 | I63: 2457 | L63: =O62 -> 2011/12 | M63: Residential | N63: =L63&M63 -> 2011/12Residential | O63: 1 | Q63: 1 | R63: 1 | S63: 1 | T63: 1 | U63: 1 | V63: 1 | W63: 1 | X63: 1 | AA63: =AD62 -> 2011/12 | AB63: Residential | AC63: =AA63&AB63 -> 2011/12Residential | AD63: Unit | AE63: Unit | AF63: Unit | AG63: Unit | AH63: Unit | AI63: Unit | AJ63: Unit | AK63: Unit | AL63: Unit | AM63: Unit | AN63: Unit | AP63: =AS62 -> 2011/12 | AQ63: Residential | AR63: =AP63&AQ63 -> 2011/12Residential | AU63: =AX62 -> 2011/12 | AV63: Residential | AW63: =AU63&AV63 -> 2011/12Residential | BA63: =BD62 -> 2011/12 | BB63: Wakatipu | BC63: =BA63&BB63 -> 2011/12Wakatipu | BD63: 270000 | BF63: =BI62 -> 2011/12 | BG63: Base GFA | BH63: =BF63&BG63 -> 2011/12Base GFA | BI63: 133 | BK63: =BN62 -> 2011/12 | BL63: Wakatipu | BM63: =BK63&BL63 -> 2011/12Wakatipu
A64: =A63 -> 2011/12 | B64: Arrowtown | C64: 2011/12Arrowtown | D64: 3970 | E64: 5748 | F64: 489 | G64: 1529 | H64: 3450 | I64: 2457 | L64: =L63 -> 2011/12 | M64: Residential Flat | N64: =L64&M64 -> 2011/12Residential Flat | O64: 0.45 | Q64: 0.75 | R64: 0.37 | S64: 0.75 | T64: 0.75 | U64: 0.75 | V64: 0.75 | W64: 0.77 | X64: 0.72 | AA64: =AA63 -> 2011/12 | AB64: Residential Flat | AC64: =AA64&AB64 -> 2011/12Residential Flat | AD64: Unit | AE64: Unit | AF64: Unit | AG64: Unit | AH64: Unit | AI64: Unit | AJ64: Unit | AK64: Unit | AL64: Unit | AM64: Unit | AN64: Unit | AP64: =AP63 -> 2011/12 | AQ64: Residential Flat | AR64: 2011/12Residential Flat | AU64: =AU63 -> 2011/12 | AV64: Residential Flat | AW64: 2011/12Residential Flat | BA64: =BA63 -> 2011/12 | BB64: Wanaka | BC64: =BA64&BB64 -> 2011/12Wanaka | BD64: 410000 | BK64: =BK63 -> 2011/12 | BL64: Wanaka | BM64: =BK64&BL64 -> 2011/12Wanaka | BZ64: Pre 2018/19
A65: =A64 -> 2011/12 | B65: Glenorchy | C65: 2011/12Glenorchy | D65: 9905 | F65: 773 | G65: 1529 | H65: 3450 | I65: 2457 | L65: =L64 -> 2011/12 | M65: Multi Unit Residential | N65: 2011/12Multi Unit Residential | O65: 0.45 | P65: 0.4 | Q65: 0.75 | R65: 0.37 | S65: 0.75 | T65: 0.75 | U65: 0.75 | V65: 0.75 | W65: 0.77 | X65: 0.72 | AA65: =AA64 -> 2011/12 | AB65: Multi Unit Residential | AC65: 2011/12Multi Unit Residential | AD65: Unit | AE65: Unit | AF65: Unit | AG65: GFA | AH65: GFA | AI65: GFA | AJ65: GFA | AK65: GFA | AL65: GFA | AM65: GFA | AN65: GFA | AP65: =AP64 -> 2011/12 | AQ65: Multi Unit Residential | AR65: 2011/12Multi Unit Residential | AU65: =AU64 -> 2011/12 | AV65: Multi Unit Residential | AW65: 2011/12Multi Unit Residential | CA65: Township | CB65: Urban | CF65: Township | CG65: Urban
A66: 2011/12 | B66: Lake Hayes | C66: 2011/12Lake Hayes | D66: 3115 | E66: 4155 | F66: 37 | G66: 1529 | H66: 3450 | I66: 2457 | L66: 2011/12 | M66: Accommodation | N66: 2011/12Accommodation | O66: 0.29 | P66: 1.3 | Q66: 0.66 | R66: 0.37 | S66: 1.05 | T66: 1.01 | U66: 1.05 | V66: 1.01 | W66: 1.26 | X66: 1.86 | AA66: 2011/12 | AB66: Accommodation | AC66: 2011/12Accommodation | AD66: GFA | AE66: GFA | AF66: GFA | AG66: GFA | AH66: GFA | AI66: GFA | AJ66: GFA | AK66: GFA | AL66: GFA | AM66: GFA | AN66: GFA | AP66: 2011/12 | AQ66: Accommodation | AR66: 2011/12Accommodation | AS66: 0.55 | AU66: 2011/12 | AV66: Accommodation | AW66: 2011/12Accommodation | AX66: 0.55 | AY66: 2 | BZ66: =+'Calculation Links'!K50 -> Wakatipu | CA66: =+'Calculation Links'!L50/1.15 -> 270 | CB66: =+'Calculation Links'!M50/1.15 -> 615 | CC66: GST Exclusive | CE66: Wakatipu | CF66: 150 | CG66: 335 | CH66: GST Inclusive
A67: 2011/12 | B67: Arthurs Point | C67: 2011/12Arthurs Point | D67: 3397 | E67: 3130 | F67: 74 | G67: 1529 | H67: 3450 | I67: 2457 | L67: 2011/12 | M67: Commercial | N67: 2011/12Commercial | O67: 0.06 | P67: 1.17 | Q67: 0.19 | R67: 0.37 | S67: 0.05 | T67: 0.03 | U67: 0.05 | V67: 0.03 | W67: 1.37 | X67: 1.55 | AA67: 2011/12 | AB67: Commercial | AC67: 2011/12Commercial | AD67: GFA | AE67: GFA | AF67: GFA | AG67: GFA | AH67: GFA | AI67: GFA | AJ67: GFA | AK67: GFA | AL67: GFA | AM67: GFA | AN67: GFA | AP67: 2011/12 | AQ67: Commercial | AR67: 2011/12Commercial | AS67: 0.75 | AU67: 2011/12 | AV67: Commercial | AW67: 2011/12Commercial | AX67: 0.75 | AY67: 1 | BZ67: =+'Calculation Links'!K51 -> Wanaka | CA67: =+'Calculation Links'!L51/1.15 -> 255 | CB67: =+'Calculation Links'!M51/1.15 -> 470 | CE67: Wanaka | CF67: 150 | CG67: 235
A68: 2011/12 | B68: Kingston | C68: 2011/12Kingston | F68: 132 | G68: 1529 | H68: 3450 | I68: 2457 | L68: 2011/12 | M68: Country Dwelling | N68: 2011/12Country Dwelling | O68: 1 | Q68: 1 | R68: 1 | S68: 1 | T68: 1 | U68: 0.66 | V68: 0.66 | W68: 1.7 | X68: 2.9 | AA68: 2011/12 | AB68: Country Dwelling | AC68: 2011/12Country Dwelling | AD68: Unit | AE68: Unit | AF68: Unit | AG68: Unit | AH68: Unit | AI68: Unit | AJ68: Unit | AK68: Unit | AL68: Unit | AM68: Unit | AN68: Unit | AP68: 2011/12 | AQ68: Country Dwelling | AR68: 2011/12Country Dwelling | AU68: 2011/12 | AV68: Country Dwelling | AW68: 2011/12Country Dwelling
A69: 2011/12 | B69: Wanaka | C69: 2011/12Wanaka | D69: 4881 | E69: 6152 | F69: 1832 | G69: 1792 | H69: 2138 | I69: 2593 | L69: 2011/12 | M69: Other | N69: 2011/12Other | AA69: 2011/12 | AB69: Other | AC69: 2011/12Other | AD69: Unit | AE69: Unit | AF69: Unit | AG69: GFA | AH69: GFA | AI69: GFA | AJ69: GFA | AK69: GFA | AL69: GFA | AM69: GFA | AN69: GFA | AP69: 2011/12 | AQ69: Other | AR69: 2011/12Other | AU69: 2011/12 | AV69: Other | AW69: 2011/12Other | BZ69: Post 2018/19
A70: 2011/12 | B70: Hawea | C70: 2011/12Hawea | D70: 10847 | E70: 8170 | F70: 535 | G70: 1792 | H70: 2138 | I70: 2593 | L70: 2011/12 | M70: CBD Accommodation | N70: 2011/12CBD Accommodation | O70: 0.29 | P70: 1.3 | Q70: 0.66 | R70: 0.37 | S70: 1.05 | T70: 1.01 | U70: 1.05 | V70: 1.01 | W70: 1.26 | X70: 1.86 | AA70: 2011/12 | AB70: CBD Accommodation | AC70: 2011/12CBD Accommodation | AD70: GFA | AE70: GFA | AF70: GFA | AG70: GFA | AH70: GFA | AI70: GFA | AJ70: GFA | AK70: GFA | AL70: GFA | AM70: GFA | AN70: GFA | AP70: 2011/12 | AQ70: CBD Accommodation | AR70: 2011/12CBD Accommodation | AS70: 0.8 | AU70: 2011/12 | AV70: CBD Accommodation | AW70: 2011/12CBD Accommodation | AX70: 0.8 | AY70: 2 | CA70: Township | CB70: Urban | CF70: Township | CG70: Urban
A71: 2011/12 | B71: Albert Town | C71: 2011/12Albert Town | D71: 4881 | E71: 6152 | F71: 1254 | G71: 1792 | H71: 2138 | I71: 2593 | L71: 2011/12 | M71: CBD Commercial | N71: 2011/12CBD Commercial | O71: 0.06 | P71: 1.17 | Q71: 0.19 | R71: 0.37 | S71: 0.05 | T71: 0.03 | U71: 0.05 | V71: 0.03 | W71: 1.37 | X71: 1.55 | AA71: 2011/12 | AB71: CBD Commercial | AC71: 2011/12CBD Commercial | AD71: GFA | AE71: GFA | AF71: GFA | AG71: GFA | AH71: GFA | AI71: GFA | AJ71: GFA | AK71: GFA | AL71: GFA | AM71: GFA | AN71: GFA | AP71: 2011/12 | AQ71: CBD Commercial | AR71: 2011/12CBD Commercial | AS71: 0.8 | AU71: 2011/12 | AV71: CBD Commercial | AW71: 2011/12CBD Commercial | AX71: 0.8 | AY71: 2 | BZ71: Wakatipu | CA71: 470 | CB71: 615 | CC71: GST Exclusive | CE71: Wakatipu | CF71: =CA71*1.15 -> 540.5 | CG71: =CB71*1.15 -> 707.25 | CH71: GST Inclusive
A72: 2011/12 | B72: Luggate | C72: 2011/12Luggate | D72: 1723 | F72: 86 | G72: 1792 | H72: 2138 | I72: 2593 | L72: 2011/12 | M72: Mixed Use Accommodation | N72: 2011/12Mixed Use Accommodation | O72: 1 | Q72: 1 | R72: 0.37 | S72: 0.86 | T72: 0.74 | U72: 0.86 | V72: 0.74 | W72: 0.95 | X72: 1.04 | AA72: 2011/12 | AB72: Mixed Use Accommodation | AC72: 2011/12Mixed Use Accommodation | AD72: Unit | AE72: Unit | AF72: Unit | AG72: GFA | AH72: GFA | AI72: GFA | AJ72: GFA | AK72: GFA | AL72: GFA | AM72: GFA | AN72: GFA | AP72: 2011/12 | AQ72: Mixed Use Accommodation | AR72: 2011/12Mixed Use Accommodation | AS72: 0.55 | AU72: 2011/12 | AV72: Mixed Use Accommodation | AW72: 2011/12Mixed Use Accommodation | AX72: 0.55 | AY72: 1 | BZ72: Wanaka | CA72: 255 | CB72: 270 | CE72: Wanaka | CF72: =CA72*1.15 -> 293.25 | CG72: =CB72*1.15 -> 310.5
A73: 2011/12 | B73: Other Wakatipu | C73: 2011/12Other Wakatipu | G73: 1529 | H73: 3450 | I73: 2457 | L73: 2011/12 | M73: Mixed Use Commercial | N73: 2011/12Mixed Use Commercial | O73: 1 | Q73: 1 | R73: 0.37 | S73: 0.86 | T73: 0.74 | U73: 0.86 | V73: 0.74 | W73: 0.91 | X73: 0.79 | AA73: 2011/12 | AB73: Mixed Use Commercial | AC73: 2011/12Mixed Use Commercial | AD73: Unit | AE73: Unit | AF73: Unit | AG73: GFA | AH73: GFA | AI73: GFA | AJ73: GFA | AK73: GFA | AL73: GFA | AM73: GFA | AN73: GFA | AP73: 2011/12 | AQ73: Mixed Use Commercial | AR73: 2011/12Mixed Use Commercial | AS73: 0.55 | AU73: 2011/12 | AV73: Mixed Use Commercial | AW73: 2011/12Mixed Use Commercial | AX73: 0.55 | AY73: 1
A74: 2011/12 | B74: Other Wanaka | C74: 2011/12Other Wanaka | G74: 1792 | H74: 2138 | I74: 2593 | L74: 2011/12 | M74: Primary Industry | N74: 2011/12Primary Industry | O74: 1 | Q74: 1 | R74: 1 | S74: 1 | T74: 1 | U74: 0.66 | V74: 0.66 | W74: 1.3 | X74: 1.3 | AA74: 2011/12 | AB74: Primary Industry | AC74: 2011/12Primary Industry | AD74: Unit | AE74: Unit | AF74: Unit | AG74: Unit | AH74: Unit | AI74: Unit | AJ74: Unit | AK74: Unit | AL74: Unit | AM74: Unit | AN74: Unit | AP74: 2011/12 | AQ74: Primary Industry | AR74: 2011/12Primary Industry | AU74: 2011/12 | AV74: Primary Industry | AW74: 2011/12Primary Industry
L75: 2011/12 | M75: Restaurant/Bar | N75: 2011/12Restaurant/Bar | O75: 0.43 | P75: 1.17 | Q75: 1.39 | R75: 0.37 | S75: 0.05 | T75: 0.03 | U75: 0.05 | V75: 0.03 | W75: 1.37 | X75: 1.55 | AA75: 2011/12 | AB75: Restaurant/Bar | AC75: 2011/12Restaurant/Bar | AD75: GFA | AE75: GFA | AF75: GFA | AG75: GFA | AH75: GFA | AI75: GFA | AJ75: GFA | AK75: GFA | AL75: GFA | AM75: GFA | AN75: GFA | AP75: 2011/12 | AQ75: Restaurant/Bar | AR75: 2011/12Restaurant/Bar | AS75: 0.75 | AU75: 2011/12 | AV75: Restaurant/Bar | AW75: 2011/12Restaurant/Bar | AX75: 0.75 | AY75: 1
D76: 2012/13 | O76: =D76 -> 2012/13 | AD76: =O76 -> 2012/13 | AS76: =O76 -> 2012/13 | AX76: =AS76 -> 2012/13 | BD76: =AX76 -> 2012/13 | BI76: =BD76 -> 2012/13 | BN76: =BI76 -> 2012/13
A77: =D76 -> 2012/13 | B77: Queenstown | C77: =A77&B77 -> 2012/13Queenstown | D77: 2468 | E77: 5418 | F77: 1291 | G77: 1338 | H77: 3462 | I77: 2452 | L77: =O76 -> 2012/13 | M77: Residential | N77: =L77&M77 -> 2012/13Residential | O77: 1 | Q77: 1 | R77: 1 | S77: 1 | T77: 1 | U77: 1 | V77: 1 | W77: 1 | X77: 1 | AA77: =AD76 -> 2012/13 | AB77: Residential | AC77: =AA77&AB77 -> 2012/13Residential | AD77: Unit | AE77: Unit | AF77: Unit | AG77: Unit | AH77: Unit | AI77: Unit | AJ77: Unit | AK77: Unit | AL77: Unit | AM77: Unit | AN77: Unit | AP77: =AS76 -> 2012/13 | AQ77: Residential | AR77: =AP77&AQ77 -> 2012/13Residential | AU77: =AX76 -> 2012/13 | AV77: Residential | AW77: =AU77&AV77 -> 2012/13Residential | BA77: =BD76 -> 2012/13 | BB77: Wakatipu | BC77: =BA77&BB77 -> 2012/13Wakatipu | BD77: 270000 | BF77: =BI76 -> 2012/13 | BG77: Base GFA | BH77: =BF77&BG77 -> 2012/13Base GFA | BI77: 133 | BK77: =BN76 -> 2012/13 | BL77: Wakatipu | BM77: =BK77&BL77 -> 2012/13Wakatipu
A78: =A77 -> 2012/13 | B78: Arrowtown | C78: 2012/13Arrowtown | D78: 5352 | E78: 7237 | F78: 775 | G78: 1338 | H78: 3462 | I78: 2452 | L78: =L77 -> 2012/13 | M78: Residential Flat | N78: =L78&M78 -> 2012/13Residential Flat | O78: 0.37 | Q78: 0.62 | R78: 0.38 | S78: 0.62 | T78: 0.62 | U78: 0.62 | V78: 0.62 | W78: 0.62 | X78: 0.62 | AA78: =AA77 -> 2012/13 | AB78: Residential Flat | AC78: =AA78&AB78 -> 2012/13Residential Flat | AD78: Unit | AE78: Unit | AF78: Unit | AG78: Unit | AH78: Unit | AI78: Unit | AJ78: Unit | AK78: Unit | AL78: Unit | AM78: Unit | AN78: Unit | AP78: =AP77 -> 2012/13 | AQ78: Residential Flat | AR78: 2012/13Residential Flat | AU78: =AU77 -> 2012/13 | AV78: Residential Flat | AW78: 2012/13Residential Flat | BA78: =BA77 -> 2012/13 | BB78: Wanaka | BC78: =BA78&BB78 -> 2012/13Wanaka | BD78: 410000 | BK78: =BK77 -> 2012/13 | BL78: Wanaka | BM78: =BK78&BL78 -> 2012/13Wanaka
A79: =A78 -> 2012/13 | B79: Glenorchy | C79: 2012/13Glenorchy | D79: 8650 | F79: 776 | G79: 1338 | H79: 3462 | I79: 2452 | L79: =L78 -> 2012/13 | M79: Multi Unit Residential | N79: 2012/13Multi Unit Residential | O79: 0.37 | P79: 0.4 | Q79: 0.62 | R79: 0.38 | S79: 0.62 | T79: 0.62 | U79: 0.62 | V79: 0.62 | W79: 0.62 | X79: 0.62 | AA79: =AA78 -> 2012/13 | AB79: Multi Unit Residential | AC79: 2012/13Multi Unit Residential | AD79: Unit | AE79: Unit | AF79: Unit | AG79: GFA | AH79: GFA | AI79: GFA | AJ79: GFA | AK79: GFA | AL79: GFA | AM79: GFA | AN79: GFA | AP79: =AP78 -> 2012/13 | AQ79: Multi Unit Residential | AR79: 2012/13Multi Unit Residential | AU79: =AU78 -> 2012/13 | AV79: Multi Unit Residential | AW79: 2012/13Multi Unit Residential
A80: 2012/13 | B80: Lake Hayes | C80: 2012/13Lake Hayes | D80: 2078 | E80: 5117 | F80: 0 | G80: 1338 | H80: 3462 | I80: 2452 | L80: 2012/13 | M80: Accommodation | N80: 2012/13Accommodation | O80: 0.25 | P80: 1.3 | Q80: 0.5 | R80: 0.38 | S80: 0.81 | T80: 0.96 | U80: 0.81 | V80: 0.96 | W80: 1.26 | X80: 1.86 | AA80: 2012/13 | AB80: Accommodation | AC80: 2012/13Accommodation | AD80: GFA | AE80: GFA | AF80: GFA | AG80: GFA | AH80: GFA | AI80: GFA | AJ80: GFA | AK80: GFA | AL80: GFA | AM80: GFA | AN80: GFA | AP80: 2012/13 | AQ80: Accommodation | AR80: 2012/13Accommodation | AS80: 0.55 | AU80: 2012/13 | AV80: Accommodation | AW80: 2012/13Accommodation | AX80: 0.55 | AY80: 2
A81: 2012/13 | B81: Arthurs Point | C81: 2012/13Arthurs Point | D81: 2346 | E81: 4453 | F81: 0 | G81: 1338 | H81: 3462 | I81: 2452 | L81: 2012/13 | M81: Commercial | N81: 2012/13Commercial | O81: 0.16 | P81: 1.17 | Q81: 0.02 | R81: 0.38 | S81: 0.04 | T81: 0.02 | U81: 0.04 | V81: 0.02 | W81: 1.68 | X81: 2.19 | AA81: 2012/13 | AB81: Commercial | AC81: 2012/13Commercial | AD81: GFA | AE81: GFA | AF81: GFA | AG81: GFA | AH81: GFA | AI81: GFA | AJ81: GFA | AK81: GFA | AL81: GFA | AM81: GFA | AN81: GFA | AP81: 2012/13 | AQ81: Commercial | AR81: 2012/13Commercial | AS81: 0.75 | AU81: 2012/13 | AV81: Commercial | AW81: 2012/13Commercial | AX81: 0.75 | AY81: 1
A82: 2012/13 | B82: Kingston | C82: 2012/13Kingston | F82: 0 | G82: 1338 | H82: 3462 | I82: 2452 | L82: 2012/13 | M82: Country Dwelling | N82: 2012/13Country Dwelling | O82: 1 | Q82: 1 | R82: 1 | S82: 1 | T82: 1 | U82: 0.66 | V82: 0.66 | W82: 1.73 | X82: 2.87 | AA82: 2012/13 | AB82: Country Dwelling | AC82: 2012/13Country Dwelling | AD82: Unit | AE82: Unit | AF82: Unit | AG82: Unit | AH82: Unit | AI82: Unit | AJ82: Unit | AK82: Unit | AL82: Unit | AM82: Unit | AN82: Unit | AP82: 2012/13 | AQ82: Country Dwelling | AR82: 2012/13Country Dwelling | AU82: 2012/13 | AV82: Country Dwelling | AW82: 2012/13Country Dwelling
A83: 2012/13 | B83: Wanaka | C83: 2012/13Wanaka | D83: 3528 | E83: 6209 | F83: 1934 | G83: 1300 | H83: 2551 | I83: 2667 | L83: 2012/13 | M83: Other | N83: 2012/13Other | AA83: 2012/13 | AB83: Other | AC83: 2012/13Other | AD83: Unit | AE83: Unit | AF83: Unit | AG83: GFA | AH83: GFA | AI83: GFA | AJ83: GFA | AK83: GFA | AL83: GFA | AM83: GFA | AN83: GFA | AP83: 2012/13 | AQ83: Other | AR83: 2012/13Other | AU83: 2012/13 | AV83: Other | AW83: 2012/13Other
A84: 2012/13 | B84: Hawea | C84: 2012/13Hawea | D84: 8470 | E84: 6740 | F84: 530 | G84: 1300 | H84: 2551 | I84: 2667 | L84: 2012/13 | M84: CBD Accommodation | N84: 2012/13CBD Accommodation | O84: 0.25 | P84: 1.3 | Q84: 0.5 | R84: 0.38 | S84: 0.81 | T84: 0.96 | U84: 0.81 | V84: 0.96 | W84: 1.26 | X84: 1.86 | AA84: 2012/13 | AB84: CBD Accommodation | AC84: 2012/13CBD Accommodation | AD84: GFA | AE84: GFA | AF84: GFA | AG84: GFA | AH84: GFA | AI84: GFA | AJ84: GFA | AK84: GFA | AL84: GFA | AM84: GFA | AN84: GFA | AP84: 2012/13 | AQ84: CBD Accommodation | AR84: 2012/13CBD Accommodation | AS84: 0.8 | AU84: 2012/13 | AV84: CBD Accommodation | AW84: 2012/13CBD Accommodation | AX84: 0.8 | AY84: 2
A85: 2012/13 | B85: Albert Town | C85: 2012/13Albert Town | D85: 3528 | E85: 6209 | F85: 1020 | G85: 1300 | H85: 2551 | I85: 2667 | L85: 2012/13 | M85: CBD Commercial | N85: 2012/13CBD Commercial | O85: 0.16 | P85: 1.17 | Q85: 0.02 | R85: 0.38 | S85: 0.04 | T85: 0.02 | U85: 0.04 | V85: 0.02 | W85: 1.68 | X85: 2.19 | AA85: 2012/13 | AB85: CBD Commercial | AC85: 2012/13CBD Commercial | AD85: GFA | AE85: GFA | AF85: GFA | AG85: GFA | AH85: GFA | AI85: GFA | AJ85: GFA | AK85: GFA | AL85: GFA | AM85: GFA | AN85: GFA | AP85: 2012/13 | AQ85: CBD Commercial | AR85: 2012/13CBD Commercial | AS85: 0.8 | AU85: 2012/13 | AV85: CBD Commercial | AW85: 2012/13CBD Commercial | AX85: 0.8 | AY85: 2
A86: 2012/13 | B86: Luggate | C86: 2012/13Luggate | D86: 1931 | F86: 0 | G86: 1300 | H86: 2551 | I86: 2667 | L86: 2012/13 | M86: Mixed Use Accommodation | N86: 2012/13Mixed Use Accommodation | O86: 1 | Q86: 1 | R86: 0.38 | S86: 0.7 | T86: 0.65 | U86: 0.7 | V86: 0.65 | W86: 0.95 | X86: 1.04 | AA86: 2012/13 | AB86: Mixed Use Accommodation | AC86: 2012/13Mixed Use Accommodation | AD86: Unit | AE86: Unit | AF86: Unit | AG86: GFA | AH86: GFA | AI86: GFA | AJ86: GFA | AK86: GFA | AL86: GFA | AM86: GFA | AN86: GFA | AP86: 2012/13 | AQ86: Mixed Use Accommodation | AR86: 2012/13Mixed Use Accommodation | AS86: 0.55 | AU86: 2012/13 | AV86: Mixed Use Accommodation | AW86: 2012/13Mixed Use Accommodation | AX86: 0.55 | AY86: 1
A87: 2012/13 | B87: Other Wakatipu | C87: 2012/13Other Wakatipu | G87: 1338 | H87: 3462 | I87: 2452 | L87: 2012/13 | M87: Mixed Use Commercial | N87: 2012/13Mixed Use Commercial | O87: 1 | Q87: 1 | R87: 0.38 | S87: 0.7 | T87: 0.65 | U87: 0.7 | V87: 0.65 | W87: 0.91 | X87: 0.79 | AA87: 2012/13 | AB87: Mixed Use Commercial | AC87: 2012/13Mixed Use Commercial | AD87: Unit | AE87: Unit | AF87: Unit | AG87: GFA | AH87: GFA | AI87: GFA | AJ87: GFA | AK87: GFA | AL87: GFA | AM87: GFA | AN87: GFA | AP87: 2012/13 | AQ87: Mixed Use Commercial | AR87: 2012/13Mixed Use Commercial | AS87: 0.55 | AU87: 2012/13 | AV87: Mixed Use Commercial | AW87: 2012/13Mixed Use Commercial | AX87: 0.55 | AY87: 1
A88: 2012/13 | B88: Other Wanaka | C88: 2012/13Other Wanaka | G88: 1300 | H88: 2551 | I88: 2667 | L88: 2012/13 | M88: Primary Industry | N88: 2012/13Primary Industry | O88: 1 | Q88: 1 | R88: 1 | S88: 1 | T88: 1 | U88: 0.66 | V88: 0.66 | W88: 1.34 | X88: 1.3 | AA88: 2012/13 | AB88: Primary Industry | AC88: 2012/13Primary Industry | AD88: Unit | AE88: Unit | AF88: Unit | AG88: Unit | AH88: Unit | AI88: Unit | AJ88: Unit | AK88: Unit | AL88: Unit | AM88: Unit | AN88: Unit | AP88: 2012/13 | AQ88: Primary Industry | AR88: 2012/13Primary Industry | AU88: 2012/13 | AV88: Primary Industry | AW88: 2012/13Primary Industry
L89: 2012/13 | M89: Restaurant/Bar | N89: 2012/13Restaurant/Bar | O89: 0.83 | P89: 1.17 | Q89: 0.46 | R89: 0.38 | S89: 0.04 | T89: 0.02 | U89: 0.04 | V89: 0.02 | W89: 1.68 | X89: 2.19 | AA89: 2012/13 | AB89: Restaurant/Bar | AC89: 2012/13Restaurant/Bar | AD89: GFA | AE89: GFA | AF89: GFA | AG89: GFA | AH89: GFA | AI89: GFA | AJ89: GFA | AK89: GFA | AL89: GFA | AM89: GFA | AN89: GFA | AP89: 2012/13 | AQ89: Restaurant/Bar | AR89: 2012/13Restaurant/Bar | AS89: 0.75 | AU89: 2012/13 | AV89: Restaurant/Bar | AW89: 2012/13Restaurant/Bar | AX89: 0.75 | AY89: 1
D90: 2013/14 | O90: =D90 -> 2013/14 | AD90: =O90 -> 2013/14 | AS90: =O90 -> 2013/14 | AX90: =AS90 -> 2013/14 | BD90: =AX90 -> 2013/14 | BI90: =BD90 -> 2013/14 | BN90: =BI90 -> 2013/14
A91: =D90 -> 2013/14 | B91: Queenstown | C91: =A91&B91 -> 2013/14Queenstown | D91: 2550.104832 | E91: 6076.711735 | F91: 1305.526981 | G91: 1335.579173 | H91: 3505.402 | I91: 2411.894204 | L91: =O90 -> 2013/14 | M91: Residential | N91: =L91&M91 -> 2013/14Residential | O91: 1 | Q91: 1 | R91: 1 | S91: 1 | T91: 1 | U91: 1 | V91: 1 | W91: 1 | X91: 1 | AA91: =AD90 -> 2013/14 | AB91: Residential | AC91: =AA91&AB91 -> 2013/14Residential | AD91: Unit | AE91: Unit | AF91: Unit | AG91: Unit | AH91: Unit | AI91: Unit | AJ91: Unit | AK91: Unit | AL91: Unit | AM91: Unit | AN91: Unit | AP91: =AS90 -> 2013/14 | AQ91: Residential | AR91: =AP91&AQ91 -> 2013/14Residential | AU91: =AX90 -> 2013/14 | AV91: Residential | AW91: =AU91&AV91 -> 2013/14Residential | BA91: =BD90 -> 2013/14 | BB91: Wakatipu | BC91: =BA91&BB91 -> 2013/14Wakatipu | BD91: 270000 | BF91: =BI90 -> 2013/14 | BG91: Base GFA | BH91: =BF91&BG91 -> 2013/14Base GFA | BI91: 160 | BK91: =BN90 -> 2013/14 | BL91: Wakatipu | BM91: =BK91&BL91 -> 2013/14Wakatipu
A92: =A91 -> 2013/14 | B92: Arrowtown | C92: 2013/14Arrowtown | D92: 5596.837253 | E92: 7990.619636 | F92: 757.9282796 | G92: 1335.579173 | H92: 3505.402 | I92: 2411.894204 | L92: =L91 -> 2013/14 | M92: Residential Flat | N92: =L92&M92 -> 2013/14Residential Flat | O92: 0.37 | Q92: 0.62 | R92: 0.38 | S92: 0.62 | T92: 0.62 | U92: 0.62 | V92: 0.62 | W92: 0.62 | X92: 0.62 | AA92: =AA91 -> 2013/14 | AB92: Residential Flat | AC92: =AA92&AB92 -> 2013/14Residential Flat | AD92: GFA | AE92: GFA | AF92: GFA | AG92: GFA | AH92: GFA | AI92: GFA | AJ92: GFA | AK92: GFA | AL92: GFA | AM92: GFA | AN92: GFA | AP92: =AP91 -> 2013/14 | AQ92: Residential Flat | AR92: 2013/14Residential Flat | AU92: =AU91 -> 2013/14 | AV92: Residential Flat | AW92: 2013/14Residential Flat | BA92: =BA91 -> 2013/14 | BB92: Wanaka | BC92: =BA92&BB92 -> 2013/14Wanaka | BD92: 410000 | BK92: =BK91 -> 2013/14 | BL92: Wanaka | BM92: =BK92&BL92 -> 2013/14Wanaka
A93: =A92 -> 2013/14 | B93: Glenorchy | C93: 2013/14Glenorchy | D93: 8887.687181 | F93: 747.7845922 | G93: 1335.579173 | H93: 3505.402 | I93: 2411.894204 | L93: =L92 -> 2013/14 | M93: Multi Unit Residential | N93: 2013/14Multi Unit Residential | O93: 0.37 | P93: 0.4 | Q93: 0.62 | R93: 0.38 | S93: 0.62 | T93: 0.62 | U93: 0.62 | V93: 0.62 | W93: 0.62 | X93: 0.62 | AA93: =AA92 -> 2013/14 | AB93: Multi Unit Residential | AC93: 2013/14Multi Unit Residential | AD93: GFA | AE93: GFA | AF93: GFA | AG93: GFA | AH93: GFA | AI93: GFA | AJ93: GFA | AK93: GFA | AL93: GFA | AM93: GFA | AN93: GFA | AP93: =AP92 -> 2013/14 | AQ93: Multi Unit Residential | AR93: 2013/14Multi Unit Residential | AU93: =AU92 -> 2013/14 | AV93: Multi Unit Residential | AW93: 2013/14Multi Unit Residential
A94: 2013/14 | B94: Lake Hayes | C94: 2013/14Lake Hayes | D94: 2400.690586 | E94: 5612.02612 | G94: 1335.579173 | H94: 3505.402 | I94: 2411.894204 | L94: 2013/14 | M94: Accommodation | N94: 2013/14Accommodation | O94: 0.25 | P94: 1.3 | Q94: 0.5 | R94: 0.38 | S94: 0.81 | T94: 0.96 | U94: 0.81 | V94: 0.96 | W94: 1.26 | X94: 1.86 | AA94: 2013/14 | AB94: Accommodation | AC94: 2013/14Accommodation | AD94: GFA | AE94: GFA | AF94: GFA | AG94: GFA | AH94: GFA | AI94: GFA | AJ94: GFA | AK94: GFA | AL94: GFA | AM94: GFA | AN94: GFA | AP94: 2013/14 | AQ94: Accommodation | AR94: 2013/14Accommodation | AS94: 0.55 | AU94: 2013/14 | AV94: Accommodation | AW94: 2013/14Accommodation | AX94: 0.55 | AY94: 2
A95: 2013/14 | B95: Arthurs Point | C95: 2013/14Arthurs Point | D95: 2395.954883 | E95: 4779.210679 | G95: 1335.579173 | H95: 3505.402 | I95: 2411.894204 | L95: 2013/14 | M95: Commercial | N95: 2013/14Commercial | O95: 0.16 | P95: 1.17 | Q95: 0.02 | R95: 0.38 | S95: 0.04 | T95: 0.02 | U95: 0.04 | V95: 0.02 | W95: 2.08 | X95: 2.76 | AA95: 2013/14 | AB95: Commercial | AC95: 2013/14Commercial | AD95: GFA | AE95: GFA | AF95: GFA | AG95: GFA | AH95: GFA | AI95: GFA | AJ95: GFA | AK95: GFA | AL95: GFA | AM95: GFA | AN95: GFA | AP95: 2013/14 | AQ95: Commercial | AR95: 2013/14Commercial | AS95: 0.75 | AU95: 2013/14 | AV95: Commercial | AW95: 2013/14Commercial | AX95: 0.75 | AY95: 1
A96: 2013/14 | B96: Kingston | C96: 2013/14Kingston | G96: 1335.579173 | H96: 3505.402 | I96: 2411.894204 | L96: 2013/14 | M96: Industrial | N96: =L96&M96 -> 2013/14Industrial | O96: 0.16 | P96: 1.17 | Q96: 0.02 | R96: 0.38 | S96: 0.04 | T96: 0.02 | U96: 0.04 | V96: 0.02 | W96: 1.01 | X96: 1.25 | AA96: 2013/14 | AB96: Industrial | AC96: 2013/14Industrial | AD96: GFA | AE96: GFA | AF96: GFA | AG96: GFA | AH96: GFA | AI96: GFA | AJ96: GFA | AK96: GFA | AL96: GFA | AM96: GFA | AN96: GFA | AP96: 2013/14 | AQ96: Industrial | AR96: 2013/14Industrial | AS96: 0.3 | AU96: 2013/14 | AV96: Industrial | AW96: 2013/14Industrial | AX96: 0.3 | AY96: 1
A97: 2013/14 | B97: Wanaka | C97: 2013/14Wanaka | D97: 3715.200765 | E97: 6096.584974 | F97: 1979.592225 | G97: 1299.144456 | H97: 2682.347657 | I97: 2748.621929 | L97: =L95 -> 2013/14 | M97: Country Dwelling | N97: 2013/14Country Dwelling | O97: 1 | Q97: 1 | R97: 1 | S97: 1 | T97: 1 | U97: 0.66 | V97: 0.66 | W97: 1.73 | X97: 2.87 | AA97: =AA95 -> 2013/14 | AB97: Country Dwelling | AC97: 2013/14Country Dwelling | AD97: Unit | AE97: Unit | AF97: Unit | AG97: Unit | AH97: Unit | AI97: Unit | AJ97: Unit | AK97: Unit | AL97: Unit | AM97: Unit | AN97: Unit | AP97: =AP95 -> 2013/14 | AQ97: Country Dwelling | AR97: 2013/14Country Dwelling | AU97: =AU95 -> 2013/14 | AV97: Country Dwelling | AW97: 2013/14Country Dwelling
A98: 2013/14 | B98: Hawea | C98: 2013/14Hawea | D98: 6931.978888 | E98: 6074.239962 | F98: 539.2350084 | G98: 1299.144456 | H98: 2682.347657 | I98: 2748.621929 | L98: 2013/14 | M98: Other | N98: 2013/14Other | AA98: 2013/14 | AB98: Other | AC98: 2013/14Other | AD98: GFA | AE98: GFA | AF98: GFA | AG98: GFA | AH98: GFA | AI98: GFA | AJ98: GFA | AK98: GFA | AL98: GFA | AM98: GFA | AN98: GFA | AP98: 2013/14 | AQ98: Other | AR98: 2013/14Other | AU98: 2013/14 | AV98: Other | AW98: 2013/14Other
A99: 2013/14 | B99: Albert Town | C99: 2013/14Albert Town | D99: 3715.200765 | E99: 6096.584974 | F99: 1036.723275 | G99: 1299.144456 | H99: 2682.347657 | I99: 2748.621929 | L99: 2013/14 | M99: CBD Accommodation | N99: 2013/14CBD Accommodation | O99: 0.25 | P99: 1.3 | Q99: 0.5 | R99: 0.38 | S99: 0.81 | T99: 0.96 | U99: 0.81 | V99: 0.96 | W99: 1.26 | X99: 1.86 | AA99: 2013/14 | AB99: CBD Accommodation | AC99: 2013/14CBD Accommodation | AD99: GFA | AE99: GFA | AF99: GFA | AG99: GFA | AH99: GFA | AI99: GFA | AJ99: GFA | AK99: GFA | AL99: GFA | AM99: GFA | AN99: GFA | AP99: 2013/14 | AQ99: CBD Accommodation | AR99: 2013/14CBD Accommodation | AS99: 0.8 | AU99: 2013/14 | AV99: CBD Accommodation | AW99: 2013/14CBD Accommodation | AX99: 0.8 | AY99: 2
A100: 2013/14 | B100: Luggate | C100: 2013/14Luggate | D100: 1933.439931 | G100: 1299.144456 | H100: 2682.347657 | I100: 2748.621929 | L100: 2013/14 | M100: CBD Commercial | N100: 2013/14CBD Commercial | O100: 0.16 | P100: 1.17 | Q100: 0.02 | R100: 0.38 | S100: 0.04 | T100: 0.02 | U100: 0.04 | V100: 0.02 | W100: 2.08 | X100: 2.76 | AA100: 2013/14 | AB100: CBD Commercial | AC100: 2013/14CBD Commercial | AD100: GFA | AE100: GFA | AF100: GFA | AG100: GFA | AH100: GFA | AI100: GFA | AJ100: GFA | AK100: GFA | AL100: GFA | AM100: GFA | AN100: GFA | AP100: 2013/14 | AQ100: CBD Commercial | AR100: 2013/14CBD Commercial | AS100: 0.8 | AU100: 2013/14 | AV100: CBD Commercial | AW100: 2013/14CBD Commercial | AX100: 0.8 | AY100: 2
A101: 2013/14 | B101: Other Wakatipu | C101: 2013/14Other Wakatipu | G101: 1335.579173 | H101: 3505.402 | I101: 2411.894204 | L101: 2013/14 | M101: Mixed Use Accommodation | N101: 2013/14Mixed Use Accommodation | O101: 1 | Q101: 1 | R101: 0.38 | S101: 0.7 | T101: 0.65 | U101: 0.7 | V101: 0.65 | W101: 0.95 | X101: 1.04 | AA101: 2013/14 | AB101: Mixed Use Accommodation | AC101: 2013/14Mixed Use Accommodation | AD101: Unit | AE101: Unit | AF101: Unit | AG101: GFA | AH101: GFA | AI101: GFA | AJ101: GFA | AK101: GFA | AL101: GFA | AM101: GFA | AN101: GFA | AP101: 2013/14 | AQ101: Mixed Use Accommodation | AR101: 2013/14Mixed Use Accommodation | AS101: 0.55 | AU101: 2013/14 | AV101: Mixed Use Accommodation | AW101: 2013/14Mixed Use Accommodation | AX101: 0.55 | AY101: 1
A102: 2013/14 | B102: Other Wanaka | C102: 2013/14Other Wanaka | G102: 1299.144456 | H102: 2682.347657 | I102: 2748.621929 | L102: 2013/14 | M102: Mixed Use Commercial | N102: 2013/14Mixed Use Commercial | O102: 1 | Q102: 1 | R102: 0.38 | S102: 0.7 | T102: 0.65 | U102: 0.7 | V102: 0.65 | W102: 0.91 | X102: 0.79 | AA102: 2013/14 | AB102: Mixed Use Commercial | AC102: 2013/14Mixed Use Commercial | AD102: Unit | AE102: Unit | AF102: Unit | AG102: GFA | AH102: GFA | AI102: GFA | AJ102: GFA | AK102: GFA | AL102: GFA | AM102: GFA | AN102: GFA | AP102: 2013/14 | AQ102: Mixed Use Commercial | AR102: 2013/14Mixed Use Commercial | AS102: 0.55 | AU102: 2013/14 | AV102: Mixed Use Commercial | AW102: 2013/14Mixed Use Commercial | AX102: 0.55 | AY102: 1
